Workbook

Sheet Итоговый
A1: Главное управление по физической культуре, спорту и туризму администрации города Красноярска
A2: Региональная общественная организация "Федерация подводного спорта Красноярского края"
A22: Первенство города по подводному спорту
A23: среди юношей и девушек 9-11 лет
D48: г. Красноярск, бассейн "Здоровый мир" 25 м.
A49: 20 января 2026 г.
A52: Главное управление по физической культуре, спорту и туризму администрации города Красноярска
A53: Региональная общественная организация "Федерация подводного спорта Красноярского края"
A54: Первенство города по подводному спорту
A55: среди юношей и девушек 9-11 лет
A56: 20 января 2026 г. | G56: =$D$48 -> г. Красноярск, бассейн "Здоровый мир" 25 м.
A57: СПИСОК СУДЕЙ
A58: № п/п | B58: Должность | E58: Фамилия, Имя, Отчество | H58: Категория | I58: Город, клуб
A60: 1 | B60: Главный судья | E60: Фалеева Елена Александровна | H60: СС1К | I60: Красноярск
A61: 2 | B61: Главный секретарь | E61: Реди Елена Владимировна | H61: ССВК | I61: Красноярск
A62: 3 | B62: Врач | E62: Андреянова Ирина Васильевна | I62: Красноярск
A63: 4 | B63: Зам. главного судьи | E63: Бабаев Федор Игоревич | H63: СС1К | I63: Красноярск
A64: 5 | B64: Ст. хронометрист | E64: Фалеева Александра Александровна | H64: СС3К | I64: Красноярск
A65: 6 | B65: Помощник ст.хронометриста | E65: Чеботарева Анастасия Денисовна | H65: СС | I65: Красноярск
A66: 7 | B66: Судья - секундометрист | E66: Капитонов Кирилл Артемович | H66: СС | I66: Красноярск
A67: 8 | B67: Судья - секундометрист | E67: Давлячин Илья Александрович | H67: СС3К | I67: Красноярск
A68: 9 | B68: Судья - секундометрист | E68: Фуражкин Максим Владимирович | H68: СС | I68: Красноярск
A69: 10 | B69: Судья - секундометрист | E69: Гончаров Тимофей Александрович | H69: СС | I69: Красноярск
A70: 11 | B70: Судья - секундометрист | E70: Тюклин Максим Витальевич | H70: СС3К | I70: Красноярск
A71: 12 | B71: Судья - секундометрист | E71: Тарасов Владимир Алексеевич | H71: СС | I71: Красноярск
A72: 13 | B72: Стартер | E72: Сарин Алексей Николаевич | H72: СС | I72: Красноярск
A73: 14 | B73: Судья - информатор | E73: Бабаева Анастасия Андреевна | H73: СС | I73: Красноярск
A74: 15 | B74: Ст. судья на финише | E74: Терсков Богдан Иванович | H74: СС | I74: Красноярск
A75: 16 | B75: Судья на финише | E75: Мамонтов Евгений Владимирович | H75: СС | I75: Красноярск
A76: 17 | B76: Ст. судья при участниках | E76: Курпас Елизавета Юрьевна | H76: СС3К | I76: Красноярск
A77: 18 | B77: Судья при участниках | E77: Петровская Ольга Ивановна | H77: СС | I77: Красноярск
A78: 19 | B78: Судья при участниках | E78: Полякова Юлия Вячеславовна | H78: СС | I78: Красноярск
A79: 20 | B79: Ст. судья на дистанции | E79: Крутяков Андрей Владимирович | H79: СС1К | I79: Красноярск
A80: 21 | B80: Судья на дистанции | E80: Нуяксова Диана Юрьевна | H80: СС3К | I80: Красноярск
A81: 22 | B81: Судья на дистанции | E81: Швецова Нина Васильевна | H81: СС1К | I81: Красноярск
A82: 23 | B82: Секретарь | E82: Горохова Мария Павловна | H82: СС | I82: Красноярск
A83: 24 | B83: Судья на повороте | E83: Шлыкова Злата Андреевна | H83: СС | I83: Красноярск
A84: 25 | B84: Судья на повороте | E84: Ковалевич Варвара Андреевна | H84: СС | I84: Красноярск
A85: 26 | B85: Судья на финише | E85: Седайкин Семен Игоревич | H85: СС | I85: Красноярск
A86: 27 | B86: Судья на дистанции | E86: Мальков Михаил Максимович | H86: СС | I86: Красноярск
A97: Главное управление по физической культуре, спорту и туризму администрации города Красноярска
A98: Региональная общественная организация "Федерация подводного спорта Красноярского края"
A99: Первенство города по подводному спорту
A100: среди юношей и девушек 9-11 лет
A101: 20 января 2026 г. | G101: г. Красноярск, б-н "СФУ" 25 метров
A102: П Р О Т О К О Л
A103: технических результатов
A104: Место | B104: Разряд, звание | C104: Фамилия, Имя, Отчество | E104: Дата рожд-я | F104: Команда | H104: Результат | J104: Норматив
H105: Предв. | I105: Финал
C107: Плавание в ластах - 50 м, девушки 2015-2017 г.р.
A109: 1 | B109: I юн | C109: Бавтрушко Елизавета | D109: Артемовна | E109: 2015-01-08 | F109: ДВС | I109: 26.48 | J109: =IF(ISBLANK(I109)," ",IF(ISTEXT(I109)," ",IF(I109<=Нормативы!$H$5,"КМС",IF(I109<=Нормативы!$H$6,"КМС",IF(I109<=Нормативы!$L$7,"КМС",IF(I109<=Нормативы!$L$8,"I",IF(I109<=Нормативы!$L$9,"II",IF(I109<=Нормативы!$L$10,"III",IF(I109<=Нормативы!$L$11,"I юн",IF(I109<=Нормативы!$L$12,"II юн",IF(I109<=Нормативы!$L$13,"III юн",IF(ISTEXT(I109)," ",IF(ISBLANK(I109)," ","б/р"))))))))))))) -> I юн
A110: 2 | B110: I юн | C110: Липкина Полина | D110: Максимовна | E110: 2015-02-01 | F110: ДВС | I110: 27.45 | J110: =IF(ISBLANK(I110)," ",IF(ISTEXT(I110)," ",IF(I110<=Нормативы!$H$5,"КМС",IF(I110<=Нормативы!$H$6,"КМС",IF(I110<=Нормативы!$L$7,"КМС",IF(I110<=Нормативы!$L$8,"I",IF(I110<=Нормативы!$L$9,"II",IF(I110<=Нормативы!$L$10,"III",IF(I110<=Нормативы!$L$11,"I юн",IF(I110<=Нормативы!$L$12,"II юн",IF(I110<=Нормативы!$L$13,"III юн",IF(ISTEXT(I110)," ",IF(ISBLANK(I110)," ","б/р"))))))))))))) -> II юн
A111: 3 | B111: I юн | C111: Валеева Лейсан | D111: Каримовна | E111: 2015-08-28 | F111: Дианема | I111: 28.18 | J111: =IF(ISBLANK(I111)," ",IF(ISTEXT(I111)," ",IF(I111<=Нормативы!$H$5,"КМС",IF(I111<=Нормативы!$H$6,"КМС",IF(I111<=Нормативы!$L$7,"КМС",IF(I111<=Нормативы!$L$8,"I",IF(I111<=Нормативы!$L$9,"II",IF(I111<=Нормативы!$L$10,"III",IF(I111<=Нормативы!$L$11,"I юн",IF(I111<=Нормативы!$L$12,"II юн",IF(I111<=Нормативы!$L$13,"III юн",IF(ISTEXT(I111)," ",IF(ISBLANK(I111)," ","б/р"))))))))))))) -> II юн
A112: 4 | B112: I юн | C112: Водясова Ксения | D112: Романовна | E112: 2016-05-22 | F112: Дианема | I112: 29.94 | J112: =IF(ISBLANK(I112)," ",IF(ISTEXT(I112)," ",IF(I112<=Нормативы!$H$5,"КМС",IF(I112<=Нормативы!$H$6,"КМС",IF(I112<=Нормативы!$L$7,"КМС",IF(I112<=Нормативы!$L$8,"I",IF(I112<=Нормативы!$L$9,"II",IF(I112<=Нормативы!$L$10,"III",IF(I112<=Нормативы!$L$11,"I юн",IF(I112<=Нормативы!$L$12,"II юн",IF(I112<=Нормативы!$L$13,"III юн",IF(ISTEXT(I112)," ",IF(ISBLANK(I112)," ","б/р"))))))))))))) -> III юн
A113: 5 | B113: III юн | C113: Плащенко Дарина | D113: Ивановна | E113: 2015-06-24 | F113: "Спутник-Авангард" | I113: 30.2 | J113: =IF(ISBLANK(I113)," ",IF(ISTEXT(I113)," ",IF(I113<=Нормативы!$H$5,"КМС",IF(I113<=Нормативы!$H$6,"КМС",IF(I113<=Нормативы!$L$7,"КМС",IF(I113<=Нормативы!$L$8,"I",IF(I113<=Нормативы!$L$9,"II",IF(I113<=Нормативы!$L$10,"III",IF(I113<=Нормативы!$L$11,"I юн",IF(I113<=Нормативы!$L$12,"II юн",IF(I113<=Нормативы!$L$13,"III юн",IF(ISTEXT(I113)," ",IF(ISBLANK(I113)," ","б/р"))))))))))))) -> III юн
A114: 6 | B114: III юн | C114: Котнекова Ксения | D114: Сергеевна | E114: 2015-12-19 | F114: "Спутник-Авангард" | I114: 30.41 | J114: =IF(ISBLANK(I114)," ",IF(ISTEXT(I114)," ",IF(I114<=Нормативы!$H$5,"КМС",IF(I114<=Нормативы!$H$6,"КМС",IF(I114<=Нормативы!$L$7,"КМС",IF(I114<=Нормативы!$L$8,"I",IF(I114<=Нормативы!$L$9,"II",IF(I114<=Нормативы!$L$10,"III",IF(I114<=Нормативы!$L$11,"I юн",IF(I114<=Нормативы!$L$12,"II юн",IF(I114<=Нормативы!$L$13,"III юн",IF(ISTEXT(I114)," ",IF(ISBLANK(I114)," ","б/р"))))))))))))) -> III юн
A115: 7 | B115: II юн | C115: Кругликова Аглая | D115: Сергеевна | E115: 2017-03-17 | F115: ДВС | I115: 31.43 | J115: =IF(ISBLANK(I115)," ",IF(ISTEXT(I115)," ",IF(I115<=Нормативы!$H$5,"КМС",IF(I115<=Нормативы!$H$6,"КМС",IF(I115<=Нормативы!$L$7,"КМС",IF(I115<=Нормативы!$L$8,"I",IF(I115<=Нормативы!$L$9,"II",IF(I115<=Нормативы!$L$10,"III",IF(I115<=Нормативы!$L$11,"I юн",IF(I115<=Нормативы!$L$12,"II юн",IF(I115<=Нормативы!$L$13,"III юн",IF(ISTEXT(I115)," ",IF(ISBLANK(I115)," ","б/р"))))))))))))) -> III юн
A116: 8 | B116: II юн | C116: Гаджиева Сабина | D116: Низамиевна | E116: 2015-09-29 | F116: Дианема | I116: 32.38 | J116: =IF(ISBLANK(I116)," ",IF(ISTEXT(I116)," ",IF(I116<=Нормативы!$H$5,"КМС",IF(I116<=Нормативы!$H$6,"КМС",IF(I116<=Нормативы!$L$7,"КМС",IF(I116<=Нормативы!$L$8,"I",IF(I116<=Нормативы!$L$9,"II",IF(I116<=Нормативы!$L$10,"III",IF(I116<=Нормативы!$L$11,"I юн",IF(I116<=Нормативы!$L$12,"II юн",IF(I116<=Нормативы!$L$13,"III юн",IF(ISTEXT(I116)," ",IF(ISBLANK(I116)," ","б/р"))))))))))))) -> б/р
A117: 9 | B117: Iюн | C117: Членова Анастасия | D117: Александровна | E117: 2015-04-18 | F117: Дианема | I117: 32.8 | J117: =IF(ISBLANK(I117)," ",IF(ISTEXT(I117)," ",IF(I117<=Нормативы!$H$5,"КМС",IF(I117<=Нормативы!$H$6,"КМС",IF(I117<=Нормативы!$L$7,"КМС",IF(I117<=Нормативы!$L$8,"I",IF(I117<=Нормативы!$L$9,"II",IF(I117<=Нормативы!$L$10,"III",IF(I117<=Нормативы!$L$11,"I юн",IF(I117<=Нормативы!$L$12,"II юн",IF(I117<=Нормативы!$L$13,"III юн",IF(ISTEXT(I117)," ",IF(ISBLANK(I117)," ","б/р"))))))))))))) -> б/р
A118: 10 | B118: II юн | C118: Захарова Мария | D118: Денисовна | E118: 2015-10-26 | F118: Дианема | I118: 34.91 | J118: =IF(ISBLANK(I118)," ",IF(ISTEXT(I118)," ",IF(I118<=Нормативы!$H$5,"КМС",IF(I118<=Нормативы!$H$6,"КМС",IF(I118<=Нормативы!$L$7,"КМС",IF(I118<=Нормативы!$L$8,"I",IF(I118<=Нормативы!$L$9,"II",IF(I118<=Нормативы!$L$10,"III",IF(I118<=Нормативы!$L$11,"I юн",IF(I118<=Нормативы!$L$12,"II юн",IF(I118<=Нормативы!$L$13,"III юн",IF(ISTEXT(I118)," ",IF(ISBLANK(I118)," ","б/р"))))))))))))) -> б/р
A119: 11 | B119: III юн | C119: Малакеева Мирослава | D119: Вячеславовна | E119: 01.01.2016 | F119: Дианема | I119: 36.16 | J119: =IF(ISBLANK(I119)," ",IF(ISTEXT(I119)," ",IF(I119<=Нормативы!$H$5,"КМС",IF(I119<=Нормативы!$H$6,"КМС",IF(I119<=Нормативы!$L$7,"КМС",IF(I119<=Нормативы!$L$8,"I",IF(I119<=Нормативы!$L$9,"II",IF(I119<=Нормативы!$L$10,"III",IF(I119<=Нормативы!$L$11,"I юн",IF(I119<=Нормативы!$L$12,"II юн",IF(I119<=Нормативы!$L$13,"III юн",IF(ISTEXT(I119)," ",IF(ISBLANK(I119)," ","б/р"))))))))))))) -> б/р
A120: 12 | B120: б/р | C120: Швалова Софья | D120: Егоровна | E120: 2016-05-22 | F120: Дианема | I120: 39.87 | J120: =IF(ISBLANK(I120)," ",IF(ISTEXT(I120)," ",IF(I120<=Нормативы!$H$5,"КМС",IF(I120<=Нормативы!$H$6,"КМС",IF(I120<=Нормативы!$L$7,"КМС",IF(I120<=Нормативы!$L$8,"I",IF(I120<=Нормативы!$L$9,"II",IF(I120<=Нормативы!$L$10,"III",IF(I120<=Нормативы!$L$11,"I юн",IF(I120<=Нормативы!$L$12,"II юн",IF(I120<=Нормативы!$L$13,"III юн",IF(ISTEXT(I120)," ",IF(ISBLANK(I120)," ","б/р"))))))))))))) -> б/р
A121: 13 | B121: 3юн | C121: Гончаренко Мирослава | D121: Владимировна | E121: 2016-09-01 | F121: Дианема | I121: 43.56 | J121: =IF(ISBLANK(I121)," ",IF(ISTEXT(I121)," ",IF(I121<=Нормативы!$H$5,"КМС",IF(I121<=Нормативы!$H$6,"КМС",IF(I121<=Нормативы!$L$7,"КМС",IF(I121<=Нормативы!$L$8,"I",IF(I121<=Нормативы!$L$9,"II",IF(I121<=Нормативы!$L$10,"III",IF(I121<=Нормативы!$L$11,"I юн",IF(I121<=Нормативы!$L$12,"II юн",IF(I121<=Нормативы!$L$13,"III юн",IF(ISTEXT(I121)," ",IF(ISBLANK(I121)," ","б/р"))))))))))))) -> б/р
B122: б/р | C122: Понкратова Полина | D122: Ивановна | E122: 2017-11-10 | F122: Дианема | I122: ф/с
C124: Плавание в ластах - 50 м, юноши 2015-2017 г.р.
A126: 1 | B126: III юн | C126: Кондратьев Михаил | D126: Дмитриевич | E126: 2016-02-12 | F126: "Спутник-Авангард" | I126: 24.65 | J126: =IF(ISBLANK(I126)," ",IF(ISTEXT(I126)," ",IF(I126<=Нормативы!$H$16,"КМС",IF(I126<=Нормативы!$H$17,"КМС",IF(I126<=Нормативы!$L$18,"КМС",IF(I126<=Нормативы!$L$19,"I",IF(I126<=Нормативы!$L$20,"II",IF(I126<=Нормативы!$L$21,"III",IF(I126<=Нормативы!$L$22,"I юн",IF(I126<=Нормативы!$L$23,"II юн",IF(I126<=Нормативы!$L$24,"III юн","б/р"))))))))))) -> II юн
A127: 2 | B127: I юн | C127: Сисько Илья | D127: Сергеевич | E127: 2015-04-15 | F127: Дианема | I127: 25.01 | J127: =IF(ISBLANK(I127)," ",IF(ISTEXT(I127)," ",IF(I127<=Нормативы!$H$16,"КМС",IF(I127<=Нормативы!$H$17,"КМС",IF(I127<=Нормативы!$L$18,"КМС",IF(I127<=Нормативы!$L$19,"I",IF(I127<=Нормативы!$L$20,"II",IF(I127<=Нормативы!$L$21,"III",IF(I127<=Нормативы!$L$22,"I юн",IF(I127<=Нормативы!$L$23,"II юн",IF(I127<=Нормативы!$L$24,"III юн","б/р"))))))))))) -> II юн
A128: 3 | B128: III юн | C128: Провалинский Артём | D128: Андреевич | E128: 2015-12-26 | F128: "Спутник-Авангард" | I128: 28.63 | J128: =IF(ISBLANK(I128)," ",IF(ISTEXT(I128)," ",IF(I128<=Нормативы!$H$16,"КМС",IF(I128<=Нормативы!$H$17,"КМС",IF(I128<=Нормативы!$L$18,"КМС",IF(I128<=Нормативы!$L$19,"I",IF(I128<=Нормативы!$L$20,"II",IF(I128<=Нормативы!$L$21,"III",IF(I128<=Нормативы!$L$22,"I юн",IF(I128<=Нормативы!$L$23,"II юн",IF(I128<=Нормативы!$L$24,"III юн","б/р"))))))))))) -> б/р
A129: 4 | B129: II юн | C129: Кондратьев Вячеслав | D129: Александрович | E129: 2016-08-28 | F129: Дианема | I129: 28.71 | J129: =IF(ISBLANK(I129)," ",IF(ISTEXT(I129)," ",IF(I129<=Нормативы!$H$16,"КМС",IF(I129<=Нормативы!$H$17,"КМС",IF(I129<=Нормативы!$L$18,"КМС",IF(I129<=Нормативы!$L$19,"I",IF(I129<=Нормативы!$L$20,"II",IF(I129<=Нормативы!$L$21,"III",IF(I129<=Нормативы!$L$22,"I юн",IF(I129<=Нормативы!$L$23,"II юн",IF(I129<=Нормативы!$L$24,"III юн","б/р"))))))))))) -> б/р
A130: 5 | B130: II юн | C130: Бутылин Макар | D130: Денисович | E130: 2016-05-18 | F130: Дианема | I130: 30.38 | J130: =IF(ISBLANK(I130)," ",IF(ISTEXT(I130)," ",IF(I130<=Нормативы!$H$16,"КМС",IF(I130<=Нормативы!$H$17,"КМС",IF(I130<=Нормативы!$L$18,"КМС",IF(I130<=Нормативы!$L$19,"I",IF(I130<=Нормативы!$L$20,"II",IF(I130<=Нормативы!$L$21,"III",IF(I130<=Нормативы!$L$22,"I юн",IF(I130<=Нормативы!$L$23,"II юн",IF(I130<=Нормативы!$L$24,"III юн","б/р"))))))))))) -> б/р
A131: 6 | B131: III юн | C131: Абдулхаков Дмитрий | D131: Алексеевич | E131: 2015-12-15 | F131: Дианема | I131: 32.26 | J131: =IF(ISBLANK(I131)," ",IF(ISTEXT(I131)," ",IF(I131<=Нормативы!$H$16,"КМС",IF(I131<=Нормативы!$H$17,"КМС",IF(I131<=Нормативы!$L$18,"КМС",IF(I131<=Нормативы!$L$19,"I",IF(I131<=Нормативы!$L$20,"II",IF(I131<=Нормативы!$L$21,"III",IF(I131<=Нормативы!$L$22,"I юн",IF(I131<=Нормативы!$L$23,"II юн",IF(I131<=Нормативы!$L$24,"III юн","б/р"))))))))))) -> б/р
A132: 7 | B132: б/р | C132: Кремез Роман | D132: Николаевич | E132: 2015-04-02 | F132: Дианема | I132: 32.42 | J132: =IF(ISBLANK(I132)," ",IF(ISTEXT(I132)," ",IF(I132<=Нормативы!$H$16,"КМС",IF(I132<=Нормативы!$H$17,"КМС",IF(I132<=Нормативы!$L$18,"КМС",IF(I132<=Нормативы!$L$19,"I",IF(I132<=Нормативы!$L$20,"II",IF(I132<=Нормативы!$L$21,"III",IF(I132<=Нормативы!$L$22,"I юн",IF(I132<=Нормативы!$L$23,"II юн",IF(I132<=Нормативы!$L$24,"III юн","б/р"))))))))))) -> б/р
A133: 8 | B133: б/р | C133: Дворников Аким | D133: Мксимович | E133: 2017-05-31 | F133: Дианема | I133: 32.45 | J133: =IF(ISBLANK(I133)," ",IF(ISTEXT(I133)," ",IF(I133<=Нормативы!$H$16,"КМС",IF(I133<=Нормативы!$H$17,"КМС",IF(I133<=Нормативы!$L$18,"КМС",IF(I133<=Нормативы!$L$19,"I",IF(I133<=Нормативы!$L$20,"II",IF(I133<=Нормативы!$L$21,"III",IF(I133<=Нормативы!$L$22,"I юн",IF(I133<=Нормативы!$L$23,"II юн",IF(I133<=Нормативы!$L$24,"III юн","б/р"))))))))))) -> б/р
A134: 9 | B134: II юн | C134: Пичкуров Савелий | D134: Сергеевич | E134: 2015-06-22 | F134: ДВС | I134: 32.69 | J134: =IF(ISBLANK(I134)," ",IF(ISTEXT(I134)," ",IF(I134<=Нормативы!$H$16,"КМС",IF(I134<=Нормативы!$H$17,"КМС",IF(I134<=Нормативы!$L$18,"КМС",IF(I134<=Нормативы!$L$19,"I",IF(I134<=Нормативы!$L$20,"II",IF(I134<=Нормативы!$L$21,"III",IF(I134<=Нормативы!$L$22,"I юн",IF(I134<=Нормативы!$L$23,"II юн",IF(I134<=Нормативы!$L$24,"III юн","б/р"))))))))))) -> б/р
A135: 10 | B135: II юн | C135: Малоканов Илья | D135: Александрович | E135: 2015-08-03 | F135: ДВС | I135: 33.71 | J135: =IF(ISBLANK(I135)," ",IF(ISTEXT(I135)," ",IF(I135<=Нормативы!$H$16,"КМС",IF(I135<=Нормативы!$H$17,"КМС",IF(I135<=Нормативы!$L$18,"КМС",IF(I135<=Нормативы!$L$19,"I",IF(I135<=Нормативы!$L$20,"II",IF(I135<=Нормативы!$L$21,"III",IF(I135<=Нормативы!$L$22,"I юн",IF(I135<=Нормативы!$L$23,"II юн",IF(I135<=Нормативы!$L$24,"III юн","б/р"))))))))))) -> б/р
A136: 11 | B136: б/р | C136: Ребушев Данил | D136: Романович | E136: 2015-06-29 | F136: К;атран | I136: 34.18 | J136: =IF(ISBLANK(I136)," ",IF(ISTEXT(I136)," ",IF(I136<=Нормативы!$H$16,"КМС",IF(I136<=Нормативы!$H$17,"КМС",IF(I136<=Нормативы!$L$18,"КМС",IF(I136<=Нормативы!$L$19,"I",IF(I136<=Нормативы!$L$20,"II",IF(I136<=Нормативы!$L$21,"III",IF(I136<=Нормативы!$L$22,"I юн",IF(I136<=Нормативы!$L$23,"II юн",IF(I136<=Нормативы!$L$24,"III юн","б/р"))))))))))) -> б/р
A137: 12 | B137: б/р | C137: Николаев Дмитрий | D137: Ильич | E137: 2016-03-18 | F137: "Спутник-Авангард" | I137: 35 | J137: =IF(ISBLANK(I137)," ",IF(ISTEXT(I137)," ",IF(I137<=Нормативы!$H$16,"КМС",IF(I137<=Нормативы!$H$17,"КМС",IF(I137<=Нормативы!$L$18,"КМС",IF(I137<=Нормативы!$L$19,"I",IF(I137<=Нормативы!$L$20,"II",IF(I137<=Нормативы!$L$21,"III",IF(I137<=Нормативы!$L$22,"I юн",IF(I137<=Нормативы!$L$23,"II юн",IF(I137<=Нормативы!$L$24,"III юн","б/р"))))))))))) -> б/р
A138: 13 | B138: III юн | C138: Мокров Ярослав | D138: Александрович | E138: 2015-05-15 | F138: "Спутник-Авангард" | I138: 38.2 | J138: =IF(ISBLANK(I138)," ",IF(ISTEXT(I138)," ",IF(I138<=Нормативы!$H$16,"КМС",IF(I138<=Нормативы!$H$17,"КМС",IF(I138<=Нормативы!$L$18,"КМС",IF(I138<=Нормативы!$L$19,"I",IF(I138<=Нормативы!$L$20,"II",IF(I138<=Нормативы!$L$21,"III",IF(I138<=Нормативы!$L$22,"I юн",IF(I138<=Нормативы!$L$23,"II юн",IF(I138<=Нормативы!$L$24,"III юн","б/р"))))))))))) -> б/р
A139: 14 | B139: б/р | C139: Бутылин Фёдор | D139: Денисович | E139: 2017-10-30 | F139: Дианема | I139: 43.19 | J139: =IF(ISBLANK(I139)," ",IF(ISTEXT(I139)," ",IF(I139<=Нормативы!$H$16,"КМС",IF(I139<=Нормативы!$H$17,"КМС",IF(I139<=Нормативы!$L$18,"КМС",IF(I139<=Нормативы!$L$19,"I",IF(I139<=Нормативы!$L$20,"II",IF(I139<=Нормативы!$L$21,"III",IF(I139<=Нормативы!$L$22,"I юн",IF(I139<=Нормативы!$L$23,"II юн",IF(I139<=Нормативы!$L$24,"III юн","б/р"))))))))))) -> б/р
A140: 15 | B140: б/р | C140: Ганенко Артем | D140: Сергеевич | E140: 2017-10-17 | F140: Дианема | I140: 54.96 | J140: =IF(ISBLANK(I140)," ",IF(ISTEXT(I140)," ",IF(I140<=Нормативы!$H$16,"КМС",IF(I140<=Нормативы!$H$17,"КМС",IF(I140<=Нормативы!$L$18,"КМС",IF(I140<=Нормативы!$L$19,"I",IF(I140<=Нормативы!$L$20,"II",IF(I140<=Нормативы!$L$21,"III",IF(I140<=Нормативы!$L$22,"I юн",IF(I140<=Нормативы!$L$23,"II юн",IF(I140<=Нормативы!$L$24,"III юн","б/р"))))))))))) -> б/р
C142: Плавание в классических ластах - 50 м, девушки 2015-2017 г.р.
A144: 1 | B144: III | C144: Харсекина Злата | D144: Витальевна | E144: 2016-08-04 | F144: ПК "Авангард" | I144: 28.81 | J144: =IF(ISBLANK(I144)," ",IF(ISTEXT(I144)," ",IF(I144<=Нормативы!$H$27,"КМС",IF(I144<=Нормативы!$H$28,"КМС",IF(I144<=Нормативы!$L$29,"КМС",IF(I144<=Нормативы!$L$30,"I",IF(I144<=Нормативы!$L$31,"II",IF(I144<=Нормативы!$L$32,"III",IF(I144<=Нормативы!$L$33,"I юн",IF(I144<=Нормативы!$L$34,"II юн",IF(I144<=Нормативы!$L$35,"III юн","б/р"))))))))))) -> III
A145: 2 | B145: I юн | C145: Миронова Валерия | D145: Егоровна | E145: 2016-09-01 | F145: ДВС | I145: 30.89 | J145: =IF(ISBLANK(I145)," ",IF(ISTEXT(I145)," ",IF(I145<=Нормативы!$H$27,"КМС",IF(I145<=Нормативы!$H$28,"КМС",IF(I145<=Нормативы!$L$29,"КМС",IF(I145<=Нормативы!$L$30,"I",IF(I145<=Нормативы!$L$31,"II",IF(I145<=Нормативы!$L$32,"III",IF(I145<=Нормативы!$L$33,"I юн",IF(I145<=Нормативы!$L$34,"II юн",IF(I145<=Нормативы!$L$35,"III юн","б/р"))))))))))) -> I юн
A146: 3 | B146: I юн | C146: Росс Елизавета | D146: Александровна | E146: 2015-07-13 | F146: ДВС | I146: 31.44 | J146: =IF(ISBLANK(I146)," ",IF(ISTEXT(I146)," ",IF(I146<=Нормативы!$H$27,"КМС",IF(I146<=Нормативы!$H$28,"КМС",IF(I146<=Нормативы!$L$29,"КМС",IF(I146<=Нормативы!$L$30,"I",IF(I146<=Нормативы!$L$31,"II",IF(I146<=Нормативы!$L$32,"III",IF(I146<=Нормативы!$L$33,"I юн",IF(I146<=Нормативы!$L$34,"II юн",IF(I146<=Нормативы!$L$35,"III юн","б/р"))))))))))) -> I юн
A147: 4 | B147: II юн | C147: Пономарева Виктория | D147: Сергеевна | E147: 2015-03-06 | F147: "Спутник-Авангард" | I147: 32.07 | J147: =IF(ISBLANK(I147)," ",IF(ISTEXT(I147)," ",IF(I147<=Нормативы!$H$27,"КМС",IF(I147<=Нормативы!$H$28,"КМС",IF(I147<=Нормативы!$L$29,"КМС",IF(I147<=Нормативы!$L$30,"I",IF(I147<=Нормативы!$L$31,"II",IF(I147<=Нормативы!$L$32,"III",IF(I147<=Нормативы!$L$33,"I юн",IF(I147<=Нормативы!$L$34,"II юн",IF(I147<=Нормативы!$L$35,"III юн","б/р"))))))))))) -> I юн
A148: 5 | B148: I юн | C148: Млынарь Милана | D148: Алексеевна | E148: 2015-08-08 | F148: ПК "Авангард" | I148: 32.1 | J148: =IF(ISBLANK(I148)," ",IF(ISTEXT(I148)," ",IF(I148<=Нормативы!$H$27,"КМС",IF(I148<=Нормативы!$H$28,"КМС",IF(I148<=Нормативы!$L$29,"КМС",IF(I148<=Нормативы!$L$30,"I",IF(I148<=Нормативы!$L$31,"II",IF(I148<=Нормативы!$L$32,"III",IF(I148<=Нормативы!$L$33,"I юн",IF(I148<=Нормативы!$L$34,"II юн",IF(I148<=Нормативы!$L$35,"III юн","б/р"))))))))))) -> I юн
A149: 6 | B149: I юн | C149: Анкудинова Полина | D149: Васильевна | E149: 2015-06-20 | F149: ПК "Авангард" | I149: 32.79 | J149: =IF(ISBLANK(I149)," ",IF(ISTEXT(I149)," ",IF(I149<=Нормативы!$H$27,"КМС",IF(I149<=Нормативы!$H$28,"КМС",IF(I149<=Нормативы!$L$29,"КМС",IF(I149<=Нормативы!$L$30,"I",IF(I149<=Нормативы!$L$31,"II",IF(I149<=Нормативы!$L$32,"III",IF(I149<=Нормативы!$L$33,"I юн",IF(I149<=Нормативы!$L$34,"II юн",IF(I149<=Нормативы!$L$35,"III юн","б/р"))))))))))) -> I юн
A150: 7 | B150: I юн | C150: Барановская Виктория | D150: Евгеньевна | E150: 2017-09-30 | F150: ПК "Авангард" | I150: 32.79 | J150: =IF(ISBLANK(I150)," ",IF(ISTEXT(I150)," ",IF(I150<=Нормативы!$H$27,"КМС",IF(I150<=Нормативы!$H$28,"КМС",IF(I150<=Нормативы!$L$29,"КМС",IF(I150<=Нормативы!$L$30,"I",IF(I150<=Нормативы!$L$31,"II",IF(I150<=Нормативы!$L$32,"III",IF(I150<=Нормативы!$L$33,"I юн",IF(I150<=Нормативы!$L$34,"II юн",IF(I150<=Нормативы!$L$35,"III юн","б/р"))))))))))) -> I юн
A151: 8 | B151: II юн | C151: Семина Евгения | D151: Алексеевна | E151: 2016-03-21 | F151: ДВС | I151: 33.5 | J151: =IF(ISBLANK(I151)," ",IF(ISTEXT(I151)," ",IF(I151<=Нормативы!$H$27,"КМС",IF(I151<=Нормативы!$H$28,"КМС",IF(I151<=Нормативы!$L$29,"КМС",IF(I151<=Нормативы!$L$30,"I",IF(I151<=Нормативы!$L$31,"II",IF(I151<=Нормативы!$L$32,"III",IF(I151<=Нормативы!$L$33,"I юн",IF(I151<=Нормативы!$L$34,"II юн",IF(I151<=Нормативы!$L$35,"III юн","б/р"))))))))))) -> II юн
A152: 9 | B152: II юн | C152: Коновалова Ксения | D152: Андреевна | E152: 2015-04-20 | F152: ДВС | I152: 35.11 | J152: =IF(ISBLANK(I152)," ",IF(ISTEXT(I152)," ",IF(I152<=Нормативы!$H$27,"КМС",IF(I152<=Нормативы!$H$28,"КМС",IF(I152<=Нормативы!$L$29,"КМС",IF(I152<=Нормативы!$L$30,"I",IF(I152<=Нормативы!$L$31,"II",IF(I152<=Нормативы!$L$32,"III",IF(I152<=Нормативы!$L$33,"I юн",IF(I152<=Нормативы!$L$34,"II юн",IF(I152<=Нормативы!$L$35,"III юн","б/р"))))))))))) -> II юн
A153: 10 | B153: II юн | C153: Верховина Екатерина | D153: Ивановна | E153: 2015-06-22 | F153: ПК "Авангард" | I153: 36 | J153: =IF(ISBLANK(I153)," ",IF(ISTEXT(I153)," ",IF(I153<=Нормативы!$H$27,"КМС",IF(I153<=Нормативы!$H$28,"КМС",IF(I153<=Нормативы!$L$29,"КМС",IF(I153<=Нормативы!$L$30,"I",IF(I153<=Нормативы!$L$31,"II",IF(I153<=Нормативы!$L$32,"III",IF(I153<=Нормативы!$L$33,"I юн",IF(I153<=Нормативы!$L$34,"II юн",IF(I153<=Нормативы!$L$35,"III юн","б/р"))))))))))) -> II юн
A154: 11 | B154: 3 юн | C154: Плякина Елизавета | D154: Игоревна | E154: 2015-11-06 | F154: К;атран | I154: 36.12 | J154: =IF(ISBLANK(I154)," ",IF(ISTEXT(I154)," ",IF(I154<=Нормативы!$H$27,"КМС",IF(I154<=Нормативы!$H$28,"КМС",IF(I154<=Нормативы!$L$29,"КМС",IF(I154<=Нормативы!$L$30,"I",IF(I154<=Нормативы!$L$31,"II",IF(I154<=Нормативы!$L$32,"III",IF(I154<=Нормативы!$L$33,"I юн",IF(I154<=Нормативы!$L$34,"II юн",IF(I154<=Нормативы!$L$35,"III юн","б/р"))))))))))) -> III юн
A155: 12 | B155: III юн | C155: Виноградова Арина | D155: Максимовна | E155: 2016-04-26 | F155: ДВС | I155: 36.87 | J155: =IF(ISBLANK(I155)," ",IF(ISTEXT(I155)," ",IF(I155<=Нормативы!$H$27,"КМС",IF(I155<=Нормативы!$H$28,"КМС",IF(I155<=Нормативы!$L$29,"КМС",IF(I155<=Нормативы!$L$30,"I",IF(I155<=Нормативы!$L$31,"II",IF(I155<=Нормативы!$L$32,"III",IF(I155<=Нормативы!$L$33,"I юн",IF(I155<=Нормативы!$L$34,"II юн",IF(I155<=Нормативы!$L$35,"III юн","б/р"))))))))))) -> III юн
A156: 13 | B156: III юн | C156: Кокорина Василиса | D156: Васильевна | E156: 2017-07-27 | F156: ПК "Авангард" | I156: 37.01 | J156: =IF(ISBLANK(I156)," ",IF(ISTEXT(I156)," ",IF(I156<=Нормативы!$H$27,"КМС",IF(I156<=Нормативы!$H$28,"КМС",IF(I156<=Нормативы!$L$29,"КМС",IF(I156<=Нормативы!$L$30,"I",IF(I156<=Нормативы!$L$31,"II",IF(I156<=Нормативы!$L$32,"III",IF(I156<=Нормативы!$L$33,"I юн",IF(I156<=Нормативы!$L$34,"II юн",IF(I156<=Нормативы!$L$35,"III юн","б/р"))))))))))) -> III юн
A157: 14 | B157: III юн | C157: Сугак Алиса | D157: Александровна | E157: 2017-03-24 | F157: ДВС | I157: 37.15 | J157: =IF(ISBLANK(I157)," ",IF(ISTEXT(I157)," ",IF(I157<=Нормативы!$H$27,"КМС",IF(I157<=Нормативы!$H$28,"КМС",IF(I157<=Нормативы!$L$29,"КМС",IF(I157<=Нормативы!$L$30,"I",IF(I157<=Нормативы!$L$31,"II",IF(I157<=Нормативы!$L$32,"III",IF(I157<=Нормативы!$L$33,"I юн",IF(I157<=Нормативы!$L$34,"II юн",IF(I157<=Нормативы!$L$35,"III юн","б/р"))))))))))) -> III юн
A158: 15 | B158: б/р | C158: Сакова Софья | D158: Николаевна | E158: 2017-05-17 | F158: ПК "Авангард" | I158: 37.35 | J158: =IF(ISBLANK(I158)," ",IF(ISTEXT(I158)," ",IF(I158<=Нормативы!$H$27,"КМС",IF(I158<=Нормативы!$H$28,"КМС",IF(I158<=Нормативы!$L$29,"КМС",IF(I158<=Нормативы!$L$30,"I",IF(I158<=Нормативы!$L$31,"II",IF(I158<=Нормативы!$L$32,"III",IF(I158<=Нормативы!$L$33,"I юн",IF(I158<=Нормативы!$L$34,"II юн",IF(I158<=Нормативы!$L$35,"III юн","б/р"))))))))))) -> III юн
A159: 16 | B159: III юн | C159: Малакеева Мирослава | D159: Вячеславовна | E159: 01.01.2016 | F159: Дианема | I159: 37.48 | J159: =IF(ISBLANK(I159)," ",IF(ISTEXT(I159)," ",IF(I159<=Нормативы!$H$27,"КМС",IF(I159<=Нормативы!$H$28,"КМС",IF(I159<=Нормативы!$L$29,"КМС",IF(I159<=Нормативы!$L$30,"I",IF(I159<=Нормативы!$L$31,"II",IF(I159<=Нормативы!$L$32,"III",IF(I159<=Нормативы!$L$33,"I юн",IF(I159<=Нормативы!$L$34,"II юн",IF(I159<=Нормативы!$L$35,"III юн","б/р"))))))))))) -> III юн
A160: 17 | B160: б/р | C160: Некрасова Варвара | D160: Евгеньевна | E160: 2017-08-20 | F160: Дианема | I160: 39.4 | J160: =IF(ISBLANK(I160)," ",IF(ISTEXT(I160)," ",IF(I160<=Нормативы!$H$27,"КМС",IF(I160<=Нормативы!$H$28,"КМС",IF(I160<=Нормативы!$L$29,"КМС",IF(I160<=Нормативы!$L$30,"I",IF(I160<=Нормативы!$L$31,"II",IF(I160<=Нормативы!$L$32,"III",IF(I160<=Нормативы!$L$33,"I юн",IF(I160<=Нормативы!$L$34,"II юн",IF(I160<=Нормативы!$L$35,"III юн","б/р"))))))))))) -> б/р
A161: 18 | B161: III юн | C161: Голованова Ольга | D161: Владимировна | E161: 2017-03-21 | F161: ПК "Авангард" | I161: 39.76 | J161: =IF(ISBLANK(I161)," ",IF(ISTEXT(I161)," ",IF(I161<=Нормативы!$H$27,"КМС",IF(I161<=Нормативы!$H$28,"КМС",IF(I161<=Нормативы!$L$29,"КМС",IF(I161<=Нормативы!$L$30,"I",IF(I161<=Нормативы!$L$31,"II",IF(I161<=Нормативы!$L$32,"III",IF(I161<=Нормативы!$L$33,"I юн",IF(I161<=Нормативы!$L$34,"II юн",IF(I161<=Нормативы!$L$35,"III юн","б/р"))))))))))) -> б/р
A162: 19 | B162: 3юн | C162: Гончаренко Мирослава | D162: Владимировна | E162: 2016-09-01 | F162: Дианема | I162: 41.13 | J162: =IF(ISBLANK(I162)," ",IF(ISTEXT(I162)," ",IF(I162<=Нормативы!$H$27,"КМС",IF(I162<=Нормативы!$H$28,"КМС",IF(I162<=Нормативы!$L$29,"КМС",IF(I162<=Нормативы!$L$30,"I",IF(I162<=Нормативы!$L$31,"II",IF(I162<=Нормативы!$L$32,"III",IF(I162<=Нормативы!$L$33,"I юн",IF(I162<=Нормативы!$L$34,"II юн",IF(I162<=Нормативы!$L$35,"III юн","б/р"))))))))))) -> б/р
A163: 20 | B163: б/р | C163: Понкратова Полина | D163: Ивановна | E163: 2017-11-10 | F163: Дианема | I163: 42.65 | J163: =IF(ISBLANK(I163)," ",IF(ISTEXT(I163)," ",IF(I163<=Нормативы!$H$27,"КМС",IF(I163<=Нормативы!$H$28,"КМС",IF(I163<=Нормативы!$L$29,"КМС",IF(I163<=Нормативы!$L$30,"I",IF(I163<=Нормативы!$L$31,"II",IF(I163<=Нормативы!$L$32,"III",IF(I163<=Нормативы!$L$33,"I юн",IF(I163<=Нормативы!$L$34,"II юн",IF(I163<=Нормативы!$L$35,"III юн","б/р"))))))))))) -> б/р
C165: Плавание в классических ластах - 50 м, юноши 2015-2017 г.р.
A167: 1 | B167: I юн | C167: Сисько Илья | D167: Сергеевич | E167: 2015-04-15 | F167: Дианема | I167: 27.26 | J167: =IF(ISBLANK(I167)," ",IF(ISTEXT(I167)," ",IF(I167<=Нормативы!$H$38,"КМС",IF(I167<=Нормативы!$H$39,"КМС",IF(I167<=Нормативы!$L$40,"КМС",IF(I167<=Нормативы!$L$41,"I",IF(I167<=Нормативы!$L$42,"II",IF(I167<=Нормативы!$L$43,"III",IF(I167<=Нормативы!$L$44,"I юн",IF(I167<=Нормативы!$L$45,"II юн",IF(I167<=Нормативы!$L$46,"III юн","б/р"))))))))))) -> I юн
A168: 2 | B168: I юн | C168: Марусенко Артём | D168: Александрович | E168: 2015-04-09 | F168: Дианема | I168: 27.76 | J168: =IF(ISBLANK(I168)," ",IF(ISTEXT(I168)," ",IF(I168<=Нормативы!$H$38,"КМС",IF(I168<=Нормативы!$H$39,"КМС",IF(I168<=Нормативы!$L$40,"КМС",IF(I168<=Нормативы!$L$41,"I",IF(I168<=Нормативы!$L$42,"II",IF(I168<=Нормативы!$L$43,"III",IF(I168<=Нормативы!$L$44,"I юн",IF(I168<=Нормативы!$L$45,"II юн",IF(I168<=Нормативы!$L$46,"III юн","б/р"))))))))))) -> I юн
A169: 3 | B169: 1юн | C169: Савельев Тимофей | D169: Павлович | E169: 2015-12-18 | F169: Дианема | I169: 28.88 | J169: =IF(ISBLANK(I169)," ",IF(ISTEXT(I169)," ",IF(I169<=Нормативы!$H$38,"КМС",IF(I169<=Нормативы!$H$39,"КМС",IF(I169<=Нормативы!$L$40,"КМС",IF(I169<=Нормативы!$L$41,"I",IF(I169<=Нормативы!$L$42,"II",IF(I169<=Нормативы!$L$43,"III",IF(I169<=Нормативы!$L$44,"I юн",IF(I169<=Нормативы!$L$45,"II юн",IF(I169<=Нормативы!$L$46,"III юн","б/р"))))))))))) -> I юн
A170: 4 | B170: I юн | C170: Мясников Матвей | D170: Александрович | E170: 2015-08-06 | F170: Дианема | I170: 30.46 | J170: =IF(ISBLANK(I170)," ",IF(ISTEXT(I170)," ",IF(I170<=Нормативы!$H$38,"КМС",IF(I170<=Нормативы!$H$39,"КМС",IF(I170<=Нормативы!$L$40,"КМС",IF(I170<=Нормативы!$L$41,"I",IF(I170<=Нормативы!$L$42,"II",IF(I170<=Нормативы!$L$43,"III",IF(I170<=Нормативы!$L$44,"I юн",IF(I170<=Нормативы!$L$45,"II юн",IF(I170<=Нормативы!$L$46,"III юн","б/р"))))))))))) -> II юн
A171: 5 | B171: 3юн | C171: Мануил Евгений | D171: Станиславович | E171: 2017-07-02 | F171: Дианема | I171: 31.23 | J171: =IF(ISBLANK(I171)," ",IF(ISTEXT(I171)," ",IF(I171<=Нормативы!$H$38,"КМС",IF(I171<=Нормативы!$H$39,"КМС",IF(I171<=Нормативы!$L$40,"КМС",IF(I171<=Нормативы!$L$41,"I",IF(I171<=Нормативы!$L$42,"II",IF(I171<=Нормативы!$L$43,"III",IF(I171<=Нормативы!$L$44,"I юн",IF(I171<=Нормативы!$L$45,"II юн",IF(I171<=Нормативы!$L$46,"III юн","б/р"))))))))))) -> II юн
A172: 6 | B172: II юн | C172: Пичкуров Савелий | D172: Сергеевич | E172: 2015-06-22 | F172: ДВС | I172: 31.98 | J172: =IF(ISBLANK(I172)," ",IF(ISTEXT(I172)," ",IF(I172<=Нормативы!$H$38,"КМС",IF(I172<=Нормативы!$H$39,"КМС",IF(I172<=Нормативы!$L$40,"КМС",IF(I172<=Нормативы!$L$41,"I",IF(I172<=Нормативы!$L$42,"II",IF(I172<=Нормативы!$L$43,"III",IF(I172<=Нормативы!$L$44,"I юн",IF(I172<=Нормативы!$L$45,"II юн",IF(I172<=Нормативы!$L$46,"III юн","б/р"))))))))))) -> III юн
A173: 7 | B173: III юн | C173: Илиенц Денис | D173: Максимович | E173: 2015-10-13 | F173: Дианема | I173: 32.39 | J173: =IF(ISBLANK(I173)," ",IF(ISTEXT(I173)," ",IF(I173<=Нормативы!$H$38,"КМС",IF(I173<=Нормативы!$H$39,"КМС",IF(I173<=Нормативы!$L$40,"КМС",IF(I173<=Нормативы!$L$41,"I",IF(I173<=Нормативы!$L$42,"II",IF(I173<=Нормативы!$L$43,"III",IF(I173<=Нормативы!$L$44,"I юн",IF(I173<=Нормативы!$L$45,"II юн",IF(I173<=Нормативы!$L$46,"III юн","б/р"))))))))))) -> III юн
A174: 8 | B174: III юн | C174: Абдулхаков Дмитрий | D174: Алексеевич | E174: 2015-12-15 | F174: Дианема | I174: 32.7 | J174: =IF(ISBLANK(I174)," ",IF(ISTEXT(I174)," ",IF(I174<=Нормативы!$H$38,"КМС",IF(I174<=Нормативы!$H$39,"КМС",IF(I174<=Нормативы!$L$40,"КМС",IF(I174<=Нормативы!$L$41,"I",IF(I174<=Нормативы!$L$42,"II",IF(I174<=Нормативы!$L$43,"III",IF(I174<=Нормативы!$L$44,"I юн",IF(I174<=Нормативы!$L$45,"II юн",IF(I174<=Нормативы!$L$46,"III юн","б/р"))))))))))) -> III юн
A175: 9 | B175: III юн | C175: Блудов Руслан | D175: Геннадьевич | E175: 2015-08-02 | F175: ПК "Авангард" | I175: 33.29 | J175: =IF(ISBLANK(I175)," ",IF(ISTEXT(I175)," ",IF(I175<=Нормативы!$H$38,"КМС",IF(I175<=Нормативы!$H$39,"КМС",IF(I175<=Нормативы!$L$40,"КМС",IF(I175<=Нормативы!$L$41,"I",IF(I175<=Нормативы!$L$42,"II",IF(I175<=Нормативы!$L$43,"III",IF(I175<=Нормативы!$L$44,"I юн",IF(I175<=Нормативы!$L$45,"II юн",IF(I175<=Нормативы!$L$46,"III юн","б/р"))))))))))) -> III юн
A176: 10 | B176: 3 юн | C176: Ивашко Федор | D176: Алексеевич | E176: 2015-02-09 | F176: К;атран | I176: 33.7 | J176: =IF(ISBLANK(I176)," ",IF(ISTEXT(I176)," ",IF(I176<=Нормативы!$H$38,"КМС",IF(I176<=Нормативы!$H$39,"КМС",IF(I176<=Нормативы!$L$40,"КМС",IF(I176<=Нормативы!$L$41,"I",IF(I176<=Нормативы!$L$42,"II",IF(I176<=Нормативы!$L$43,"III",IF(I176<=Нормативы!$L$44,"I юн",IF(I176<=Нормативы!$L$45,"II юн",IF(I176<=Нормативы!$L$46,"III юн","б/р"))))))))))) -> III юн
A177: 11 | B177: б,р | C177: Пашенных Прохор | D177: Семенович | E177: 2015-09-10 | F177: К;атран | I177: 33.73 | J177: =IF(ISBLANK(I177)," ",IF(ISTEXT(I177)," ",IF(I177<=Нормативы!$H$38,"КМС",IF(I177<=Нормативы!$H$39,"КМС",IF(I177<=Нормативы!$L$40,"КМС",IF(I177<=Нормативы!$L$41,"I",IF(I177<=Нормативы!$L$42,"II",IF(I177<=Нормативы!$L$43,"III",IF(I177<=Нормативы!$L$44,"I юн",IF(I177<=Нормативы!$L$45,"II юн",IF(I177<=Нормативы!$L$46,"III юн","б/р"))))))))))) -> III юн
A178: 12 | B178: III юн | C178: Зверев Артем | D178: Константинович | E178: 2015-01-17 | F178: ПК "Авангард" | I178: 33.73 | J178: =IF(ISBLANK(I178)," ",IF(ISTEXT(I178)," ",IF(I178<=Нормативы!$H$38,"КМС",IF(I178<=Нормативы!$H$39,"КМС",IF(I178<=Нормативы!$L$40,"КМС",IF(I178<=Нормативы!$L$41,"I",IF(I178<=Нормативы!$L$42,"II",IF(I178<=Нормативы!$L$43,"III",IF(I178<=Нормативы!$L$44,"I юн",IF(I178<=Нормативы!$L$45,"II юн",IF(I178<=Нормативы!$L$46,"III юн","б/р"))))))))))) -> III юн
A179: 13 | B179: б/р | C179: Дворников Аким | D179: Мксимович | E179: 2017-05-31 | F179: Дианема | I179: 34.33 | J179: =IF(ISBLANK(I179)," ",IF(ISTEXT(I179)," ",IF(I179<=Нормативы!$H$38,"КМС",IF(I179<=Нормативы!$H$39,"КМС",IF(I179<=Нормативы!$L$40,"КМС",IF(I179<=Нормативы!$L$41,"I",IF(I179<=Нормативы!$L$42,"II",IF(I179<=Нормативы!$L$43,"III",IF(I179<=Нормативы!$L$44,"I юн",IF(I179<=Нормативы!$L$45,"II юн",IF(I179<=Нормативы!$L$46,"III юн","б/р"))))))))))) -> III юн
A180: 14 | B180: б/р | C180: Антипин Михаил | D180: Николаевич | E180: 2017-12-19 | F180: Дианема | I180: 34.76 | J180: =IF(ISBLANK(I180)," ",IF(ISTEXT(I180)," ",IF(I180<=Нормативы!$H$38,"КМС",IF(I180<=Нормативы!$H$39,"КМС",IF(I180<=Нормативы!$L$40,"КМС",IF(I180<=Нормативы!$L$41,"I",IF(I180<=Нормативы!$L$42,"II",IF(I180<=Нормативы!$L$43,"III",IF(I180<=Нормативы!$L$44,"I юн",IF(I180<=Нормативы!$L$45,"II юн",IF(I180<=Нормативы!$L$46,"III юн","б/р"))))))))))) -> III юн
A181: 15 | B181: б/р | C181: Николаев Дмитрий | D181: Ильич | E181: 2016-03-18 | F181: "Спутник-Авангард" | I181: 34.95 | J181: =IF(ISBLANK(I181)," ",IF(ISTEXT(I181)," ",IF(I181<=Нормативы!$H$38,"КМС",IF(I181<=Нормативы!$H$39,"КМС",IF(I181<=Нормативы!$L$40,"КМС",IF(I181<=Нормативы!$L$41,"I",IF(I181<=Нормативы!$L$42,"II",IF(I181<=Нормативы!$L$43,"III",IF(I181<=Нормативы!$L$44,"I юн",IF(I181<=Нормативы!$L$45,"II юн",IF(I181<=Нормативы!$L$46,"III юн","б/р"))))))))))) -> III юн
A182: 16 | B182: б/р | C182: Кремез Роман | D182: Николаевич | E182: 2015-04-02 | F182: Дианема | I182: 35.11 | J182: =IF(ISBLANK(I182)," ",IF(ISTEXT(I182)," ",IF(I182<=Нормативы!$H$38,"КМС",IF(I182<=Нормативы!$H$39,"КМС",IF(I182<=Нормативы!$L$40,"КМС",IF(I182<=Нормативы!$L$41,"I",IF(I182<=Нормативы!$L$42,"II",IF(I182<=Нормативы!$L$43,"III",IF(I182<=Нормативы!$L$44,"I юн",IF(I182<=Нормативы!$L$45,"II юн",IF(I182<=Нормативы!$L$46,"III юн","б/р"))))))))))) -> б/р
A183: 17 | B183: б/р | C183: Широбоков Михаил | D183: Андреевич | E183: 2015-11-04 | F183: ПК "Авангард" | I183: 35.14 | J183: =IF(ISBLANK(I183)," ",IF(ISTEXT(I183)," ",IF(I183<=Нормативы!$H$38,"КМС",IF(I183<=Нормативы!$H$39,"КМС",IF(I183<=Нормативы!$L$40,"КМС",IF(I183<=Нормативы!$L$41,"I",IF(I183<=Нормативы!$L$42,"II",IF(I183<=Нормативы!$L$43,"III",IF(I183<=Нормативы!$L$44,"I юн",IF(I183<=Нормативы!$L$45,"II юн",IF(I183<=Нормативы!$L$46,"III юн","б/р"))))))))))) -> б/р
A184: 18 | B184: б/р | C184: Старостин Михаил | D184: Александрович | E184: 2015-12-03 | F184: ПК Авангард | I184: 35.17 | J184: =IF(ISBLANK(I184)," ",IF(ISTEXT(I184)," ",IF(I184<=Нормативы!$H$38,"КМС",IF(I184<=Нормативы!$H$39,"КМС",IF(I184<=Нормативы!$L$40,"КМС",IF(I184<=Нормативы!$L$41,"I",IF(I184<=Нормативы!$L$42,"II",IF(I184<=Нормативы!$L$43,"III",IF(I184<=Нормативы!$L$44,"I юн",IF(I184<=Нормативы!$L$45,"II юн",IF(I184<=Нормативы!$L$46,"III юн","б/р"))))))))))) -> б/р
A185: 19 | B185: III юн | C185: Горобец Иван | D185: Максимович | E185: 2015-03-02 | F185: ПК Авангард | I185: 35.84 | J185: =IF(ISBLANK(I185)," ",IF(ISTEXT(I185)," ",IF(I185<=Нормативы!$H$38,"КМС",IF(I185<=Нормативы!$H$39,"КМС",IF(I185<=Нормативы!$L$40,"КМС",IF(I185<=Нормативы!$L$41,"I",IF(I185<=Нормативы!$L$42,"II",IF(I185<=Нормативы!$L$43,"III",IF(I185<=Нормативы!$L$44,"I юн",IF(I185<=Нормативы!$L$45,"II юн",IF(I185<=Нормативы!$L$46,"III юн","б/р"))))))))))) -> б/р
A186: 20 | B186: б/р | C186: Сухов Александр | D186: Антонович | E186: 2015-12-17 | F186: ПК "Авангард" | I186: 35.95 | J186: =IF(ISBLANK(I186)," ",IF(ISTEXT(I186)," ",IF(I186<=Нормативы!$H$38,"КМС",IF(I186<=Нормативы!$H$39,"КМС",IF(I186<=Нормативы!$L$40,"КМС",IF(I186<=Нормативы!$L$41,"I",IF(I186<=Нормативы!$L$42,"II",IF(I186<=Нормативы!$L$43,"III",IF(I186<=Нормативы!$L$44,"I юн",IF(I186<=Нормативы!$L$45,"II юн",IF(I186<=Нормативы!$L$46,"III юн","б/р"))))))))))) -> б/р
A187: 21 | B187: III юн | C187: Котнеков Константин | D187: Сергеевич | E187: 2015-12-19 | F187: "Спутник-Авангард" | I187: 36.29 | J187: =IF(ISBLANK(I187)," ",IF(ISTEXT(I187)," ",IF(I187<=Нормативы!$H$38,"КМС",IF(I187<=Нормативы!$H$39,"КМС",IF(I187<=Нормативы!$L$40,"КМС",IF(I187<=Нормативы!$L$41,"I",IF(I187<=Нормативы!$L$42,"II",IF(I187<=Нормативы!$L$43,"III",IF(I187<=Нормативы!$L$44,"I юн",IF(I187<=Нормативы!$L$45,"II юн",IF(I187<=Нормативы!$L$46,"III юн","б/р"))))))))))) -> б/р
A188: 22 | B188: б/р | C188: Пичугин Семён | D188: Константинович | E188: 2015-10-08 | F188: Дианема | I188: 36.77 | J188: =IF(ISBLANK(I188)," ",IF(ISTEXT(I188)," ",IF(I188<=Нормативы!$H$38,"КМС",IF(I188<=Нормативы!$H$39,"КМС",IF(I188<=Нормативы!$L$40,"КМС",IF(I188<=Нормативы!$L$41,"I",IF(I188<=Нормативы!$L$42,"II",IF(I188<=Нормативы!$L$43,"III",IF(I188<=Нормативы!$L$44,"I юн",IF(I188<=Нормативы!$L$45,"II юн",IF(I188<=Нормативы!$L$46,"III юн","б/р"))))))))))) -> б/р
A189: 23 | B189: б/р | C189: Стрельч Елисей | D189: Иванович | E189: 2016-11-23 | F189: К;атран | I189: 37.07 | J189: =IF(ISBLANK(I189)," ",IF(ISTEXT(I189)," ",IF(I189<=Нормативы!$H$38,"КМС",IF(I189<=Нормативы!$H$39,"КМС",IF(I189<=Нормативы!$L$40,"КМС",IF(I189<=Нормативы!$L$41,"I",IF(I189<=Нормативы!$L$42,"II",IF(I189<=Нормативы!$L$43,"III",IF(I189<=Нормативы!$L$44,"I юн",IF(I189<=Нормативы!$L$45,"II юн",IF(I189<=Нормативы!$L$46,"III юн","б/р"))))))))))) -> б/р
A190: 24 | B190: б/р | C190: Бутылин Фёдор | D190: Денисович | E190: 2017-10-30 | F190: Дианема | I190: 37.23 | J190: =IF(ISBLANK(I190)," ",IF(ISTEXT(I190)," ",IF(I190<=Нормативы!$H$38,"КМС",IF(I190<=Нормативы!$H$39,"КМС",IF(I190<=Нормативы!$L$40,"КМС",IF(I190<=Нормативы!$L$41,"I",IF(I190<=Нормативы!$L$42,"II",IF(I190<=Нормативы!$L$43,"III",IF(I190<=Нормативы!$L$44,"I юн",IF(I190<=Нормативы!$L$45,"II юн",IF(I190<=Нормативы!$L$46,"III юн","б/р"))))))))))) -> б/р
A191: 25 | B191: б/р | C191: Ребушев Данил | D191: Романович | E191: 2015-06-29 | F191: К;атран | I191: 38.22 | J191: =IF(ISBLANK(I191)," ",IF(ISTEXT(I191)," ",IF(I191<=Нормативы!$H$38,"КМС",IF(I191<=Нормативы!$H$39,"КМС",IF(I191<=Нормативы!$L$40,"КМС",IF(I191<=Нормативы!$L$41,"I",IF(I191<=Нормативы!$L$42,"II",IF(I191<=Нормативы!$L$43,"III",IF(I191<=Нормативы!$L$44,"I юн",IF(I191<=Нормативы!$L$45,"II юн",IF(I191<=Нормативы!$L$46,"III юн","б/р"))))))))))) -> б/р
A192: 26 | B192: III юн | C192: Мокров Ярослав | D192: Александрович | E192: 2015-05-15 | F192: "Спутник-Авангард" | I192: 38.33 | J192: =IF(ISBLANK(I192)," ",IF(ISTEXT(I192)," ",IF(I192<=Нормативы!$H$38,"КМС",IF(I192<=Нормативы!$H$39,"КМС",IF(I192<=Нормативы!$L$40,"КМС",IF(I192<=Нормативы!$L$41,"I",IF(I192<=Нормативы!$L$42,"II",IF(I192<=Нормативы!$L$43,"III",IF(I192<=Нормативы!$L$44,"I юн",IF(I192<=Нормативы!$L$45,"II юн",IF(I192<=Нормативы!$L$46,"III юн","б/р"))))))))))) -> б/р
A193: 27 | B193: б/р | C193: Науменко Семен | D193: Романович | E193: 2016-03-24 | F193: ПК "Авангард" | I193: 40.58 | J193: =IF(ISBLANK(I193)," ",IF(ISTEXT(I193)," ",IF(I193<=Нормативы!$H$38,"КМС",IF(I193<=Нормативы!$H$39,"КМС",IF(I193<=Нормативы!$L$40,"КМС",IF(I193<=Нормативы!$L$41,"I",IF(I193<=Нормативы!$L$42,"II",IF(I193<=Нормативы!$L$43,"III",IF(I193<=Нормативы!$L$44,"I юн",IF(I193<=Нормативы!$L$45,"II юн",IF(I193<=Нормативы!$L$46,"III юн","б/р"))))))))))) -> б/р
A194: 28 | B194: б/р | C194: Назаркин Дмитрий | D194: Игоревич | E194: 2016-03-17 | F194: ПК "Авангард" | I194: 41.2 | J194: =IF(ISBLANK(I194)," ",IF(ISTEXT(I194)," ",IF(I194<=Нормативы!$H$38,"КМС",IF(I194<=Нормативы!$H$39,"КМС",IF(I194<=Нормативы!$L$40,"КМС",IF(I194<=Нормативы!$L$41,"I",IF(I194<=Нормативы!$L$42,"II",IF(I194<=Нормативы!$L$43,"III",IF(I194<=Нормативы!$L$44,"I юн",IF(I194<=Нормативы!$L$45,"II юн",IF(I194<=Нормативы!$L$46,"III юн","б/р"))))))))))) -> б/р
A195: 29 | B195: б/р | C195: Степанов Кирилл | D195: Вадимович | E195: 2017-07-03 | F195: ДВС | I195: 47.4 | J195: =IF(ISBLANK(I195)," ",IF(ISTEXT(I195)," ",IF(I195<=Нормативы!$H$38,"КМС",IF(I195<=Нормативы!$H$39,"КМС",IF(I195<=Нормативы!$L$40,"КМС",IF(I195<=Нормативы!$L$41,"I",IF(I195<=Нормативы!$L$42,"II",IF(I195<=Нормативы!$L$43,"III",IF(I195<=Нормативы!$L$44,"I юн",IF(I195<=Нормативы!$L$45,"II юн",IF(I195<=Нормативы!$L$46,"III юн","б/р"))))))))))) -> б/р
A196: 30 | B196: б/р | C196: Ганенко Артем | D196: Сергеевич | E196: 2017-10-17 | F196: Дианема | I196: 50.19 | J196: =IF(ISBLANK(I196)," ",IF(ISTEXT(I196)," ",IF(I196<=Нормативы!$H$38,"КМС",IF(I196<=Нормативы!$H$39,"КМС",IF(I196<=Нормативы!$L$40,"КМС",IF(I196<=Нормативы!$L$41,"I",IF(I196<=Нормативы!$L$42,"II",IF(I196<=Нормативы!$L$43,"III",IF(I196<=Нормативы!$L$44,"I юн",IF(I196<=Нормативы!$L$45,"II юн",IF(I196<=Нормативы!$L$46,"III юн","б/р"))))))))))) -> б/р
B197: б/р | C197: Кандеев Федор | D197: Михапйлович | E197: 2014-11-10 | F197: К;атран | I197: 32.01 | J197: =IF(ISBLANK(I197)," ",IF(ISTEXT(I197)," ",IF(I197<=Нормативы!$H$38,"КМС",IF(I197<=Нормативы!$H$39,"КМС",IF(I197<=Нормативы!$L$40,"КМС",IF(I197<=Нормативы!$L$41,"I",IF(I197<=Нормативы!$L$42,"II",IF(I197<=Нормативы!$L$43,"III",IF(I197<=Нормативы!$L$44,"I юн",IF(I197<=Нормативы!$L$45,"II юн",IF(I197<=Нормативы!$L$46,"III юн","б/р"))))))))))) -> III юн
C199: Плавание в ластах - 100 м, девушки 2015-2017 г.р.
A201: 1 | B201: I юн | C201: Валеева Лейсан | D201: Каримовна | E201: 2015-08-28 | F201: Дианема | I201: 105.38 | J201: =IF(ISBLANK(I201)," ",IF(ISTEXT(I201)," ",IF(I201<=Нормативы!$H$49,"КМС",IF(I201<=Нормативы!$H$50,"КМС",IF(I201<=Нормативы!$L$51,"КМС",IF(I201<=Нормативы!$L$52,"I",IF(I201<=Нормативы!$L$53,"II",IF(I201<=Нормативы!$L$54,"III",IF(I201<=Нормативы!$L$55,"I юн",IF(I201<=Нормативы!$L$56,"II юн",IF(I201<=Нормативы!$L$57,"III юн","б/р"))))))))))) -> II юн
A202: 2 | B202: III юн | C202: Плащенко Дарина | D202: Ивановна | E202: 2015-06-24 | F202: "Спутник-Авангард" | I202: 109.71 | J202: =IF(ISBLANK(I202)," ",IF(ISTEXT(I202)," ",IF(I202<=Нормативы!$H$49,"КМС",IF(I202<=Нормативы!$H$50,"КМС",IF(I202<=Нормативы!$L$51,"КМС",IF(I202<=Нормативы!$L$52,"I",IF(I202<=Нормативы!$L$53,"II",IF(I202<=Нормативы!$L$54,"III",IF(I202<=Нормативы!$L$55,"I юн",IF(I202<=Нормативы!$L$56,"II юн",IF(I202<=Нормативы!$L$57,"III юн","б/р"))))))))))) -> III юн
A203: 3 | B203: III юн | C203: Котнекова Ксения | D203: Сергеевна | E203: 2015-12-19 | F203: "Спутник-Авангард" | I203: 109.71 | J203: =IF(ISBLANK(I203)," ",IF(ISTEXT(I203)," ",IF(I203<=Нормативы!$H$49,"КМС",IF(I203<=Нормативы!$H$50,"КМС",IF(I203<=Нормативы!$L$51,"КМС",IF(I203<=Нормативы!$L$52,"I",IF(I203<=Нормативы!$L$53,"II",IF(I203<=Нормативы!$L$54,"III",IF(I203<=Нормативы!$L$55,"I юн",IF(I203<=Нормативы!$L$56,"II юн",IF(I203<=Нормативы!$L$57,"III юн","б/р"))))))))))) -> III юн
A204: 4 | B204: II юн | C204: Кругликова Аглая | D204: Сергеевна | E204: 2017-03-17 | F204: ДВС | I204: 113.21 | J204: =IF(ISBLANK(I204)," ",IF(ISTEXT(I204)," ",IF(I204<=Нормативы!$H$49,"КМС",IF(I204<=Нормативы!$H$50,"КМС",IF(I204<=Нормативы!$L$51,"КМС",IF(I204<=Нормативы!$L$52,"I",IF(I204<=Нормативы!$L$53,"II",IF(I204<=Нормативы!$L$54,"III",IF(I204<=Нормативы!$L$55,"I юн",IF(I204<=Нормативы!$L$56,"II юн",IF(I204<=Нормативы!$L$57,"III юн","б/р"))))))))))) -> б/р
A205: 5 | B205: I юн | C205: Водясова Ксения | D205: Романовна | E205: 2016-05-22 | F205: Дианема | I205: 115.13 | J205: =IF(ISBLANK(I205)," ",IF(ISTEXT(I205)," ",IF(I205<=Нормативы!$H$49,"КМС",IF(I205<=Нормативы!$H$50,"КМС",IF(I205<=Нормативы!$L$51,"КМС",IF(I205<=Нормативы!$L$52,"I",IF(I205<=Нормативы!$L$53,"II",IF(I205<=Нормативы!$L$54,"III",IF(I205<=Нормативы!$L$55,"I юн",IF(I205<=Нормативы!$L$56,"II юн",IF(I205<=Нормативы!$L$57,"III юн","б/р"))))))))))) -> б/р
A206: 6 | B206: II юн | C206: Гаджиева Сабина | D206: Низамиевна | E206: 2015-09-29 | F206: Дианема | I206: 116.53 | J206: =IF(ISBLANK(I206)," ",IF(ISTEXT(I206)," ",IF(I206<=Нормативы!$H$49,"КМС",IF(I206<=Нормативы!$H$50,"КМС",IF(I206<=Нормативы!$L$51,"КМС",IF(I206<=Нормативы!$L$52,"I",IF(I206<=Нормативы!$L$53,"II",IF(I206<=Нормативы!$L$54,"III",IF(I206<=Нормативы!$L$55,"I юн",IF(I206<=Нормативы!$L$56,"II юн",IF(I206<=Нормативы!$L$57,"III юн","б/р"))))))))))) -> б/р
A207: 7 | B207: Iюн | C207: Членова Анастасия | D207: Александровна | E207: 2015-04-18 | F207: Дианема | I207: 121.65 | J207: =IF(ISBLANK(I207)," ",IF(ISTEXT(I207)," ",IF(I207<=Нормативы!$H$49,"КМС",IF(I207<=Нормативы!$H$50,"КМС",IF(I207<=Нормативы!$L$51,"КМС",IF(I207<=Нормативы!$L$52,"I",IF(I207<=Нормативы!$L$53,"II",IF(I207<=Нормативы!$L$54,"III",IF(I207<=Нормативы!$L$55,"I юн",IF(I207<=Нормативы!$L$56,"II юн",IF(I207<=Нормативы!$L$57,"III юн","б/р"))))))))))) -> б/р
A208: 8 | B208: II юн | C208: Захарова Мария | D208: Денисовна | E208: 2015-10-26 | F208: Дианема | I208: 149.89 | J208: =IF(ISBLANK(I208)," ",IF(ISTEXT(I208)," ",IF(I208<=Нормативы!$H$49,"КМС",IF(I208<=Нормативы!$H$50,"КМС",IF(I208<=Нормативы!$L$51,"КМС",IF(I208<=Нормативы!$L$52,"I",IF(I208<=Нормативы!$L$53,"II",IF(I208<=Нормативы!$L$54,"III",IF(I208<=Нормативы!$L$55,"I юн",IF(I208<=Нормативы!$L$56,"II юн",IF(I208<=Нормативы!$L$57,"III юн","б/р"))))))))))) -> б/р
C210: Плавание в ластах - 100 м, юноши 2015-2017 г.р.
A212: 1 | B212: III юн | C212: Кондратьев Михаил | D212: Дмитриевич | E212: 2016-02-12 | F212: "Спутник-Авангард" | I212: 57.01 | J212: =IF(ISBLANK(I212)," ",IF(ISTEXT(I212)," ",IF(I212<=Нормативы!$H$60,"КМС",IF(I212<=Нормативы!$H$61,"КМС",IF(I212<=Нормативы!$L$62,"КМС",IF(I212<=Нормативы!$L$63,"I",IF(I212<=Нормативы!$L$64,"II",IF(I212<=Нормативы!$L$65,"III",IF(I212<=Нормативы!$L$66,"I юн",IF(I212<=Нормативы!$L$67,"II юн",IF(I212<=Нормативы!$L$68,"III юн","б/р"))))))))))) -> II юн
A213: 2 | B213: II юн | C213: Фёдоров Константин | D213: Романович | E213: 2016-05-12 | F213: Дианема | I213: 102.04 | J213: =IF(ISBLANK(I213)," ",IF(ISTEXT(I213)," ",IF(I213<=Нормативы!$H$60,"КМС",IF(I213<=Нормативы!$H$61,"КМС",IF(I213<=Нормативы!$L$62,"КМС",IF(I213<=Нормативы!$L$63,"I",IF(I213<=Нормативы!$L$64,"II",IF(I213<=Нормативы!$L$65,"III",IF(I213<=Нормативы!$L$66,"I юн",IF(I213<=Нормативы!$L$67,"II юн",IF(I213<=Нормативы!$L$68,"III юн","б/р"))))))))))) -> III юн
A214: 3 | B214: III юн | C214: Провалинский Артём | D214: Андреевич | E214: 2015-12-26 | F214: "Спутник-Авангард" | I214: 104.46 | J214: =IF(ISBLANK(I214)," ",IF(ISTEXT(I214)," ",IF(I214<=Нормативы!$H$60,"КМС",IF(I214<=Нормативы!$H$61,"КМС",IF(I214<=Нормативы!$L$62,"КМС",IF(I214<=Нормативы!$L$63,"I",IF(I214<=Нормативы!$L$64,"II",IF(I214<=Нормативы!$L$65,"III",IF(I214<=Нормативы!$L$66,"I юн",IF(I214<=Нормативы!$L$67,"II юн",IF(I214<=Нормативы!$L$68,"III юн","б/р"))))))))))) -> б/р
A215: 4 | B215: III юн | C215: Илиенц Денис | D215: Максимович | E215: 2015-10-13 | F215: Дианема | I215: 108.14 | J215: =IF(ISBLANK(I215)," ",IF(ISTEXT(I215)," ",IF(I215<=Нормативы!$H$60,"КМС",IF(I215<=Нормативы!$H$61,"КМС",IF(I215<=Нормативы!$L$62,"КМС",IF(I215<=Нормативы!$L$63,"I",IF(I215<=Нормативы!$L$64,"II",IF(I215<=Нормативы!$L$65,"III",IF(I215<=Нормативы!$L$66,"I юн",IF(I215<=Нормативы!$L$67,"II юн",IF(I215<=Нормативы!$L$68,"III юн","б/р"))))))))))) -> б/р
A216: 5 | B216: 3юн | C216: Мануил Евгений | D216: Станиславович | E216: 2017-07-02 | F216: Дианема | I216: 114.03 | J216: =IF(ISBLANK(I216)," ",IF(ISTEXT(I216)," ",IF(I216<=Нормативы!$H$60,"КМС",IF(I216<=Нормативы!$H$61,"КМС",IF(I216<=Нормативы!$L$62,"КМС",IF(I216<=Нормативы!$L$63,"I",IF(I216<=Нормативы!$L$64,"II",IF(I216<=Нормативы!$L$65,"III",IF(I216<=Нормативы!$L$66,"I юн",IF(I216<=Нормативы!$L$67,"II юн",IF(I216<=Нормативы!$L$68,"III юн","б/р"))))))))))) -> б/р
A217: 6 | B217: II юн | C217: Бутылин Макар | D217: Денисович | E217: 2016-05-18 | F217: Дианема | I217: 117.28 | J217: =IF(ISBLANK(I217)," ",IF(ISTEXT(I217)," ",IF(I217<=Нормативы!$H$60,"КМС",IF(I217<=Нормативы!$H$61,"КМС",IF(I217<=Нормативы!$L$62,"КМС",IF(I217<=Нормативы!$L$63,"I",IF(I217<=Нормативы!$L$64,"II",IF(I217<=Нормативы!$L$65,"III",IF(I217<=Нормативы!$L$66,"I юн",IF(I217<=Нормативы!$L$67,"II юн",IF(I217<=Нормативы!$L$68,"III юн","б/р"))))))))))) -> б/р
A218: 7 | B218: II юн | C218: Малоканов Илья | D218: Александрович | E218: 2015-08-03 | F218: ДВС | I218: 120.84 | J218: =IF(ISBLANK(I218)," ",IF(ISTEXT(I218)," ",IF(I218<=Нормативы!$H$60,"КМС",IF(I218<=Нормативы!$H$61,"КМС",IF(I218<=Нормативы!$L$62,"КМС",IF(I218<=Нормативы!$L$63,"I",IF(I218<=Нормативы!$L$64,"II",IF(I218<=Нормативы!$L$65,"III",IF(I218<=Нормативы!$L$66,"I юн",IF(I218<=Нормативы!$L$67,"II юн",IF(I218<=Нормативы!$L$68,"III юн","б/р"))))))))))) -> б/р
A219: 8 | B219: III юн | C219: Калякин Тимофей | D219: Сергеевич | E219: 2016-12-16 | F219: Дианема | I219: 122.5 | J219: =IF(ISBLANK(I219)," ",IF(ISTEXT(I219)," ",IF(I219<=Нормативы!$H$60,"КМС",IF(I219<=Нормативы!$H$61,"КМС",IF(I219<=Нормативы!$L$62,"КМС",IF(I219<=Нормативы!$L$63,"I",IF(I219<=Нормативы!$L$64,"II",IF(I219<=Нормативы!$L$65,"III",IF(I219<=Нормативы!$L$66,"I юн",IF(I219<=Нормативы!$L$67,"II юн",IF(I219<=Нормативы!$L$68,"III юн","б/р"))))))))))) -> б/р
B220: II юн | C220: Кондратьев Вячеслав | D220: Александрович | E220: 2016-08-28 | F220: Дианема | I220: DSQ
C222: Плавание в классических ластах - 100 м, девушки 2015-2017 г.р.
A224: 1 | B224: I юн | C224: Бавтрушко Елизавета | D224: Артемовна | E224: 2015-01-08 | F224: ДВС | I224: 102.81 | J224: =IF(ISBLANK(I224)," ",IF(ISTEXT(I224)," ",IF(I224<=Нормативы!$H$71,"КМС",IF(I224<=Нормативы!$H$72,"КМС",IF(I224<=Нормативы!$L$73,"КМС",IF(I224<=Нормативы!$L$74,"I",IF(I224<=Нормативы!$L$75,"II",IF(I224<=Нормативы!$L$76,"III",IF(I224<=Нормативы!$L$77,"I юн",IF(I224<=Нормативы!$L$78,"II юн",IF(I224<=Нормативы!$L$79,"III юн","б/р"))))))))))) -> III
A225: 2 | B225: III | C225: Харсекина Злата | D225: Витальевна | E225: 2016-08-04 | F225: ПК "Авангард" | I225: 105.31 | J225: =IF(ISBLANK(I225)," ",IF(ISTEXT(I225)," ",IF(I225<=Нормативы!$H$71,"КМС",IF(I225<=Нормативы!$H$72,"КМС",IF(I225<=Нормативы!$L$73,"КМС",IF(I225<=Нормативы!$L$74,"I",IF(I225<=Нормативы!$L$75,"II",IF(I225<=Нормативы!$L$76,"III",IF(I225<=Нормативы!$L$77,"I юн",IF(I225<=Нормативы!$L$78,"II юн",IF(I225<=Нормативы!$L$79,"III юн","б/р"))))))))))) -> III
A226: 3 | B226: I юн | C226: Липкина Полина | D226: Максимовна | E226: 2015-02-01 | F226: ДВС | I226: 106.5 | J226: =IF(ISBLANK(I226)," ",IF(ISTEXT(I226)," ",IF(I226<=Нормативы!$H$71,"КМС",IF(I226<=Нормативы!$H$72,"КМС",IF(I226<=Нормативы!$L$73,"КМС",IF(I226<=Нормативы!$L$74,"I",IF(I226<=Нормативы!$L$75,"II",IF(I226<=Нормативы!$L$76,"III",IF(I226<=Нормативы!$L$77,"I юн",IF(I226<=Нормативы!$L$78,"II юн",IF(I226<=Нормативы!$L$79,"III юн","б/р"))))))))))) -> III
A227: 4 | B227: I юн | C227: Миронова Валерия | D227: Егоровна | E227: 2016-09-01 | F227: ДВС | I227: 110.64 | J227: =IF(ISBLANK(I227)," ",IF(ISTEXT(I227)," ",IF(I227<=Нормативы!$H$71,"КМС",IF(I227<=Нормативы!$H$72,"КМС",IF(I227<=Нормативы!$L$73,"КМС",IF(I227<=Нормативы!$L$74,"I",IF(I227<=Нормативы!$L$75,"II",IF(I227<=Нормативы!$L$76,"III",IF(I227<=Нормативы!$L$77,"I юн",IF(I227<=Нормативы!$L$78,"II юн",IF(I227<=Нормативы!$L$79,"III юн","б/р"))))))))))) -> I юн
A228: 5 | B228: I юн | C228: Росс Елизавета | D228: Александровна | E228: 2015-07-13 | F228: ДВС | I228: 111.86 | J228: =IF(ISBLANK(I228)," ",IF(ISTEXT(I228)," ",IF(I228<=Нормативы!$H$71,"КМС",IF(I228<=Нормативы!$H$72,"КМС",IF(I228<=Нормативы!$L$73,"КМС",IF(I228<=Нормативы!$L$74,"I",IF(I228<=Нормативы!$L$75,"II",IF(I228<=Нормативы!$L$76,"III",IF(I228<=Нормативы!$L$77,"I юн",IF(I228<=Нормативы!$L$78,"II юн",IF(I228<=Нормативы!$L$79,"III юн","б/р"))))))))))) -> I юн
A229: 6 | B229: II юн | C229: Семина Евгения | D229: Алексеевна | E229: 2016-03-21 | F229: ДВС | I229: 116.88 | J229: =IF(ISBLANK(I229)," ",IF(ISTEXT(I229)," ",IF(I229<=Нормативы!$H$71,"КМС",IF(I229<=Нормативы!$H$72,"КМС",IF(I229<=Нормативы!$L$73,"КМС",IF(I229<=Нормативы!$L$74,"I",IF(I229<=Нормативы!$L$75,"II",IF(I229<=Нормативы!$L$76,"III",IF(I229<=Нормативы!$L$77,"I юн",IF(I229<=Нормативы!$L$78,"II юн",IF(I229<=Нормативы!$L$79,"III юн","б/р"))))))))))) -> II юн
A230: 7 | B230: I юн | C230: Барановская Виктория | D230: Евгеньевна | E230: 2017-09-30 | F230: ПК "Авангард" | I230: 117.01 | J230: =IF(ISBLANK(I230)," ",IF(ISTEXT(I230)," ",IF(I230<=Нормативы!$H$71,"КМС",IF(I230<=Нормативы!$H$72,"КМС",IF(I230<=Нормативы!$L$73,"КМС",IF(I230<=Нормативы!$L$74,"I",IF(I230<=Нормативы!$L$75,"II",IF(I230<=Нормативы!$L$76,"III",IF(I230<=Нормативы!$L$77,"I юн",IF(I230<=Нормативы!$L$78,"II юн",IF(I230<=Нормативы!$L$79,"III юн","б/р"))))))))))) -> II юн
A231: 8 | B231: I юн | C231: Млынарь Милана | D231: Алексеевна | E231: 2015-08-08 | F231: ПК "Авангард" | I231: 117.26 | J231: =IF(ISBLANK(I231)," ",IF(ISTEXT(I231)," ",IF(I231<=Нормативы!$H$71,"КМС",IF(I231<=Нормативы!$H$72,"КМС",IF(I231<=Нормативы!$L$73,"КМС",IF(I231<=Нормативы!$L$74,"I",IF(I231<=Нормативы!$L$75,"II",IF(I231<=Нормативы!$L$76,"III",IF(I231<=Нормативы!$L$77,"I юн",IF(I231<=Нормативы!$L$78,"II юн",IF(I231<=Нормативы!$L$79,"III юн","б/р"))))))))))) -> II юн
A232: 9 | B232: II юн | C232: Коновалова Ксения | D232: Андреевна | E232: 2015-04-20 | F232: ДВС | I232: 117.73 | J232: =IF(ISBLANK(I232)," ",IF(ISTEXT(I232)," ",IF(I232<=Нормативы!$H$71,"КМС",IF(I232<=Нормативы!$H$72,"КМС",IF(I232<=Нормативы!$L$73,"КМС",IF(I232<=Нормативы!$L$74,"I",IF(I232<=Нормативы!$L$75,"II",IF(I232<=Нормативы!$L$76,"III",IF(I232<=Нормативы!$L$77,"I юн",IF(I232<=Нормативы!$L$78,"II юн",IF(I232<=Нормативы!$L$79,"III юн","б/р"))))))))))) -> II юн
A233: 10 | B233: I юн | C233: Анкудинова Полина | D233: Васильевна | E233: 2015-06-20 | F233: ПК "Авангард" | I233: 117.73 | J233: =IF(ISBLANK(I233)," ",IF(ISTEXT(I233)," ",IF(I233<=Нормативы!$H$71,"КМС",IF(I233<=Нормативы!$H$72,"КМС",IF(I233<=Нормативы!$L$73,"КМС",IF(I233<=Нормативы!$L$74,"I",IF(I233<=Нормативы!$L$75,"II",IF(I233<=Нормативы!$L$76,"III",IF(I233<=Нормативы!$L$77,"I юн",IF(I233<=Нормативы!$L$78,"II юн",IF(I233<=Нормативы!$L$79,"III юн","б/р"))))))))))) -> II юн
A234: 11 | B234: II юн | C234: Верховина Екатерина | D234: Ивановна | E234: 2015-06-22 | F234: ПК "Авангард" | I234: 124 | J234: =IF(ISBLANK(I234)," ",IF(ISTEXT(I234)," ",IF(I234<=Нормативы!$H$71,"КМС",IF(I234<=Нормативы!$H$72,"КМС",IF(I234<=Нормативы!$L$73,"КМС",IF(I234<=Нормативы!$L$74,"I",IF(I234<=Нормативы!$L$75,"II",IF(I234<=Нормативы!$L$76,"III",IF(I234<=Нормативы!$L$77,"I юн",IF(I234<=Нормативы!$L$78,"II юн",IF(I234<=Нормативы!$L$79,"III юн","б/р"))))))))))) -> III юн
A235: 12 | B235: 3 юн | C235: Плякина Елизавета | D235: Игоревна | E235: 2015-11-06 | F235: К;атран | I235: 124.63 | J235: =IF(ISBLANK(I235)," ",IF(ISTEXT(I235)," ",IF(I235<=Нормативы!$H$71,"КМС",IF(I235<=Нормативы!$H$72,"КМС",IF(I235<=Нормативы!$L$73,"КМС",IF(I235<=Нормативы!$L$74,"I",IF(I235<=Нормативы!$L$75,"II",IF(I235<=Нормативы!$L$76,"III",IF(I235<=Нормативы!$L$77,"I юн",IF(I235<=Нормативы!$L$78,"II юн",IF(I235<=Нормативы!$L$79,"III юн","б/р"))))))))))) -> III юн
A236: 13 | B236: III юн | C236: Виноградова Арина | D236: Максимовна | E236: 2016-04-26 | F236: ДВС | I236: 125.17 | J236: =IF(ISBLANK(I236)," ",IF(ISTEXT(I236)," ",IF(I236<=Нормативы!$H$71,"КМС",IF(I236<=Нормативы!$H$72,"КМС",IF(I236<=Нормативы!$L$73,"КМС",IF(I236<=Нормативы!$L$74,"I",IF(I236<=Нормативы!$L$75,"II",IF(I236<=Нормативы!$L$76,"III",IF(I236<=Нормативы!$L$77,"I юн",IF(I236<=Нормативы!$L$78,"II юн",IF(I236<=Нормативы!$L$79,"III юн","б/р"))))))))))) -> б/р
A237: 14 | B237: III юн | C237: Сугак Алиса | D237: Александровна | E237: 2017-03-24 | F237: ДВС | I237: 126.11 | J237: =IF(ISBLANK(I237)," ",IF(ISTEXT(I237)," ",IF(I237<=Нормативы!$H$71,"КМС",IF(I237<=Нормативы!$H$72,"КМС",IF(I237<=Нормативы!$L$73,"КМС",IF(I237<=Нормативы!$L$74,"I",IF(I237<=Нормативы!$L$75,"II",IF(I237<=Нормативы!$L$76,"III",IF(I237<=Нормативы!$L$77,"I юн",IF(I237<=Нормативы!$L$78,"II юн",IF(I237<=Нормативы!$L$79,"III юн","б/р"))))))))))) -> б/р
A238: 15 | B238: III юн | C238: Кокорина Василиса | D238: Васильевна | E238: 2017-07-27 | F238: ПК "Авангард" | I238: 128.54 | J238: =IF(ISBLANK(I238)," ",IF(ISTEXT(I238)," ",IF(I238<=Нормативы!$H$71,"КМС",IF(I238<=Нормативы!$H$72,"КМС",IF(I238<=Нормативы!$L$73,"КМС",IF(I238<=Нормативы!$L$74,"I",IF(I238<=Нормативы!$L$75,"II",IF(I238<=Нормативы!$L$76,"III",IF(I238<=Нормативы!$L$77,"I юн",IF(I238<=Нормативы!$L$78,"II юн",IF(I238<=Нормативы!$L$79,"III юн","б/р"))))))))))) -> б/р
A239: 16 | B239: б/р | C239: Некрасова Варвара | D239: Евгеньевна | E239: 2017-08-20 | F239: Дианема | I239: 131.26 | J239: =IF(ISBLANK(I239)," ",IF(ISTEXT(I239)," ",IF(I239<=Нормативы!$H$71,"КМС",IF(I239<=Нормативы!$H$72,"КМС",IF(I239<=Нормативы!$L$73,"КМС",IF(I239<=Нормативы!$L$74,"I",IF(I239<=Нормативы!$L$75,"II",IF(I239<=Нормативы!$L$76,"III",IF(I239<=Нормативы!$L$77,"I юн",IF(I239<=Нормативы!$L$78,"II юн",IF(I239<=Нормативы!$L$79,"III юн","б/р"))))))))))) -> б/р
B240: б/р | C240: Сакова Софья | D240: Николаевна | E240: 2017-05-17 | F240: ПК "Авангард" | I240: DSQ
B241: II юн | C241: Пономарева Виктория | D241: Сергеевна | E241: 2015-03-06 | F241: "Спутник-Авангард" | I241: DSQ
C243: Плавание в классических ластах - 100 м, юноши2015-2017 г.р.
A245: 1 | B245: 1юн | C245: Савельев Тимофей | D245: Павлович | E245: 2015-12-18 | F245: Дианема | I245: 103.54 | J245: =IF(ISBLANK(I245)," ",IF(ISTEXT(I245)," ",IF(I245<=Нормативы!$H$82,"КМС",IF(I245<=Нормативы!$H$83,"КМС",IF(I245<=Нормативы!$L$84,"КМС",IF(I245<=Нормативы!$L$85,"I",IF(I245<=Нормативы!$L$86,"II",IF(I245<=Нормативы!$L$87,"III",IF(I245<=Нормативы!$L$88,"I юн",IF(I245<=Нормативы!$L$89,"II юн",IF(I245<=Нормативы!$L$90,"III юн","б/р"))))))))))) -> I юн
A246: 2 | B246: I юн | C246: Марусенко Артём | D246: Александрович | E246: 2015-04-09 | F246: Дианема | I246: 103.76 | J246: =IF(ISBLANK(I246)," ",IF(ISTEXT(I246)," ",IF(I246<=Нормативы!$H$82,"КМС",IF(I246<=Нормативы!$H$83,"КМС",IF(I246<=Нормативы!$L$84,"КМС",IF(I246<=Нормативы!$L$85,"I",IF(I246<=Нормативы!$L$86,"II",IF(I246<=Нормативы!$L$87,"III",IF(I246<=Нормативы!$L$88,"I юн",IF(I246<=Нормативы!$L$89,"II юн",IF(I246<=Нормативы!$L$90,"III юн","б/р"))))))))))) -> I юн
A247: 3 | B247: I юн | C247: Мясников Матвей | D247: Александрович | E247: 2015-08-06 | F247: Дианема | I247: 108.79 | J247: =IF(ISBLANK(I247)," ",IF(ISTEXT(I247)," ",IF(I247<=Нормативы!$H$82,"КМС",IF(I247<=Нормативы!$H$83,"КМС",IF(I247<=Нормативы!$L$84,"КМС",IF(I247<=Нормативы!$L$85,"I",IF(I247<=Нормативы!$L$86,"II",IF(I247<=Нормативы!$L$87,"III",IF(I247<=Нормативы!$L$88,"I юн",IF(I247<=Нормативы!$L$89,"II юн",IF(I247<=Нормативы!$L$90,"III юн","б/р"))))))))))) -> II юн
A248: 4 | B248: II юн | C248: Фёдоров Константин | D248: Романович | E248: 2016-05-12 | F248: Дианема | I248: 108.9 | J248: =IF(ISBLANK(I248)," ",IF(ISTEXT(I248)," ",IF(I248<=Нормативы!$H$82,"КМС",IF(I248<=Нормативы!$H$83,"КМС",IF(I248<=Нормативы!$L$84,"КМС",IF(I248<=Нормативы!$L$85,"I",IF(I248<=Нормативы!$L$86,"II",IF(I248<=Нормативы!$L$87,"III",IF(I248<=Нормативы!$L$88,"I юн",IF(I248<=Нормативы!$L$89,"II юн",IF(I248<=Нормативы!$L$90,"III юн","б/р"))))))))))) -> II юн
A249: 5 | B249: б/р | C249: Широбоков Михаил | D249: Андреевич | E249: 2015-11-04 | F249: ПК "Авангард" | I249: 117.83 | J249: =IF(ISBLANK(I249)," ",IF(ISTEXT(I249)," ",IF(I249<=Нормативы!$H$82,"КМС",IF(I249<=Нормативы!$H$83,"КМС",IF(I249<=Нормативы!$L$84,"КМС",IF(I249<=Нормативы!$L$85,"I",IF(I249<=Нормативы!$L$86,"II",IF(I249<=Нормативы!$L$87,"III",IF(I249<=Нормативы!$L$88,"I юн",IF(I249<=Нормативы!$L$89,"II юн",IF(I249<=Нормативы!$L$90,"III юн","б/р"))))))))))) -> б/р
A250: 6 | B250: III юн | C250: Зверев Артем | D250: Константинович | E250: 2015-01-17 | F250: ПК "Авангард" | I250: 120.13 | J250: =IF(ISBLANK(I250)," ",IF(ISTEXT(I250)," ",IF(I250<=Нормативы!$H$82,"КМС",IF(I250<=Нормативы!$H$83,"КМС",IF(I250<=Нормативы!$L$84,"КМС",IF(I250<=Нормативы!$L$85,"I",IF(I250<=Нормативы!$L$86,"II",IF(I250<=Нормативы!$L$87,"III",IF(I250<=Нормативы!$L$88,"I юн",IF(I250<=Нормативы!$L$89,"II юн",IF(I250<=Нормативы!$L$90,"III юн","б/р"))))))))))) -> б/р
A251: 7 | B251: III юн | C251: Блудов Руслан | D251: Геннадьевич | E251: 2015-08-02 | F251: ПК "Авангард" | I251: 120.28 | J251: =IF(ISBLANK(I251)," ",IF(ISTEXT(I251)," ",IF(I251<=Нормативы!$H$82,"КМС",IF(I251<=Нормативы!$H$83,"КМС",IF(I251<=Нормативы!$L$84,"КМС",IF(I251<=Нормативы!$L$85,"I",IF(I251<=Нормативы!$L$86,"II",IF(I251<=Нормативы!$L$87,"III",IF(I251<=Нормативы!$L$88,"I юн",IF(I251<=Нормативы!$L$89,"II юн",IF(I251<=Нормативы!$L$90,"III юн","б/р"))))))))))) -> б/р
A252: 8 | B252: 3 юн | C252: Ивашко Федор | D252: Алексеевич | E252: 09.02ю2015 | F252: К;атран | I252: 120.51 | J252: =IF(ISBLANK(I252)," ",IF(ISTEXT(I252)," ",IF(I252<=Нормативы!$H$82,"КМС",IF(I252<=Нормативы!$H$83,"КМС",IF(I252<=Нормативы!$L$84,"КМС",IF(I252<=Нормативы!$L$85,"I",IF(I252<=Нормативы!$L$86,"II",IF(I252<=Нормативы!$L$87,"III",IF(I252<=Нормативы!$L$88,"I юн",IF(I252<=Нормативы!$L$89,"II юн",IF(I252<=Нормативы!$L$90,"III юн","б/р"))))))))))) -> б/р
A253: 9 | B253: III юн | C253: Калякин Тимофей | D253: Сергеевич | E253: 2016-12-16 | F253: Дианема | I253: 120.65 | J253: =IF(ISBLANK(I253)," ",IF(ISTEXT(I253)," ",IF(I253<=Нормативы!$H$82,"КМС",IF(I253<=Нормативы!$H$83,"КМС",IF(I253<=Нормативы!$L$84,"КМС",IF(I253<=Нормативы!$L$85,"I",IF(I253<=Нормативы!$L$86,"II",IF(I253<=Нормативы!$L$87,"III",IF(I253<=Нормативы!$L$88,"I юн",IF(I253<=Нормативы!$L$89,"II юн",IF(I253<=Нормативы!$L$90,"III юн","б/р"))))))))))) -> б/р
A254: 10 | B254: б,р | C254: Пашенных Прохор | D254: Семенович | E254: 2015-09-10 | F254: К;атран | I254: 120.82 | J254: =IF(ISBLANK(I254)," ",IF(ISTEXT(I254)," ",IF(I254<=Нормативы!$H$82,"КМС",IF(I254<=Нормативы!$H$83,"КМС",IF(I254<=Нормативы!$L$84,"КМС",IF(I254<=Нормативы!$L$85,"I",IF(I254<=Нормативы!$L$86,"II",IF(I254<=Нормативы!$L$87,"III",IF(I254<=Нормативы!$L$88,"I юн",IF(I254<=Нормативы!$L$89,"II юн",IF(I254<=Нормативы!$L$90,"III юн","б/р"))))))))))) -> б/р
A255: 11 | B255: б/р | C255: Пичугин Семён | D255: Константинович | E255: 2015-10-08 | F255: Дианема | I255: 120.97 | J255: =IF(ISBLANK(I255)," ",IF(ISTEXT(I255)," ",IF(I255<=Нормативы!$H$82,"КМС",IF(I255<=Нормативы!$H$83,"КМС",IF(I255<=Нормативы!$L$84,"КМС",IF(I255<=Нормативы!$L$85,"I",IF(I255<=Нормативы!$L$86,"II",IF(I255<=Нормативы!$L$87,"III",IF(I255<=Нормативы!$L$88,"I юн",IF(I255<=Нормативы!$L$89,"II юн",IF(I255<=Нормативы!$L$90,"III юн","б/р"))))))))))) -> б/р
A256: 12 | B256: III юн | C256: Котнеков Константин | D256: Сергеевич | E256: 2015-12-19 | F256: "Спутник-Авангард" | I256: 123.5 | J256: =IF(ISBLANK(I256)," ",IF(ISTEXT(I256)," ",IF(I256<=Нормативы!$H$82,"КМС",IF(I256<=Нормативы!$H$83,"КМС",IF(I256<=Нормативы!$L$84,"КМС",IF(I256<=Нормативы!$L$85,"I",IF(I256<=Нормативы!$L$86,"II",IF(I256<=Нормативы!$L$87,"III",IF(I256<=Нормативы!$L$88,"I юн",IF(I256<=Нормативы!$L$89,"II юн",IF(I256<=Нормативы!$L$90,"III юн","б/р"))))))))))) -> б/р
A257: 13 | B257: III юн | C257: Горобец Иван | D257: Максимович | E257: 2015-03-02 | F257: ПК Авангард | I257: 123.9 | J257: =IF(ISBLANK(I257)," ",IF(ISTEXT(I257)," ",IF(I257<=Нормативы!$H$82,"КМС",IF(I257<=Нормативы!$H$83,"КМС",IF(I257<=Нормативы!$L$84,"КМС",IF(I257<=Нормативы!$L$85,"I",IF(I257<=Нормативы!$L$86,"II",IF(I257<=Нормативы!$L$87,"III",IF(I257<=Нормативы!$L$88,"I юн",IF(I257<=Нормативы!$L$89,"II юн",IF(I257<=Нормативы!$L$90,"III юн","б/р"))))))))))) -> б/р
A258: 14 | B258: б/р | C258: Антипин Михаил | D258: Николаевич | E258: 2017-12-19 | F258: Дианема | I258: 124.92 | J258: =IF(ISBLANK(I258)," ",IF(ISTEXT(I258)," ",IF(I258<=Нормативы!$H$82,"КМС",IF(I258<=Нормативы!$H$83,"КМС",IF(I258<=Нормативы!$L$84,"КМС",IF(I258<=Нормативы!$L$85,"I",IF(I258<=Нормативы!$L$86,"II",IF(I258<=Нормативы!$L$87,"III",IF(I258<=Нормативы!$L$88,"I юн",IF(I258<=Нормативы!$L$89,"II юн",IF(I258<=Нормативы!$L$90,"III юн","б/р"))))))))))) -> б/р
A259: 15 | B259: б/р | C259: Сухов Александр | D259: Антонович | E259: 2015-12-17 | F259: ПК "Авангард" | I259: 126.34 | J259: =IF(ISBLANK(I259)," ",IF(ISTEXT(I259)," ",IF(I259<=Нормативы!$H$82,"КМС",IF(I259<=Нормативы!$H$83,"КМС",IF(I259<=Нормативы!$L$84,"КМС",IF(I259<=Нормативы!$L$85,"I",IF(I259<=Нормативы!$L$86,"II",IF(I259<=Нормативы!$L$87,"III",IF(I259<=Нормативы!$L$88,"I юн",IF(I259<=Нормативы!$L$89,"II юн",IF(I259<=Нормативы!$L$90,"III юн","б/р"))))))))))) -> б/р
A260: 16 | B260: б/р | C260: Стрельч Елисей | D260: Иванович | E260: 2016-11-23 | F260: К;атран | I260: 127.58 | J260: =IF(ISBLANK(I260)," ",IF(ISTEXT(I260)," ",IF(I260<=Нормативы!$H$82,"КМС",IF(I260<=Нормативы!$H$83,"КМС",IF(I260<=Нормативы!$L$84,"КМС",IF(I260<=Нормативы!$L$85,"I",IF(I260<=Нормативы!$L$86,"II",IF(I260<=Нормативы!$L$87,"III",IF(I260<=Нормативы!$L$88,"I юн",IF(I260<=Нормативы!$L$89,"II юн",IF(I260<=Нормативы!$L$90,"III юн","б/р"))))))))))) -> б/р
A261: 17 | B261: б/р | C261: Науменко Семен | D261: Романович | E261: 2016-03-24 | F261: ПК "Авангард" | I261: 136.95 | J261: =IF(ISBLANK(I261)," ",IF(ISTEXT(I261)," ",IF(I261<=Нормативы!$H$82,"КМС",IF(I261<=Нормативы!$H$83,"КМС",IF(I261<=Нормативы!$L$84,"КМС",IF(I261<=Нормативы!$L$85,"I",IF(I261<=Нормативы!$L$86,"II",IF(I261<=Нормативы!$L$87,"III",IF(I261<=Нормативы!$L$88,"I юн",IF(I261<=Нормативы!$L$89,"II юн",IF(I261<=Нормативы!$L$90,"III юн","б/р"))))))))))) -> б/р
B262: б/р | C262: Назаркин Дмитрий | D262: Игоревич | E262: 2016-03-17 | F262: ПК "Авангард" | I262: DSQ
B263: б/р | C263: Степанов Кирилл | D263: Вадимович | E263: 2017-07-03 | F263: ДВС | I263: DSQ
B265: б/р | C265: Кандеев Федор | D265: Михайлович | E265: 2014-11-10 | F265: К;атран | I265: 113.87 | J265: =IF(ISBLANK(I265)," ",IF(ISTEXT(I265)," ",IF(I265<=Нормативы!$H$82,"КМС",IF(I265<=Нормативы!$H$83,"КМС",IF(I265<=Нормативы!$L$84,"КМС",IF(I265<=Нормативы!$L$85,"I",IF(I265<=Нормативы!$L$86,"II",IF(I265<=Нормативы!$L$87,"III",IF(I265<=Нормативы!$L$88,"I юн",IF(I265<=Нормативы!$L$89,"II юн",IF(I265<=Нормативы!$L$90,"III юн","б/р"))))))))))) -> III юн
C267: Эстафета 4по50 метров плавание в ластах (смешаная)
A269: 1 | F269: "Спутник-Авангард" | I269: 156.45
B270: III юн | C270: Кондратьев Михаил | D270: Дмитриевич | E270: 2016-02-12 | I270: 24.5 | J270: =IF(ISBLANK(I270)," ",IF(ISTEXT(I270)," ",IF(I270<=Нормативы!$H$16,"КМС",IF(I270<=Нормативы!$H$17,"КМС",IF(I270<=Нормативы!$L$18,"КМС",IF(I270<=Нормативы!$L$19,"I",IF(I270<=Нормативы!$L$20,"II",IF(I270<=Нормативы!$L$21,"III",IF(I270<=Нормативы!$L$22,"I юн",IF(I270<=Нормативы!$L$23,"II юн",IF(I270<=Нормативы!$L$24,"III юн","б/р"))))))))))) -> II юн
B271: III юн | C271: Котнекова Ксения | D271: Сергеевна | E271: 2015-12-19
B272: III юн | C272: Провалинский Артём | D272: Андреевич | E272: 2015-12-26
B273: III юн | C273: Плащенко Дарина | D273: Ивановна | E273: 2015-06-24
A275: 2 | F275: Дианема | I275: 156.65
B276: I юн | C276: Сисько Илья | D276: Сергеевич | E276: 2015-04-15 | I276: 26.80 | J276: =IF(ISBLANK(I276)," ",IF(ISTEXT(I276)," ",IF(I276<=Нормативы!$H$16,"КМС",IF(I276<=Нормативы!$H$17,"КМС",IF(I276<=Нормативы!$L$18,"КМС",IF(I276<=Нормативы!$L$19,"I",IF(I276<=Нормативы!$L$20,"II",IF(I276<=Нормативы!$L$21,"III",IF(I276<=Нормативы!$L$22,"I юн",IF(I276<=Нормативы!$L$23,"II юн",IF(I276<=Нормативы!$L$24,"III юн","б/р"))))))))))) -> III юн
... 34 more rows

Sheet Отчет_ЦСП
M1: УТВЕРЖДАЮ
L2: Заместитель директора
L3: по работе со сборными командами
L4: и проведению мероприятий
L5: КГАУ "ЦСП"
R6: __________________ В.И. Мусиенко
A8: Отчет главного судьи
A10: =#REF! -> 
A11: (наименование согласно положению/регламенту о соревновании)
A12: =#REF! -> 
A14: Место проведения: | E14: =#REF! -> 
A15: (город/район края, поселок/село, наименование спортивного сооружения)
A16: Сроки проведения: | E16: =#REF!&" "&"(четыре дня)" -> 
A17: (число, месяц, количество соревновательных/игровых дней)
A18: I. | B18: УЧАСТНИКИ: | E18: 3 | F18: региона (гг. Красноярск, Ачинск, Зеленогорск)
E19: =COUNTIF(#REF!,"*г.*")+COUNTIF(#REF!,"*обл*")+COUNTIF(#REF!,"*край*")+COUNTIF(#REF!,"*город*")+COUNTIF(#REF!,"*респ*") ->  | F19: команд, | H19: =#REF! ->  | I19: участник(ов)
E20: =#REF! ->  | J20: - | K20: =COUNTIF(#REF!,E20) ->  | L20: чел.
E21: =#REF! ->  | J21: - | K21: =COUNTIF(#REF!,E21) ->  | L21: чел.
E22: =#REF! ->  | J22: - | K22: =COUNTIF(#REF!,E22) ->  | L22: чел.
E23: =#REF! ->  | J23: - | K23: =COUNTIF(#REF!,E23) ->  | L23: чел.
E24: =#REF! ->  | J24: - | K24: =COUNTIF(#REF!,E24) ->  | L24: чел.
E25: =#REF! ->  | J25: - | K25: =COUNTIF(#REF!,E25) ->  | L25: чел.
E26: =#REF! ->  | J26: - | K26: =COUNTIF(#REF!,E26) ->  | L26: чел.
E27: =#REF! ->  | J27: - | K27: =COUNTIF(#REF!,E27) ->  | L27: чел.
E28: =#REF! ->  | J28: - | K28: =COUNTIF(#REF!,E28) ->  | L28: чел.
E29: =#REF! ->  | J29: - | K29: =COUNTIF(#REF!,E29) ->  | L29: чел.
E30: =#REF! ->  | J30: - | K30: =COUNTIF(#REF!,E30) ->  | L30: чел.
E31: =#REF! ->  | J31: - | K31: =COUNTIF(#REF!,E31) ->  | L31: чел.
E32: =#REF! ->  | J32: - | K32: =COUNTIF(#REF!,E32) ->  | L32: чел.
E33: =#REF! ->  | J33: - | K33: =COUNTIF(#REF!,E33) ->  | L33: чел.
E34: =#REF! ->  | J34: - | K34: =COUNTIF(#REF!,E34) ->  | L34: чел.
E35: =#REF! ->  | J35: - | K35: =COUNTIF(#REF!,E35) ->  | L35: чел.
E36: =#REF! ->  | J36: - | K36: =COUNTIF(#REF!,E36) ->  | L36: чел.
E37: =#REF! ->  | J37: - | K37: =COUNTIF(#REF!,E37) ->  | L37: чел.
E38: =#REF! ->  | J38: - | K38: =COUNTIF(#REF!,E38) ->  | L38: чел.
E39: =#REF! ->  | J39: - | K39: =COUNTIF(#REF!,E39) ->  | L39: чел.
A41: Участники | D41: Всего | E41: в том числе имеющие спортивние звания и разряды
E42: ЗМС | G42: МСМК | I42: МС | K42: I | M42: II | O42: III | Q42: Массовые разряды
A43: Девушки | D43: =COUNTIF(#REF!,"Ж") ->  | E43: =COUNTIFS(#REF!,E42,#REF!,"Ж") ->  | G43: =COUNTIFS(#REF!,G42,#REF!,"Ж") ->  | I43: =COUNTIFS(#REF!,I42,#REF!,"Ж") ->  | K43: =COUNTIFS(#REF!,K42,#REF!,"Ж") ->  | M43: =COUNTIFS(#REF!,M42,#REF!,"Ж") ->  | O43: =COUNTIFS(#REF!,O42,#REF!,"Ж") ->  | Q43: =COUNTIFS(#REF!,"I юн",#REF!,"Ж")+COUNTIFS(#REF!,"II юн",#REF!,"Ж")+COUNTIFS(#REF!,"III юн",#REF!,"Ж") -> 
A44: Юноши | D44: =COUNTIF(#REF!,"М") ->  | E44: =COUNTIFS(#REF!,E42,#REF!,"М") ->  | G44: =COUNTIFS(#REF!,G42,#REF!,"М") ->  | I44: =COUNTIFS(#REF!,I42,#REF!,"М") ->  | K44: =COUNTIFS(#REF!,K42,#REF!,"М") ->  | M44: =COUNTIFS(#REF!,M42,#REF!,"М") ->  | O44: =COUNTIFS(#REF!,O42,#REF!,"М") ->  | Q44: =COUNTIFS(#REF!,"I юн",#REF!,"М")+COUNTIFS(#REF!,"II юн",#REF!,"М")+COUNTIFS(#REF!,"III юн",#REF!,"М") -> 
A45: ИТОГО: | D45: =SUM(D43:D44) ->  | E45: =SUM(E43:F44) ->  | G45: =SUM(G43:H44) ->  | I45: =SUM(I43:J44) ->  | K45: =SUM(K43:L44) ->  | M45: =SUM(M43:N44) ->  | O45: =SUM(O43:P44) ->  | Q45: =SUM(Q44:R44) -> 
A46: Количество зрителей, посетивших спортивное соревнование: | M46: 150 | O46: человек
A48: II. | B48: СПОРТИВНАЯ БАЗА:
A49: Место проведения соревнований соответствовали правилам ТБ и СанПиНам. Акт готовности спортивного объекта имеется.
A51: III. | B51: РЕЗУЛЬТАТЫ СОРЕВНОВАНИЙ:
A53: Место | B53: Командные | J53: Личные
A55: 1 | B55: =#REF! ->  | J55: Протоколы прилагаются
A56: 2 | B56: =#REF! -> 
A57: 3 | B57: =#REF! -> 
A58: 4 | B58: =#REF! -> 
A59: 5 | B59: =#REF! -> 
A60: 6 | B60: =#REF! -> 
A61: 7 | B61: =#REF! -> 
A62: 8 | B62: =#REF! -> 
A63: 9 | B63: =#REF! -> 
A64: 10 | B64: =#REF! -> 
A65: 3 | B65: =#REF! -> 
A66: 4 | B66: =#REF! -> 
A67: 5 | B67: =#REF! -> 
A68: 6 | B68: =#REF! -> 
A69: 7 | B69: =#REF! -> 
A70: 8 | B70: =#REF! -> 
A71: 9 | B71: =#REF! -> 
A72: 8 | B72: =#REF! -> 
A73: 9 | B73: =#REF! -> 
A74: 10 | B74: =#REF! -> 
A76: IV. | B76: ЗАКЛЮЧЕНИЕ ВРАЧА:
A78: За время проведения соревнований травм и жалоб на здоровье участников не было
A79: (указать ФИО спортсменов, получивших травму, характер травмы)
A80: V. | B80: СПИСОК СУДЕЙСКОЙ КОЛЛЕГИИ
A82: № п/п | B82: Ф.И.О. (полностью) | J82: Судейская категория | L82: Судейская должность | Q82: Оценка
A83: =#REF! ->  | B83: =#REF! ->  | J83: =#REF! ->  | L83: =#REF! ->  | Q83: отлично
A84: =#REF! ->  | B84: =#REF! ->  | J84: =#REF! ->  | L84: =#REF! ->  | Q84: отлично
A85: =#REF! ->  | B85: =#REF! ->  | J85: =#REF! ->  | L85: =#REF! ->  | Q85: отлично
A86: =#REF! ->  | B86: =#REF! ->  | J86: =#REF! ->  | L86: =#REF! ->  | Q86: отлично
A87: =#REF! ->  | B87: =#REF! ->  | J87: =#REF! ->  | L87: =#REF! ->  | Q87: отлично
A88: =#REF! ->  | B88: =#REF! ->  | J88: =#REF! ->  | L88: =#REF! ->  | Q88: отлично
A89: =#REF! ->  | B89: =#REF! ->  | J89: =#REF! ->  | L89: =#REF! ->  | Q89: отлично
A90: =#REF! ->  | B90: =#REF! ->  | J90: =#REF! ->  | L90: =#REF! ->  | Q90: отлично
A91: =#REF! ->  | B91: =#REF! ->  | J91: =#REF! ->  | L91: =#REF! ->  | Q91: отлично
A92: =#REF! ->  | B92: =#REF! ->  | J92: =#REF! ->  | L92: =#REF! ->  | Q92: отлично
A93: =#REF! ->  | B93: =#REF! ->  | J93: =#REF! ->  | L93: =#REF! ->  | Q93: отлично
A94: =#REF! ->  | B94: =#REF! ->  | J94: =#REF! ->  | L94: =#REF! ->  | Q94: отлично
A95: =#REF! ->  | B95: =#REF! ->  | J95: =#REF! ->  | L95: =#REF! ->  | Q95: отлично
A96: =#REF! ->  | B96: =#REF! ->  | J96: =#REF! ->  | L96: =#REF! ->  | Q96: отлично
A97: =#REF! ->  | B97: =#REF! ->  | J97: =#REF! ->  | L97: =#REF! ->  | Q97: отлично
A98: =#REF! ->  | B98: =#REF! ->  | J98: =#REF! ->  | L98: =#REF! ->  | Q98: отлично
A99: =#REF! ->  | B99: =#REF! ->  | J99: =#REF! ->  | L99: =#REF! ->  | Q99: отлично
A100: =#REF! ->  | B100: =#REF! ->  | J100: =#REF! ->  | L100: =#REF! ->  | Q100: отлично
A101: =#REF! ->  | B101: =#REF! ->  | J101: =#REF! ->  | L101: =#REF! ->  | Q101: отлично
A102: =#REF! ->  | B102: =#REF! ->  | J102: =#REF! ->  | L102: =#REF! ->  | Q102: отлично
A103: =#REF! ->  | B103: =#REF! ->  | J103: =#REF! ->  | L103: =#REF! ->  | Q103: отлично
A104: =#REF! ->  | B104: =#REF! ->  | J104: =#REF! ->  | L104: =#REF! ->  | Q104: отлично
A105: =#REF! ->  | B105: =#REF! ->  | J105: =#REF! ->  | L105: =#REF! ->  | Q105: отлично
A106: =#REF! ->  | B106: =#REF! ->  | J106: =#REF! ->  | L106: =#REF! ->  | Q106: отлично
A107: =#REF! ->  | B107: =#REF! ->  | J107: =#REF! ->  | L107: =#REF! ->  | Q107: отлично
A108: =#REF! ->  | B108: =#REF! ->  | J108: =#REF! ->  | L108: =#REF! ->  | Q108: отлично
A109: =#REF! ->  | B109: =#REF! ->  | J109: =#REF! ->  | L109: =#REF! ->  | Q109: отлично
A110: =#REF! ->  | B110: =#REF! ->  | J110: =#REF! ->  | L110: =#REF! ->  | Q110: отлично
A111: =#REF! ->  | B111: =#REF! ->  | J111: =#REF! ->  | L111: =#REF! ->  | Q111: отлично
A112: =#REF! ->  | B112: =#REF! ->  | J112: =#REF! ->  | L112: =#REF! ->  | Q112: отлично
A113: =#REF! ->  | B113: =#REF! ->  | J113: =#REF! ->  | L113: =#REF! ->  | Q113: отлично
A114: =#REF! ->  | B114: =#REF! ->  | J114: =#REF! ->  | L114: =#REF! ->  | Q114: отлично
A115: =#REF! ->  | B115: =#REF! ->  | J115: =#REF! ->  | L115: =#REF! ->  | Q115: отлично
A116: =#REF! ->  | B116: =#REF! ->  | J116: =#REF! ->  | L116: =#REF! ->  | Q116: отлично
A117: =#REF! ->  | B117: =#REF! ->  | J117: =#REF! ->  | L117: =#REF! ->  | Q117: отлично
A118: =IF(ISBLANK(#REF!)," ",#REF!) ->  | B118: =#REF! ->  | J118: =IF(ISBLANK(#REF!)," ",#REF!) ->  | L118: =#REF! ->  | Q118: отлично
A119: =IF(ISBLANK(#REF!)," ",#REF!) ->  | B119: =#REF! ->  | J119: =#REF! ->  | L119: =#REF! ->  | Q119: отлично
A121: =#REF! ->  | I121: =#REF! -> 
I122: (расшифровка подписи) | N122: (подпись)
A124: =#REF! ->  | I124: =#REF! -> 
I125: (расшифровка подписи) | N125: (подпись)
A127: Ответственный за проведение | I127: Букина Галина
I128: (расшифровка подписи) | N128: (подпись)

Sheet СП_без предварительных
A4: СОРЕВНОВАНИЯ по плаванию в ластах
A7: СТАРТОВЫЙ ПРОТОКОЛ
A8: Дорожка | B8: Разряд, звание | C8: Фамилия, имя | E8: Год рожд. | F8: Команда | H8: Предварительный результат | J8: Зачет
C10: Плавание в ластах - 50 м (1460081811Я), женщины | P10: Шаг 4
B11: для 6 дорожек | M11: шаг 1 | N11: шаг 2 | P11: оставить единицы
D12: Заплыв № | E12: =INT(A13/10) -> 0
A13: 1 | M13: =IF(MOD($A13,6)=1,6,IF(MOD($A13,6)=2,1,IF(MOD($A13,6)=3,5,IF(MOD($A13,6)=4,2,IF(MOD($A13,6)=5,4,IF(MOD($A13,6)=0,3)))))) -> 6 | N13: =M13+10 -> 16 | P13: =IF(MOD($A13,10)<10,MOD($A13,10),IF($A13/10>8,MOD($A13,80),IF($A13/10>7,MOD($A13,70),IF($A13/10>6,MOD($A13,60),IF($A13/10>5,MOD($A13,50),IF($A13/10>4,MOD($A13,40),IF($A13/10>3,MOD($A13,30),IF($A13/10>2,MOD($A13,20),MOD($A13,100))))))))) -> 1
A14: =A13+1 -> 2 | M14: =IF(MOD($A14,6)=1,6,IF(MOD($A14,6)=2,1,IF(MOD($A14,6)=3,5,IF(MOD($A14,6)=4,2,IF(MOD($A14,6)=5,4,IF(MOD($A14,6)=0,3)))))) -> 1 | N14: 11 | P14: 2
A15: 3 | B15: КМС | C15: Фамилия Имя 6 | E15: 2002 | F15: ЗамКлуб | H15: 30 | M15: 5 | N15: 15 | P15: 3
A16: 4 | B16: I юн | C16: Фамилия Имя 11 | E16: 2002 | F16: ЗамКлуб | H16: 30 | M16: 2 | N16: 12 | P16: 4
A17: 5 | B17: III юн | C17: Фамилия Имя 30 | E17: 2000 | F17: ЗамКлуб | H17: 29.8 | M17: 4 | N17: 14 | P17: 5
A18: 6 | B18: ЗМС | C18: Фамилия Имя 20 | E18: 1999 | F18: ЗамКлуб | H18: 29.7 | K18: лично | M18: 3 | N18: 13 | P18: 6
A19: 7 | B19: II юн | C19: Фамилия Имя 29 | E19: 1999 | F19: ЗамКлуб | H19: 29.7 | K19: лично | M19: 6 | N19: =N13+10 -> 26 | O19: шаг3 | P19: 7
A20: 8 | B20: ЗМС | C20: Фамилия Имя 3 | E20: 1999 | F20: ЗамКлуб | H20: 29.5 | M20: 1 | N20: 21 | P20: 8
A21: 9 | B21: II | C21: Фамилия Имя 17 | E21: 2003 | F21: ЗамКлуб | H21: 27.5 | M21: 5 | N21: 25 | P21: 9
A22: 10 | B22: I юн | C22: Фамилия Имя 33 | E22: 1996 | F22: ЗамКлуб | H22: 20.4 | M22: 2 | N22: 22 | P22: 0
A23: 11 | B23: I | C23: Фамилия Имя 10 | E23: 2001 | F23: ЗамКлуб | H23: 20 | M23: 4 | N23: 24 | P23: 1
A24: 12 | B24: КМС | C24: Фамилия Имя 24 | E24: 2004 | F24: ЗамКлуб | H24: 18.7 | M24: 3 | N24: 23
B25: для 8 дорожек
D26: Заплыв № | E26: =INT(A27/10) -> 0
A27: 1 | M27: =IF(MOD($A27,8)=1,8,IF(MOD($A27,8)=2,1,IF(MOD($A27,8)=3,7,IF(MOD($A27,8)=4,2,IF(MOD($A27,8)=5,6,IF(MOD($A27,8)=6,3,IF(MOD($A27,8)=7,5,IF(MOD($A27,8)=0,4)))))))) -> 8 | N27: =M27+10 -> 18
A28: =A27+1 -> 2 | M28: =IF(MOD($A28,8)=1,8,IF(MOD($A28,8)=2,1,IF(MOD($A28,8)=3,7,IF(MOD($A28,8)=4,2,IF(MOD($A28,8)=5,6,IF(MOD($A28,8)=6,3,IF(MOD($A28,8)=7,5,IF(MOD($A28,8)=0,4)))))))) -> 1 | N28: =M28+10 -> 11
A29: 3 | M29: 7 | N29: 17
A30: 4 | B30: КМС | C30: Фамилия Имя 6 | E30: 2002 | F30: ЗамКлуб | H30: 30 | M30: 2 | N30: 12
A31: 5 | B31: I юн | C31: Фамилия Имя 11 | E31: 2002 | F31: ЗамКлуб | H31: 30 | M31: 6 | N31: 16
A32: 6 | B32: II юн | C32: Фамилия Имя 12 | E32: 1998 | F32: ЗамКлуб | H32: 30 | M32: 3 | N32: 13
A33: 7 | B33: I | C33: Фамилия Имя 16 | E33: 2002 | F33: ЗамКлуб | H33: 30 | M33: 5 | N33: 15
A34: 8 | B34: МС | C34: Фамилия Имя 22 | E34: 2001 | F34: ЗамКлуб | H34: 30 | M34: 4 | N34: 14
A35: 9 | B35: КМС | C35: Фамилия Имя 26 | E35: 2006 | F35: ЗамКлуб | H35: 30 | M35: 8 | N35: =N27+10 -> 28 | O35: шаг3
A36: 10 | B36: I юн | C36: Фамилия Имя 31 | E36: 2001 | F36: ЗамКлуб | H36: 30 | M36: 1 | N36: =N28+10 -> 21
A37: 11 | B37: III юн | C37: Фамилия Имя 30 | E37: 2000 | F37: ЗамКлуб | H37: 29.8 | M37: 7 | N37: 27
A38: 12 | B38: ЗМС | C38: Фамилия Имя 20 | E38: 1999 | F38: ЗамКлуб | H38: 29.7 | K38: лично | M38: 2 | N38: 22
A39: 13 | B39: II юн | C39: Фамилия Имя 29 | E39: 1999 | F39: ЗамКлуб | H39: 29.7 | K39: лично | M39: 6 | N39: 26
A40: 14 | B40: I | C40: Фамилия Имя 2 | E40: 1998 | F40: ЗамКлуб | H40: 25.2 | M40: 3 | N40: 23
A41: 15 | B41: II юн | C41: Фамилия Имя 34 | E41: 2006 | F41: ЗамКлуб | H41: 23.2 | M41: 5 | N41: 25
A42: 16 | B42: I | C42: Фамилия Имя 9 | E42: 2000 | F42: ЗамКлуб | H42: 18.5 | M42: 4 | N42: 24
D45: Эстафета 4х100м | L45: Шаг 1 | M45: Шаг 2 | O45: Шаг 1 | P45: Шаг 2 | R45: Шаг 1 | S45: Шаг 2 | U45: Шаг 4
L46: 8 дорожек | O46: 4 дорожки | R46: 6 дорожек | U46: оставить единицы
D47: Заплыв № | E47: =INT(A48/10) -> 20
A48: =A49 -> 203 | F48: =F49 -> Клуб 12 | H48: =H49 -> 2000 | U48: =IF(MOD($A48,10)<10,MOD($A48,10),IF($A48/10>8,MOD($A48,80),IF($A48/10>7,MOD($A48,70),IF($A48/10>6,MOD($A48,60),IF($A48/10>5,MOD($A48,50),IF($A48/10>4,MOD($A48,40),IF($A48/10>3,MOD($A48,30),IF($A48/10>2,MOD($A48,20),MOD($A48,100))))))))) -> 3
A49: 203 | B49: II | C49: Фамилия Имя 53 | E49: 2001 | F49: Клуб 12 | H49: 2000 | I49: 1 | L49: =IF($A49/4<=1,8,IF($A49/4<=2,1,IF($A49/4<=3,7,IF($A49/4<=4,2,IF($A49/4<=5,6,IF($A49/4<=6,3,IF($A49/4<=7,5,IF($A49/4<=8,4,IF($A49/4<=9,8,IF($A49/4<=10,1,IF($A49/4<=11,7,IF($A49/4<=12,2,IF($A49/4<=13,6,IF($A49/4<=14,3,IF($A49/4<=15,5,IF($A49/4<=16,4,IF($A49/4<=17,8,IF($A49/4<=18,1,IF($A49/4<=19,7,IF($A49/4<=20,2,IF($A49/4<=21,6,IF($A49/4<=22,3,IF($A49/4<=23,5,IF($A49/4<=24,4,IF($A49/4<=25,8,IF($A49/4<=26,1,IF($A49/4<=27,7,IF($A49/4<=28,2,IF($A49/4<=29,6,IF($A49/4<=30,3,IF($A49/4<=31,5,IF($A49/4<=32,4,IF($A49/4<=33,8,IF($A49/4<=34,1,IF($A49/4<=35,7,IF($A49/4<=36,2,IF($A49/4<=37,6,IF($A49/4<=38,3,IF($A49/4<=39,5,IF($A49/4<=40,4)))))))))))))))))))))))))))))))))))))))) -> FALSE | M49: =L49+200 -> 200 | O49: =IF($A49/4<=1,4,IF($A49/4<=2,1,IF($A49/4<=3,3,IF($A49/4<=4,2,IF($A49/4<=5,4,IF($A49/4<=6,1,IF($A49/4<=7,3,IF($A49/4<=8,2,IF($A49/4<=9,4,IF($A49/4<=10,1,IF($A49/4<=11,3,IF($A49/4<=12,2,IF($A49/4<=13,4,IF($A49/4<=14,1,IF($A49/4<=15,3,IF($A49/4<=16,2,IF($A49/4<=17,4,IF($A49/4<=18,1,IF($A49/4<=19,3,IF($A49/4<=20,2,IF($A49/4<=21,4,IF($A49/4<=22,1,IF($A49/4<=23,3,IF($A49/4<=24,2,IF($A49/4<=25,4,IF($A49/4<=26,1,IF($A49/4<=27,3,IF($A49/4<=28,2,IF($A49/4<=29,4,IF($A49/4<=30,1,IF($A49/4<=31,3,IF($A49/4<=32,2,IF($A49/4<=33,4,IF($A49/4<=34,1,IF($A49/4<=35,3,IF($A49/4<=36,2)))))))))))))))))))))))))))))))))))) -> FALSE | P49: =P41+10 -> 10 | R49: =IF($A49/4<=1,6,IF($A49/4<=2,1,IF($A49/4<=3,5,IF($A49/4<=4,2,IF($A49/4<=5,4,IF($A49/4<=6,3,IF($A49/4<=7,6,IF($A49/4<=8,1,IF($A49/4<=9,5,IF($A49/4<=10,2,IF($A49/4<=11,4,IF($A49/4<=12,3,IF($A49/4<=13,6,IF($A49/4<=14,1,IF($A49/4<=15,5,IF($A49/4<=16,2,IF($A49/4<=17,4,IF($A49/4<=18,3,IF($A49/4<=19,6,IF($A49/4<=20,1,IF($A49/4<=21,5,IF($A49/4<=22,2,IF($A49/4<=23,4,IF($A49/4<=24,3,IF($A49/4<=25,6,IF($A49/4<=26,1,IF($A49/4<=27,5,IF($A49/4<=28,2,IF($A49/4<=29,4,IF($A49/4<=30,3,IF($A49/4<=31,6,IF($A49/4<=32,1,IF($A49/4<=33,5,IF($A49/4<=34,2,IF($A49/4<=35,4,IF($A49/4<=36,3)))))))))))))))))))))))))))))))))))) -> FALSE | S49: =R49+200 -> 200 | U49: 3
A50: 203 | B50: III | C50: Фамилия Имя 54 | E50: 2001 | F50: Клуб 12 | H50: 2000 | I50: 2 | L50: =IF($A50/4<=1,8,IF($A50/4<=2,1,IF($A50/4<=3,7,IF($A50/4<=4,2,IF($A50/4<=5,6,IF($A50/4<=6,3,IF($A50/4<=7,5,IF($A50/4<=8,4,IF($A50/4<=9,8,IF($A50/4<=10,1,IF($A50/4<=11,7,IF($A50/4<=12,2,IF($A50/4<=13,6,IF($A50/4<=14,3,IF($A50/4<=15,5,IF($A50/4<=16,4,IF($A50/4<=17,8,IF($A50/4<=18,1,IF($A50/4<=19,7,IF($A50/4<=20,2,IF($A50/4<=21,6,IF($A50/4<=22,3,IF($A50/4<=23,5,IF($A50/4<=24,4,IF($A50/4<=25,8,IF($A50/4<=26,1,IF($A50/4<=27,7,IF($A50/4<=28,2,IF($A50/4<=29,6,IF($A50/4<=30,3,IF($A50/4<=31,5,IF($A50/4<=32,4,IF($A50/4<=33,8,IF($A50/4<=34,1,IF($A50/4<=35,7,IF($A50/4<=36,2,IF($A50/4<=37,6,IF($A50/4<=38,3,IF($A50/4<=39,5,IF($A50/4<=40,4)))))))))))))))))))))))))))))))))))))))) -> FALSE | M50: =L50+200 -> 200 | O50: =IF($A50/4<=1,4,IF($A50/4<=2,1,IF($A50/4<=3,3,IF($A50/4<=4,2,IF($A50/4<=5,4,IF($A50/4<=6,1,IF($A50/4<=7,3,IF($A50/4<=8,2,IF($A50/4<=9,4,IF($A50/4<=10,1,IF($A50/4<=11,3,IF($A50/4<=12,2,IF($A50/4<=13,4,IF($A50/4<=14,1,IF($A50/4<=15,3,IF($A50/4<=16,2,IF($A50/4<=17,4,IF($A50/4<=18,1,IF($A50/4<=19,3,IF($A50/4<=20,2,IF($A50/4<=21,4,IF($A50/4<=22,1,IF($A50/4<=23,3,IF($A50/4<=24,2,IF($A50/4<=25,4,IF($A50/4<=26,1,IF($A50/4<=27,3,IF($A50/4<=28,2,IF($A50/4<=29,4,IF($A50/4<=30,1,IF($A50/4<=31,3,IF($A50/4<=32,2,IF($A50/4<=33,4,IF($A50/4<=34,1,IF($A50/4<=35,3,IF($A50/4<=36,2)))))))))))))))))))))))))))))))))))) -> FALSE | P50: =P42+10 -> 10 | R50: =IF($A50/4<=1,6,IF($A50/4<=2,1,IF($A50/4<=3,5,IF($A50/4<=4,2,IF($A50/4<=5,4,IF($A50/4<=6,3,IF($A50/4<=7,6,IF($A50/4<=8,1,IF($A50/4<=9,5,IF($A50/4<=10,2,IF($A50/4<=11,4,IF($A50/4<=12,3,IF($A50/4<=13,6,IF($A50/4<=14,1,IF($A50/4<=15,5,IF($A50/4<=16,2,IF($A50/4<=17,4,IF($A50/4<=18,3,IF($A50/4<=19,6,IF($A50/4<=20,1,IF($A50/4<=21,5,IF($A50/4<=22,2,IF($A50/4<=23,4,IF($A50/4<=24,3,IF($A50/4<=25,6,IF($A50/4<=26,1,IF($A50/4<=27,5,IF($A50/4<=28,2,IF($A50/4<=29,4,IF($A50/4<=30,3,IF($A50/4<=31,6,IF($A50/4<=32,1,IF($A50/4<=33,5,IF($A50/4<=34,2,IF($A50/4<=35,4,IF($A50/4<=36,3)))))))))))))))))))))))))))))))))))) -> FALSE | S50: =R50+200 -> 200 | U50: 3
A51: 203 | B51: I юн | C51: Фамилия Имя 55 | E51: 2003 | F51: Клуб 12 | H51: 2000 | I51: 3 | L51: =IF($A51/4<=1,8,IF($A51/4<=2,1,IF($A51/4<=3,7,IF($A51/4<=4,2,IF($A51/4<=5,6,IF($A51/4<=6,3,IF($A51/4<=7,5,IF($A51/4<=8,4,IF($A51/4<=9,8,IF($A51/4<=10,1,IF($A51/4<=11,7,IF($A51/4<=12,2,IF($A51/4<=13,6,IF($A51/4<=14,3,IF($A51/4<=15,5,IF($A51/4<=16,4,IF($A51/4<=17,8,IF($A51/4<=18,1,IF($A51/4<=19,7,IF($A51/4<=20,2,IF($A51/4<=21,6,IF($A51/4<=22,3,IF($A51/4<=23,5,IF($A51/4<=24,4,IF($A51/4<=25,8,IF($A51/4<=26,1,IF($A51/4<=27,7,IF($A51/4<=28,2,IF($A51/4<=29,6,IF($A51/4<=30,3,IF($A51/4<=31,5,IF($A51/4<=32,4,IF($A51/4<=33,8,IF($A51/4<=34,1,IF($A51/4<=35,7,IF($A51/4<=36,2,IF($A51/4<=37,6,IF($A51/4<=38,3,IF($A51/4<=39,5,IF($A51/4<=40,4)))))))))))))))))))))))))))))))))))))))) -> FALSE | M51: =L51+200 -> 200 | O51: =IF($A51/4<=1,4,IF($A51/4<=2,1,IF($A51/4<=3,3,IF($A51/4<=4,2,IF($A51/4<=5,4,IF($A51/4<=6,1,IF($A51/4<=7,3,IF($A51/4<=8,2,IF($A51/4<=9,4,IF($A51/4<=10,1,IF($A51/4<=11,3,IF($A51/4<=12,2,IF($A51/4<=13,4,IF($A51/4<=14,1,IF($A51/4<=15,3,IF($A51/4<=16,2,IF($A51/4<=17,4,IF($A51/4<=18,1,IF($A51/4<=19,3,IF($A51/4<=20,2,IF($A51/4<=21,4,IF($A51/4<=22,1,IF($A51/4<=23,3,IF($A51/4<=24,2,IF($A51/4<=25,4,IF($A51/4<=26,1,IF($A51/4<=27,3,IF($A51/4<=28,2,IF($A51/4<=29,4,IF($A51/4<=30,1,IF($A51/4<=31,3,IF($A51/4<=32,2,IF($A51/4<=33,4,IF($A51/4<=34,1,IF($A51/4<=35,3,IF($A51/4<=36,2)))))))))))))))))))))))))))))))))))) -> FALSE | P51: =P43+10 -> 10 | R51: =IF($A51/4<=1,6,IF($A51/4<=2,1,IF($A51/4<=3,5,IF($A51/4<=4,2,IF($A51/4<=5,4,IF($A51/4<=6,3,IF($A51/4<=7,6,IF($A51/4<=8,1,IF($A51/4<=9,5,IF($A51/4<=10,2,IF($A51/4<=11,4,IF($A51/4<=12,3,IF($A51/4<=13,6,IF($A51/4<=14,1,IF($A51/4<=15,5,IF($A51/4<=16,2,IF($A51/4<=17,4,IF($A51/4<=18,3,IF($A51/4<=19,6,IF($A51/4<=20,1,IF($A51/4<=21,5,IF($A51/4<=22,2,IF($A51/4<=23,4,IF($A51/4<=24,3,IF($A51/4<=25,6,IF($A51/4<=26,1,IF($A51/4<=27,5,IF($A51/4<=28,2,IF($A51/4<=29,4,IF($A51/4<=30,3,IF($A51/4<=31,6,IF($A51/4<=32,1,IF($A51/4<=33,5,IF($A51/4<=34,2,IF($A51/4<=35,4,IF($A51/4<=36,3)))))))))))))))))))))))))))))))))))) -> FALSE | S51: =R51+200 -> 200 | U51: 3
A52: 203 | B52: III | C52: Фамилия Имя 56 | E52: 2003 | F52: Клуб 12 | H52: 2000 | I52: 4 | L52: =IF($A52/4<=1,8,IF($A52/4<=2,1,IF($A52/4<=3,7,IF($A52/4<=4,2,IF($A52/4<=5,6,IF($A52/4<=6,3,IF($A52/4<=7,5,IF($A52/4<=8,4,IF($A52/4<=9,8,IF($A52/4<=10,1,IF($A52/4<=11,7,IF($A52/4<=12,2,IF($A52/4<=13,6,IF($A52/4<=14,3,IF($A52/4<=15,5,IF($A52/4<=16,4,IF($A52/4<=17,8,IF($A52/4<=18,1,IF($A52/4<=19,7,IF($A52/4<=20,2,IF($A52/4<=21,6,IF($A52/4<=22,3,IF($A52/4<=23,5,IF($A52/4<=24,4,IF($A52/4<=25,8,IF($A52/4<=26,1,IF($A52/4<=27,7,IF($A52/4<=28,2,IF($A52/4<=29,6,IF($A52/4<=30,3,IF($A52/4<=31,5,IF($A52/4<=32,4,IF($A52/4<=33,8,IF($A52/4<=34,1,IF($A52/4<=35,7,IF($A52/4<=36,2,IF($A52/4<=37,6,IF($A52/4<=38,3,IF($A52/4<=39,5,IF($A52/4<=40,4)))))))))))))))))))))))))))))))))))))))) -> FALSE | M52: =L52+200 -> 200 | O52: =IF($A52/4<=1,4,IF($A52/4<=2,1,IF($A52/4<=3,3,IF($A52/4<=4,2,IF($A52/4<=5,4,IF($A52/4<=6,1,IF($A52/4<=7,3,IF($A52/4<=8,2,IF($A52/4<=9,4,IF($A52/4<=10,1,IF($A52/4<=11,3,IF($A52/4<=12,2,IF($A52/4<=13,4,IF($A52/4<=14,1,IF($A52/4<=15,3,IF($A52/4<=16,2,IF($A52/4<=17,4,IF($A52/4<=18,1,IF($A52/4<=19,3,IF($A52/4<=20,2,IF($A52/4<=21,4,IF($A52/4<=22,1,IF($A52/4<=23,3,IF($A52/4<=24,2,IF($A52/4<=25,4,IF($A52/4<=26,1,IF($A52/4<=27,3,IF($A52/4<=28,2,IF($A52/4<=29,4,IF($A52/4<=30,1,IF($A52/4<=31,3,IF($A52/4<=32,2,IF($A52/4<=33,4,IF($A52/4<=34,1,IF($A52/4<=35,3,IF($A52/4<=36,2)))))))))))))))))))))))))))))))))))) -> FALSE | P52: =P44+10 -> 10 | R52: =IF($A52/4<=1,6,IF($A52/4<=2,1,IF($A52/4<=3,5,IF($A52/4<=4,2,IF($A52/4<=5,4,IF($A52/4<=6,3,IF($A52/4<=7,6,IF($A52/4<=8,1,IF($A52/4<=9,5,IF($A52/4<=10,2,IF($A52/4<=11,4,IF($A52/4<=12,3,IF($A52/4<=13,6,IF($A52/4<=14,1,IF($A52/4<=15,5,IF($A52/4<=16,2,IF($A52/4<=17,4,IF($A52/4<=18,3,IF($A52/4<=19,6,IF($A52/4<=20,1,IF($A52/4<=21,5,IF($A52/4<=22,2,IF($A52/4<=23,4,IF($A52/4<=24,3,IF($A52/4<=25,6,IF($A52/4<=26,1,IF($A52/4<=27,5,IF($A52/4<=28,2,IF($A52/4<=29,4,IF($A52/4<=30,3,IF($A52/4<=31,6,IF($A52/4<=32,1,IF($A52/4<=33,5,IF($A52/4<=34,2,IF($A52/4<=35,4,IF($A52/4<=36,3)))))))))))))))))))))))))))))))))))) -> FALSE | S52: =R52+200 -> 200 | U52: 3
A53: =A54 -> 204 | F53: =F54 -> Клуб 9 | H53: =H54 -> 350 | U53: 4
A54: 204 | B54: I | C54: Фамилия Имя 41 | E54: 2001 | F54: Клуб 9 | H54: 350 | I54: 1 | L54: =IF($A54/4<=1,8,IF($A54/4<=2,1,IF($A54/4<=3,7,IF($A54/4<=4,2,IF($A54/4<=5,6,IF($A54/4<=6,3,IF($A54/4<=7,5,IF($A54/4<=8,4,IF($A54/4<=9,8,IF($A54/4<=10,1,IF($A54/4<=11,7,IF($A54/4<=12,2,IF($A54/4<=13,6,IF($A54/4<=14,3,IF($A54/4<=15,5,IF($A54/4<=16,4,IF($A54/4<=17,8,IF($A54/4<=18,1,IF($A54/4<=19,7,IF($A54/4<=20,2,IF($A54/4<=21,6,IF($A54/4<=22,3,IF($A54/4<=23,5,IF($A54/4<=24,4,IF($A54/4<=25,8,IF($A54/4<=26,1,IF($A54/4<=27,7,IF($A54/4<=28,2,IF($A54/4<=29,6,IF($A54/4<=30,3,IF($A54/4<=31,5,IF($A54/4<=32,4,IF($A54/4<=33,8,IF($A54/4<=34,1,IF($A54/4<=35,7,IF($A54/4<=36,2,IF($A54/4<=37,6,IF($A54/4<=38,3,IF($A54/4<=39,5,IF($A54/4<=40,4)))))))))))))))))))))))))))))))))))))))) -> FALSE | M54: =L54+200 -> 200 | O54: =IF($A54/4<=1,4,IF($A54/4<=2,1,IF($A54/4<=3,3,IF($A54/4<=4,2,IF($A54/4<=5,4,IF($A54/4<=6,1,IF($A54/4<=7,3,IF($A54/4<=8,2,IF($A54/4<=9,4,IF($A54/4<=10,1,IF($A54/4<=11,3,IF($A54/4<=12,2,IF($A54/4<=13,4,IF($A54/4<=14,1,IF($A54/4<=15,3,IF($A54/4<=16,2,IF($A54/4<=17,4,IF($A54/4<=18,1,IF($A54/4<=19,3,IF($A54/4<=20,2,IF($A54/4<=21,4,IF($A54/4<=22,1,IF($A54/4<=23,3,IF($A54/4<=24,2,IF($A54/4<=25,4,IF($A54/4<=26,1,IF($A54/4<=27,3,IF($A54/4<=28,2,IF($A54/4<=29,4,IF($A54/4<=30,1,IF($A54/4<=31,3,IF($A54/4<=32,2,IF($A54/4<=33,4,IF($A54/4<=34,1,IF($A54/4<=35,3,IF($A54/4<=36,2)))))))))))))))))))))))))))))))))))) -> FALSE | P54: =#REF!+10 ->  | R54: =IF($A54/4<=1,6,IF($A54/4<=2,1,IF($A54/4<=3,5,IF($A54/4<=4,2,IF($A54/4<=5,4,IF($A54/4<=6,3,IF($A54/4<=7,6,IF($A54/4<=8,1,IF($A54/4<=9,5,IF($A54/4<=10,2,IF($A54/4<=11,4,IF($A54/4<=12,3,IF($A54/4<=13,6,IF($A54/4<=14,1,IF($A54/4<=15,5,IF($A54/4<=16,2,IF($A54/4<=17,4,IF($A54/4<=18,3,IF($A54/4<=19,6,IF($A54/4<=20,1,IF($A54/4<=21,5,IF($A54/4<=22,2,IF($A54/4<=23,4,IF($A54/4<=24,3,IF($A54/4<=25,6,IF($A54/4<=26,1,IF($A54/4<=27,5,IF($A54/4<=28,2,IF($A54/4<=29,4,IF($A54/4<=30,3,IF($A54/4<=31,6,IF($A54/4<=32,1,IF($A54/4<=33,5,IF($A54/4<=34,2,IF($A54/4<=35,4,IF($A54/4<=36,3)))))))))))))))))))))))))))))))))))) -> FALSE | S54: =S37+10 -> 10 | U54: 4
A55: 204 | B55: I | C55: Фамилия Имя 42 | E55: 2001 | F55: Клуб 9 | H55: 350 | I55: 2 | L55: =IF($A55/4<=1,8,IF($A55/4<=2,1,IF($A55/4<=3,7,IF($A55/4<=4,2,IF($A55/4<=5,6,IF($A55/4<=6,3,IF($A55/4<=7,5,IF($A55/4<=8,4,IF($A55/4<=9,8,IF($A55/4<=10,1,IF($A55/4<=11,7,IF($A55/4<=12,2,IF($A55/4<=13,6,IF($A55/4<=14,3,IF($A55/4<=15,5,IF($A55/4<=16,4,IF($A55/4<=17,8,IF($A55/4<=18,1,IF($A55/4<=19,7,IF($A55/4<=20,2,IF($A55/4<=21,6,IF($A55/4<=22,3,IF($A55/4<=23,5,IF($A55/4<=24,4,IF($A55/4<=25,8,IF($A55/4<=26,1,IF($A55/4<=27,7,IF($A55/4<=28,2,IF($A55/4<=29,6,IF($A55/4<=30,3,IF($A55/4<=31,5,IF($A55/4<=32,4,IF($A55/4<=33,8,IF($A55/4<=34,1,IF($A55/4<=35,7,IF($A55/4<=36,2,IF($A55/4<=37,6,IF($A55/4<=38,3,IF($A55/4<=39,5,IF($A55/4<=40,4)))))))))))))))))))))))))))))))))))))))) -> FALSE | M55: =L55+200 -> 200 | O55: =IF($A55/4<=1,4,IF($A55/4<=2,1,IF($A55/4<=3,3,IF($A55/4<=4,2,IF($A55/4<=5,4,IF($A55/4<=6,1,IF($A55/4<=7,3,IF($A55/4<=8,2,IF($A55/4<=9,4,IF($A55/4<=10,1,IF($A55/4<=11,3,IF($A55/4<=12,2,IF($A55/4<=13,4,IF($A55/4<=14,1,IF($A55/4<=15,3,IF($A55/4<=16,2,IF($A55/4<=17,4,IF($A55/4<=18,1,IF($A55/4<=19,3,IF($A55/4<=20,2,IF($A55/4<=21,4,IF($A55/4<=22,1,IF($A55/4<=23,3,IF($A55/4<=24,2,IF($A55/4<=25,4,IF($A55/4<=26,1,IF($A55/4<=27,3,IF($A55/4<=28,2,IF($A55/4<=29,4,IF($A55/4<=30,1,IF($A55/4<=31,3,IF($A55/4<=32,2,IF($A55/4<=33,4,IF($A55/4<=34,1,IF($A55/4<=35,3,IF($A55/4<=36,2)))))))))))))))))))))))))))))))))))) -> FALSE | P55: =P45+10 ->  | R55: =IF($A55/4<=1,6,IF($A55/4<=2,1,IF($A55/4<=3,5,IF($A55/4<=4,2,IF($A55/4<=5,4,IF($A55/4<=6,3,IF($A55/4<=7,6,IF($A55/4<=8,1,IF($A55/4<=9,5,IF($A55/4<=10,2,IF($A55/4<=11,4,IF($A55/4<=12,3,IF($A55/4<=13,6,IF($A55/4<=14,1,IF($A55/4<=15,5,IF($A55/4<=16,2,IF($A55/4<=17,4,IF($A55/4<=18,3,IF($A55/4<=19,6,IF($A55/4<=20,1,IF($A55/4<=21,5,IF($A55/4<=22,2,IF($A55/4<=23,4,IF($A55/4<=24,3,IF($A55/4<=25,6,IF($A55/4<=26,1,IF($A55/4<=27,5,IF($A55/4<=28,2,IF($A55/4<=29,4,IF($A55/4<=30,3,IF($A55/4<=31,6,IF($A55/4<=32,1,IF($A55/4<=33,5,IF($A55/4<=34,2,IF($A55/4<=35,4,IF($A55/4<=36,3)))))))))))))))))))))))))))))))))))) -> FALSE | S55: =S38+10 -> 10 | U55: 4
A56: 204 | B56: I | C56: Фамилия Имя 43 | E56: 2001 | F56: Клуб 9 | H56: 350 | I56: 3 | L56: =IF($A56/4<=1,8,IF($A56/4<=2,1,IF($A56/4<=3,7,IF($A56/4<=4,2,IF($A56/4<=5,6,IF($A56/4<=6,3,IF($A56/4<=7,5,IF($A56/4<=8,4,IF($A56/4<=9,8,IF($A56/4<=10,1,IF($A56/4<=11,7,IF($A56/4<=12,2,IF($A56/4<=13,6,IF($A56/4<=14,3,IF($A56/4<=15,5,IF($A56/4<=16,4,IF($A56/4<=17,8,IF($A56/4<=18,1,IF($A56/4<=19,7,IF($A56/4<=20,2,IF($A56/4<=21,6,IF($A56/4<=22,3,IF($A56/4<=23,5,IF($A56/4<=24,4,IF($A56/4<=25,8,IF($A56/4<=26,1,IF($A56/4<=27,7,IF($A56/4<=28,2,IF($A56/4<=29,6,IF($A56/4<=30,3,IF($A56/4<=31,5,IF($A56/4<=32,4,IF($A56/4<=33,8,IF($A56/4<=34,1,IF($A56/4<=35,7,IF($A56/4<=36,2,IF($A56/4<=37,6,IF($A56/4<=38,3,IF($A56/4<=39,5,IF($A56/4<=40,4)))))))))))))))))))))))))))))))))))))))) -> FALSE | M56: =L56+200 -> 200 | O56: =IF($A56/4<=1,4,IF($A56/4<=2,1,IF($A56/4<=3,3,IF($A56/4<=4,2,IF($A56/4<=5,4,IF($A56/4<=6,1,IF($A56/4<=7,3,IF($A56/4<=8,2,IF($A56/4<=9,4,IF($A56/4<=10,1,IF($A56/4<=11,3,IF($A56/4<=12,2,IF($A56/4<=13,4,IF($A56/4<=14,1,IF($A56/4<=15,3,IF($A56/4<=16,2,IF($A56/4<=17,4,IF($A56/4<=18,1,IF($A56/4<=19,3,IF($A56/4<=20,2,IF($A56/4<=21,4,IF($A56/4<=22,1,IF($A56/4<=23,3,IF($A56/4<=24,2,IF($A56/4<=25,4,IF($A56/4<=26,1,IF($A56/4<=27,3,IF($A56/4<=28,2,IF($A56/4<=29,4,IF($A56/4<=30,1,IF($A56/4<=31,3,IF($A56/4<=32,2,IF($A56/4<=33,4,IF($A56/4<=34,1,IF($A56/4<=35,3,IF($A56/4<=36,2)))))))))))))))))))))))))))))))))))) -> FALSE | P56: =P47+10 -> 10 | R56: =IF($A56/4<=1,6,IF($A56/4<=2,1,IF($A56/4<=3,5,IF($A56/4<=4,2,IF($A56/4<=5,4,IF($A56/4<=6,3,IF($A56/4<=7,6,IF($A56/4<=8,1,IF($A56/4<=9,5,IF($A56/4<=10,2,IF($A56/4<=11,4,IF($A56/4<=12,3,IF($A56/4<=13,6,IF($A56/4<=14,1,IF($A56/4<=15,5,IF($A56/4<=16,2,IF($A56/4<=17,4,IF($A56/4<=18,3,IF($A56/4<=19,6,IF($A56/4<=20,1,IF($A56/4<=21,5,IF($A56/4<=22,2,IF($A56/4<=23,4,IF($A56/4<=24,3,IF($A56/4<=25,6,IF($A56/4<=26,1,IF($A56/4<=27,5,IF($A56/4<=28,2,IF($A56/4<=29,4,IF($A56/4<=30,3,IF($A56/4<=31,6,IF($A56/4<=32,1,IF($A56/4<=33,5,IF($A56/4<=34,2,IF($A56/4<=35,4,IF($A56/4<=36,3)))))))))))))))))))))))))))))))))))) -> FALSE | S56: =S39+10 -> 10 | U56: 4
A57: 204 | B57: II | C57: Фамилия Имя 44 | E57: 2001 | F57: Клуб 9 | H57: 350 | I57: 4 | L57: =IF($A57/4<=1,8,IF($A57/4<=2,1,IF($A57/4<=3,7,IF($A57/4<=4,2,IF($A57/4<=5,6,IF($A57/4<=6,3,IF($A57/4<=7,5,IF($A57/4<=8,4,IF($A57/4<=9,8,IF($A57/4<=10,1,IF($A57/4<=11,7,IF($A57/4<=12,2,IF($A57/4<=13,6,IF($A57/4<=14,3,IF($A57/4<=15,5,IF($A57/4<=16,4,IF($A57/4<=17,8,IF($A57/4<=18,1,IF($A57/4<=19,7,IF($A57/4<=20,2,IF($A57/4<=21,6,IF($A57/4<=22,3,IF($A57/4<=23,5,IF($A57/4<=24,4,IF($A57/4<=25,8,IF($A57/4<=26,1,IF($A57/4<=27,7,IF($A57/4<=28,2,IF($A57/4<=29,6,IF($A57/4<=30,3,IF($A57/4<=31,5,IF($A57/4<=32,4,IF($A57/4<=33,8,IF($A57/4<=34,1,IF($A57/4<=35,7,IF($A57/4<=36,2,IF($A57/4<=37,6,IF($A57/4<=38,3,IF($A57/4<=39,5,IF($A57/4<=40,4)))))))))))))))))))))))))))))))))))))))) -> FALSE | M57: =L57+200 -> 200 | O57: =IF($A57/4<=1,4,IF($A57/4<=2,1,IF($A57/4<=3,3,IF($A57/4<=4,2,IF($A57/4<=5,4,IF($A57/4<=6,1,IF($A57/4<=7,3,IF($A57/4<=8,2,IF($A57/4<=9,4,IF($A57/4<=10,1,IF($A57/4<=11,3,IF($A57/4<=12,2,IF($A57/4<=13,4,IF($A57/4<=14,1,IF($A57/4<=15,3,IF($A57/4<=16,2,IF($A57/4<=17,4,IF($A57/4<=18,1,IF($A57/4<=19,3,IF($A57/4<=20,2,IF($A57/4<=21,4,IF($A57/4<=22,1,IF($A57/4<=23,3,IF($A57/4<=24,2,IF($A57/4<=25,4,IF($A57/4<=26,1,IF($A57/4<=27,3,IF($A57/4<=28,2,IF($A57/4<=29,4,IF($A57/4<=30,1,IF($A57/4<=31,3,IF($A57/4<=32,2,IF($A57/4<=33,4,IF($A57/4<=34,1,IF($A57/4<=35,3,IF($A57/4<=36,2)))))))))))))))))))))))))))))))))))) -> FALSE | P57: =P46+10 -> 10 | R57: =IF($A57/4<=1,6,IF($A57/4<=2,1,IF($A57/4<=3,5,IF($A57/4<=4,2,IF($A57/4<=5,4,IF($A57/4<=6,3,IF($A57/4<=7,6,IF($A57/4<=8,1,IF($A57/4<=9,5,IF($A57/4<=10,2,IF($A57/4<=11,4,IF($A57/4<=12,3,IF($A57/4<=13,6,IF($A57/4<=14,1,IF($A57/4<=15,5,IF($A57/4<=16,2,IF($A57/4<=17,4,IF($A57/4<=18,3,IF($A57/4<=19,6,IF($A57/4<=20,1,IF($A57/4<=21,5,IF($A57/4<=22,2,IF($A57/4<=23,4,IF($A57/4<=24,3,IF($A57/4<=25,6,IF($A57/4<=26,1,IF($A57/4<=27,5,IF($A57/4<=28,2,IF($A57/4<=29,4,IF($A57/4<=30,3,IF($A57/4<=31,6,IF($A57/4<=32,1,IF($A57/4<=33,5,IF($A57/4<=34,2,IF($A57/4<=35,4,IF($A57/4<=36,3)))))))))))))))))))))))))))))))))))) -> FALSE | S57: =S40+10 -> 10 | U57: 4
A58: =A59 -> 205 | F58: =F59 -> Клуб 10 | H58: =H59 -> 402.35 | U58: 5
A59: 205 | B59: I | C59: Фамилия Имя 45 | E59: 2001 | F59: Клуб 10 | H59: 402.35 | I59: 1 | L59: =IF($A59/4<=1,8,IF($A59/4<=2,1,IF($A59/4<=3,7,IF($A59/4<=4,2,IF($A59/4<=5,6,IF($A59/4<=6,3,IF($A59/4<=7,5,IF($A59/4<=8,4,IF($A59/4<=9,8,IF($A59/4<=10,1,IF($A59/4<=11,7,IF($A59/4<=12,2,IF($A59/4<=13,6,IF($A59/4<=14,3,IF($A59/4<=15,5,IF($A59/4<=16,4,IF($A59/4<=17,8,IF($A59/4<=18,1,IF($A59/4<=19,7,IF($A59/4<=20,2,IF($A59/4<=21,6,IF($A59/4<=22,3,IF($A59/4<=23,5,IF($A59/4<=24,4,IF($A59/4<=25,8,IF($A59/4<=26,1,IF($A59/4<=27,7,IF($A59/4<=28,2,IF($A59/4<=29,6,IF($A59/4<=30,3,IF($A59/4<=31,5,IF($A59/4<=32,4,IF($A59/4<=33,8,IF($A59/4<=34,1,IF($A59/4<=35,7,IF($A59/4<=36,2,IF($A59/4<=37,6,IF($A59/4<=38,3,IF($A59/4<=39,5,IF($A59/4<=40,4)))))))))))))))))))))))))))))))))))))))) -> FALSE | M59: =L59+200 -> 200 | O59: =IF($A59/4<=1,4,IF($A59/4<=2,1,IF($A59/4<=3,3,IF($A59/4<=4,2,IF($A59/4<=5,4,IF($A59/4<=6,1,IF($A59/4<=7,3,IF($A59/4<=8,2,IF($A59/4<=9,4,IF($A59/4<=10,1,IF($A59/4<=11,3,IF($A59/4<=12,2,IF($A59/4<=13,4,IF($A59/4<=14,1,IF($A59/4<=15,3,IF($A59/4<=16,2,IF($A59/4<=17,4,IF($A59/4<=18,1,IF($A59/4<=19,3,IF($A59/4<=20,2,IF($A59/4<=21,4,IF($A59/4<=22,1,IF($A59/4<=23,3,IF($A59/4<=24,2,IF($A59/4<=25,4,IF($A59/4<=26,1,IF($A59/4<=27,3,IF($A59/4<=28,2,IF($A59/4<=29,4,IF($A59/4<=30,1,IF($A59/4<=31,3,IF($A59/4<=32,2,IF($A59/4<=33,4,IF($A59/4<=34,1,IF($A59/4<=35,3,IF($A59/4<=36,2)))))))))))))))))))))))))))))))))))) -> FALSE | P59: =#REF!+10 ->  | R59: =IF($A59/4<=1,6,IF($A59/4<=2,1,IF($A59/4<=3,5,IF($A59/4<=4,2,IF($A59/4<=5,4,IF($A59/4<=6,3,IF($A59/4<=7,6,IF($A59/4<=8,1,IF($A59/4<=9,5,IF($A59/4<=10,2,IF($A59/4<=11,4,IF($A59/4<=12,3,IF($A59/4<=13,6,IF($A59/4<=14,1,IF($A59/4<=15,5,IF($A59/4<=16,2,IF($A59/4<=17,4,IF($A59/4<=18,3,IF($A59/4<=19,6,IF($A59/4<=20,1,IF($A59/4<=21,5,IF($A59/4<=22,2,IF($A59/4<=23,4,IF($A59/4<=24,3,IF($A59/4<=25,6,IF($A59/4<=26,1,IF($A59/4<=27,5,IF($A59/4<=28,2,IF($A59/4<=29,4,IF($A59/4<=30,3,IF($A59/4<=31,6,IF($A59/4<=32,1,IF($A59/4<=33,5,IF($A59/4<=34,2,IF($A59/4<=35,4,IF($A59/4<=36,3)))))))))))))))))))))))))))))))))))) -> FALSE | S59: =S41+10 -> 10 | T59: Шаг 3 | U59: 5
A60: 205 | B60: I | C60: Фамилия Имя 46 | E60: 2001 | F60: Клуб 10 | H60: 402.35 | I60: 2 | L60: =IF($A60/4<=1,8,IF($A60/4<=2,1,IF($A60/4<=3,7,IF($A60/4<=4,2,IF($A60/4<=5,6,IF($A60/4<=6,3,IF($A60/4<=7,5,IF($A60/4<=8,4,IF($A60/4<=9,8,IF($A60/4<=10,1,IF($A60/4<=11,7,IF($A60/4<=12,2,IF($A60/4<=13,6,IF($A60/4<=14,3,IF($A60/4<=15,5,IF($A60/4<=16,4,IF($A60/4<=17,8,IF($A60/4<=18,1,IF($A60/4<=19,7,IF($A60/4<=20,2,IF($A60/4<=21,6,IF($A60/4<=22,3,IF($A60/4<=23,5,IF($A60/4<=24,4,IF($A60/4<=25,8,IF($A60/4<=26,1,IF($A60/4<=27,7,IF($A60/4<=28,2,IF($A60/4<=29,6,IF($A60/4<=30,3,IF($A60/4<=31,5,IF($A60/4<=32,4,IF($A60/4<=33,8,IF($A60/4<=34,1,IF($A60/4<=35,7,IF($A60/4<=36,2,IF($A60/4<=37,6,IF($A60/4<=38,3,IF($A60/4<=39,5,IF($A60/4<=40,4)))))))))))))))))))))))))))))))))))))))) -> FALSE | M60: =L60+200 -> 200 | O60: =IF($A60/4<=1,4,IF($A60/4<=2,1,IF($A60/4<=3,3,IF($A60/4<=4,2,IF($A60/4<=5,4,IF($A60/4<=6,1,IF($A60/4<=7,3,IF($A60/4<=8,2,IF($A60/4<=9,4,IF($A60/4<=10,1,IF($A60/4<=11,3,IF($A60/4<=12,2,IF($A60/4<=13,4,IF($A60/4<=14,1,IF($A60/4<=15,3,IF($A60/4<=16,2,IF($A60/4<=17,4,IF($A60/4<=18,1,IF($A60/4<=19,3,IF($A60/4<=20,2,IF($A60/4<=21,4,IF($A60/4<=22,1,IF($A60/4<=23,3,IF($A60/4<=24,2,IF($A60/4<=25,4,IF($A60/4<=26,1,IF($A60/4<=27,3,IF($A60/4<=28,2,IF($A60/4<=29,4,IF($A60/4<=30,1,IF($A60/4<=31,3,IF($A60/4<=32,2,IF($A60/4<=33,4,IF($A60/4<=34,1,IF($A60/4<=35,3,IF($A60/4<=36,2)))))))))))))))))))))))))))))))))))) -> FALSE | P60: =#REF!+10 ->  | R60: =IF($A60/4<=1,6,IF($A60/4<=2,1,IF($A60/4<=3,5,IF($A60/4<=4,2,IF($A60/4<=5,4,IF($A60/4<=6,3,IF($A60/4<=7,6,IF($A60/4<=8,1,IF($A60/4<=9,5,IF($A60/4<=10,2,IF($A60/4<=11,4,IF($A60/4<=12,3,IF($A60/4<=13,6,IF($A60/4<=14,1,IF($A60/4<=15,5,IF($A60/4<=16,2,IF($A60/4<=17,4,IF($A60/4<=18,3,IF($A60/4<=19,6,IF($A60/4<=20,1,IF($A60/4<=21,5,IF($A60/4<=22,2,IF($A60/4<=23,4,IF($A60/4<=24,3,IF($A60/4<=25,6,IF($A60/4<=26,1,IF($A60/4<=27,5,IF($A60/4<=28,2,IF($A60/4<=29,4,IF($A60/4<=30,3,IF($A60/4<=31,6,IF($A60/4<=32,1,IF($A60/4<=33,5,IF($A60/4<=34,2,IF($A60/4<=35,4,IF($A60/4<=36,3)))))))))))))))))))))))))))))))))))) -> FALSE | S60: =S42+10 -> 10 | U60: 5
A61: 205 | B61: II | C61: Фамилия Имя 47 | E61: 2001 | F61: Клуб 10 | H61: 402.35 | I61: 3 | L61: =IF($A61/4<=1,8,IF($A61/4<=2,1,IF($A61/4<=3,7,IF($A61/4<=4,2,IF($A61/4<=5,6,IF($A61/4<=6,3,IF($A61/4<=7,5,IF($A61/4<=8,4,IF($A61/4<=9,8,IF($A61/4<=10,1,IF($A61/4<=11,7,IF($A61/4<=12,2,IF($A61/4<=13,6,IF($A61/4<=14,3,IF($A61/4<=15,5,IF($A61/4<=16,4,IF($A61/4<=17,8,IF($A61/4<=18,1,IF($A61/4<=19,7,IF($A61/4<=20,2,IF($A61/4<=21,6,IF($A61/4<=22,3,IF($A61/4<=23,5,IF($A61/4<=24,4,IF($A61/4<=25,8,IF($A61/4<=26,1,IF($A61/4<=27,7,IF($A61/4<=28,2,IF($A61/4<=29,6,IF($A61/4<=30,3,IF($A61/4<=31,5,IF($A61/4<=32,4,IF($A61/4<=33,8,IF($A61/4<=34,1,IF($A61/4<=35,7,IF($A61/4<=36,2,IF($A61/4<=37,6,IF($A61/4<=38,3,IF($A61/4<=39,5,IF($A61/4<=40,4)))))))))))))))))))))))))))))))))))))))) -> FALSE | M61: =L61+200 -> 200 | O61: =IF($A61/4<=1,4,IF($A61/4<=2,1,IF($A61/4<=3,3,IF($A61/4<=4,2,IF($A61/4<=5,4,IF($A61/4<=6,1,IF($A61/4<=7,3,IF($A61/4<=8,2,IF($A61/4<=9,4,IF($A61/4<=10,1,IF($A61/4<=11,3,IF($A61/4<=12,2,IF($A61/4<=13,4,IF($A61/4<=14,1,IF($A61/4<=15,3,IF($A61/4<=16,2,IF($A61/4<=17,4,IF($A61/4<=18,1,IF($A61/4<=19,3,IF($A61/4<=20,2,IF($A61/4<=21,4,IF($A61/4<=22,1,IF($A61/4<=23,3,IF($A61/4<=24,2,IF($A61/4<=25,4,IF($A61/4<=26,1,IF($A61/4<=27,3,IF($A61/4<=28,2,IF($A61/4<=29,4,IF($A61/4<=30,1,IF($A61/4<=31,3,IF($A61/4<=32,2,IF($A61/4<=33,4,IF($A61/4<=34,1,IF($A61/4<=35,3,IF($A61/4<=36,2)))))))))))))))))))))))))))))))))))) -> FALSE | P61: =#REF!+10 ->  | R61: =IF($A61/4<=1,6,IF($A61/4<=2,1,IF($A61/4<=3,5,IF($A61/4<=4,2,IF($A61/4<=5,4,IF($A61/4<=6,3,IF($A61/4<=7,6,IF($A61/4<=8,1,IF($A61/4<=9,5,IF($A61/4<=10,2,IF($A61/4<=11,4,IF($A61/4<=12,3,IF($A61/4<=13,6,IF($A61/4<=14,1,IF($A61/4<=15,5,IF($A61/4<=16,2,IF($A61/4<=17,4,IF($A61/4<=18,3,IF($A61/4<=19,6,IF($A61/4<=20,1,IF($A61/4<=21,5,IF($A61/4<=22,2,IF($A61/4<=23,4,IF($A61/4<=24,3,IF($A61/4<=25,6,IF($A61/4<=26,1,IF($A61/4<=27,5,IF($A61/4<=28,2,IF($A61/4<=29,4,IF($A61/4<=30,3,IF($A61/4<=31,6,IF($A61/4<=32,1,IF($A61/4<=33,5,IF($A61/4<=34,2,IF($A61/4<=35,4,IF($A61/4<=36,3)))))))))))))))))))))))))))))))))))) -> FALSE | S61: =S43+10 -> 10 | U61: 5
A62: 205 | B62: I | C62: Фамилия Имя 48 | E62: 1998 | F62: Клуб 10 | H62: 402.35 | I62: 4 | L62: =IF($A62/4<=1,8,IF($A62/4<=2,1,IF($A62/4<=3,7,IF($A62/4<=4,2,IF($A62/4<=5,6,IF($A62/4<=6,3,IF($A62/4<=7,5,IF($A62/4<=8,4,IF($A62/4<=9,8,IF($A62/4<=10,1,IF($A62/4<=11,7,IF($A62/4<=12,2,IF($A62/4<=13,6,IF($A62/4<=14,3,IF($A62/4<=15,5,IF($A62/4<=16,4,IF($A62/4<=17,8,IF($A62/4<=18,1,IF($A62/4<=19,7,IF($A62/4<=20,2,IF($A62/4<=21,6,IF($A62/4<=22,3,IF($A62/4<=23,5,IF($A62/4<=24,4,IF($A62/4<=25,8,IF($A62/4<=26,1,IF($A62/4<=27,7,IF($A62/4<=28,2,IF($A62/4<=29,6,IF($A62/4<=30,3,IF($A62/4<=31,5,IF($A62/4<=32,4,IF($A62/4<=33,8,IF($A62/4<=34,1,IF($A62/4<=35,7,IF($A62/4<=36,2,IF($A62/4<=37,6,IF($A62/4<=38,3,IF($A62/4<=39,5,IF($A62/4<=40,4)))))))))))))))))))))))))))))))))))))))) -> FALSE | M62: =L62+200 -> 200 | O62: =IF($A62/4<=1,4,IF($A62/4<=2,1,IF($A62/4<=3,3,IF($A62/4<=4,2,IF($A62/4<=5,4,IF($A62/4<=6,1,IF($A62/4<=7,3,IF($A62/4<=8,2,IF($A62/4<=9,4,IF($A62/4<=10,1,IF($A62/4<=11,3,IF($A62/4<=12,2,IF($A62/4<=13,4,IF($A62/4<=14,1,IF($A62/4<=15,3,IF($A62/4<=16,2,IF($A62/4<=17,4,IF($A62/4<=18,1,IF($A62/4<=19,3,IF($A62/4<=20,2,IF($A62/4<=21,4,IF($A62/4<=22,1,IF($A62/4<=23,3,IF($A62/4<=24,2,IF($A62/4<=25,4,IF($A62/4<=26,1,IF($A62/4<=27,3,IF($A62/4<=28,2,IF($A62/4<=29,4,IF($A62/4<=30,1,IF($A62/4<=31,3,IF($A62/4<=32,2,IF($A62/4<=33,4,IF($A62/4<=34,1,IF($A62/4<=35,3,IF($A62/4<=36,2)))))))))))))))))))))))))))))))))))) -> FALSE | P62: =#REF!+10 ->  | R62: =IF($A62/4<=1,6,IF($A62/4<=2,1,IF($A62/4<=3,5,IF($A62/4<=4,2,IF($A62/4<=5,4,IF($A62/4<=6,3,IF($A62/4<=7,6,IF($A62/4<=8,1,IF($A62/4<=9,5,IF($A62/4<=10,2,IF($A62/4<=11,4,IF($A62/4<=12,3,IF($A62/4<=13,6,IF($A62/4<=14,1,IF($A62/4<=15,5,IF($A62/4<=16,2,IF($A62/4<=17,4,IF($A62/4<=18,3,IF($A62/4<=19,6,IF($A62/4<=20,1,IF($A62/4<=21,5,IF($A62/4<=22,2,IF($A62/4<=23,4,IF($A62/4<=24,3,IF($A62/4<=25,6,IF($A62/4<=26,1,IF($A62/4<=27,5,IF($A62/4<=28,2,IF($A62/4<=29,4,IF($A62/4<=30,3,IF($A62/4<=31,6,IF($A62/4<=32,1,IF($A62/4<=33,5,IF($A62/4<=34,2,IF($A62/4<=35,4,IF($A62/4<=36,3)))))))))))))))))))))))))))))))))))) -> FALSE | S62: =S44+10 -> 10 | U62: 5
A63: =A64 -> 206 | F63: =F64 -> Клуб 11 | H63: =H64 -> 2000 | U63: 6
A64: 206 | B64: II | C64: Фамилия Имя 49 | E64: 2002 | F64: Клуб 11 | H64: 2000 | I64: 1 | L64: =IF($A64/4<=1,8,IF($A64/4<=2,1,IF($A64/4<=3,7,IF($A64/4<=4,2,IF($A64/4<=5,6,IF($A64/4<=6,3,IF($A64/4<=7,5,IF($A64/4<=8,4,IF($A64/4<=9,8,IF($A64/4<=10,1,IF($A64/4<=11,7,IF($A64/4<=12,2,IF($A64/4<=13,6,IF($A64/4<=14,3,IF($A64/4<=15,5,IF($A64/4<=16,4,IF($A64/4<=17,8,IF($A64/4<=18,1,IF($A64/4<=19,7,IF($A64/4<=20,2,IF($A64/4<=21,6,IF($A64/4<=22,3,IF($A64/4<=23,5,IF($A64/4<=24,4,IF($A64/4<=25,8,IF($A64/4<=26,1,IF($A64/4<=27,7,IF($A64/4<=28,2,IF($A64/4<=29,6,IF($A64/4<=30,3,IF($A64/4<=31,5,IF($A64/4<=32,4,IF($A64/4<=33,8,IF($A64/4<=34,1,IF($A64/4<=35,7,IF($A64/4<=36,2,IF($A64/4<=37,6,IF($A64/4<=38,3,IF($A64/4<=39,5,IF($A64/4<=40,4)))))))))))))))))))))))))))))))))))))))) -> FALSE | M64: =L64+200 -> 200 | O64: =IF($A64/4<=1,4,IF($A64/4<=2,1,IF($A64/4<=3,3,IF($A64/4<=4,2,IF($A64/4<=5,4,IF($A64/4<=6,1,IF($A64/4<=7,3,IF($A64/4<=8,2,IF($A64/4<=9,4,IF($A64/4<=10,1,IF($A64/4<=11,3,IF($A64/4<=12,2,IF($A64/4<=13,4,IF($A64/4<=14,1,IF($A64/4<=15,3,IF($A64/4<=16,2,IF($A64/4<=17,4,IF($A64/4<=18,1,IF($A64/4<=19,3,IF($A64/4<=20,2,IF($A64/4<=21,4,IF($A64/4<=22,1,IF($A64/4<=23,3,IF($A64/4<=24,2,IF($A64/4<=25,4,IF($A64/4<=26,1,IF($A64/4<=27,3,IF($A64/4<=28,2,IF($A64/4<=29,4,IF($A64/4<=30,1,IF($A64/4<=31,3,IF($A64/4<=32,2,IF($A64/4<=33,4,IF($A64/4<=34,1,IF($A64/4<=35,3,IF($A64/4<=36,2)))))))))))))))))))))))))))))))))))) -> FALSE | P64: =#REF!+10 ->  | Q64: Шаг 3 | R64: =IF($A64/4<=1,6,IF($A64/4<=2,1,IF($A64/4<=3,5,IF($A64/4<=4,2,IF($A64/4<=5,4,IF($A64/4<=6,3,IF($A64/4<=7,6,IF($A64/4<=8,1,IF($A64/4<=9,5,IF($A64/4<=10,2,IF($A64/4<=11,4,IF($A64/4<=12,3,IF($A64/4<=13,6,IF($A64/4<=14,1,IF($A64/4<=15,5,IF($A64/4<=16,2,IF($A64/4<=17,4,IF($A64/4<=18,3,IF($A64/4<=19,6,IF($A64/4<=20,1,IF($A64/4<=21,5,IF($A64/4<=22,2,IF($A64/4<=23,4,IF($A64/4<=24,3,IF($A64/4<=25,6,IF($A64/4<=26,1,IF($A64/4<=27,5,IF($A64/4<=28,2,IF($A64/4<=29,4,IF($A64/4<=30,3,IF($A64/4<=31,6,IF($A64/4<=32,1,IF($A64/4<=33,5,IF($A64/4<=34,2,IF($A64/4<=35,4,IF($A64/4<=36,3)))))))))))))))))))))))))))))))))))) -> FALSE | S64: =R64+200 -> 200 | U64: 6
A65: 206 | B65: II | C65: Фамилия Имя 50 | E65: 2002 | F65: Клуб 11 | H65: 2000 | I65: 2 | L65: FALSE | M65: 200 | O65: FALSE | P65: =#REF!+10 ->  | R65: FALSE | S65: 200 | U65: 6
A66: 206 | B66: II | C66: Фамилия Имя 51 | E66: 2002 | F66: Клуб 11 | H66: 2000 | I66: 3 | L66: FALSE | M66: 200 | O66: FALSE | P66: =#REF!+10 ->  | R66: FALSE | S66: 200 | U66: 6
A67: 206 | B67: II | C67: Фамилия Имя 52 | E67: 2001 | F67: Клуб 11 | H67: 2000 | I67: 4 | L67: FALSE | M67: 200 | O67: FALSE | P67: =#REF!+10 ->  | R67: FALSE | S67: 200 | U67: 6

Sheet СП_с предварительными
A4: СОРЕВНОВАНИЯ
M6: Кол-во заплывов | O6: Кол-во дорожек
A7: СТАРТОВЫЙ ПРОТОКОЛ | M7: =ROUNDUP(A48/O7,0) -> 5 | O7: 8
A8: Дорожка | B8: Разряд, звание | C8: Фамилия, имя | E8: Год рожд. | F8: Команда | H8: Предварительный результат | J8: Зачет
C10: Плавание в ластах - 50 м (1460081811Я), женщины
B11: для 6 дорожек | M11: шаг 1 | N11: шаг 2 | P11: Шаг 4
D12: Заплыв № | E12: =INT(A49/10) -> 0
A13: 1 | M13: =IF($A13/$M$7<=1,6,IF($A13/$M$7<=2,1,IF($A13/$M$7<=3,5,IF($A13/$M$7<=4,2,IF($A13/$M$7<=5,4,IF($A13/$M$7<=6,3)))))) -> 6 | N13: =M13+10 -> 16 | P13: =IF(MOD($A13,10)<10,MOD($A13,10),IF($A13/10>8,MOD($A13,80),IF($A13/10>7,MOD($A13,70),IF($A13/10>6,MOD($A13,60),IF($A13/10>5,MOD($A13,50),IF($A13/10>4,MOD($A13,40),IF($A13/10>3,MOD($A13,30),IF($A13/10>2,MOD($A13,20),MOD($A13,100))))))))) -> 1
A14: =A13+1 -> 2 | M14: 6 | N14: =M14+20 -> 26 | P14: 2
A15: =A14+1 -> 3 | B15: КМС | C15: Фамилия Имя 6 | E15: 2002 | F15: ЗамКлуб | H15: 30 | M15: 6 | N15: =M15+30 -> 36 | P15: 3
A16: 4 | B16: I юн | C16: Фамилия Имя 11 | E16: 2002 | F16: ЗамКлуб | H16: 30 | M16: 6 | N16: =M16+40 -> 46 | P16: 4
A17: 5 | B17: II юн | C17: Фамилия Имя 12 | E17: 1998 | F17: ЗамКлуб | H17: 30 | M17: 6 | N17: =M17+50 -> 56 | P17: 5
A18: 6 | B18: I | C18: Фамилия Имя 16 | E18: 2002 | F18: ЗамКлуб | H18: 30 | M18: 1 | N18: =M18+10 -> 11 | O18: шаг 3 | P18: 6
A19: 7 | B19: МС | C19: Фамилия Имя 22 | E19: 2001 | F19: ЗамКлуб | H19: 30 | M19: 1 | N19: =M19+20 -> 21 | P19: 7
A20: 8 | B20: КМС | C20: Фамилия Имя 26 | E20: 2006 | F20: ЗамКлуб | H20: 30 | M20: 1 | N20: =M20+30 -> 31 | P20: 8
A21: 9 | B21: I юн | C21: Фамилия Имя 31 | E21: 2001 | F21: ЗамКлуб | H21: 30 | M21: 1 | N21: =M21+40 -> 41 | P21: 9
A22: 10 | B22: МС | C22: Фамилия Имя 5 | E22: 2001 | F22: ЗамКлуб | H22: 29.8 | M22: 1 | N22: =M22+50 -> 51 | P22: 0
A23: 11 | B23: МСМК | C23: Фамилия Имя 14 | E23: 2000 | F23: ЗамКлуб | H23: 29.8 | M23: 5 | N23: =M23+50 -> 55 | P23: 1
A24: 12 | B24: МС | C24: Фамилия Имя 15 | E24: 2001 | F24: ЗамКлуб | H24: 29.8 | M24: 5 | N24: =M24+60 -> 65 | P24: 2
A25: 13 | B25: МСМК | C25: Фамилия Имя 21 | E25: 2000 | F25: ЗамКлуб | H25: 29.8 | M25: 5 | N25: =M25+10 -> 15 | P25: 3
A26: 14 | B26: КМС | C26: Фамилия Имя 25 | E26: 2005 | F26: ЗамКлуб | H26: 29.8 | M26: 5 | N26: =M26+20 -> 25 | P26: 4
A27: 15 | B27: III юн | C27: Фамилия Имя 30 | E27: 2000 | F27: ЗамКлуб | H27: 29.8 | M27: 5 | N27: =M27+30 -> 35 | P27: 5
A28: 16 | B28: ЗМС | C28: Фамилия Имя 20 | E28: 1999 | F28: ЗамКлуб | H28: 29.7 | K28: лично | M28: 2 | N28: =M28+40 -> 42 | P28: 6
A29: 17 | B29: II юн | C29: Фамилия Имя 29 | E29: 1999 | F29: ЗамКлуб | H29: 29.7 | K29: лично | M29: 2 | N29: =M29+50 -> 52 | P29: 7
A30: 18 | B30: ЗМС | C30: Фамилия Имя 3 | E30: 1999 | F30: ЗамКлуб | H30: 29.5 | M30: 2 | N30: =M30+60 -> 62 | P30: 8
A31: 19 | B31: III юн | C31: Фамилия Имя 13 | E31: 1999 | F31: ЗамКлуб | H31: 29.5 | M31: 2 | N31: =M31+10 -> 12 | P31: 9
A32: 20 | B32: II | C32: Фамилия Имя 19 | E32: 1998 | F32: ЗамКлуб | H32: 29.5 | M32: 2 | N32: =M32+20 -> 22 | P32: 0
A33: 21 | B33: КМС | C33: Фамилия Имя 28 | E33: 2008 | F33: ЗамКлуб | H33: 29.5 | M33: 4 | N33: =M33+30 -> 34 | P33: 1
A34: 22 | B34: II | C34: Фамилия Имя 17 | E34: 2003 | F34: ЗамКлуб | H34: 27.5 | M34: 4 | N34: =M34+40 -> 44 | P34: 2
A35: 23 | B35: III юн | C35: Фамилия Имя 18 | E35: 1996 | F35: ЗамКлуб | H35: 27.5 | M35: 4 | N35: =M35+50 -> 54 | P35: 3
A36: 24 | B36: II юн | C36: Фамилия Имя 1 | E36: 2000 | F36: ЗамКлуб | H36: 26.9 | M36: 4 | N36: =M36+60 -> 64 | P36: 4
A37: 25 | B37: I | C37: Фамилия Имя 2 | E37: 1998 | F37: ЗамКлуб | H37: 25.2 | M37: 4 | N37: =M37+10 -> 14 | P37: 5
A38: 26 | B38: II юн | C38: Фамилия Имя 34 | E38: 2006 | F38: ЗамКлуб | H38: 23.2 | M38: 3 | N38: =M38+20 -> 23 | P38: 6
A39: 27 | B39: III | C39: Фамилия Имя 32 | E39: 2002 | F39: ЗамКлуб | H39: 22.8 | M39: 3 | N39: =M39+30 -> 33 | P39: 7
A40: 28 | B40: КМС | C40: Фамилия Имя 27 | E40: 2007 | F40: ЗамКлуб | H40: 22.5 | M40: 3 | N40: =M40+40 -> 43 | P40: 8
A41: 29 | B41: I | C41: Фамилия Имя 8 | E41: 1999 | F41: ЗамКлуб | H41: 22.1 | M41: 3 | N41: =M41+50 -> 53 | P41: 9
A42: 30 | B42: I | C42: Фамилия Имя 7 | E42: 1998 | F42: ЗамКлуб | H42: 21.8 | M42: 3 | N42: =M42+60 -> 63 | P42: 0
A43: 31 | B43: МСМК | C43: Фамилия Имя 4 | E43: 2000 | F43: ЗамКлуб | H43: 21.5 | M43: FALSE | N43: =M43+10 -> 10 | P43: 1
A44: 32 | B44: I юн | C44: Фамилия Имя 33 | E44: 1996 | F44: ЗамКлуб | H44: 20.4 | M44: FALSE | N44: =M44+20 -> 20 | P44: 2
A45: 33 | B45: I | C45: Фамилия Имя 10 | E45: 2001 | F45: ЗамКлуб | H45: 20 | M45: FALSE | N45: =M45+30 -> 30 | P45: 3
A46: 34 | B46: КМС | C46: Фамилия Имя 24 | E46: 2004 | F46: ЗамКлуб | H46: 18.7 | M46: FALSE | N46: =M46+40 -> 40 | P46: 4
A47: 35 | B47: КМС | C47: Фамилия Имя 23 | E47: 2002 | F47: ЗамКлуб | H47: 18.6 | M47: FALSE | N47: =M47+50 -> 50 | P47: 5
A48: 36 | B48: I | C48: Фамилия Имя 9 | E48: 2000 | F48: ЗамКлуб | H48: 18.5 | M48: FALSE | N48: =M48+60 -> 60 | P48: 6
B50: для 8 дорожек
D51: Заплыв № | E51: =INT(A92/10) -> 0 | M51: шаг 1 | N51: шаг 2
A52: 1 | M52: =IF($A52/$M$7<=1,8,IF($A52/$M$7<=2,1,IF($A52/$M$7<=3,7,IF($A52/$M$7<=4,2,IF($A52/$M$7<=5,6,IF($A52/$M$7<=6,3,IF($A52/$M$7<=7,5,IF($A52/$M$7<=8,4)))))))) -> 8 | N52: =M52+10 -> 18
A53: =A52+1 -> 2 | M53: 8 | N53: =M53+20 -> 28
A54: =A53+1 -> 3 | M54: 8 | N54: =M54+30 -> 38
A55: 4 | M55: 8 | N55: =M55+40 -> 48
A56: 5 | M56: 8 | N56: =M56+50 -> 58
A57: 6 | M57: 1 | N57: =M57+10 -> 11 | O57: шаг3
A58: 7 | B58: КМС | C58: Фамилия Имя 6 | E58: 2002 | F58: ЗамКлуб | H58: 30 | M58: 1 | N58: =M58+20 -> 21
A59: 8 | B59: I юн | C59: Фамилия Имя 11 | E59: 2002 | F59: ЗамКлуб | H59: 30 | M59: 1 | N59: =M59+30 -> 31
A60: 9 | B60: II юн | C60: Фамилия Имя 12 | E60: 1998 | F60: ЗамКлуб | H60: 30 | M60: 1 | N60: =M60+40 -> 41
A61: 10 | B61: I | C61: Фамилия Имя 16 | E61: 2002 | F61: ЗамКлуб | H61: 30 | M61: 1 | N61: =M61+50 -> 51
A62: 11 | B62: МС | C62: Фамилия Имя 22 | E62: 2001 | F62: ЗамКлуб | H62: 30 | M62: 7 | N62: =M62+10 -> 17
A63: 12 | B63: КМС | C63: Фамилия Имя 26 | E63: 2006 | F63: ЗамКлуб | H63: 30 | M63: 7 | N63: =M63+20 -> 27
A64: 13 | B64: I юн | C64: Фамилия Имя 31 | E64: 2001 | F64: ЗамКлуб | H64: 30 | M64: 7 | N64: =M64+30 -> 37
A65: 14 | B65: МС | C65: Фамилия Имя 5 | E65: 2001 | F65: ЗамКлуб | H65: 29.8 | M65: 7 | N65: =M65+40 -> 47
A66: 15 | B66: МСМК | C66: Фамилия Имя 14 | E66: 2000 | F66: ЗамКлуб | H66: 29.8 | M66: 7 | N66: =M66+50 -> 57
A67: 16 | B67: МС | C67: Фамилия Имя 15 | E67: 2001 | F67: ЗамКлуб | H67: 29.8 | M67: 2 | N67: =M67+10 -> 12
A68: 17 | B68: МСМК | C68: Фамилия Имя 21 | E68: 2000 | F68: ЗамКлуб | H68: 29.8 | M68: 2 | N68: =M68+20 -> 22
A69: 18 | B69: КМС | C69: Фамилия Имя 25 | E69: 2005 | F69: ЗамКлуб | H69: 29.8 | M69: 2 | N69: =M69+30 -> 32
A70: 19 | B70: III юн | C70: Фамилия Имя 30 | E70: 2000 | F70: ЗамКлуб | H70: 29.8 | M70: 2 | N70: =M70+40 -> 42
A71: 20 | B71: ЗМС | C71: Фамилия Имя 20 | E71: 1999 | F71: ЗамКлуб | H71: 29.7 | K71: лично | M71: 2 | N71: =M71+50 -> 52
A72: 21 | B72: II юн | C72: Фамилия Имя 29 | E72: 1999 | F72: ЗамКлуб | H72: 29.7 | K72: лично | M72: 6 | N72: =M72+10 -> 16
A73: 22 | B73: ЗМС | C73: Фамилия Имя 3 | E73: 1999 | F73: ЗамКлуб | H73: 29.5 | M73: 6 | N73: =M73+20 -> 26
A74: 23 | B74: III юн | C74: Фамилия Имя 13 | E74: 1999 | F74: ЗамКлуб | H74: 29.5 | M74: 6 | N74: =M74+30 -> 36
A75: 24 | B75: II | C75: Фамилия Имя 19 | E75: 1998 | F75: ЗамКлуб | H75: 29.5 | M75: 6 | N75: =M75+40 -> 46
A76: 25 | B76: КМС | C76: Фамилия Имя 28 | E76: 2008 | F76: ЗамКлуб | H76: 29.5 | M76: 6 | N76: =M76+50 -> 56
A77: 26 | B77: II | C77: Фамилия Имя 17 | E77: 2003 | F77: ЗамКлуб | H77: 27.5 | M77: 3 | N77: =M77+10 -> 13
A78: 27 | B78: III юн | C78: Фамилия Имя 18 | E78: 1996 | F78: ЗамКлуб | H78: 27.5 | M78: 3 | N78: =M78+20 -> 23
A79: 28 | B79: II юн | C79: Фамилия Имя 1 | E79: 2000 | F79: ЗамКлуб | H79: 26.9 | M79: 3 | N79: =M79+30 -> 33
A80: 29 | B80: I | C80: Фамилия Имя 2 | E80: 1998 | F80: ЗамКлуб | H80: 25.2 | M80: 3 | N80: =M80+40 -> 43
A81: 30 | B81: II юн | C81: Фамилия Имя 34 | E81: 2006 | F81: ЗамКлуб | H81: 23.2 | M81: 3 | N81: =M81+50 -> 53
A82: 31 | B82: III | C82: Фамилия Имя 32 | E82: 2002 | F82: ЗамКлуб | H82: 22.8 | M82: 5 | N82: =M82+10 -> 15
A83: 32 | B83: КМС | C83: Фамилия Имя 27 | E83: 2007 | F83: ЗамКлуб | H83: 22.5 | M83: 5 | N83: =M83+20 -> 25
A84: 33 | B84: I | C84: Фамилия Имя 8 | E84: 1999 | F84: ЗамКлуб | H84: 22.1 | M84: 5 | N84: =M84+30 -> 35
A85: 34 | B85: I | C85: Фамилия Имя 7 | E85: 1998 | F85: ЗамКлуб | H85: 21.8 | M85: 5 | N85: =M85+40 -> 45
A86: 35 | B86: МСМК | C86: Фамилия Имя 4 | E86: 2000 | F86: ЗамКлуб | H86: 21.5 | M86: 5 | N86: =M86+50 -> 55
A87: 36 | B87: I юн | C87: Фамилия Имя 33 | E87: 1996 | F87: ЗамКлуб | H87: 20.4 | M87: 4 | N87: =M87+10 -> 14
A88: 37 | B88: I | C88: Фамилия Имя 10 | E88: 2001 | F88: ЗамКлуб | H88: 20 | M88: 4 | N88: =M88+20 -> 24
A89: 38 | B89: КМС | C89: Фамилия Имя 24 | E89: 2004 | F89: ЗамКлуб | H89: 18.7 | M89: 4 | N89: =M89+30 -> 34
A90: 39 | B90: КМС | C90: Фамилия Имя 23 | E90: 2002 | F90: ЗамКлуб | H90: 18.6 | M90: 4 | N90: =M90+40 -> 44
A91: 40 | B91: I | C91: Фамилия Имя 9 | E91: 2000 | F91: ЗамКлуб | H91: 18.5 | M91: 4 | N91: =M91+50 -> 54

Sheet Нормативы
H1: Автохронометраж | L1: Ручной хронометраж
I2: Результат | M2: Результат
I3: финал | J3: предв. | M3: финал | N3: предв.
C4: Плавание в ластах - 50 м (1460081811Я), женщины
H5: 18 | I5: =IF(ISBLANK(H5)," ",IF(ISTEXT(H5)," ",IF(H5<=Нормативы!$H$5,"МСМК",IF(H5<=Нормативы!$H$6,"МС",IF(H5<=Нормативы!$H$7,"КМС",IF(H5<=Нормативы!$H$8,"I",IF(H5<=Нормативы!$H$9,"II",IF(H5<=Нормативы!$H$10,"III",IF(H5<=Нормативы!$H$11,"I юн",IF(H5<=Нормативы!$H$12,"II юн",IF(H5<=Нормативы!$H$13,"III юн",IF(ISTEXT(H5)," ",IF(ISBLANK(H5)," ","б/р"))))))))))))) -> МСМК | J5: =IF(ISBLANK(H5)," ",IF(ISTEXT(H5)," ",IF(H5<=Нормативы!$H$5,"МСМК",IF(H5<=Нормативы!$H$6,"МС",IF(H5<=Нормативы!$H$7,"КМС",IF(H5<=Нормативы!$H$8,"I",IF(H5<=Нормативы!$H$9,"II",IF(H5<=Нормативы!$H$10,"III",IF(H5<=Нормативы!$H$11,"I юн",IF(H5<=Нормативы!$H$12,"II юн",IF(H5<=Нормативы!$H$13,"III юн",IF(ISTEXT(H5)," ",IF(ISBLANK(H5)," ","б/р"))))))))))))) -> МСМК | M5: =IF(ISBLANK(L5)," ",IF(ISTEXT(L5)," ",IF(L5<=Нормативы!$H$5,"КМС",IF(L5<=Нормативы!$H$6,"КМС",IF(L5<=Нормативы!$L$7,"КМС",IF(L5<=Нормативы!$L$8,"I",IF(L5<=Нормативы!$L$9,"II",IF(L5<=Нормативы!$L$10,"III",IF(L5<=Нормативы!$L$11,"I юн",IF(L5<=Нормативы!$L$12,"II юн",IF(L5<=Нормативы!$L$13,"III юн",IF(ISTEXT(L5)," ",IF(ISBLANK(L5)," ","б/р"))))))))))))) ->  | N5: =IF(ISBLANK(L5)," ",IF(ISTEXT(L5)," ",IF(L5<=18.1,"МСМК",IF(L5<=19,"МС",IF(L5<=19.7,"КМС",IF(L5<=21.1,"I",IF(L5<=22.9,"II",IF(L5<=24.8,"III",IF(L5<=27.4,"I юн",IF(L5<=30,"II юн",IF(L5<=32.4,"III юн",IF(ISTEXT(L5)," ",IF(ISBLANK(L5)," ","б/р"))))))))))))) ->  | Q5: =IF(ISBLANK(P5)," ",IF(ISTEXT(P5)," ",IF(P5<=$H$5,"МСМК",IF(P5<=$H$6,"МС",IF(P5<=$H$7,"КМС",IF(P5<=$H$8,"I",IF(P5<=$H$9,"II",IF(P5<=$H$10,"III",IF(P5<=$H$11,"I юн",IF(P5<=$H$12,"II юн",IF(P5<=$H$13,"III юн",IF(ISTEXT(P5)," ",IF(ISBLANK(P5)," ","б/р"))))))))))))) -> 
H6: 18.7 | I6: =IF(ISBLANK(H6)," ",IF(ISTEXT(H6)," ",IF(H6<=Нормативы!$H$5,"МСМК",IF(H6<=Нормативы!$H$6,"МС",IF(H6<=Нормативы!$H$7,"КМС",IF(H6<=Нормативы!$H$8,"I",IF(H6<=Нормативы!$H$9,"II",IF(H6<=Нормативы!$H$10,"III",IF(H6<=Нормативы!$H$11,"I юн",IF(H6<=Нормативы!$H$12,"II юн",IF(H6<=Нормативы!$H$13,"III юн",IF(ISTEXT(H6)," ",IF(ISBLANK(H6)," ","б/р"))))))))))))) -> МС | J6: =IF(ISBLANK(H6)," ",IF(ISTEXT(H6)," ",IF(H6<=Нормативы!$H$5,"МСМК",IF(H6<=Нормативы!$H$6,"МС",IF(H6<=Нормативы!$H$7,"КМС",IF(H6<=Нормативы!$H$8,"I",IF(H6<=Нормативы!$H$9,"II",IF(H6<=Нормативы!$H$10,"III",IF(H6<=Нормативы!$H$11,"I юн",IF(H6<=Нормативы!$H$12,"II юн",IF(H6<=Нормативы!$H$13,"III юн",IF(ISTEXT(H6)," ",IF(ISBLANK(H6)," ","б/р"))))))))))))) -> МС | M6: =IF(ISBLANK(L6)," ",IF(ISTEXT(L6)," ",IF(L6<=Нормативы!$H$5,"КМС",IF(L6<=Нормативы!$H$6,"КМС",IF(L6<=Нормативы!$L$7,"КМС",IF(L6<=Нормативы!$L$8,"I",IF(L6<=Нормативы!$L$9,"II",IF(L6<=Нормативы!$L$10,"III",IF(L6<=Нормативы!$L$11,"I юн",IF(L6<=Нормативы!$L$12,"II юн",IF(L6<=Нормативы!$L$13,"III юн",IF(ISTEXT(L6)," ",IF(ISBLANK(L6)," ","б/р"))))))))))))) ->  | N6: =IF(ISBLANK(L6)," ",IF(ISTEXT(L6)," ",IF(L6<=18.1,"МСМК",IF(L6<=19,"МС",IF(L6<=19.7,"КМС",IF(L6<=21.1,"I",IF(L6<=22.9,"II",IF(L6<=24.8,"III",IF(L6<=27.4,"I юн",IF(L6<=30,"II юн",IF(L6<=32.4,"III юн",IF(ISTEXT(L6)," ",IF(ISBLANK(L6)," ","б/р"))))))))))))) ->  | Q6: =IF(ISBLANK(P6)," ",IF(ISTEXT(P6)," ",IF(P6<=$H$5,"МСМК",IF(P6<=$H$6,"МС",IF(P6<=$H$7,"КМС",IF(P6<=$H$8,"I",IF(P6<=$H$9,"II",IF(P6<=$H$10,"III",IF(P6<=$H$11,"I юн",IF(P6<=$H$12,"II юн",IF(P6<=$H$13,"III юн",IF(ISTEXT(P6)," ",IF(ISBLANK(P6)," ","б/р"))))))))))))) -> 
H7: 19.7 | I7: =IF(ISBLANK(H7)," ",IF(ISTEXT(H7)," ",IF(H7<=Нормативы!$H$5,"МСМК",IF(H7<=Нормативы!$H$6,"МС",IF(H7<=Нормативы!$H$7,"КМС",IF(H7<=Нормативы!$H$8,"I",IF(H7<=Нормативы!$H$9,"II",IF(H7<=Нормативы!$H$10,"III",IF(H7<=Нормативы!$H$11,"I юн",IF(H7<=Нормативы!$H$12,"II юн",IF(H7<=Нормативы!$H$13,"III юн",IF(ISTEXT(H7)," ",IF(ISBLANK(H7)," ","б/р"))))))))))))) -> КМС | J7: =IF(ISBLANK(H7)," ",IF(ISTEXT(H7)," ",IF(H7<=Нормативы!$H$5,"МСМК",IF(H7<=Нормативы!$H$6,"МС",IF(H7<=Нормативы!$H$7,"КМС",IF(H7<=Нормативы!$H$8,"I",IF(H7<=Нормативы!$H$9,"II",IF(H7<=Нормативы!$H$10,"III",IF(H7<=Нормативы!$H$11,"I юн",IF(H7<=Нормативы!$H$12,"II юн",IF(H7<=Нормативы!$H$13,"III юн",IF(ISTEXT(H7)," ",IF(ISBLANK(H7)," ","б/р"))))))))))))) -> КМС | L7: =H7-0.2 -> 19.5 | M7: =IF(ISBLANK(L7)," ",IF(ISTEXT(L7)," ",IF(L7<=Нормативы!$H$5,"КМС",IF(L7<=Нормативы!$H$6,"КМС",IF(L7<=Нормативы!$L$7,"КМС",IF(L7<=Нормативы!$L$8,"I",IF(L7<=Нормативы!$L$9,"II",IF(L7<=Нормативы!$L$10,"III",IF(L7<=Нормативы!$L$11,"I юн",IF(L7<=Нормативы!$L$12,"II юн",IF(L7<=Нормативы!$L$13,"III юн",IF(ISTEXT(L7)," ",IF(ISBLANK(L7)," ","б/р"))))))))))))) -> КМС | N7: =IF(ISBLANK(L7)," ",IF(ISTEXT(L7)," ",IF(L7<=Нормативы!$H$5,"КМС",IF(L7<=Нормативы!$H$6,"КМС",IF(L7<=Нормативы!$L$7,"КМС",IF(L7<=Нормативы!$L$8,"I",IF(L7<=Нормативы!$L$9,"II",IF(L7<=Нормативы!$L$10,"III",IF(L7<=Нормативы!$L$11,"I юн",IF(L7<=Нормативы!$L$12,"II юн",IF(L7<=Нормативы!$L$13,"III юн",IF(ISTEXT(L7)," ",IF(ISBLANK(L7)," ","б/р"))))))))))))) -> КМС | Q7: =IF(ISBLANK(P7)," ",IF(ISTEXT(P7)," ",IF(P7<=$H$5,"МСМК",IF(P7<=$H$6,"МС",IF(P7<=$H$7,"КМС",IF(P7<=$H$8,"I",IF(P7<=$H$9,"II",IF(P7<=$H$10,"III",IF(P7<=$H$11,"I юн",IF(P7<=$H$12,"II юн",IF(P7<=$H$13,"III юн",IF(ISTEXT(P7)," ",IF(ISBLANK(P7)," ","б/р"))))))))))))) -> 
H8: 21 | I8: =IF(ISBLANK(H8)," ",IF(ISTEXT(H8)," ",IF(H8<=Нормативы!$H$5,"МСМК",IF(H8<=Нормативы!$H$6,"МС",IF(H8<=Нормативы!$H$7,"КМС",IF(H8<=Нормативы!$H$8,"I",IF(H8<=Нормативы!$H$9,"II",IF(H8<=Нормативы!$H$10,"III",IF(H8<=Нормативы!$H$11,"I юн",IF(H8<=Нормативы!$H$12,"II юн",IF(H8<=Нормативы!$H$13,"III юн",IF(ISTEXT(H8)," ",IF(ISBLANK(H8)," ","б/р"))))))))))))) -> I | J8: =IF(ISBLANK(H8)," ",IF(ISTEXT(H8)," ",IF(H8<=Нормативы!$H$5,"МСМК",IF(H8<=Нормативы!$H$6,"МС",IF(H8<=Нормативы!$H$7,"КМС",IF(H8<=Нормативы!$H$8,"I",IF(H8<=Нормативы!$H$9,"II",IF(H8<=Нормативы!$H$10,"III",IF(H8<=Нормативы!$H$11,"I юн",IF(H8<=Нормативы!$H$12,"II юн",IF(H8<=Нормативы!$H$13,"III юн",IF(ISTEXT(H8)," ",IF(ISBLANK(H8)," ","б/р"))))))))))))) -> I | L8: =H8-0.2 -> 20.8 | M8: =IF(ISBLANK(L8)," ",IF(ISTEXT(L8)," ",IF(L8<=Нормативы!$H$5,"КМС",IF(L8<=Нормативы!$H$6,"КМС",IF(L8<=Нормативы!$L$7,"КМС",IF(L8<=Нормативы!$L$8,"I",IF(L8<=Нормативы!$L$9,"II",IF(L8<=Нормативы!$L$10,"III",IF(L8<=Нормативы!$L$11,"I юн",IF(L8<=Нормативы!$L$12,"II юн",IF(L8<=Нормативы!$L$13,"III юн",IF(ISTEXT(L8)," ",IF(ISBLANK(L8)," ","б/р"))))))))))))) -> I | N8: =IF(ISBLANK(L8)," ",IF(ISTEXT(L8)," ",IF(L8<=Нормативы!$H$5,"КМС",IF(L8<=Нормативы!$H$6,"КМС",IF(L8<=Нормативы!$L$7,"КМС",IF(L8<=Нормативы!$L$8,"I",IF(L8<=Нормативы!$L$9,"II",IF(L8<=Нормативы!$L$10,"III",IF(L8<=Нормативы!$L$11,"I юн",IF(L8<=Нормативы!$L$12,"II юн",IF(L8<=Нормативы!$L$13,"III юн",IF(ISTEXT(L8)," ",IF(ISBLANK(L8)," ","б/р"))))))))))))) -> I | Q8: =IF(ISBLANK(P8)," ",IF(ISTEXT(P8)," ",IF(P8<=$H$5,"МСМК",IF(P8<=$H$6,"МС",IF(P8<=$H$7,"КМС",IF(P8<=$H$8,"I",IF(P8<=$H$9,"II",IF(P8<=$H$10,"III",IF(P8<=$H$11,"I юн",IF(P8<=$H$12,"II юн",IF(P8<=$H$13,"III юн",IF(ISTEXT(P8)," ",IF(ISBLANK(P8)," ","б/р"))))))))))))) -> 
H9: 22.9 | I9: =IF(ISBLANK(H9)," ",IF(ISTEXT(H9)," ",IF(H9<=Нормативы!$H$5,"МСМК",IF(H9<=Нормативы!$H$6,"МС",IF(H9<=Нормативы!$H$7,"КМС",IF(H9<=Нормативы!$H$8,"I",IF(H9<=Нормативы!$H$9,"II",IF(H9<=Нормативы!$H$10,"III",IF(H9<=Нормативы!$H$11,"I юн",IF(H9<=Нормативы!$H$12,"II юн",IF(H9<=Нормативы!$H$13,"III юн",IF(ISTEXT(H9)," ",IF(ISBLANK(H9)," ","б/р"))))))))))))) -> II | J9: =IF(ISBLANK(H9)," ",IF(ISTEXT(H9)," ",IF(H9<=Нормативы!$H$5,"МСМК",IF(H9<=Нормативы!$H$6,"МС",IF(H9<=Нормативы!$H$7,"КМС",IF(H9<=Нормативы!$H$8,"I",IF(H9<=Нормативы!$H$9,"II",IF(H9<=Нормативы!$H$10,"III",IF(H9<=Нормативы!$H$11,"I юн",IF(H9<=Нормативы!$H$12,"II юн",IF(H9<=Нормативы!$H$13,"III юн",IF(ISTEXT(H9)," ",IF(ISBLANK(H9)," ","б/р"))))))))))))) -> II | L9: 22.7 | M9: =IF(ISBLANK(L9)," ",IF(ISTEXT(L9)," ",IF(L9<=Нормативы!$H$5,"КМС",IF(L9<=Нормативы!$H$6,"КМС",IF(L9<=Нормативы!$L$7,"КМС",IF(L9<=Нормативы!$L$8,"I",IF(L9<=Нормативы!$L$9,"II",IF(L9<=Нормативы!$L$10,"III",IF(L9<=Нормативы!$L$11,"I юн",IF(L9<=Нормативы!$L$12,"II юн",IF(L9<=Нормативы!$L$13,"III юн",IF(ISTEXT(L9)," ",IF(ISBLANK(L9)," ","б/р"))))))))))))) -> II | N9: =IF(ISBLANK(L9)," ",IF(ISTEXT(L9)," ",IF(L9<=Нормативы!$H$5,"КМС",IF(L9<=Нормативы!$H$6,"КМС",IF(L9<=Нормативы!$L$7,"КМС",IF(L9<=Нормативы!$L$8,"I",IF(L9<=Нормативы!$L$9,"II",IF(L9<=Нормативы!$L$10,"III",IF(L9<=Нормативы!$L$11,"I юн",IF(L9<=Нормативы!$L$12,"II юн",IF(L9<=Нормативы!$L$13,"III юн",IF(ISTEXT(L9)," ",IF(ISBLANK(L9)," ","б/р"))))))))))))) -> II | Q9: =IF(ISBLANK(P9)," ",IF(ISTEXT(P9)," ",IF(P9<=$H$5,"МСМК",IF(P9<=$H$6,"МС",IF(P9<=$H$7,"КМС",IF(P9<=$H$8,"I",IF(P9<=$H$9,"II",IF(P9<=$H$10,"III",IF(P9<=$H$11,"I юн",IF(P9<=$H$12,"II юн",IF(P9<=$H$13,"III юн",IF(ISTEXT(P9)," ",IF(ISBLANK(P9)," ","б/р"))))))))))))) -> 
H10: 24.7 | I10: =IF(ISBLANK(H10)," ",IF(ISTEXT(H10)," ",IF(H10<=Нормативы!$H$5,"МСМК",IF(H10<=Нормативы!$H$6,"МС",IF(H10<=Нормативы!$H$7,"КМС",IF(H10<=Нормативы!$H$8,"I",IF(H10<=Нормативы!$H$9,"II",IF(H10<=Нормативы!$H$10,"III",IF(H10<=Нормативы!$H$11,"I юн",IF(H10<=Нормативы!$H$12,"II юн",IF(H10<=Нормативы!$H$13,"III юн",IF(ISTEXT(H10)," ",IF(ISBLANK(H10)," ","б/р"))))))))))))) -> III | J10: =IF(ISBLANK(H10)," ",IF(ISTEXT(H10)," ",IF(H10<=Нормативы!$H$5,"МСМК",IF(H10<=Нормативы!$H$6,"МС",IF(H10<=Нормативы!$H$7,"КМС",IF(H10<=Нормативы!$H$8,"I",IF(H10<=Нормативы!$H$9,"II",IF(H10<=Нормативы!$H$10,"III",IF(H10<=Нормативы!$H$11,"I юн",IF(H10<=Нормативы!$H$12,"II юн",IF(H10<=Нормативы!$H$13,"III юн",IF(ISTEXT(H10)," ",IF(ISBLANK(H10)," ","б/р"))))))))))))) -> III | L10: 24.5 | M10: =IF(ISBLANK(L10)," ",IF(ISTEXT(L10)," ",IF(L10<=Нормативы!$H$5,"КМС",IF(L10<=Нормативы!$H$6,"КМС",IF(L10<=Нормативы!$L$7,"КМС",IF(L10<=Нормативы!$L$8,"I",IF(L10<=Нормативы!$L$9,"II",IF(L10<=Нормативы!$L$10,"III",IF(L10<=Нормативы!$L$11,"I юн",IF(L10<=Нормативы!$L$12,"II юн",IF(L10<=Нормативы!$L$13,"III юн",IF(ISTEXT(L10)," ",IF(ISBLANK(L10)," ","б/р"))))))))))))) -> III | N10: =IF(ISBLANK(L10)," ",IF(ISTEXT(L10)," ",IF(L10<=Нормативы!$H$5,"КМС",IF(L10<=Нормативы!$H$6,"КМС",IF(L10<=Нормативы!$L$7,"КМС",IF(L10<=Нормативы!$L$8,"I",IF(L10<=Нормативы!$L$9,"II",IF(L10<=Нормативы!$L$10,"III",IF(L10<=Нормативы!$L$11,"I юн",IF(L10<=Нормативы!$L$12,"II юн",IF(L10<=Нормативы!$L$13,"III юн",IF(ISTEXT(L10)," ",IF(ISBLANK(L10)," ","б/р"))))))))))))) -> III | Q10: =IF(ISBLANK(P10)," ",IF(ISTEXT(P10)," ",IF(P10<=$H$5,"МСМК",IF(P10<=$H$6,"МС",IF(P10<=$H$7,"КМС",IF(P10<=$H$8,"I",IF(P10<=$H$9,"II",IF(P10<=$H$10,"III",IF(P10<=$H$11,"I юн",IF(P10<=$H$12,"II юн",IF(P10<=$H$13,"III юн",IF(ISTEXT(P10)," ",IF(ISBLANK(P10)," ","б/р"))))))))))))) -> 
H11: 27 | I11: =IF(ISBLANK(H11)," ",IF(ISTEXT(H11)," ",IF(H11<=Нормативы!$H$5,"МСМК",IF(H11<=Нормативы!$H$6,"МС",IF(H11<=Нормативы!$H$7,"КМС",IF(H11<=Нормативы!$H$8,"I",IF(H11<=Нормативы!$H$9,"II",IF(H11<=Нормативы!$H$10,"III",IF(H11<=Нормативы!$H$11,"I юн",IF(H11<=Нормативы!$H$12,"II юн",IF(H11<=Нормативы!$H$13,"III юн",IF(ISTEXT(H11)," ",IF(ISBLANK(H11)," ","б/р"))))))))))))) -> I юн | J11: =IF(ISBLANK(H11)," ",IF(ISTEXT(H11)," ",IF(H11<=Нормативы!$H$5,"МСМК",IF(H11<=Нормативы!$H$6,"МС",IF(H11<=Нормативы!$H$7,"КМС",IF(H11<=Нормативы!$H$8,"I",IF(H11<=Нормативы!$H$9,"II",IF(H11<=Нормативы!$H$10,"III",IF(H11<=Нормативы!$H$11,"I юн",IF(H11<=Нормативы!$H$12,"II юн",IF(H11<=Нормативы!$H$13,"III юн",IF(ISTEXT(H11)," ",IF(ISBLANK(H11)," ","б/р"))))))))))))) -> I юн | L11: 26.8 | M11: =IF(ISBLANK(L11)," ",IF(ISTEXT(L11)," ",IF(L11<=Нормативы!$H$5,"КМС",IF(L11<=Нормативы!$H$6,"КМС",IF(L11<=Нормативы!$L$7,"КМС",IF(L11<=Нормативы!$L$8,"I",IF(L11<=Нормативы!$L$9,"II",IF(L11<=Нормативы!$L$10,"III",IF(L11<=Нормативы!$L$11,"I юн",IF(L11<=Нормативы!$L$12,"II юн",IF(L11<=Нормативы!$L$13,"III юн",IF(ISTEXT(L11)," ",IF(ISBLANK(L11)," ","б/р"))))))))))))) -> I юн | N11: =IF(ISBLANK(L11)," ",IF(ISTEXT(L11)," ",IF(L11<=Нормативы!$H$5,"КМС",IF(L11<=Нормативы!$H$6,"КМС",IF(L11<=Нормативы!$L$7,"КМС",IF(L11<=Нормативы!$L$8,"I",IF(L11<=Нормативы!$L$9,"II",IF(L11<=Нормативы!$L$10,"III",IF(L11<=Нормативы!$L$11,"I юн",IF(L11<=Нормативы!$L$12,"II юн",IF(L11<=Нормативы!$L$13,"III юн",IF(ISTEXT(L11)," ",IF(ISBLANK(L11)," ","б/р"))))))))))))) -> I юн | Q11: =IF(ISBLANK(P11)," ",IF(ISTEXT(P11)," ",IF(P11<=$H$5,"МСМК",IF(P11<=$H$6,"МС",IF(P11<=$H$7,"КМС",IF(P11<=$H$8,"I",IF(P11<=$H$9,"II",IF(P11<=$H$10,"III",IF(P11<=$H$11,"I юн",IF(P11<=$H$12,"II юн",IF(P11<=$H$13,"III юн",IF(ISTEXT(P11)," ",IF(ISBLANK(P11)," ","б/р"))))))))))))) -> 
H12: 29.5 | I12: =IF(ISBLANK(H12)," ",IF(ISTEXT(H12)," ",IF(H12<=Нормативы!$H$5,"МСМК",IF(H12<=Нормативы!$H$6,"МС",IF(H12<=Нормативы!$H$7,"КМС",IF(H12<=Нормативы!$H$8,"I",IF(H12<=Нормативы!$H$9,"II",IF(H12<=Нормативы!$H$10,"III",IF(H12<=Нормативы!$H$11,"I юн",IF(H12<=Нормативы!$H$12,"II юн",IF(H12<=Нормативы!$H$13,"III юн",IF(ISTEXT(H12)," ",IF(ISBLANK(H12)," ","б/р"))))))))))))) -> II юн | J12: =IF(ISBLANK(H12)," ",IF(ISTEXT(H12)," ",IF(H12<=Нормативы!$H$5,"МСМК",IF(H12<=Нормативы!$H$6,"МС",IF(H12<=Нормативы!$H$7,"КМС",IF(H12<=Нормативы!$H$8,"I",IF(H12<=Нормативы!$H$9,"II",IF(H12<=Нормативы!$H$10,"III",IF(H12<=Нормативы!$H$11,"I юн",IF(H12<=Нормативы!$H$12,"II юн",IF(H12<=Нормативы!$H$13,"III юн",IF(ISTEXT(H12)," ",IF(ISBLANK(H12)," ","б/р"))))))))))))) -> II юн | L12: 29.3 | M12: =IF(ISBLANK(L12)," ",IF(ISTEXT(L12)," ",IF(L12<=Нормативы!$H$5,"КМС",IF(L12<=Нормативы!$H$6,"КМС",IF(L12<=Нормативы!$L$7,"КМС",IF(L12<=Нормативы!$L$8,"I",IF(L12<=Нормативы!$L$9,"II",IF(L12<=Нормативы!$L$10,"III",IF(L12<=Нормативы!$L$11,"I юн",IF(L12<=Нормативы!$L$12,"II юн",IF(L12<=Нормативы!$L$13,"III юн",IF(ISTEXT(L12)," ",IF(ISBLANK(L12)," ","б/р"))))))))))))) -> II юн | N12: =IF(ISBLANK(L12)," ",IF(ISTEXT(L12)," ",IF(L12<=Нормативы!$H$5,"КМС",IF(L12<=Нормативы!$H$6,"КМС",IF(L12<=Нормативы!$L$7,"КМС",IF(L12<=Нормативы!$L$8,"I",IF(L12<=Нормативы!$L$9,"II",IF(L12<=Нормативы!$L$10,"III",IF(L12<=Нормативы!$L$11,"I юн",IF(L12<=Нормативы!$L$12,"II юн",IF(L12<=Нормативы!$L$13,"III юн",IF(ISTEXT(L12)," ",IF(ISBLANK(L12)," ","б/р"))))))))))))) -> II юн | Q12: =IF(ISBLANK(P12)," ",IF(ISTEXT(P12)," ",IF(P12<=$H$5,"МСМК",IF(P12<=$H$6,"МС",IF(P12<=$H$7,"КМС",IF(P12<=$H$8,"I",IF(P12<=$H$9,"II",IF(P12<=$H$10,"III",IF(P12<=$H$11,"I юн",IF(P12<=$H$12,"II юн",IF(P12<=$H$13,"III юн",IF(ISTEXT(P12)," ",IF(ISBLANK(P12)," ","б/р"))))))))))))) -> 
H13: 32.2 | I13: =IF(ISBLANK(H13)," ",IF(ISTEXT(H13)," ",IF(H13<=Нормативы!$H$5,"МСМК",IF(H13<=Нормативы!$H$6,"МС",IF(H13<=Нормативы!$H$7,"КМС",IF(H13<=Нормативы!$H$8,"I",IF(H13<=Нормативы!$H$9,"II",IF(H13<=Нормативы!$H$10,"III",IF(H13<=Нормативы!$H$11,"I юн",IF(H13<=Нормативы!$H$12,"II юн",IF(H13<=Нормативы!$H$13,"III юн",IF(ISTEXT(H13)," ",IF(ISBLANK(H13)," ","б/р"))))))))))))) -> III юн | J13: =IF(ISBLANK(H13)," ",IF(ISTEXT(H13)," ",IF(H13<=Нормативы!$H$5,"МСМК",IF(H13<=Нормативы!$H$6,"МС",IF(H13<=Нормативы!$H$7,"КМС",IF(H13<=Нормативы!$H$8,"I",IF(H13<=Нормативы!$H$9,"II",IF(H13<=Нормативы!$H$10,"III",IF(H13<=Нормативы!$H$11,"I юн",IF(H13<=Нормативы!$H$12,"II юн",IF(H13<=Нормативы!$H$13,"III юн",IF(ISTEXT(H13)," ",IF(ISBLANK(H13)," ","б/р"))))))))))))) -> III юн | L13: 32 | M13: =IF(ISBLANK(L13)," ",IF(ISTEXT(L13)," ",IF(L13<=Нормативы!$H$5,"КМС",IF(L13<=Нормативы!$H$6,"КМС",IF(L13<=Нормативы!$L$7,"КМС",IF(L13<=Нормативы!$L$8,"I",IF(L13<=Нормативы!$L$9,"II",IF(L13<=Нормативы!$L$10,"III",IF(L13<=Нормативы!$L$11,"I юн",IF(L13<=Нормативы!$L$12,"II юн",IF(L13<=Нормативы!$L$13,"III юн",IF(ISTEXT(L13)," ",IF(ISBLANK(L13)," ","б/р"))))))))))))) -> III юн | N13: =IF(ISBLANK(L13)," ",IF(ISTEXT(L13)," ",IF(L13<=Нормативы!$H$5,"КМС",IF(L13<=Нормативы!$H$6,"КМС",IF(L13<=Нормативы!$L$7,"КМС",IF(L13<=Нормативы!$L$8,"I",IF(L13<=Нормативы!$L$9,"II",IF(L13<=Нормативы!$L$10,"III",IF(L13<=Нормативы!$L$11,"I юн",IF(L13<=Нормативы!$L$12,"II юн",IF(L13<=Нормативы!$L$13,"III юн",IF(ISTEXT(L13)," ",IF(ISBLANK(L13)," ","б/р"))))))))))))) -> III юн | Q13: =IF(ISBLANK(P13)," ",IF(ISTEXT(P13)," ",IF(P13<=$H$5,"МСМК",IF(P13<=$H$6,"МС",IF(P13<=$H$7,"КМС",IF(P13<=$H$8,"I",IF(P13<=$H$9,"II",IF(P13<=$H$10,"III",IF(P13<=$H$11,"I юн",IF(P13<=$H$12,"II юн",IF(P13<=$H$13,"III юн",IF(ISTEXT(P13)," ",IF(ISBLANK(P13)," ","б/р"))))))))))))) -> 
I14: =IF(ISBLANK(H14)," ",IF(ISTEXT(H14)," ",IF(H14<=18.1,"МСМК",IF(H14<=19,"МС",IF(H14<=19.9,"КМС",IF(H14<=21.3,"I",IF(H14<=23.1,"II",IF(H14<=25,"III",IF(ISTEXT(H14)," ",IF(ISBLANK(H14)," ","б/р")))))))))) ->  | J14: =IF(ISBLANK(H14)," ",IF(ISTEXT(H14)," ",IF(H14<=18.1,"МСМК",IF(H14<=19,"МС",IF(H14<=19.9,"КМС",IF(H14<=21.3,"I",IF(H14<=23.1,"II",IF(H14<=25,"III",IF(ISTEXT(H14)," ",IF(ISBLANK(H14)," ","б/р")))))))))) ->  | Q14: =IF(ISBLANK(P14)," ",IF(ISTEXT(P14)," ",IF(P14<=18.1,"МСМК",IF(P14<=19,"МС",IF(P14<=19.9,"КМС",IF(P14<=21.3,"I",IF(P14<=23.1,"II",IF(P14<=25,"III",IF(ISTEXT(P14)," ",IF(ISBLANK(P14)," ","б/р")))))))))) -> 
C15: Плавание в ластах - 50 м (1460081811Я), мужчины
H16: 15.8 | I16: =IF(ISBLANK(H16)," ",IF(ISTEXT(H16)," ",IF(H16<=Нормативы!$H$16,"МСМК",IF(H16<=Нормативы!$H$17,"МС",IF(H16<=Нормативы!$H$18,"КМС",IF(H16<=Нормативы!$H$19,"I",IF(H16<=Нормативы!$H$20,"II",IF(H16<=Нормативы!$H$21,"III",IF(H16<=Нормативы!$H$22,"I юн",IF(H16<=Нормативы!$H$23,"II юн",IF(H16<=Нормативы!$H$24,"III юн","б/р"))))))))))) -> МСМК | J16: =IF(ISBLANK(H16)," ",IF(ISTEXT(H16)," ",IF(H16<=Нормативы!$H$16,"МСМК",IF(H16<=Нормативы!$H$17,"МС",IF(H16<=Нормативы!$H$18,"КМС",IF(H16<=Нормативы!$H$19,"I",IF(H16<=Нормативы!$H$20,"II",IF(H16<=Нормативы!$H$21,"III",IF(H16<=Нормативы!$H$22,"I юн",IF(H16<=Нормативы!$H$23,"II юн",IF(H16<=Нормативы!$H$24,"III юн","б/р"))))))))))) -> МСМК | M16: =IF(ISBLANK(L16)," ",IF(ISTEXT(L16)," ",IF(L16<=Нормативы!$H$16,"КМС",IF(L16<=Нормативы!$H$17,"КМС",IF(L16<=Нормативы!$L$18,"КМС",IF(L16<=Нормативы!$L$19,"I",IF(L16<=Нормативы!$L$20,"II",IF(L16<=Нормативы!$L$21,"III",IF(L16<=Нормативы!$L$22,"I юн",IF(L16<=Нормативы!$L$23,"II юн",IF(L16<=Нормативы!$L$24,"III юн","б/р"))))))))))) ->  | N16: =IF(ISBLANK(L16)," ",IF(ISTEXT(L16)," ",IF(L16<=15.9,"МСМК",IF(L16<=16.9,"МС",IF(L16<=17.6,"КМС",IF(L16<=18.5,"I",IF(L16<=20.1,"II",IF(L16<=21.9,"III",IF(L16<=24,"I юн",IF(L16<=26.2,"II юн",IF(L16<=28.4,"III юн","б/р"))))))))))) ->  | Q16: =IF(ISBLANK(P16)," ",IF(ISTEXT(P16)," ",IF(P16<=$H$16,"МСМК",IF(P16<=$H$17,"МС",IF(P16<=$H$18,"КМС",IF(P16<=$H$19,"I",IF(P16<=$H$20,"II",IF(P16<=$H$21,"III",IF(P16<=$H$22,"I юн",IF(P16<=$H$23,"II юн",IF(P16<=$H$24,"III юн","б/р"))))))))))) -> 
H17: 16.7 | I17: =IF(ISBLANK(H17)," ",IF(ISTEXT(H17)," ",IF(H17<=Нормативы!$H$16,"МСМК",IF(H17<=Нормативы!$H$17,"МС",IF(H17<=Нормативы!$H$18,"КМС",IF(H17<=Нормативы!$H$19,"I",IF(H17<=Нормативы!$H$20,"II",IF(H17<=Нормативы!$H$21,"III",IF(H17<=Нормативы!$H$22,"I юн",IF(H17<=Нормативы!$H$23,"II юн",IF(H17<=Нормативы!$H$24,"III юн","б/р"))))))))))) -> МС | J17: =IF(ISBLANK(H17)," ",IF(ISTEXT(H17)," ",IF(H17<=Нормативы!$H$16,"МСМК",IF(H17<=Нормативы!$H$17,"МС",IF(H17<=Нормативы!$H$18,"КМС",IF(H17<=Нормативы!$H$19,"I",IF(H17<=Нормативы!$H$20,"II",IF(H17<=Нормативы!$H$21,"III",IF(H17<=Нормативы!$H$22,"I юн",IF(H17<=Нормативы!$H$23,"II юн",IF(H17<=Нормативы!$H$24,"III юн","б/р"))))))))))) -> МС | M17: =IF(ISBLANK(L17)," ",IF(ISTEXT(L17)," ",IF(L17<=Нормативы!$H$16,"КМС",IF(L17<=Нормативы!$H$17,"КМС",IF(L17<=Нормативы!$L$18,"КМС",IF(L17<=Нормативы!$L$19,"I",IF(L17<=Нормативы!$L$20,"II",IF(L17<=Нормативы!$L$21,"III",IF(L17<=Нормативы!$L$22,"I юн",IF(L17<=Нормативы!$L$23,"II юн",IF(L17<=Нормативы!$L$24,"III юн","б/р"))))))))))) ->  | N17: =IF(ISBLANK(L17)," ",IF(ISTEXT(L17)," ",IF(L17<=15.9,"МСМК",IF(L17<=16.9,"МС",IF(L17<=17.6,"КМС",IF(L17<=18.5,"I",IF(L17<=20.1,"II",IF(L17<=21.9,"III",IF(L17<=24,"I юн",IF(L17<=26.2,"II юн",IF(L17<=28.4,"III юн","б/р"))))))))))) ->  | Q17: =IF(ISBLANK(P17)," ",IF(ISTEXT(P17)," ",IF(P17<=$H$16,"МСМК",IF(P17<=$H$17,"МС",IF(P17<=$H$18,"КМС",IF(P17<=$H$19,"I",IF(P17<=$H$20,"II",IF(P17<=$H$21,"III",IF(P17<=$H$22,"I юн",IF(P17<=$H$23,"II юн",IF(P17<=$H$24,"III юн","б/р"))))))))))) -> 
H18: 17.5 | I18: =IF(ISBLANK(H18)," ",IF(ISTEXT(H18)," ",IF(H18<=Нормативы!$H$16,"МСМК",IF(H18<=Нормативы!$H$17,"МС",IF(H18<=Нормативы!$H$18,"КМС",IF(H18<=Нормативы!$H$19,"I",IF(H18<=Нормативы!$H$20,"II",IF(H18<=Нормативы!$H$21,"III",IF(H18<=Нормативы!$H$22,"I юн",IF(H18<=Нормативы!$H$23,"II юн",IF(H18<=Нормативы!$H$24,"III юн","б/р"))))))))))) -> КМС | J18: =IF(ISBLANK(H18)," ",IF(ISTEXT(H18)," ",IF(H18<=Нормативы!$H$16,"МСМК",IF(H18<=Нормативы!$H$17,"МС",IF(H18<=Нормативы!$H$18,"КМС",IF(H18<=Нормативы!$H$19,"I",IF(H18<=Нормативы!$H$20,"II",IF(H18<=Нормативы!$H$21,"III",IF(H18<=Нормативы!$H$22,"I юн",IF(H18<=Нормативы!$H$23,"II юн",IF(H18<=Нормативы!$H$24,"III юн","б/р"))))))))))) -> КМС | L18: 17.3 | M18: =IF(ISBLANK(L18)," ",IF(ISTEXT(L18)," ",IF(L18<=Нормативы!$H$16,"КМС",IF(L18<=Нормативы!$H$17,"КМС",IF(L18<=Нормативы!$L$18,"КМС",IF(L18<=Нормативы!$L$19,"I",IF(L18<=Нормативы!$L$20,"II",IF(L18<=Нормативы!$L$21,"III",IF(L18<=Нормативы!$L$22,"I юн",IF(L18<=Нормативы!$L$23,"II юн",IF(L18<=Нормативы!$L$24,"III юн","б/р"))))))))))) -> КМС | N18: =IF(ISBLANK(L18)," ",IF(ISTEXT(L18)," ",IF(L18<=Нормативы!$H$16,"КМС",IF(L18<=Нормативы!$H$17,"КМС",IF(L18<=Нормативы!$L$18,"КМС",IF(L18<=Нормативы!$L$19,"I",IF(L18<=Нормативы!$L$20,"II",IF(L18<=Нормативы!$L$21,"III",IF(L18<=Нормативы!$L$22,"I юн",IF(L18<=Нормативы!$L$23,"II юн",IF(L18<=Нормативы!$L$24,"III юн","б/р"))))))))))) -> КМС | Q18: =IF(ISBLANK(P18)," ",IF(ISTEXT(P18)," ",IF(P18<=$H$16,"МСМК",IF(P18<=$H$17,"МС",IF(P18<=$H$18,"КМС",IF(P18<=$H$19,"I",IF(P18<=$H$20,"II",IF(P18<=$H$21,"III",IF(P18<=$H$22,"I юн",IF(P18<=$H$23,"II юн",IF(P18<=$H$24,"III юн","б/р"))))))))))) -> 
H19: 18.5 | I19: =IF(ISBLANK(H19)," ",IF(ISTEXT(H19)," ",IF(H19<=Нормативы!$H$16,"МСМК",IF(H19<=Нормативы!$H$17,"МС",IF(H19<=Нормативы!$H$18,"КМС",IF(H19<=Нормативы!$H$19,"I",IF(H19<=Нормативы!$H$20,"II",IF(H19<=Нормативы!$H$21,"III",IF(H19<=Нормативы!$H$22,"I юн",IF(H19<=Нормативы!$H$23,"II юн",IF(H19<=Нормативы!$H$24,"III юн","б/р"))))))))))) -> I | J19: =IF(ISBLANK(H19)," ",IF(ISTEXT(H19)," ",IF(H19<=Нормативы!$H$16,"МСМК",IF(H19<=Нормативы!$H$17,"МС",IF(H19<=Нормативы!$H$18,"КМС",IF(H19<=Нормативы!$H$19,"I",IF(H19<=Нормативы!$H$20,"II",IF(H19<=Нормативы!$H$21,"III",IF(H19<=Нормативы!$H$22,"I юн",IF(H19<=Нормативы!$H$23,"II юн",IF(H19<=Нормативы!$H$24,"III юн","б/р"))))))))))) -> I | L19: 18.3 | M19: =IF(ISBLANK(L19)," ",IF(ISTEXT(L19)," ",IF(L19<=Нормативы!$H$16,"КМС",IF(L19<=Нормативы!$H$17,"КМС",IF(L19<=Нормативы!$L$18,"КМС",IF(L19<=Нормативы!$L$19,"I",IF(L19<=Нормативы!$L$20,"II",IF(L19<=Нормативы!$L$21,"III",IF(L19<=Нормативы!$L$22,"I юн",IF(L19<=Нормативы!$L$23,"II юн",IF(L19<=Нормативы!$L$24,"III юн","б/р"))))))))))) -> I | N19: =IF(ISBLANK(L19)," ",IF(ISTEXT(L19)," ",IF(L19<=Нормативы!$H$16,"КМС",IF(L19<=Нормативы!$H$17,"КМС",IF(L19<=Нормативы!$L$18,"КМС",IF(L19<=Нормативы!$L$19,"I",IF(L19<=Нормативы!$L$20,"II",IF(L19<=Нормативы!$L$21,"III",IF(L19<=Нормативы!$L$22,"I юн",IF(L19<=Нормативы!$L$23,"II юн",IF(L19<=Нормативы!$L$24,"III юн","б/р"))))))))))) -> I | Q19: =IF(ISBLANK(P19)," ",IF(ISTEXT(P19)," ",IF(P19<=$H$16,"МСМК",IF(P19<=$H$17,"МС",IF(P19<=$H$18,"КМС",IF(P19<=$H$19,"I",IF(P19<=$H$20,"II",IF(P19<=$H$21,"III",IF(P19<=$H$22,"I юн",IF(P19<=$H$23,"II юн",IF(P19<=$H$24,"III юн","б/р"))))))))))) -> 
H20: 20.1 | I20: =IF(ISBLANK(H20)," ",IF(ISTEXT(H20)," ",IF(H20<=Нормативы!$H$16,"МСМК",IF(H20<=Нормативы!$H$17,"МС",IF(H20<=Нормативы!$H$18,"КМС",IF(H20<=Нормативы!$H$19,"I",IF(H20<=Нормативы!$H$20,"II",IF(H20<=Нормативы!$H$21,"III",IF(H20<=Нормативы!$H$22,"I юн",IF(H20<=Нормативы!$H$23,"II юн",IF(H20<=Нормативы!$H$24,"III юн","б/р"))))))))))) -> II | J20: =IF(ISBLANK(H20)," ",IF(ISTEXT(H20)," ",IF(H20<=Нормативы!$H$16,"МСМК",IF(H20<=Нормативы!$H$17,"МС",IF(H20<=Нормативы!$H$18,"КМС",IF(H20<=Нормативы!$H$19,"I",IF(H20<=Нормативы!$H$20,"II",IF(H20<=Нормативы!$H$21,"III",IF(H20<=Нормативы!$H$22,"I юн",IF(H20<=Нормативы!$H$23,"II юн",IF(H20<=Нормативы!$H$24,"III юн","б/р"))))))))))) -> II | L20: 19.9 | M20: =IF(ISBLANK(L20)," ",IF(ISTEXT(L20)," ",IF(L20<=Нормативы!$H$16,"КМС",IF(L20<=Нормативы!$H$17,"КМС",IF(L20<=Нормативы!$L$18,"КМС",IF(L20<=Нормативы!$L$19,"I",IF(L20<=Нормативы!$L$20,"II",IF(L20<=Нормативы!$L$21,"III",IF(L20<=Нормативы!$L$22,"I юн",IF(L20<=Нормативы!$L$23,"II юн",IF(L20<=Нормативы!$L$24,"III юн","б/р"))))))))))) -> II | N20: =IF(ISBLANK(L20)," ",IF(ISTEXT(L20)," ",IF(L20<=Нормативы!$H$16,"КМС",IF(L20<=Нормативы!$H$17,"КМС",IF(L20<=Нормативы!$L$18,"КМС",IF(L20<=Нормативы!$L$19,"I",IF(L20<=Нормативы!$L$20,"II",IF(L20<=Нормативы!$L$21,"III",IF(L20<=Нормативы!$L$22,"I юн",IF(L20<=Нормативы!$L$23,"II юн",IF(L20<=Нормативы!$L$24,"III юн","б/р"))))))))))) -> II | Q20: =IF(ISBLANK(P20)," ",IF(ISTEXT(P20)," ",IF(P20<=$H$16,"МСМК",IF(P20<=$H$17,"МС",IF(P20<=$H$18,"КМС",IF(P20<=$H$19,"I",IF(P20<=$H$20,"II",IF(P20<=$H$21,"III",IF(P20<=$H$22,"I юн",IF(P20<=$H$23,"II юн",IF(P20<=$H$24,"III юн","б/р"))))))))))) -> 
H21: 21.8 | I21: =IF(ISBLANK(H21)," ",IF(ISTEXT(H21)," ",IF(H21<=Нормативы!$H$16,"МСМК",IF(H21<=Нормативы!$H$17,"МС",IF(H21<=Нормативы!$H$18,"КМС",IF(H21<=Нормативы!$H$19,"I",IF(H21<=Нормативы!$H$20,"II",IF(H21<=Нормативы!$H$21,"III",IF(H21<=Нормативы!$H$22,"I юн",IF(H21<=Нормативы!$H$23,"II юн",IF(H21<=Нормативы!$H$24,"III юн","б/р"))))))))))) -> III | J21: =IF(ISBLANK(H21)," ",IF(ISTEXT(H21)," ",IF(H21<=Нормативы!$H$16,"МСМК",IF(H21<=Нормативы!$H$17,"МС",IF(H21<=Нормативы!$H$18,"КМС",IF(H21<=Нормативы!$H$19,"I",IF(H21<=Нормативы!$H$20,"II",IF(H21<=Нормативы!$H$21,"III",IF(H21<=Нормативы!$H$22,"I юн",IF(H21<=Нормативы!$H$23,"II юн",IF(H21<=Нормативы!$H$24,"III юн","б/р"))))))))))) -> III | L21: 21.6 | M21: =IF(ISBLANK(L21)," ",IF(ISTEXT(L21)," ",IF(L21<=Нормативы!$H$16,"КМС",IF(L21<=Нормативы!$H$17,"КМС",IF(L21<=Нормативы!$L$18,"КМС",IF(L21<=Нормативы!$L$19,"I",IF(L21<=Нормативы!$L$20,"II",IF(L21<=Нормативы!$L$21,"III",IF(L21<=Нормативы!$L$22,"I юн",IF(L21<=Нормативы!$L$23,"II юн",IF(L21<=Нормативы!$L$24,"III юн","б/р"))))))))))) -> III | N21: =IF(ISBLANK(L21)," ",IF(ISTEXT(L21)," ",IF(L21<=Нормативы!$H$16,"КМС",IF(L21<=Нормативы!$H$17,"КМС",IF(L21<=Нормативы!$L$18,"КМС",IF(L21<=Нормативы!$L$19,"I",IF(L21<=Нормативы!$L$20,"II",IF(L21<=Нормативы!$L$21,"III",IF(L21<=Нормативы!$L$22,"I юн",IF(L21<=Нормативы!$L$23,"II юн",IF(L21<=Нормативы!$L$24,"III юн","б/р"))))))))))) -> III | Q21: =IF(ISBLANK(P21)," ",IF(ISTEXT(P21)," ",IF(P21<=$H$16,"МСМК",IF(P21<=$H$17,"МС",IF(P21<=$H$18,"КМС",IF(P21<=$H$19,"I",IF(P21<=$H$20,"II",IF(P21<=$H$21,"III",IF(P21<=$H$22,"I юн",IF(P21<=$H$23,"II юн",IF(P21<=$H$24,"III юн","б/р"))))))))))) -> 
H22: 24 | I22: =IF(ISBLANK(H22)," ",IF(ISTEXT(H22)," ",IF(H22<=Нормативы!$H$16,"МСМК",IF(H22<=Нормативы!$H$17,"МС",IF(H22<=Нормативы!$H$18,"КМС",IF(H22<=Нормативы!$H$19,"I",IF(H22<=Нормативы!$H$20,"II",IF(H22<=Нормативы!$H$21,"III",IF(H22<=Нормативы!$H$22,"I юн",IF(H22<=Нормативы!$H$23,"II юн",IF(H22<=Нормативы!$H$24,"III юн","б/р"))))))))))) -> I юн | J22: =IF(ISBLANK(H22)," ",IF(ISTEXT(H22)," ",IF(H22<=Нормативы!$H$16,"МСМК",IF(H22<=Нормативы!$H$17,"МС",IF(H22<=Нормативы!$H$18,"КМС",IF(H22<=Нормативы!$H$19,"I",IF(H22<=Нормативы!$H$20,"II",IF(H22<=Нормативы!$H$21,"III",IF(H22<=Нормативы!$H$22,"I юн",IF(H22<=Нормативы!$H$23,"II юн",IF(H22<=Нормативы!$H$24,"III юн","б/р"))))))))))) -> I юн | L22: 23.8 | M22: =IF(ISBLANK(L22)," ",IF(ISTEXT(L22)," ",IF(L22<=Нормативы!$H$16,"КМС",IF(L22<=Нормативы!$H$17,"КМС",IF(L22<=Нормативы!$L$18,"КМС",IF(L22<=Нормативы!$L$19,"I",IF(L22<=Нормативы!$L$20,"II",IF(L22<=Нормативы!$L$21,"III",IF(L22<=Нормативы!$L$22,"I юн",IF(L22<=Нормативы!$L$23,"II юн",IF(L22<=Нормативы!$L$24,"III юн","б/р"))))))))))) -> I юн | N22: =IF(ISBLANK(L22)," ",IF(ISTEXT(L22)," ",IF(L22<=Нормативы!$H$16,"КМС",IF(L22<=Нормативы!$H$17,"КМС",IF(L22<=Нормативы!$L$18,"КМС",IF(L22<=Нормативы!$L$19,"I",IF(L22<=Нормативы!$L$20,"II",IF(L22<=Нормативы!$L$21,"III",IF(L22<=Нормативы!$L$22,"I юн",IF(L22<=Нормативы!$L$23,"II юн",IF(L22<=Нормативы!$L$24,"III юн","б/р"))))))))))) -> I юн | Q22: =IF(ISBLANK(P22)," ",IF(ISTEXT(P22)," ",IF(P22<=$H$16,"МСМК",IF(P22<=$H$17,"МС",IF(P22<=$H$18,"КМС",IF(P22<=$H$19,"I",IF(P22<=$H$20,"II",IF(P22<=$H$21,"III",IF(P22<=$H$22,"I юн",IF(P22<=$H$23,"II юн",IF(P22<=$H$24,"III юн","б/р"))))))))))) -> 
H23: 26.2 | I23: =IF(ISBLANK(H23)," ",IF(ISTEXT(H23)," ",IF(H23<=Нормативы!$H$16,"МСМК",IF(H23<=Нормативы!$H$17,"МС",IF(H23<=Нормативы!$H$18,"КМС",IF(H23<=Нормативы!$H$19,"I",IF(H23<=Нормативы!$H$20,"II",IF(H23<=Нормативы!$H$21,"III",IF(H23<=Нормативы!$H$22,"I юн",IF(H23<=Нормативы!$H$23,"II юн",IF(H23<=Нормативы!$H$24,"III юн","б/р"))))))))))) -> II юн | J23: =IF(ISBLANK(H23)," ",IF(ISTEXT(H23)," ",IF(H23<=Нормативы!$H$16,"МСМК",IF(H23<=Нормативы!$H$17,"МС",IF(H23<=Нормативы!$H$18,"КМС",IF(H23<=Нормативы!$H$19,"I",IF(H23<=Нормативы!$H$20,"II",IF(H23<=Нормативы!$H$21,"III",IF(H23<=Нормативы!$H$22,"I юн",IF(H23<=Нормативы!$H$23,"II юн",IF(H23<=Нормативы!$H$24,"III юн","б/р"))))))))))) -> II юн | L23: 26 | M23: =IF(ISBLANK(L23)," ",IF(ISTEXT(L23)," ",IF(L23<=Нормативы!$H$16,"КМС",IF(L23<=Нормативы!$H$17,"КМС",IF(L23<=Нормативы!$L$18,"КМС",IF(L23<=Нормативы!$L$19,"I",IF(L23<=Нормативы!$L$20,"II",IF(L23<=Нормативы!$L$21,"III",IF(L23<=Нормативы!$L$22,"I юн",IF(L23<=Нормативы!$L$23,"II юн",IF(L23<=Нормативы!$L$24,"III юн","б/р"))))))))))) -> II юн | N23: =IF(ISBLANK(L23)," ",IF(ISTEXT(L23)," ",IF(L23<=Нормативы!$H$16,"КМС",IF(L23<=Нормативы!$H$17,"КМС",IF(L23<=Нормативы!$L$18,"КМС",IF(L23<=Нормативы!$L$19,"I",IF(L23<=Нормативы!$L$20,"II",IF(L23<=Нормативы!$L$21,"III",IF(L23<=Нормативы!$L$22,"I юн",IF(L23<=Нормативы!$L$23,"II юн",IF(L23<=Нормативы!$L$24,"III юн","б/р"))))))))))) -> II юн | Q23: =IF(ISBLANK(P23)," ",IF(ISTEXT(P23)," ",IF(P23<=$H$16,"МСМК",IF(P23<=$H$17,"МС",IF(P23<=$H$18,"КМС",IF(P23<=$H$19,"I",IF(P23<=$H$20,"II",IF(P23<=$H$21,"III",IF(P23<=$H$22,"I юн",IF(P23<=$H$23,"II юн",IF(P23<=$H$24,"III юн","б/р"))))))))))) -> 
H24: 28.2 | I24: =IF(ISBLANK(H24)," ",IF(ISTEXT(H24)," ",IF(H24<=Нормативы!$H$16,"МСМК",IF(H24<=Нормативы!$H$17,"МС",IF(H24<=Нормативы!$H$18,"КМС",IF(H24<=Нормативы!$H$19,"I",IF(H24<=Нормативы!$H$20,"II",IF(H24<=Нормативы!$H$21,"III",IF(H24<=Нормативы!$H$22,"I юн",IF(H24<=Нормативы!$H$23,"II юн",IF(H24<=Нормативы!$H$24,"III юн","б/р"))))))))))) -> III юн | J24: =IF(ISBLANK(H24)," ",IF(ISTEXT(H24)," ",IF(H24<=Нормативы!$H$16,"МСМК",IF(H24<=Нормативы!$H$17,"МС",IF(H24<=Нормативы!$H$18,"КМС",IF(H24<=Нормативы!$H$19,"I",IF(H24<=Нормативы!$H$20,"II",IF(H24<=Нормативы!$H$21,"III",IF(H24<=Нормативы!$H$22,"I юн",IF(H24<=Нормативы!$H$23,"II юн",IF(H24<=Нормативы!$H$24,"III юн","б/р"))))))))))) -> III юн | L24: 28 | M24: =IF(ISBLANK(L24)," ",IF(ISTEXT(L24)," ",IF(L24<=Нормативы!$H$16,"КМС",IF(L24<=Нормативы!$H$17,"КМС",IF(L24<=Нормативы!$L$18,"КМС",IF(L24<=Нормативы!$L$19,"I",IF(L24<=Нормативы!$L$20,"II",IF(L24<=Нормативы!$L$21,"III",IF(L24<=Нормативы!$L$22,"I юн",IF(L24<=Нормативы!$L$23,"II юн",IF(L24<=Нормативы!$L$24,"III юн","б/р"))))))))))) -> III юн | N24: =IF(ISBLANK(L24)," ",IF(ISTEXT(L24)," ",IF(L24<=Нормативы!$H$16,"КМС",IF(L24<=Нормативы!$H$17,"КМС",IF(L24<=Нормативы!$L$18,"КМС",IF(L24<=Нормативы!$L$19,"I",IF(L24<=Нормативы!$L$20,"II",IF(L24<=Нормативы!$L$21,"III",IF(L24<=Нормативы!$L$22,"I юн",IF(L24<=Нормативы!$L$23,"II юн",IF(L24<=Нормативы!$L$24,"III юн","б/р"))))))))))) -> III юн | Q24: =IF(ISBLANK(P24)," ",IF(ISTEXT(P24)," ",IF(P24<=$H$16,"МСМК",IF(P24<=$H$17,"МС",IF(P24<=$H$18,"КМС",IF(P24<=$H$19,"I",IF(P24<=$H$20,"II",IF(P24<=$H$21,"III",IF(P24<=$H$22,"I юн",IF(P24<=$H$23,"II юн",IF(P24<=$H$24,"III юн","б/р"))))))))))) -> 
C26: Плавание в классических ластах- 50 м (1460241811Я), женщины
H27: 22 | I27: =IF(ISBLANK(H27)," ",IF(ISTEXT(H27)," ",IF(H27<=Нормативы!$H$27,"МСМК",IF(H27<=Нормативы!$H$28,"МС",IF(H27<=Нормативы!$H$29,"КМС",IF(H27<=Нормативы!$H$30,"I",IF(H27<=Нормативы!$H$31,"II",IF(H27<=Нормативы!$H$32,"III",IF(H27<=Нормативы!$H$33,"I юн",IF(H27<=Нормативы!$H$34,"II юн",IF(H27<=Нормативы!$H$35,"III юн","б/р"))))))))))) -> МСМК | J27: =IF(ISBLANK(H27)," ",IF(ISTEXT(H27)," ",IF(H27<=Нормативы!$H$27,"МСМК",IF(H27<=Нормативы!$H$28,"МС",IF(H27<=Нормативы!$H$29,"КМС",IF(H27<=Нормативы!$H$30,"I",IF(H27<=Нормативы!$H$31,"II",IF(H27<=Нормативы!$H$32,"III",IF(H27<=Нормативы!$H$33,"I юн",IF(H27<=Нормативы!$H$34,"II юн",IF(H27<=Нормативы!$H$35,"III юн","б/р"))))))))))) -> МСМК | M27: =IF(ISBLANK(L27)," ",IF(ISTEXT(L27)," ",IF(L27<=Нормативы!$H$27,"КМС",IF(L27<=Нормативы!$H$28,"КМС",IF(L27<=Нормативы!$L$29,"КМС",IF(L27<=Нормативы!$L$30,"I",IF(L27<=Нормативы!$L$31,"II",IF(L27<=Нормативы!$L$32,"III",IF(L27<=Нормативы!$L$33,"I юн",IF(L27<=Нормативы!$L$34,"II юн",IF(L27<=Нормативы!$L$35,"III юн","б/р"))))))))))) ->  | N27: =IF(ISBLANK(L27)," ",IF(ISTEXT(L27)," ",IF(L27<=22.3,"МСМК",IF(L27<=23.7,"МС",IF(L27<=24.6,"КМС",IF(L27<=26.4,"I",IF(L27<=28,"II",IF(L27<=30.5,"III",IF(L27<=33.5,"I юн",IF(L27<=36.7,"II юн",IF(L27<=39.8,"III юн","б/р"))))))))))) ->  | Q27: =IF(ISBLANK(P27)," ",IF(ISTEXT(P27)," ",IF(P27<=$H$27,"МСМК",IF(P27<=$H$28,"МС",IF(P27<=$H$29,"КМС",IF(P27<=$H$30,"I",IF(P27<=$H$31,"II",IF(P27<=$H$32,"III",IF(P27<=$H$33,"I юн",IF(P27<=$H$34,"II юн",IF(P27<=$H$35,"III юн","б/р"))))))))))) -> 
H28: 23.2 | I28: =IF(ISBLANK(H28)," ",IF(ISTEXT(H28)," ",IF(H28<=Нормативы!$H$27,"МСМК",IF(H28<=Нормативы!$H$28,"МС",IF(H28<=Нормативы!$H$29,"КМС",IF(H28<=Нормативы!$H$30,"I",IF(H28<=Нормативы!$H$31,"II",IF(H28<=Нормативы!$H$32,"III",IF(H28<=Нормативы!$H$33,"I юн",IF(H28<=Нормативы!$H$34,"II юн",IF(H28<=Нормативы!$H$35,"III юн","б/р"))))))))))) -> МС | J28: =IF(ISBLANK(H28)," ",IF(ISTEXT(H28)," ",IF(H28<=Нормативы!$H$27,"МСМК",IF(H28<=Нормативы!$H$28,"МС",IF(H28<=Нормативы!$H$29,"КМС",IF(H28<=Нормативы!$H$30,"I",IF(H28<=Нормативы!$H$31,"II",IF(H28<=Нормативы!$H$32,"III",IF(H28<=Нормативы!$H$33,"I юн",IF(H28<=Нормативы!$H$34,"II юн",IF(H28<=Нормативы!$H$35,"III юн","б/р"))))))))))) -> МС | M28: =IF(ISBLANK(L28)," ",IF(ISTEXT(L28)," ",IF(L28<=Нормативы!$H$27,"КМС",IF(L28<=Нормативы!$H$28,"КМС",IF(L28<=Нормативы!$L$29,"КМС",IF(L28<=Нормативы!$L$30,"I",IF(L28<=Нормативы!$L$31,"II",IF(L28<=Нормативы!$L$32,"III",IF(L28<=Нормативы!$L$33,"I юн",IF(L28<=Нормативы!$L$34,"II юн",IF(L28<=Нормативы!$L$35,"III юн","б/р"))))))))))) ->  | N28: =IF(ISBLANK(L28)," ",IF(ISTEXT(L28)," ",IF(L28<=22.3,"МСМК",IF(L28<=23.7,"МС",IF(L28<=24.6,"КМС",IF(L28<=26.4,"I",IF(L28<=28,"II",IF(L28<=30.5,"III",IF(L28<=33.5,"I юн",IF(L28<=36.7,"II юн",IF(L28<=39.8,"III юн","б/р"))))))))))) ->  | Q28: =IF(ISBLANK(P28)," ",IF(ISTEXT(P28)," ",IF(P28<=$H$27,"МСМК",IF(P28<=$H$28,"МС",IF(P28<=$H$29,"КМС",IF(P28<=$H$30,"I",IF(P28<=$H$31,"II",IF(P28<=$H$32,"III",IF(P28<=$H$33,"I юн",IF(P28<=$H$34,"II юн",IF(P28<=$H$35,"III юн","б/р"))))))))))) -> 
H29: 24.5 | I29: =IF(ISBLANK(H29)," ",IF(ISTEXT(H29)," ",IF(H29<=Нормативы!$H$27,"МСМК",IF(H29<=Нормативы!$H$28,"МС",IF(H29<=Нормативы!$H$29,"КМС",IF(H29<=Нормативы!$H$30,"I",IF(H29<=Нормативы!$H$31,"II",IF(H29<=Нормативы!$H$32,"III",IF(H29<=Нормативы!$H$33,"I юн",IF(H29<=Нормативы!$H$34,"II юн",IF(H29<=Нормативы!$H$35,"III юн","б/р"))))))))))) -> КМС | J29: =IF(ISBLANK(H29)," ",IF(ISTEXT(H29)," ",IF(H29<=Нормативы!$H$27,"МСМК",IF(H29<=Нормативы!$H$28,"МС",IF(H29<=Нормативы!$H$29,"КМС",IF(H29<=Нормативы!$H$30,"I",IF(H29<=Нормативы!$H$31,"II",IF(H29<=Нормативы!$H$32,"III",IF(H29<=Нормативы!$H$33,"I юн",IF(H29<=Нормативы!$H$34,"II юн",IF(H29<=Нормативы!$H$35,"III юн","б/р"))))))))))) -> КМС | L29: =H29-0.2 -> 24.3 | M29: =IF(ISBLANK(L29)," ",IF(ISTEXT(L29)," ",IF(L29<=Нормативы!$H$27,"КМС",IF(L29<=Нормативы!$H$28,"КМС",IF(L29<=Нормативы!$L$29,"КМС",IF(L29<=Нормативы!$L$30,"I",IF(L29<=Нормативы!$L$31,"II",IF(L29<=Нормативы!$L$32,"III",IF(L29<=Нормативы!$L$33,"I юн",IF(L29<=Нормативы!$L$34,"II юн",IF(L29<=Нормативы!$L$35,"III юн","б/р"))))))))))) -> КМС | N29: =IF(ISBLANK(L29)," ",IF(ISTEXT(L29)," ",IF(L29<=Нормативы!$H$27,"КМС",IF(L29<=Нормативы!$H$28,"КМС",IF(L29<=Нормативы!$L$29,"КМС",IF(L29<=Нормативы!$L$30,"I",IF(L29<=Нормативы!$L$31,"II",IF(L29<=Нормативы!$L$32,"III",IF(L29<=Нормативы!$L$33,"I юн",IF(L29<=Нормативы!$L$34,"II юн",IF(L29<=Нормативы!$L$35,"III юн","б/р"))))))))))) -> КМС | Q29: =IF(ISBLANK(P29)," ",IF(ISTEXT(P29)," ",IF(P29<=$H$27,"МСМК",IF(P29<=$H$28,"МС",IF(P29<=$H$29,"КМС",IF(P29<=$H$30,"I",IF(P29<=$H$31,"II",IF(P29<=$H$32,"III",IF(P29<=$H$33,"I юн",IF(P29<=$H$34,"II юн",IF(P29<=$H$35,"III юн","б/р"))))))))))) -> 
H30: 26.2 | I30: =IF(ISBLANK(H30)," ",IF(ISTEXT(H30)," ",IF(H30<=Нормативы!$H$27,"МСМК",IF(H30<=Нормативы!$H$28,"МС",IF(H30<=Нормативы!$H$29,"КМС",IF(H30<=Нормативы!$H$30,"I",IF(H30<=Нормативы!$H$31,"II",IF(H30<=Нормативы!$H$32,"III",IF(H30<=Нормативы!$H$33,"I юн",IF(H30<=Нормативы!$H$34,"II юн",IF(H30<=Нормативы!$H$35,"III юн","б/р"))))))))))) -> I | J30: =IF(ISBLANK(H30)," ",IF(ISTEXT(H30)," ",IF(H30<=Нормативы!$H$27,"МСМК",IF(H30<=Нормативы!$H$28,"МС",IF(H30<=Нормативы!$H$29,"КМС",IF(H30<=Нормативы!$H$30,"I",IF(H30<=Нормативы!$H$31,"II",IF(H30<=Нормативы!$H$32,"III",IF(H30<=Нормативы!$H$33,"I юн",IF(H30<=Нормативы!$H$34,"II юн",IF(H30<=Нормативы!$H$35,"III юн","б/р"))))))))))) -> I | L30: 26 | M30: =IF(ISBLANK(L30)," ",IF(ISTEXT(L30)," ",IF(L30<=Нормативы!$H$27,"КМС",IF(L30<=Нормативы!$H$28,"КМС",IF(L30<=Нормативы!$L$29,"КМС",IF(L30<=Нормативы!$L$30,"I",IF(L30<=Нормативы!$L$31,"II",IF(L30<=Нормативы!$L$32,"III",IF(L30<=Нормативы!$L$33,"I юн",IF(L30<=Нормативы!$L$34,"II юн",IF(L30<=Нормативы!$L$35,"III юн","б/р"))))))))))) -> I | N30: =IF(ISBLANK(L30)," ",IF(ISTEXT(L30)," ",IF(L30<=Нормативы!$H$27,"КМС",IF(L30<=Нормативы!$H$28,"КМС",IF(L30<=Нормативы!$L$29,"КМС",IF(L30<=Нормативы!$L$30,"I",IF(L30<=Нормативы!$L$31,"II",IF(L30<=Нормативы!$L$32,"III",IF(L30<=Нормативы!$L$33,"I юн",IF(L30<=Нормативы!$L$34,"II юн",IF(L30<=Нормативы!$L$35,"III юн","б/р"))))))))))) -> I | Q30: =IF(ISBLANK(P30)," ",IF(ISTEXT(P30)," ",IF(P30<=$H$27,"МСМК",IF(P30<=$H$28,"МС",IF(P30<=$H$29,"КМС",IF(P30<=$H$30,"I",IF(P30<=$H$31,"II",IF(P30<=$H$32,"III",IF(P30<=$H$33,"I юн",IF(P30<=$H$34,"II юн",IF(P30<=$H$35,"III юн","б/р"))))))))))) -> 
H31: 27.7 | I31: =IF(ISBLANK(H31)," ",IF(ISTEXT(H31)," ",IF(H31<=Нормативы!$H$27,"МСМК",IF(H31<=Нормативы!$H$28,"МС",IF(H31<=Нормативы!$H$29,"КМС",IF(H31<=Нормативы!$H$30,"I",IF(H31<=Нормативы!$H$31,"II",IF(H31<=Нормативы!$H$32,"III",IF(H31<=Нормативы!$H$33,"I юн",IF(H31<=Нормативы!$H$34,"II юн",IF(H31<=Нормативы!$H$35,"III юн","б/р"))))))))))) -> II | J31: =IF(ISBLANK(H31)," ",IF(ISTEXT(H31)," ",IF(H31<=Нормативы!$H$27,"МСМК",IF(H31<=Нормативы!$H$28,"МС",IF(H31<=Нормативы!$H$29,"КМС",IF(H31<=Нормативы!$H$30,"I",IF(H31<=Нормативы!$H$31,"II",IF(H31<=Нормативы!$H$32,"III",IF(H31<=Нормативы!$H$33,"I юн",IF(H31<=Нормативы!$H$34,"II юн",IF(H31<=Нормативы!$H$35,"III юн","б/р"))))))))))) -> II | L31: 27.5 | M31: =IF(ISBLANK(L31)," ",IF(ISTEXT(L31)," ",IF(L31<=Нормативы!$H$27,"КМС",IF(L31<=Нормативы!$H$28,"КМС",IF(L31<=Нормативы!$L$29,"КМС",IF(L31<=Нормативы!$L$30,"I",IF(L31<=Нормативы!$L$31,"II",IF(L31<=Нормативы!$L$32,"III",IF(L31<=Нормативы!$L$33,"I юн",IF(L31<=Нормативы!$L$34,"II юн",IF(L31<=Нормативы!$L$35,"III юн","б/р"))))))))))) -> II | N31: =IF(ISBLANK(L31)," ",IF(ISTEXT(L31)," ",IF(L31<=Нормативы!$H$27,"КМС",IF(L31<=Нормативы!$H$28,"КМС",IF(L31<=Нормативы!$L$29,"КМС",IF(L31<=Нормативы!$L$30,"I",IF(L31<=Нормативы!$L$31,"II",IF(L31<=Нормативы!$L$32,"III",IF(L31<=Нормативы!$L$33,"I юн",IF(L31<=Нормативы!$L$34,"II юн",IF(L31<=Нормативы!$L$35,"III юн","б/р"))))))))))) -> II | Q31: =IF(ISBLANK(P31)," ",IF(ISTEXT(P31)," ",IF(P31<=$H$27,"МСМК",IF(P31<=$H$28,"МС",IF(P31<=$H$29,"КМС",IF(P31<=$H$30,"I",IF(P31<=$H$31,"II",IF(P31<=$H$32,"III",IF(P31<=$H$33,"I юн",IF(P31<=$H$34,"II юн",IF(P31<=$H$35,"III юн","б/р"))))))))))) -> 
H32: 30.3 | I32: =IF(ISBLANK(H32)," ",IF(ISTEXT(H32)," ",IF(H32<=Нормативы!$H$27,"МСМК",IF(H32<=Нормативы!$H$28,"МС",IF(H32<=Нормативы!$H$29,"КМС",IF(H32<=Нормативы!$H$30,"I",IF(H32<=Нормативы!$H$31,"II",IF(H32<=Нормативы!$H$32,"III",IF(H32<=Нормативы!$H$33,"I юн",IF(H32<=Нормативы!$H$34,"II юн",IF(H32<=Нормативы!$H$35,"III юн","б/р"))))))))))) -> III | J32: =IF(ISBLANK(H32)," ",IF(ISTEXT(H32)," ",IF(H32<=Нормативы!$H$27,"МСМК",IF(H32<=Нормативы!$H$28,"МС",IF(H32<=Нормативы!$H$29,"КМС",IF(H32<=Нормативы!$H$30,"I",IF(H32<=Нормативы!$H$31,"II",IF(H32<=Нормативы!$H$32,"III",IF(H32<=Нормативы!$H$33,"I юн",IF(H32<=Нормативы!$H$34,"II юн",IF(H32<=Нормативы!$H$35,"III юн","б/р"))))))))))) -> III | L32: 30.1 | M32: =IF(ISBLANK(L32)," ",IF(ISTEXT(L32)," ",IF(L32<=Нормативы!$H$27,"КМС",IF(L32<=Нормативы!$H$28,"КМС",IF(L32<=Нормативы!$L$29,"КМС",IF(L32<=Нормативы!$L$30,"I",IF(L32<=Нормативы!$L$31,"II",IF(L32<=Нормативы!$L$32,"III",IF(L32<=Нормативы!$L$33,"I юн",IF(L32<=Нормативы!$L$34,"II юн",IF(L32<=Нормативы!$L$35,"III юн","б/р"))))))))))) -> III | N32: =IF(ISBLANK(L32)," ",IF(ISTEXT(L32)," ",IF(L32<=Нормативы!$H$27,"КМС",IF(L32<=Нормативы!$H$28,"КМС",IF(L32<=Нормативы!$L$29,"КМС",IF(L32<=Нормативы!$L$30,"I",IF(L32<=Нормативы!$L$31,"II",IF(L32<=Нормативы!$L$32,"III",IF(L32<=Нормативы!$L$33,"I юн",IF(L32<=Нормативы!$L$34,"II юн",IF(L32<=Нормативы!$L$35,"III юн","б/р"))))))))))) -> III | Q32: =IF(ISBLANK(P32)," ",IF(ISTEXT(P32)," ",IF(P32<=$H$27,"МСМК",IF(P32<=$H$28,"МС",IF(P32<=$H$29,"КМС",IF(P32<=$H$30,"I",IF(P32<=$H$31,"II",IF(P32<=$H$32,"III",IF(P32<=$H$33,"I юн",IF(P32<=$H$34,"II юн",IF(P32<=$H$35,"III юн","б/р"))))))))))) -> 
H33: 33.2 | I33: =IF(ISBLANK(H33)," ",IF(ISTEXT(H33)," ",IF(H33<=Нормативы!$H$27,"МСМК",IF(H33<=Нормативы!$H$28,"МС",IF(H33<=Нормативы!$H$29,"КМС",IF(H33<=Нормативы!$H$30,"I",IF(H33<=Нормативы!$H$31,"II",IF(H33<=Нормативы!$H$32,"III",IF(H33<=Нормативы!$H$33,"I юн",IF(H33<=Нормативы!$H$34,"II юн",IF(H33<=Нормативы!$H$35,"III юн","б/р"))))))))))) -> I юн | J33: =IF(ISBLANK(H33)," ",IF(ISTEXT(H33)," ",IF(H33<=Нормативы!$H$27,"МСМК",IF(H33<=Нормативы!$H$28,"МС",IF(H33<=Нормативы!$H$29,"КМС",IF(H33<=Нормативы!$H$30,"I",IF(H33<=Нормативы!$H$31,"II",IF(H33<=Нормативы!$H$32,"III",IF(H33<=Нормативы!$H$33,"I юн",IF(H33<=Нормативы!$H$34,"II юн",IF(H33<=Нормативы!$H$35,"III юн","б/р"))))))))))) -> I юн | L33: 33 | M33: =IF(ISBLANK(L33)," ",IF(ISTEXT(L33)," ",IF(L33<=Нормативы!$H$27,"КМС",IF(L33<=Нормативы!$H$28,"КМС",IF(L33<=Нормативы!$L$29,"КМС",IF(L33<=Нормативы!$L$30,"I",IF(L33<=Нормативы!$L$31,"II",IF(L33<=Нормативы!$L$32,"III",IF(L33<=Нормативы!$L$33,"I юн",IF(L33<=Нормативы!$L$34,"II юн",IF(L33<=Нормативы!$L$35,"III юн","б/р"))))))))))) -> I юн | N33: =IF(ISBLANK(L33)," ",IF(ISTEXT(L33)," ",IF(L33<=Нормативы!$H$27,"КМС",IF(L33<=Нормативы!$H$28,"КМС",IF(L33<=Нормативы!$L$29,"КМС",IF(L33<=Нормативы!$L$30,"I",IF(L33<=Нормативы!$L$31,"II",IF(L33<=Нормативы!$L$32,"III",IF(L33<=Нормативы!$L$33,"I юн",IF(L33<=Нормативы!$L$34,"II юн",IF(L33<=Нормативы!$L$35,"III юн","б/р"))))))))))) -> I юн | Q33: =IF(ISBLANK(P33)," ",IF(ISTEXT(P33)," ",IF(P33<=$H$27,"МСМК",IF(P33<=$H$28,"МС",IF(P33<=$H$29,"КМС",IF(P33<=$H$30,"I",IF(P33<=$H$31,"II",IF(P33<=$H$32,"III",IF(P33<=$H$33,"I юн",IF(P33<=$H$34,"II юн",IF(P33<=$H$35,"III юн","б/р"))))))))))) -> 
H34: 36.2 | I34: =IF(ISBLANK(H34)," ",IF(ISTEXT(H34)," ",IF(H34<=Нормативы!$H$27,"МСМК",IF(H34<=Нормативы!$H$28,"МС",IF(H34<=Нормативы!$H$29,"КМС",IF(H34<=Нормативы!$H$30,"I",IF(H34<=Нормативы!$H$31,"II",IF(H34<=Нормативы!$H$32,"III",IF(H34<=Нормативы!$H$33,"I юн",IF(H34<=Нормативы!$H$34,"II юн",IF(H34<=Нормативы!$H$35,"III юн","б/р"))))))))))) -> II юн | J34: =IF(ISBLANK(H34)," ",IF(ISTEXT(H34)," ",IF(H34<=Нормативы!$H$27,"МСМК",IF(H34<=Нормативы!$H$28,"МС",IF(H34<=Нормативы!$H$29,"КМС",IF(H34<=Нормативы!$H$30,"I",IF(H34<=Нормативы!$H$31,"II",IF(H34<=Нормативы!$H$32,"III",IF(H34<=Нормативы!$H$33,"I юн",IF(H34<=Нормативы!$H$34,"II юн",IF(H34<=Нормативы!$H$35,"III юн","б/р"))))))))))) -> II юн | L34: 36 | M34: =IF(ISBLANK(L34)," ",IF(ISTEXT(L34)," ",IF(L34<=Нормативы!$H$27,"КМС",IF(L34<=Нормативы!$H$28,"КМС",IF(L34<=Нормативы!$L$29,"КМС",IF(L34<=Нормативы!$L$30,"I",IF(L34<=Нормативы!$L$31,"II",IF(L34<=Нормативы!$L$32,"III",IF(L34<=Нормативы!$L$33,"I юн",IF(L34<=Нормативы!$L$34,"II юн",IF(L34<=Нормативы!$L$35,"III юн","б/р"))))))))))) -> II юн | N34: =IF(ISBLANK(L34)," ",IF(ISTEXT(L34)," ",IF(L34<=Нормативы!$H$27,"КМС",IF(L34<=Нормативы!$H$28,"КМС",IF(L34<=Нормативы!$L$29,"КМС",IF(L34<=Нормативы!$L$30,"I",IF(L34<=Нормативы!$L$31,"II",IF(L34<=Нормативы!$L$32,"III",IF(L34<=Нормативы!$L$33,"I юн",IF(L34<=Нормативы!$L$34,"II юн",IF(L34<=Нормативы!$L$35,"III юн","б/р"))))))))))) -> II юн | Q34: =IF(ISBLANK(P34)," ",IF(ISTEXT(P34)," ",IF(P34<=$H$27,"МСМК",IF(P34<=$H$28,"МС",IF(P34<=$H$29,"КМС",IF(P34<=$H$30,"I",IF(P34<=$H$31,"II",IF(P34<=$H$32,"III",IF(P34<=$H$33,"I юн",IF(P34<=$H$34,"II юн",IF(P34<=$H$35,"III юн","б/р"))))))))))) -> 
H35: 39.2 | I35: =IF(ISBLANK(H35)," ",IF(ISTEXT(H35)," ",IF(H35<=Нормативы!$H$27,"МСМК",IF(H35<=Нормативы!$H$28,"МС",IF(H35<=Нормативы!$H$29,"КМС",IF(H35<=Нормативы!$H$30,"I",IF(H35<=Нормативы!$H$31,"II",IF(H35<=Нормативы!$H$32,"III",IF(H35<=Нормативы!$H$33,"I юн",IF(H35<=Нормативы!$H$34,"II юн",IF(H35<=Нормативы!$H$35,"III юн","б/р"))))))))))) -> III юн | J35: =IF(ISBLANK(H35)," ",IF(ISTEXT(H35)," ",IF(H35<=Нормативы!$H$27,"МСМК",IF(H35<=Нормативы!$H$28,"МС",IF(H35<=Нормативы!$H$29,"КМС",IF(H35<=Нормативы!$H$30,"I",IF(H35<=Нормативы!$H$31,"II",IF(H35<=Нормативы!$H$32,"III",IF(H35<=Нормативы!$H$33,"I юн",IF(H35<=Нормативы!$H$34,"II юн",IF(H35<=Нормативы!$H$35,"III юн","б/р"))))))))))) -> III юн | L35: 39 | M35: =IF(ISBLANK(L35)," ",IF(ISTEXT(L35)," ",IF(L35<=Нормативы!$H$27,"КМС",IF(L35<=Нормативы!$H$28,"КМС",IF(L35<=Нормативы!$L$29,"КМС",IF(L35<=Нормативы!$L$30,"I",IF(L35<=Нормативы!$L$31,"II",IF(L35<=Нормативы!$L$32,"III",IF(L35<=Нормативы!$L$33,"I юн",IF(L35<=Нормативы!$L$34,"II юн",IF(L35<=Нормативы!$L$35,"III юн","б/р"))))))))))) -> III юн | N35: =IF(ISBLANK(L35)," ",IF(ISTEXT(L35)," ",IF(L35<=Нормативы!$H$27,"КМС",IF(L35<=Нормативы!$H$28,"КМС",IF(L35<=Нормативы!$L$29,"КМС",IF(L35<=Нормативы!$L$30,"I",IF(L35<=Нормативы!$L$31,"II",IF(L35<=Нормативы!$L$32,"III",IF(L35<=Нормативы!$L$33,"I юн",IF(L35<=Нормативы!$L$34,"II юн",IF(L35<=Нормативы!$L$35,"III юн","б/р"))))))))))) -> III юн | Q35: =IF(ISBLANK(P35)," ",IF(ISTEXT(P35)," ",IF(P35<=$H$27,"МСМК",IF(P35<=$H$28,"МС",IF(P35<=$H$29,"КМС",IF(P35<=$H$30,"I",IF(P35<=$H$31,"II",IF(P35<=$H$32,"III",IF(P35<=$H$33,"I юн",IF(P35<=$H$34,"II юн",IF(P35<=$H$35,"III юн","б/р"))))))))))) -> 
C37: Плавание в классических ластах- 50 м (1460241811Я), мужчины
H38: 19.3 | I38: =IF(ISBLANK(H38)," ",IF(ISTEXT(H38)," ",IF(H38<=Нормативы!$H$38,"МСМК",IF(H38<=Нормативы!$H$39,"МС",IF(H38<=Нормативы!$H$40,"КМС",IF(H38<=Нормативы!$H$41,"I",IF(H38<=Нормативы!$H$42,"II",IF(H38<=Нормативы!$H$43,"III",IF(H38<=Нормативы!$H$44,"I юн",IF(H38<=Нормативы!$H$45,"II юн",IF(H38<=Нормативы!$H$46,"III юн","б/р"))))))))))) -> МСМК | J38: =IF(ISBLANK(H38)," ",IF(ISTEXT(H38)," ",IF(H38<=Нормативы!$H$38,"МСМК",IF(H38<=Нормативы!$H$39,"МС",IF(H38<=Нормативы!$H$40,"КМС",IF(H38<=Нормативы!$H$41,"I",IF(H38<=Нормативы!$H$42,"II",IF(H38<=Нормативы!$H$43,"III",IF(H38<=Нормативы!$H$44,"I юн",IF(H38<=Нормативы!$H$45,"II юн",IF(H38<=Нормативы!$H$46,"III юн","б/р"))))))))))) -> МСМК | M38: =IF(ISBLANK(L38)," ",IF(ISTEXT(L38)," ",IF(L38<=Нормативы!$H$38,"КМС",IF(L38<=Нормативы!$H$39,"КМС",IF(L38<=Нормативы!$L$40,"КМС",IF(L38<=Нормативы!$L$41,"I",IF(L38<=Нормативы!$L$42,"II",IF(L38<=Нормативы!$L$43,"III",IF(L38<=Нормативы!$L$44,"I юн",IF(L38<=Нормативы!$L$45,"II юн",IF(L38<=Нормативы!$L$46,"III юн","б/р"))))))))))) ->  | N38: =IF(ISBLANK(L38)," ",IF(ISTEXT(L38)," ",IF(L38<=19.4,"МСМК",IF(L38<=20.5,"МС",IF(L38<=21.3,"КМС",IF(L38<=23,"I",IF(L38<=24.8,"II",IF(L38<=26.5,"III",IF(L38<=29.8,"I юн",IF(L38<=32.4,"II юн",IF(L38<=35.5,"III юн","б/р"))))))))))) ->  | Q38: =IF(ISBLANK(P38)," ",IF(ISTEXT(P38)," ",IF(P38<=$H$38,"МСМК",IF(P38<=$H$39,"МС",IF(P38<=$H$40,"КМС",IF(P38<=$H$41,"I",IF(P38<=$H$42,"II",IF(P38<=$H$43,"III",IF(P38<=$H$44,"I юн",IF(P38<=$H$45,"II юн",IF(P38<=$H$46,"III юн","б/р"))))))))))) -> 
H39: 20.2 | I39: =IF(ISBLANK(H39)," ",IF(ISTEXT(H39)," ",IF(H39<=Нормативы!$H$38,"МСМК",IF(H39<=Нормативы!$H$39,"МС",IF(H39<=Нормативы!$H$40,"КМС",IF(H39<=Нормативы!$H$41,"I",IF(H39<=Нормативы!$H$42,"II",IF(H39<=Нормативы!$H$43,"III",IF(H39<=Нормативы!$H$44,"I юн",IF(H39<=Нормативы!$H$45,"II юн",IF(H39<=Нормативы!$H$46,"III юн","б/р"))))))))))) -> МС | J39: =IF(ISBLANK(H39)," ",IF(ISTEXT(H39)," ",IF(H39<=Нормативы!$H$38,"МСМК",IF(H39<=Нормативы!$H$39,"МС",IF(H39<=Нормативы!$H$40,"КМС",IF(H39<=Нормативы!$H$41,"I",IF(H39<=Нормативы!$H$42,"II",IF(H39<=Нормативы!$H$43,"III",IF(H39<=Нормативы!$H$44,"I юн",IF(H39<=Нормативы!$H$45,"II юн",IF(H39<=Нормативы!$H$46,"III юн","б/р"))))))))))) -> МС | M39: =IF(ISBLANK(L39)," ",IF(ISTEXT(L39)," ",IF(L39<=Нормативы!$H$38,"КМС",IF(L39<=Нормативы!$H$39,"КМС",IF(L39<=Нормативы!$L$40,"КМС",IF(L39<=Нормативы!$L$41,"I",IF(L39<=Нормативы!$L$42,"II",IF(L39<=Нормативы!$L$43,"III",IF(L39<=Нормативы!$L$44,"I юн",IF(L39<=Нормативы!$L$45,"II юн",IF(L39<=Нормативы!$L$46,"III юн","б/р"))))))))))) ->  | N39: =IF(ISBLANK(L39)," ",IF(ISTEXT(L39)," ",IF(L39<=19.4,"МСМК",IF(L39<=20.5,"МС",IF(L39<=21.3,"КМС",IF(L39<=23,"I",IF(L39<=24.8,"II",IF(L39<=26.5,"III",IF(L39<=29.8,"I юн",IF(L39<=32.4,"II юн",IF(L39<=35.5,"III юн","б/р"))))))))))) ->  | Q39: =IF(ISBLANK(P39)," ",IF(ISTEXT(P39)," ",IF(P39<=$H$38,"МСМК",IF(P39<=$H$39,"МС",IF(P39<=$H$40,"КМС",IF(P39<=$H$41,"I",IF(P39<=$H$42,"II",IF(P39<=$H$43,"III",IF(P39<=$H$44,"I юн",IF(P39<=$H$45,"II юн",IF(P39<=$H$46,"III юн","б/р"))))))))))) -> 
H40: 21.2 | I40: =IF(ISBLANK(H40)," ",IF(ISTEXT(H40)," ",IF(H40<=Нормативы!$H$38,"МСМК",IF(H40<=Нормативы!$H$39,"МС",IF(H40<=Нормативы!$H$40,"КМС",IF(H40<=Нормативы!$H$41,"I",IF(H40<=Нормативы!$H$42,"II",IF(H40<=Нормативы!$H$43,"III",IF(H40<=Нормативы!$H$44,"I юн",IF(H40<=Нормативы!$H$45,"II юн",IF(H40<=Нормативы!$H$46,"III юн","б/р"))))))))))) -> КМС | J40: =IF(ISBLANK(H40)," ",IF(ISTEXT(H40)," ",IF(H40<=Нормативы!$H$38,"МСМК",IF(H40<=Нормативы!$H$39,"МС",IF(H40<=Нормативы!$H$40,"КМС",IF(H40<=Нормативы!$H$41,"I",IF(H40<=Нормативы!$H$42,"II",IF(H40<=Нормативы!$H$43,"III",IF(H40<=Нормативы!$H$44,"I юн",IF(H40<=Нормативы!$H$45,"II юн",IF(H40<=Нормативы!$H$46,"III юн","б/р"))))))))))) -> КМС | L40: =H40-0.2 -> 21 | M40: =IF(ISBLANK(L40)," ",IF(ISTEXT(L40)," ",IF(L40<=Нормативы!$H$38,"КМС",IF(L40<=Нормативы!$H$39,"КМС",IF(L40<=Нормативы!$L$40,"КМС",IF(L40<=Нормативы!$L$41,"I",IF(L40<=Нормативы!$L$42,"II",IF(L40<=Нормативы!$L$43,"III",IF(L40<=Нормативы!$L$44,"I юн",IF(L40<=Нормативы!$L$45,"II юн",IF(L40<=Нормативы!$L$46,"III юн","б/р"))))))))))) -> КМС | N40: =IF(ISBLANK(L40)," ",IF(ISTEXT(L40)," ",IF(L40<=Нормативы!$H$38,"КМС",IF(L40<=Нормативы!$H$39,"КМС",IF(L40<=Нормативы!$L$40,"КМС",IF(L40<=Нормативы!$L$41,"I",IF(L40<=Нормативы!$L$42,"II",IF(L40<=Нормативы!$L$43,"III",IF(L40<=Нормативы!$L$44,"I юн",IF(L40<=Нормативы!$L$45,"II юн",IF(L40<=Нормативы!$L$46,"III юн","б/р"))))))))))) -> КМС | Q40: =IF(ISBLANK(P40)," ",IF(ISTEXT(P40)," ",IF(P40<=$H$38,"МСМК",IF(P40<=$H$39,"МС",IF(P40<=$H$40,"КМС",IF(P40<=$H$41,"I",IF(P40<=$H$42,"II",IF(P40<=$H$43,"III",IF(P40<=$H$44,"I юн",IF(P40<=$H$45,"II юн",IF(P40<=$H$46,"III юн","б/р"))))))))))) -> 
H41: 22.9 | I41: =IF(ISBLANK(H41)," ",IF(ISTEXT(H41)," ",IF(H41<=Нормативы!$H$38,"МСМК",IF(H41<=Нормативы!$H$39,"МС",IF(H41<=Нормативы!$H$40,"КМС",IF(H41<=Нормативы!$H$41,"I",IF(H41<=Нормативы!$H$42,"II",IF(H41<=Нормативы!$H$43,"III",IF(H41<=Нормативы!$H$44,"I юн",IF(H41<=Нормативы!$H$45,"II юн",IF(H41<=Нормативы!$H$46,"III юн","б/р"))))))))))) -> I | J41: =IF(ISBLANK(H41)," ",IF(ISTEXT(H41)," ",IF(H41<=Нормативы!$H$38,"МСМК",IF(H41<=Нормативы!$H$39,"МС",IF(H41<=Нормативы!$H$40,"КМС",IF(H41<=Нормативы!$H$41,"I",IF(H41<=Нормативы!$H$42,"II",IF(H41<=Нормативы!$H$43,"III",IF(H41<=Нормативы!$H$44,"I юн",IF(H41<=Нормативы!$H$45,"II юн",IF(H41<=Нормативы!$H$46,"III юн","б/р"))))))))))) -> I | L41: 22.7 | M41: =IF(ISBLANK(L41)," ",IF(ISTEXT(L41)," ",IF(L41<=Нормативы!$H$38,"КМС",IF(L41<=Нормативы!$H$39,"КМС",IF(L41<=Нормативы!$L$40,"КМС",IF(L41<=Нормативы!$L$41,"I",IF(L41<=Нормативы!$L$42,"II",IF(L41<=Нормативы!$L$43,"III",IF(L41<=Нормативы!$L$44,"I юн",IF(L41<=Нормативы!$L$45,"II юн",IF(L41<=Нормативы!$L$46,"III юн","б/р"))))))))))) -> I | N41: =IF(ISBLANK(L41)," ",IF(ISTEXT(L41)," ",IF(L41<=Нормативы!$H$38,"КМС",IF(L41<=Нормативы!$H$39,"КМС",IF(L41<=Нормативы!$L$40,"КМС",IF(L41<=Нормативы!$L$41,"I",IF(L41<=Нормативы!$L$42,"II",IF(L41<=Нормативы!$L$43,"III",IF(L41<=Нормативы!$L$44,"I юн",IF(L41<=Нормативы!$L$45,"II юн",IF(L41<=Нормативы!$L$46,"III юн","б/р"))))))))))) -> I | Q41: =IF(ISBLANK(P41)," ",IF(ISTEXT(P41)," ",IF(P41<=$H$38,"МСМК",IF(P41<=$H$39,"МС",IF(P41<=$H$40,"КМС",IF(P41<=$H$41,"I",IF(P41<=$H$42,"II",IF(P41<=$H$43,"III",IF(P41<=$H$44,"I юн",IF(P41<=$H$45,"II юн",IF(P41<=$H$46,"III юн","б/р"))))))))))) -> 
H42: 24.7 | I42: =IF(ISBLANK(H42)," ",IF(ISTEXT(H42)," ",IF(H42<=Нормативы!$H$38,"МСМК",IF(H42<=Нормативы!$H$39,"МС",IF(H42<=Нормативы!$H$40,"КМС",IF(H42<=Нормативы!$H$41,"I",IF(H42<=Нормативы!$H$42,"II",IF(H42<=Нормативы!$H$43,"III",IF(H42<=Нормативы!$H$44,"I юн",IF(H42<=Нормативы!$H$45,"II юн",IF(H42<=Нормативы!$H$46,"III юн","б/р"))))))))))) -> II | J42: =IF(ISBLANK(H42)," ",IF(ISTEXT(H42)," ",IF(H42<=Нормативы!$H$38,"МСМК",IF(H42<=Нормативы!$H$39,"МС",IF(H42<=Нормативы!$H$40,"КМС",IF(H42<=Нормативы!$H$41,"I",IF(H42<=Нормативы!$H$42,"II",IF(H42<=Нормативы!$H$43,"III",IF(H42<=Нормативы!$H$44,"I юн",IF(H42<=Нормативы!$H$45,"II юн",IF(H42<=Нормативы!$H$46,"III юн","б/р"))))))))))) -> II | L42: 24.5 | M42: =IF(ISBLANK(L42)," ",IF(ISTEXT(L42)," ",IF(L42<=Нормативы!$H$38,"КМС",IF(L42<=Нормативы!$H$39,"КМС",IF(L42<=Нормативы!$L$40,"КМС",IF(L42<=Нормативы!$L$41,"I",IF(L42<=Нормативы!$L$42,"II",IF(L42<=Нормативы!$L$43,"III",IF(L42<=Нормативы!$L$44,"I юн",IF(L42<=Нормативы!$L$45,"II юн",IF(L42<=Нормативы!$L$46,"III юн","б/р"))))))))))) -> II | N42: =IF(ISBLANK(L42)," ",IF(ISTEXT(L42)," ",IF(L42<=Нормативы!$H$38,"КМС",IF(L42<=Нормативы!$H$39,"КМС",IF(L42<=Нормативы!$L$40,"КМС",IF(L42<=Нормативы!$L$41,"I",IF(L42<=Нормативы!$L$42,"II",IF(L42<=Нормативы!$L$43,"III",IF(L42<=Нормативы!$L$44,"I юн",IF(L42<=Нормативы!$L$45,"II юн",IF(L42<=Нормативы!$L$46,"III юн","б/р"))))))))))) -> II | Q42: =IF(ISBLANK(P42)," ",IF(ISTEXT(P42)," ",IF(P42<=$H$38,"МСМК",IF(P42<=$H$39,"МС",IF(P42<=$H$40,"КМС",IF(P42<=$H$41,"I",IF(P42<=$H$42,"II",IF(P42<=$H$43,"III",IF(P42<=$H$44,"I юн",IF(P42<=$H$45,"II юн",IF(P42<=$H$46,"III юн","б/р"))))))))))) -> 
H43: 26.3 | I43: =IF(ISBLANK(H43)," ",IF(ISTEXT(H43)," ",IF(H43<=Нормативы!$H$38,"МСМК",IF(H43<=Нормативы!$H$39,"МС",IF(H43<=Нормативы!$H$40,"КМС",IF(H43<=Нормативы!$H$41,"I",IF(H43<=Нормативы!$H$42,"II",IF(H43<=Нормативы!$H$43,"III",IF(H43<=Нормативы!$H$44,"I юн",IF(H43<=Нормативы!$H$45,"II юн",IF(H43<=Нормативы!$H$46,"III юн","б/р"))))))))))) -> III | J43: =IF(ISBLANK(H43)," ",IF(ISTEXT(H43)," ",IF(H43<=Нормативы!$H$38,"МСМК",IF(H43<=Нормативы!$H$39,"МС",IF(H43<=Нормативы!$H$40,"КМС",IF(H43<=Нормативы!$H$41,"I",IF(H43<=Нормативы!$H$42,"II",IF(H43<=Нормативы!$H$43,"III",IF(H43<=Нормативы!$H$44,"I юн",IF(H43<=Нормативы!$H$45,"II юн",IF(H43<=Нормативы!$H$46,"III юн","б/р"))))))))))) -> III | L43: 26.1 | M43: =IF(ISBLANK(L43)," ",IF(ISTEXT(L43)," ",IF(L43<=Нормативы!$H$38,"КМС",IF(L43<=Нормативы!$H$39,"КМС",IF(L43<=Нормативы!$L$40,"КМС",IF(L43<=Нормативы!$L$41,"I",IF(L43<=Нормативы!$L$42,"II",IF(L43<=Нормативы!$L$43,"III",IF(L43<=Нормативы!$L$44,"I юн",IF(L43<=Нормативы!$L$45,"II юн",IF(L43<=Нормативы!$L$46,"III юн","б/р"))))))))))) -> III | N43: =IF(ISBLANK(L43)," ",IF(ISTEXT(L43)," ",IF(L43<=Нормативы!$H$38,"КМС",IF(L43<=Нормативы!$H$39,"КМС",IF(L43<=Нормативы!$L$40,"КМС",IF(L43<=Нормативы!$L$41,"I",IF(L43<=Нормативы!$L$42,"II",IF(L43<=Нормативы!$L$43,"III",IF(L43<=Нормативы!$L$44,"I юн",IF(L43<=Нормативы!$L$45,"II юн",IF(L43<=Нормативы!$L$46,"III юн","б/р"))))))))))) -> III | Q43: =IF(ISBLANK(P43)," ",IF(ISTEXT(P43)," ",IF(P43<=$H$38,"МСМК",IF(P43<=$H$39,"МС",IF(P43<=$H$40,"КМС",IF(P43<=$H$41,"I",IF(P43<=$H$42,"II",IF(P43<=$H$43,"III",IF(P43<=$H$44,"I юн",IF(P43<=$H$45,"II юн",IF(P43<=$H$46,"III юн","б/р"))))))))))) -> 
H44: 29.7 | I44: =IF(ISBLANK(H44)," ",IF(ISTEXT(H44)," ",IF(H44<=Нормативы!$H$38,"МСМК",IF(H44<=Нормативы!$H$39,"МС",IF(H44<=Нормативы!$H$40,"КМС",IF(H44<=Нормативы!$H$41,"I",IF(H44<=Нормативы!$H$42,"II",IF(H44<=Нормативы!$H$43,"III",IF(H44<=Нормативы!$H$44,"I юн",IF(H44<=Нормативы!$H$45,"II юн",IF(H44<=Нормативы!$H$46,"III юн","б/р"))))))))))) -> I юн | J44: =IF(ISBLANK(H44)," ",IF(ISTEXT(H44)," ",IF(H44<=Нормативы!$H$38,"МСМК",IF(H44<=Нормативы!$H$39,"МС",IF(H44<=Нормативы!$H$40,"КМС",IF(H44<=Нормативы!$H$41,"I",IF(H44<=Нормативы!$H$42,"II",IF(H44<=Нормативы!$H$43,"III",IF(H44<=Нормативы!$H$44,"I юн",IF(H44<=Нормативы!$H$45,"II юн",IF(H44<=Нормативы!$H$46,"III юн","б/р"))))))))))) -> I юн | L44: 29.5 | M44: =IF(ISBLANK(L44)," ",IF(ISTEXT(L44)," ",IF(L44<=Нормативы!$H$38,"КМС",IF(L44<=Нормативы!$H$39,"КМС",IF(L44<=Нормативы!$L$40,"КМС",IF(L44<=Нормативы!$L$41,"I",IF(L44<=Нормативы!$L$42,"II",IF(L44<=Нормативы!$L$43,"III",IF(L44<=Нормативы!$L$44,"I юн",IF(L44<=Нормативы!$L$45,"II юн",IF(L44<=Нормативы!$L$46,"III юн","б/р"))))))))))) -> I юн | N44: =IF(ISBLANK(L44)," ",IF(ISTEXT(L44)," ",IF(L44<=Нормативы!$H$38,"КМС",IF(L44<=Нормативы!$H$39,"КМС",IF(L44<=Нормативы!$L$40,"КМС",IF(L44<=Нормативы!$L$41,"I",IF(L44<=Нормативы!$L$42,"II",IF(L44<=Нормативы!$L$43,"III",IF(L44<=Нормативы!$L$44,"I юн",IF(L44<=Нормативы!$L$45,"II юн",IF(L44<=Нормативы!$L$46,"III юн","б/р"))))))))))) -> I юн | Q44: =IF(ISBLANK(P44)," ",IF(ISTEXT(P44)," ",IF(P44<=$H$38,"МСМК",IF(P44<=$H$39,"МС",IF(P44<=$H$40,"КМС",IF(P44<=$H$41,"I",IF(P44<=$H$42,"II",IF(P44<=$H$43,"III",IF(P44<=$H$44,"I юн",IF(P44<=$H$45,"II юн",IF(P44<=$H$46,"III юн","б/р"))))))))))) -> 
H45: 32.1 | I45: =IF(ISBLANK(H45)," ",IF(ISTEXT(H45)," ",IF(H45<=Нормативы!$H$38,"МСМК",IF(H45<=Нормативы!$H$39,"МС",IF(H45<=Нормативы!$H$40,"КМС",IF(H45<=Нормативы!$H$41,"I",IF(H45<=Нормативы!$H$42,"II",IF(H45<=Нормативы!$H$43,"III",IF(H45<=Нормативы!$H$44,"I юн",IF(H45<=Нормативы!$H$45,"II юн",IF(H45<=Нормативы!$H$46,"III юн","б/р"))))))))))) -> II юн | J45: =IF(ISBLANK(H45)," ",IF(ISTEXT(H45)," ",IF(H45<=Нормативы!$H$38,"МСМК",IF(H45<=Нормативы!$H$39,"МС",IF(H45<=Нормативы!$H$40,"КМС",IF(H45<=Нормативы!$H$41,"I",IF(H45<=Нормативы!$H$42,"II",IF(H45<=Нормативы!$H$43,"III",IF(H45<=Нормативы!$H$44,"I юн",IF(H45<=Нормативы!$H$45,"II юн",IF(H45<=Нормативы!$H$46,"III юн","б/р"))))))))))) -> II юн | L45: 31.9 | M45: =IF(ISBLANK(L45)," ",IF(ISTEXT(L45)," ",IF(L45<=Нормативы!$H$38,"КМС",IF(L45<=Нормативы!$H$39,"КМС",IF(L45<=Нормативы!$L$40,"КМС",IF(L45<=Нормативы!$L$41,"I",IF(L45<=Нормативы!$L$42,"II",IF(L45<=Нормативы!$L$43,"III",IF(L45<=Нормативы!$L$44,"I юн",IF(L45<=Нормативы!$L$45,"II юн",IF(L45<=Нормативы!$L$46,"III юн","б/р"))))))))))) -> II юн | N45: =IF(ISBLANK(L45)," ",IF(ISTEXT(L45)," ",IF(L45<=Нормативы!$H$38,"КМС",IF(L45<=Нормативы!$H$39,"КМС",IF(L45<=Нормативы!$L$40,"КМС",IF(L45<=Нормативы!$L$41,"I",IF(L45<=Нормативы!$L$42,"II",IF(L45<=Нормативы!$L$43,"III",IF(L45<=Нормативы!$L$44,"I юн",IF(L45<=Нормативы!$L$45,"II юн",IF(L45<=Нормативы!$L$46,"III юн","б/р"))))))))))) -> II юн | Q45: =IF(ISBLANK(P45)," ",IF(ISTEXT(P45)," ",IF(P45<=$H$38,"МСМК",IF(P45<=$H$39,"МС",IF(P45<=$H$40,"КМС",IF(P45<=$H$41,"I",IF(P45<=$H$42,"II",IF(P45<=$H$43,"III",IF(P45<=$H$44,"I юн",IF(P45<=$H$45,"II юн",IF(P45<=$H$46,"III юн","б/р"))))))))))) -> 
H46: 35.2 | I46: =IF(ISBLANK(H46)," ",IF(ISTEXT(H46)," ",IF(H46<=Нормативы!$H$38,"МСМК",IF(H46<=Нормативы!$H$39,"МС",IF(H46<=Нормативы!$H$40,"КМС",IF(H46<=Нормативы!$H$41,"I",IF(H46<=Нормативы!$H$42,"II",IF(H46<=Нормативы!$H$43,"III",IF(H46<=Нормативы!$H$44,"I юн",IF(H46<=Нормативы!$H$45,"II юн",IF(H46<=Нормативы!$H$46,"III юн","б/р"))))))))))) -> III юн | J46: =IF(ISBLANK(H46)," ",IF(ISTEXT(H46)," ",IF(H46<=Нормативы!$H$38,"МСМК",IF(H46<=Нормативы!$H$39,"МС",IF(H46<=Нормативы!$H$40,"КМС",IF(H46<=Нормативы!$H$41,"I",IF(H46<=Нормативы!$H$42,"II",IF(H46<=Нормативы!$H$43,"III",IF(H46<=Нормативы!$H$44,"I юн",IF(H46<=Нормативы!$H$45,"II юн",IF(H46<=Нормативы!$H$46,"III юн","б/р"))))))))))) -> III юн | L46: 35 | M46: =IF(ISBLANK(L46)," ",IF(ISTEXT(L46)," ",IF(L46<=Нормативы!$H$38,"КМС",IF(L46<=Нормативы!$H$39,"КМС",IF(L46<=Нормативы!$L$40,"КМС",IF(L46<=Нормативы!$L$41,"I",IF(L46<=Нормативы!$L$42,"II",IF(L46<=Нормативы!$L$43,"III",IF(L46<=Нормативы!$L$44,"I юн",IF(L46<=Нормативы!$L$45,"II юн",IF(L46<=Нормативы!$L$46,"III юн","б/р"))))))))))) -> III юн | N46: =IF(ISBLANK(L46)," ",IF(ISTEXT(L46)," ",IF(L46<=Нормативы!$H$38,"КМС",IF(L46<=Нормативы!$H$39,"КМС",IF(L46<=Нормативы!$L$40,"КМС",IF(L46<=Нормативы!$L$41,"I",IF(L46<=Нормативы!$L$42,"II",IF(L46<=Нормативы!$L$43,"III",IF(L46<=Нормативы!$L$44,"I юн",IF(L46<=Нормативы!$L$45,"II юн",IF(L46<=Нормативы!$L$46,"III юн","б/р"))))))))))) -> III юн | Q46: =IF(ISBLANK(P46)," ",IF(ISTEXT(P46)," ",IF(P46<=$H$38,"МСМК",IF(P46<=$H$39,"МС",IF(P46<=$H$40,"КМС",IF(P46<=$H$41,"I",IF(P46<=$H$42,"II",IF(P46<=$H$43,"III",IF(P46<=$H$44,"I юн",IF(P46<=$H$45,"II юн",IF(P46<=$H$46,"III юн","б/р"))))))))))) -> 
C48: Плавание в ластах - 100 м (1460091811Я), женщины
H49: 40 | I49: =IF(ISBLANK(H49)," ",IF(ISTEXT(H49)," ",IF(H49<=Нормативы!$H$49,"МСМК",IF(H49<=Нормативы!$H$50,"МС",IF(H49<=Нормативы!$H$51,"КМС",IF(H49<=Нормативы!$H$52,"I",IF(H49<=Нормативы!$H$53,"II",IF(H49<=Нормативы!$H$54,"III",IF(H49<=Нормативы!$H$55,"I юн",IF(H49<=Нормативы!$H$56,"II юн",IF(H49<=Нормативы!$H$57,"III юн","б/р"))))))))))) -> МСМК | J49: =IF(ISBLANK(H49)," ",IF(ISTEXT(H49)," ",IF(H49<=Нормативы!$H$49,"МСМК",IF(H49<=Нормативы!$H$50,"МС",IF(H49<=Нормативы!$H$51,"КМС",IF(H49<=Нормативы!$H$52,"I",IF(H49<=Нормативы!$H$53,"II",IF(H49<=Нормативы!$H$54,"III",IF(H49<=Нормативы!$H$55,"I юн",IF(H49<=Нормативы!$H$56,"II юн",IF(H49<=Нормативы!$H$57,"III юн","б/р"))))))))))) -> МСМК | M49: =IF(ISBLANK(L49)," ",IF(ISTEXT(L49)," ",IF(L49<=Нормативы!$H$49,"КМС",IF(L49<=Нормативы!$H$50,"КМС",IF(L49<=Нормативы!$L$51,"КМС",IF(L49<=Нормативы!$L$52,"I",IF(L49<=Нормативы!$L$53,"II",IF(L49<=Нормативы!$L$54,"III",IF(L49<=Нормативы!$L$55,"I юн",IF(L49<=Нормативы!$L$56,"II юн",IF(L49<=Нормативы!$L$57,"III юн","б/р"))))))))))) ->  | N49: =IF(ISBLANK(L49)," ",IF(ISTEXT(L49)," ",IF(L49<=40,"МСМК",IF(L49<=42,"МС",IF(L49<=43.8,"КМС",IF(L49<=47,"I",IF(L49<=51,"II",IF(L49<=55.2,"III",IF(L49<=59.8,"I юн",IF(L49<=105.4,"II юн",IF(L49<=110.4,"III юн","б/р"))))))))))) ->  | Q49: =IF(ISBLANK(P49)," ",IF(ISTEXT(P49)," ",IF(P49<=$H$49,"МСМК",IF(P49<=$H$50,"МС",IF(P49<=$H$51,"КМС",IF(P49<=$H$52,"I",IF(P49<=$H$53,"II",IF(P49<=$H$54,"III",IF(P49<=$H$55,"I юн",IF(P49<=$H$56,"II юн",IF(P49<=$H$57,"III юн","б/р"))))))))))) -> 
H50: 42 | I50: =IF(ISBLANK(H50)," ",IF(ISTEXT(H50)," ",IF(H50<=Нормативы!$H$49,"МСМК",IF(H50<=Нормативы!$H$50,"МС",IF(H50<=Нормативы!$H$51,"КМС",IF(H50<=Нормативы!$H$52,"I",IF(H50<=Нормативы!$H$53,"II",IF(H50<=Нормативы!$H$54,"III",IF(H50<=Нормативы!$H$55,"I юн",IF(H50<=Нормативы!$H$56,"II юн",IF(H50<=Нормативы!$H$57,"III юн","б/р"))))))))))) -> МС | J50: =IF(ISBLANK(H50)," ",IF(ISTEXT(H50)," ",IF(H50<=Нормативы!$H$49,"МСМК",IF(H50<=Нормативы!$H$50,"МС",IF(H50<=Нормативы!$H$51,"КМС",IF(H50<=Нормативы!$H$52,"I",IF(H50<=Нормативы!$H$53,"II",IF(H50<=Нормативы!$H$54,"III",IF(H50<=Нормативы!$H$55,"I юн",IF(H50<=Нормативы!$H$56,"II юн",IF(H50<=Нормативы!$H$57,"III юн","б/р"))))))))))) -> МС | M50: =IF(ISBLANK(L50)," ",IF(ISTEXT(L50)," ",IF(L50<=Нормативы!$H$49,"КМС",IF(L50<=Нормативы!$H$50,"КМС",IF(L50<=Нормативы!$L$51,"КМС",IF(L50<=Нормативы!$L$52,"I",IF(L50<=Нормативы!$L$53,"II",IF(L50<=Нормативы!$L$54,"III",IF(L50<=Нормативы!$L$55,"I юн",IF(L50<=Нормативы!$L$56,"II юн",IF(L50<=Нормативы!$L$57,"III юн","б/р"))))))))))) ->  | N50: =IF(ISBLANK(L50)," ",IF(ISTEXT(L50)," ",IF(L50<=40,"МСМК",IF(L50<=42,"МС",IF(L50<=43.8,"КМС",IF(L50<=47,"I",IF(L50<=51,"II",IF(L50<=55.2,"III",IF(L50<=59.8,"I юн",IF(L50<=105.4,"II юн",IF(L50<=110.4,"III юн","б/р"))))))))))) ->  | Q50: =IF(ISBLANK(P50)," ",IF(ISTEXT(P50)," ",IF(P50<=$H$49,"МСМК",IF(P50<=$H$50,"МС",IF(P50<=$H$51,"КМС",IF(P50<=$H$52,"I",IF(P50<=$H$53,"II",IF(P50<=$H$54,"III",IF(P50<=$H$55,"I юн",IF(P50<=$H$56,"II юн",IF(P50<=$H$57,"III юн","б/р"))))))))))) -> 
H51: 44 | I51: =IF(ISBLANK(H51)," ",IF(ISTEXT(H51)," ",IF(H51<=Нормативы!$H$49,"МСМК",IF(H51<=Нормативы!$H$50,"МС",IF(H51<=Нормативы!$H$51,"КМС",IF(H51<=Нормативы!$H$52,"I",IF(H51<=Нормативы!$H$53,"II",IF(H51<=Нормативы!$H$54,"III",IF(H51<=Нормативы!$H$55,"I юн",IF(H51<=Нормативы!$H$56,"II юн",IF(H51<=Нормативы!$H$57,"III юн","б/р"))))))))))) -> КМС | J51: =IF(ISBLANK(H51)," ",IF(ISTEXT(H51)," ",IF(H51<=Нормативы!$H$49,"МСМК",IF(H51<=Нормативы!$H$50,"МС",IF(H51<=Нормативы!$H$51,"КМС",IF(H51<=Нормативы!$H$52,"I",IF(H51<=Нормативы!$H$53,"II",IF(H51<=Нормативы!$H$54,"III",IF(H51<=Нормативы!$H$55,"I юн",IF(H51<=Нормативы!$H$56,"II юн",IF(H51<=Нормативы!$H$57,"III юн","б/р"))))))))))) -> КМС | L51: =H51-0.2 -> 43.8 | M51: =IF(ISBLANK(L51)," ",IF(ISTEXT(L51)," ",IF(L51<=Нормативы!$H$49,"КМС",IF(L51<=Нормативы!$H$50,"КМС",IF(L51<=Нормативы!$L$51,"КМС",IF(L51<=Нормативы!$L$52,"I",IF(L51<=Нормативы!$L$53,"II",IF(L51<=Нормативы!$L$54,"III",IF(L51<=Нормативы!$L$55,"I юн",IF(L51<=Нормативы!$L$56,"II юн",IF(L51<=Нормативы!$L$57,"III юн","б/р"))))))))))) -> КМС | N51: =IF(ISBLANK(L51)," ",IF(ISTEXT(L51)," ",IF(L51<=Нормативы!$H$49,"КМС",IF(L51<=Нормативы!$H$50,"КМС",IF(L51<=Нормативы!$L$51,"КМС",IF(L51<=Нормативы!$L$52,"I",IF(L51<=Нормативы!$L$53,"II",IF(L51<=Нормативы!$L$54,"III",IF(L51<=Нормативы!$L$55,"I юн",IF(L51<=Нормативы!$L$56,"II юн",IF(L51<=Нормативы!$L$57,"III юн","б/р"))))))))))) -> КМС | Q51: =IF(ISBLANK(P51)," ",IF(ISTEXT(P51)," ",IF(P51<=$H$49,"МСМК",IF(P51<=$H$50,"МС",IF(P51<=$H$51,"КМС",IF(P51<=$H$52,"I",IF(P51<=$H$53,"II",IF(P51<=$H$54,"III",IF(P51<=$H$55,"I юн",IF(P51<=$H$56,"II юн",IF(P51<=$H$57,"III юн","б/р"))))))))))) -> 
H52: 47.2 | I52: =IF(ISBLANK(H52)," ",IF(ISTEXT(H52)," ",IF(H52<=Нормативы!$H$49,"МСМК",IF(H52<=Нормативы!$H$50,"МС",IF(H52<=Нормативы!$H$51,"КМС",IF(H52<=Нормативы!$H$52,"I",IF(H52<=Нормативы!$H$53,"II",IF(H52<=Нормативы!$H$54,"III",IF(H52<=Нормативы!$H$55,"I юн",IF(H52<=Нормативы!$H$56,"II юн",IF(H52<=Нормативы!$H$57,"III юн","б/р"))))))))))) -> I | J52: =IF(ISBLANK(H52)," ",IF(ISTEXT(H52)," ",IF(H52<=Нормативы!$H$49,"МСМК",IF(H52<=Нормативы!$H$50,"МС",IF(H52<=Нормативы!$H$51,"КМС",IF(H52<=Нормативы!$H$52,"I",IF(H52<=Нормативы!$H$53,"II",IF(H52<=Нормативы!$H$54,"III",IF(H52<=Нормативы!$H$55,"I юн",IF(H52<=Нормативы!$H$56,"II юн",IF(H52<=Нормативы!$H$57,"III юн","б/р"))))))))))) -> I | L52: 47 | M52: =IF(ISBLANK(L52)," ",IF(ISTEXT(L52)," ",IF(L52<=Нормативы!$H$49,"КМС",IF(L52<=Нормативы!$H$50,"КМС",IF(L52<=Нормативы!$L$51,"КМС",IF(L52<=Нормативы!$L$52,"I",IF(L52<=Нормативы!$L$53,"II",IF(L52<=Нормативы!$L$54,"III",IF(L52<=Нормативы!$L$55,"I юн",IF(L52<=Нормативы!$L$56,"II юн",IF(L52<=Нормативы!$L$57,"III юн","б/р"))))))))))) -> I | N52: =IF(ISBLANK(L52)," ",IF(ISTEXT(L52)," ",IF(L52<=Нормативы!$H$49,"КМС",IF(L52<=Нормативы!$H$50,"КМС",IF(L52<=Нормативы!$L$51,"КМС",IF(L52<=Нормативы!$L$52,"I",IF(L52<=Нормативы!$L$53,"II",IF(L52<=Нормативы!$L$54,"III",IF(L52<=Нормативы!$L$55,"I юн",IF(L52<=Нормативы!$L$56,"II юн",IF(L52<=Нормативы!$L$57,"III юн","б/р"))))))))))) -> I | Q52: =IF(ISBLANK(P52)," ",IF(ISTEXT(P52)," ",IF(P52<=$H$49,"МСМК",IF(P52<=$H$50,"МС",IF(P52<=$H$51,"КМС",IF(P52<=$H$52,"I",IF(P52<=$H$53,"II",IF(P52<=$H$54,"III",IF(P52<=$H$55,"I юн",IF(P52<=$H$56,"II юн",IF(P52<=$H$57,"III юн","б/р"))))))))))) -> 
H53: 51.2 | I53: =IF(ISBLANK(H53)," ",IF(ISTEXT(H53)," ",IF(H53<=Нормативы!$H$49,"МСМК",IF(H53<=Нормативы!$H$50,"МС",IF(H53<=Нормативы!$H$51,"КМС",IF(H53<=Нормативы!$H$52,"I",IF(H53<=Нормативы!$H$53,"II",IF(H53<=Нормативы!$H$54,"III",IF(H53<=Нормативы!$H$55,"I юн",IF(H53<=Нормативы!$H$56,"II юн",IF(H53<=Нормативы!$H$57,"III юн","б/р"))))))))))) -> II | J53: =IF(ISBLANK(H53)," ",IF(ISTEXT(H53)," ",IF(H53<=Нормативы!$H$49,"МСМК",IF(H53<=Нормативы!$H$50,"МС",IF(H53<=Нормативы!$H$51,"КМС",IF(H53<=Нормативы!$H$52,"I",IF(H53<=Нормативы!$H$53,"II",IF(H53<=Нормативы!$H$54,"III",IF(H53<=Нормативы!$H$55,"I юн",IF(H53<=Нормативы!$H$56,"II юн",IF(H53<=Нормативы!$H$57,"III юн","б/р"))))))))))) -> II | L53: 51 | M53: =IF(ISBLANK(L53)," ",IF(ISTEXT(L53)," ",IF(L53<=Нормативы!$H$49,"КМС",IF(L53<=Нормативы!$H$50,"КМС",IF(L53<=Нормативы!$L$51,"КМС",IF(L53<=Нормативы!$L$52,"I",IF(L53<=Нормативы!$L$53,"II",IF(L53<=Нормативы!$L$54,"III",IF(L53<=Нормативы!$L$55,"I юн",IF(L53<=Нормативы!$L$56,"II юн",IF(L53<=Нормативы!$L$57,"III юн","б/р"))))))))))) -> II | N53: =IF(ISBLANK(L53)," ",IF(ISTEXT(L53)," ",IF(L53<=Нормативы!$H$49,"КМС",IF(L53<=Нормативы!$H$50,"КМС",IF(L53<=Нормативы!$L$51,"КМС",IF(L53<=Нормативы!$L$52,"I",IF(L53<=Нормативы!$L$53,"II",IF(L53<=Нормативы!$L$54,"III",IF(L53<=Нормативы!$L$55,"I юн",IF(L53<=Нормативы!$L$56,"II юн",IF(L53<=Нормативы!$L$57,"III юн","б/р"))))))))))) -> II | Q53: =IF(ISBLANK(P53)," ",IF(ISTEXT(P53)," ",IF(P53<=$H$49,"МСМК",IF(P53<=$H$50,"МС",IF(P53<=$H$51,"КМС",IF(P53<=$H$52,"I",IF(P53<=$H$53,"II",IF(P53<=$H$54,"III",IF(P53<=$H$55,"I юн",IF(P53<=$H$56,"II юн",IF(P53<=$H$57,"III юн","б/р"))))))))))) -> 
H54: 55.4 | I54: =IF(ISBLANK(H54)," ",IF(ISTEXT(H54)," ",IF(H54<=Нормативы!$H$49,"МСМК",IF(H54<=Нормативы!$H$50,"МС",IF(H54<=Нормативы!$H$51,"КМС",IF(H54<=Нормативы!$H$52,"I",IF(H54<=Нормативы!$H$53,"II",IF(H54<=Нормативы!$H$54,"III",IF(H54<=Нормативы!$H$55,"I юн",IF(H54<=Нормативы!$H$56,"II юн",IF(H54<=Нормативы!$H$57,"III юн","б/р"))))))))))) -> III | J54: =IF(ISBLANK(H54)," ",IF(ISTEXT(H54)," ",IF(H54<=Нормативы!$H$49,"МСМК",IF(H54<=Нормативы!$H$50,"МС",IF(H54<=Нормативы!$H$51,"КМС",IF(H54<=Нормативы!$H$52,"I",IF(H54<=Нормативы!$H$53,"II",IF(H54<=Нормативы!$H$54,"III",IF(H54<=Нормативы!$H$55,"I юн",IF(H54<=Нормативы!$H$56,"II юн",IF(H54<=Нормативы!$H$57,"III юн","б/р"))))))))))) -> III | L54: 55.2 | M54: =IF(ISBLANK(L54)," ",IF(ISTEXT(L54)," ",IF(L54<=Нормативы!$H$49,"КМС",IF(L54<=Нормативы!$H$50,"КМС",IF(L54<=Нормативы!$L$51,"КМС",IF(L54<=Нормативы!$L$52,"I",IF(L54<=Нормативы!$L$53,"II",IF(L54<=Нормативы!$L$54,"III",IF(L54<=Нормативы!$L$55,"I юн",IF(L54<=Нормативы!$L$56,"II юн",IF(L54<=Нормативы!$L$57,"III юн","б/р"))))))))))) -> III | N54: =IF(ISBLANK(L54)," ",IF(ISTEXT(L54)," ",IF(L54<=Нормативы!$H$49,"КМС",IF(L54<=Нормативы!$H$50,"КМС",IF(L54<=Нормативы!$L$51,"КМС",IF(L54<=Нормативы!$L$52,"I",IF(L54<=Нормативы!$L$53,"II",IF(L54<=Нормативы!$L$54,"III",IF(L54<=Нормативы!$L$55,"I юн",IF(L54<=Нормативы!$L$56,"II юн",IF(L54<=Нормативы!$L$57,"III юн","б/р"))))))))))) -> III | Q54: =IF(ISBLANK(P54)," ",IF(ISTEXT(P54)," ",IF(P54<=$H$49,"МСМК",IF(P54<=$H$50,"МС",IF(P54<=$H$51,"КМС",IF(P54<=$H$52,"I",IF(P54<=$H$53,"II",IF(P54<=$H$54,"III",IF(P54<=$H$55,"I юн",IF(P54<=$H$56,"II юн",IF(P54<=$H$57,"III юн","б/р"))))))))))) -> 
H55: 100 | I55: =IF(ISBLANK(H55)," ",IF(ISTEXT(H55)," ",IF(H55<=Нормативы!$H$49,"МСМК",IF(H55<=Нормативы!$H$50,"МС",IF(H55<=Нормативы!$H$51,"КМС",IF(H55<=Нормативы!$H$52,"I",IF(H55<=Нормативы!$H$53,"II",IF(H55<=Нормативы!$H$54,"III",IF(H55<=Нормативы!$H$55,"I юн",IF(H55<=Нормативы!$H$56,"II юн",IF(H55<=Нормативы!$H$57,"III юн","б/р"))))))))))) -> I юн | J55: =IF(ISBLANK(H55)," ",IF(ISTEXT(H55)," ",IF(H55<=Нормативы!$H$49,"МСМК",IF(H55<=Нормативы!$H$50,"МС",IF(H55<=Нормативы!$H$51,"КМС",IF(H55<=Нормативы!$H$52,"I",IF(H55<=Нормативы!$H$53,"II",IF(H55<=Нормативы!$H$54,"III",IF(H55<=Нормативы!$H$55,"I юн",IF(H55<=Нормативы!$H$56,"II юн",IF(H55<=Нормативы!$H$57,"III юн","б/р"))))))))))) -> I юн | L55: 99.8 | M55: =IF(ISBLANK(L55)," ",IF(ISTEXT(L55)," ",IF(L55<=Нормативы!$H$49,"КМС",IF(L55<=Нормативы!$H$50,"КМС",IF(L55<=Нормативы!$L$51,"КМС",IF(L55<=Нормативы!$L$52,"I",IF(L55<=Нормативы!$L$53,"II",IF(L55<=Нормативы!$L$54,"III",IF(L55<=Нормативы!$L$55,"I юн",IF(L55<=Нормативы!$L$56,"II юн",IF(L55<=Нормативы!$L$57,"III юн","б/р"))))))))))) -> I юн | N55: =IF(ISBLANK(L55)," ",IF(ISTEXT(L55)," ",IF(L55<=Нормативы!$H$49,"КМС",IF(L55<=Нормативы!$H$50,"КМС",IF(L55<=Нормативы!$L$51,"КМС",IF(L55<=Нормативы!$L$52,"I",IF(L55<=Нормативы!$L$53,"II",IF(L55<=Нормативы!$L$54,"III",IF(L55<=Нормативы!$L$55,"I юн",IF(L55<=Нормативы!$L$56,"II юн",IF(L55<=Нормативы!$L$57,"III юн","б/р"))))))))))) -> I юн | Q55: =IF(ISBLANK(P55)," ",IF(ISTEXT(P55)," ",IF(P55<=$H$49,"МСМК",IF(P55<=$H$50,"МС",IF(P55<=$H$51,"КМС",IF(P55<=$H$52,"I",IF(P55<=$H$53,"II",IF(P55<=$H$54,"III",IF(P55<=$H$55,"I юн",IF(P55<=$H$56,"II юн",IF(P55<=$H$57,"III юн","б/р"))))))))))) -> 
H56: 105.6 | I56: =IF(ISBLANK(H56)," ",IF(ISTEXT(H56)," ",IF(H56<=Нормативы!$H$49,"МСМК",IF(H56<=Нормативы!$H$50,"МС",IF(H56<=Нормативы!$H$51,"КМС",IF(H56<=Нормативы!$H$52,"I",IF(H56<=Нормативы!$H$53,"II",IF(H56<=Нормативы!$H$54,"III",IF(H56<=Нормативы!$H$55,"I юн",IF(H56<=Нормативы!$H$56,"II юн",IF(H56<=Нормативы!$H$57,"III юн","б/р"))))))))))) -> II юн | J56: =IF(ISBLANK(H56)," ",IF(ISTEXT(H56)," ",IF(H56<=Нормативы!$H$49,"МСМК",IF(H56<=Нормативы!$H$50,"МС",IF(H56<=Нормативы!$H$51,"КМС",IF(H56<=Нормативы!$H$52,"I",IF(H56<=Нормативы!$H$53,"II",IF(H56<=Нормативы!$H$54,"III",IF(H56<=Нормативы!$H$55,"I юн",IF(H56<=Нормативы!$H$56,"II юн",IF(H56<=Нормативы!$H$57,"III юн","б/р"))))))))))) -> II юн | L56: 105.4 | M56: =IF(ISBLANK(L56)," ",IF(ISTEXT(L56)," ",IF(L56<=Нормативы!$H$49,"КМС",IF(L56<=Нормативы!$H$50,"КМС",IF(L56<=Нормативы!$L$51,"КМС",IF(L56<=Нормативы!$L$52,"I",IF(L56<=Нормативы!$L$53,"II",IF(L56<=Нормативы!$L$54,"III",IF(L56<=Нормативы!$L$55,"I юн",IF(L56<=Нормативы!$L$56,"II юн",IF(L56<=Нормативы!$L$57,"III юн","б/р"))))))))))) -> II юн | N56: =IF(ISBLANK(L56)," ",IF(ISTEXT(L56)," ",IF(L56<=Нормативы!$H$49,"КМС",IF(L56<=Нормативы!$H$50,"КМС",IF(L56<=Нормативы!$L$51,"КМС",IF(L56<=Нормативы!$L$52,"I",IF(L56<=Нормативы!$L$53,"II",IF(L56<=Нормативы!$L$54,"III",IF(L56<=Нормативы!$L$55,"I юн",IF(L56<=Нормативы!$L$56,"II юн",IF(L56<=Нормативы!$L$57,"III юн","б/р"))))))))))) -> II юн | Q56: =IF(ISBLANK(P56)," ",IF(ISTEXT(P56)," ",IF(P56<=$H$49,"МСМК",IF(P56<=$H$50,"МС",IF(P56<=$H$51,"КМС",IF(P56<=$H$52,"I",IF(P56<=$H$53,"II",IF(P56<=$H$54,"III",IF(P56<=$H$55,"I юн",IF(P56<=$H$56,"II юн",IF(P56<=$H$57,"III юн","б/р"))))))))))) -> 
H57: 110.6 | I57: =IF(ISBLANK(H57)," ",IF(ISTEXT(H57)," ",IF(H57<=Нормативы!$H$49,"МСМК",IF(H57<=Нормативы!$H$50,"МС",IF(H57<=Нормативы!$H$51,"КМС",IF(H57<=Нормативы!$H$52,"I",IF(H57<=Нормативы!$H$53,"II",IF(H57<=Нормативы!$H$54,"III",IF(H57<=Нормативы!$H$55,"I юн",IF(H57<=Нормативы!$H$56,"II юн",IF(H57<=Нормативы!$H$57,"III юн","б/р"))))))))))) -> III юн | J57: =IF(ISBLANK(H57)," ",IF(ISTEXT(H57)," ",IF(H57<=Нормативы!$H$49,"МСМК",IF(H57<=Нормативы!$H$50,"МС",IF(H57<=Нормативы!$H$51,"КМС",IF(H57<=Нормативы!$H$52,"I",IF(H57<=Нормативы!$H$53,"II",IF(H57<=Нормативы!$H$54,"III",IF(H57<=Нормативы!$H$55,"I юн",IF(H57<=Нормативы!$H$56,"II юн",IF(H57<=Нормативы!$H$57,"III юн","б/р"))))))))))) -> III юн | L57: 110.4 | M57: =IF(ISBLANK(L57)," ",IF(ISTEXT(L57)," ",IF(L57<=Нормативы!$H$49,"КМС",IF(L57<=Нормативы!$H$50,"КМС",IF(L57<=Нормативы!$L$51,"КМС",IF(L57<=Нормативы!$L$52,"I",IF(L57<=Нормативы!$L$53,"II",IF(L57<=Нормативы!$L$54,"III",IF(L57<=Нормативы!$L$55,"I юн",IF(L57<=Нормативы!$L$56,"II юн",IF(L57<=Нормативы!$L$57,"III юн","б/р"))))))))))) -> III юн | N57: =IF(ISBLANK(L57)," ",IF(ISTEXT(L57)," ",IF(L57<=Нормативы!$H$49,"КМС",IF(L57<=Нормативы!$H$50,"КМС",IF(L57<=Нормативы!$L$51,"КМС",IF(L57<=Нормативы!$L$52,"I",IF(L57<=Нормативы!$L$53,"II",IF(L57<=Нормативы!$L$54,"III",IF(L57<=Нормативы!$L$55,"I юн",IF(L57<=Нормативы!$L$56,"II юн",IF(L57<=Нормативы!$L$57,"III юн","б/р"))))))))))) -> III юн | Q57: =IF(ISBLANK(P57)," ",IF(ISTEXT(P57)," ",IF(P57<=$H$49,"МСМК",IF(P57<=$H$50,"МС",IF(P57<=$H$51,"КМС",IF(P57<=$H$52,"I",IF(P57<=$H$53,"II",IF(P57<=$H$54,"III",IF(P57<=$H$55,"I юн",IF(P57<=$H$56,"II юн",IF(P57<=$H$57,"III юн","б/р"))))))))))) -> 
C59: Плавание в ластах - 100 м (1460091811Я), мужчины
H60: 35.5 | I60: =IF(ISBLANK(H60)," ",IF(ISTEXT(H60)," ",IF(H60<=Нормативы!$H$60,"МСМК",IF(H60<=Нормативы!$H$61,"МС",IF(H60<=Нормативы!$H$62,"КМС",IF(H60<=Нормативы!$H$63,"I",IF(H60<=Нормативы!$H$64,"II",IF(H60<=Нормативы!$H$65,"III",IF(H60<=Нормативы!$H$66,"I юн",IF(H60<=Нормативы!$H$67,"II юн",IF(H60<=Нормативы!$H$68,"III юн","б/р"))))))))))) -> МСМК | J60: =IF(ISBLANK(H60)," ",IF(ISTEXT(H60)," ",IF(H60<=Нормативы!$H$60,"МСМК",IF(H60<=Нормативы!$H$61,"МС",IF(H60<=Нормативы!$H$62,"КМС",IF(H60<=Нормативы!$H$63,"I",IF(H60<=Нормативы!$H$64,"II",IF(H60<=Нормативы!$H$65,"III",IF(H60<=Нормативы!$H$66,"I юн",IF(H60<=Нормативы!$H$67,"II юн",IF(H60<=Нормативы!$H$68,"III юн","б/р"))))))))))) -> МСМК | M60: =IF(ISBLANK(L60)," ",IF(ISTEXT(L60)," ",IF(L60<=Нормативы!$H$60,"КМС",IF(L60<=Нормативы!$H$61,"КМС",IF(L60<=Нормативы!$L$62,"КМС",IF(L60<=Нормативы!$L$63,"I",IF(L60<=Нормативы!$L$64,"II",IF(L60<=Нормативы!$L$65,"III",IF(L60<=Нормативы!$L$66,"I юн",IF(L60<=Нормативы!$L$67,"II юн",IF(L60<=Нормативы!$L$68,"III юн","б/р"))))))))))) ->  | N60: =IF(ISBLANK(L60)," ",IF(ISTEXT(L60)," ",IF(L60<=36,"МСМК",IF(L60<=37.8,"МС",IF(L60<=39.4,"КМС",IF(L60<=42.3,"I",IF(L60<=45.9,"II",IF(L60<=49.8,"III",IF(L60<=54.6,"I юн",IF(L60<=59.6,"II юн",IF(L60<=104.6,"III юн","б/р"))))))))))) ->  | Q60: =IF(ISBLANK(P60)," ",IF(ISTEXT(P60)," ",IF(P60<=$H$60,"МСМК",IF(P60<=$H$61,"МС",IF(P60<=$H$62,"КМС",IF(P60<=$H$63,"I",IF(P60<=$H$64,"II",IF(P60<=$H$65,"III",IF(P60<=$H$66,"I юн",IF(P60<=$H$67,"II юн",IF(P60<=$H$68,"III юн","б/р"))))))))))) -> 
H61: 37.3 | I61: =IF(ISBLANK(H61)," ",IF(ISTEXT(H61)," ",IF(H61<=Нормативы!$H$60,"МСМК",IF(H61<=Нормативы!$H$61,"МС",IF(H61<=Нормативы!$H$62,"КМС",IF(H61<=Нормативы!$H$63,"I",IF(H61<=Нормативы!$H$64,"II",IF(H61<=Нормативы!$H$65,"III",IF(H61<=Нормативы!$H$66,"I юн",IF(H61<=Нормативы!$H$67,"II юн",IF(H61<=Нормативы!$H$68,"III юн","б/р"))))))))))) -> МС | J61: =IF(ISBLANK(H61)," ",IF(ISTEXT(H61)," ",IF(H61<=Нормативы!$H$60,"МСМК",IF(H61<=Нормативы!$H$61,"МС",IF(H61<=Нормативы!$H$62,"КМС",IF(H61<=Нормативы!$H$63,"I",IF(H61<=Нормативы!$H$64,"II",IF(H61<=Нормативы!$H$65,"III",IF(H61<=Нормативы!$H$66,"I юн",IF(H61<=Нормативы!$H$67,"II юн",IF(H61<=Нормативы!$H$68,"III юн","б/р"))))))))))) -> МС | M61: =IF(ISBLANK(L61)," ",IF(ISTEXT(L61)," ",IF(L61<=Нормативы!$H$60,"КМС",IF(L61<=Нормативы!$H$61,"КМС",IF(L61<=Нормативы!$L$62,"КМС",IF(L61<=Нормативы!$L$63,"I",IF(L61<=Нормативы!$L$64,"II",IF(L61<=Нормативы!$L$65,"III",IF(L61<=Нормативы!$L$66,"I юн",IF(L61<=Нормативы!$L$67,"II юн",IF(L61<=Нормативы!$L$68,"III юн","б/р"))))))))))) ->  | N61: =IF(ISBLANK(L61)," ",IF(ISTEXT(L61)," ",IF(L61<=36,"МСМК",IF(L61<=37.8,"МС",IF(L61<=39.4,"КМС",IF(L61<=42.3,"I",IF(L61<=45.9,"II",IF(L61<=49.8,"III",IF(L61<=54.6,"I юн",IF(L61<=59.6,"II юн",IF(L61<=104.6,"III юн","б/р"))))))))))) ->  | Q61: =IF(ISBLANK(P61)," ",IF(ISTEXT(P61)," ",IF(P61<=$H$60,"МСМК",IF(P61<=$H$61,"МС",IF(P61<=$H$62,"КМС",IF(P61<=$H$63,"I",IF(P61<=$H$64,"II",IF(P61<=$H$65,"III",IF(P61<=$H$66,"I юн",IF(P61<=$H$67,"II юн",IF(P61<=$H$68,"III юн","б/р"))))))))))) -> 
H62: 39.2 | I62: =IF(ISBLANK(H62)," ",IF(ISTEXT(H62)," ",IF(H62<=Нормативы!$H$60,"МСМК",IF(H62<=Нормативы!$H$61,"МС",IF(H62<=Нормативы!$H$62,"КМС",IF(H62<=Нормативы!$H$63,"I",IF(H62<=Нормативы!$H$64,"II",IF(H62<=Нормативы!$H$65,"III",IF(H62<=Нормативы!$H$66,"I юн",IF(H62<=Нормативы!$H$67,"II юн",IF(H62<=Нормативы!$H$68,"III юн","б/р"))))))))))) -> КМС | J62: =IF(ISBLANK(H62)," ",IF(ISTEXT(H62)," ",IF(H62<=Нормативы!$H$60,"МСМК",IF(H62<=Нормативы!$H$61,"МС",IF(H62<=Нормативы!$H$62,"КМС",IF(H62<=Нормативы!$H$63,"I",IF(H62<=Нормативы!$H$64,"II",IF(H62<=Нормативы!$H$65,"III",IF(H62<=Нормативы!$H$66,"I юн",IF(H62<=Нормативы!$H$67,"II юн",IF(H62<=Нормативы!$H$68,"III юн","б/р"))))))))))) -> КМС | L62: =H62-0.2 -> 39 | M62: =IF(ISBLANK(L62)," ",IF(ISTEXT(L62)," ",IF(L62<=Нормативы!$H$60,"КМС",IF(L62<=Нормативы!$H$61,"КМС",IF(L62<=Нормативы!$L$62,"КМС",IF(L62<=Нормативы!$L$63,"I",IF(L62<=Нормативы!$L$64,"II",IF(L62<=Нормативы!$L$65,"III",IF(L62<=Нормативы!$L$66,"I юн",IF(L62<=Нормативы!$L$67,"II юн",IF(L62<=Нормативы!$L$68,"III юн","б/р"))))))))))) -> КМС | N62: =IF(ISBLANK(L62)," ",IF(ISTEXT(L62)," ",IF(L62<=Нормативы!$H$60,"КМС",IF(L62<=Нормативы!$H$61,"КМС",IF(L62<=Нормативы!$L$62,"КМС",IF(L62<=Нормативы!$L$63,"I",IF(L62<=Нормативы!$L$64,"II",IF(L62<=Нормативы!$L$65,"III",IF(L62<=Нормативы!$L$66,"I юн",IF(L62<=Нормативы!$L$67,"II юн",IF(L62<=Нормативы!$L$68,"III юн","б/р"))))))))))) -> КМС | Q62: =IF(ISBLANK(P62)," ",IF(ISTEXT(P62)," ",IF(P62<=$H$60,"МСМК",IF(P62<=$H$61,"МС",IF(P62<=$H$62,"КМС",IF(P62<=$H$63,"I",IF(P62<=$H$64,"II",IF(P62<=$H$65,"III",IF(P62<=$H$66,"I юн",IF(P62<=$H$67,"II юн",IF(P62<=$H$68,"III юн","б/р"))))))))))) -> 
H63: 42 | I63: =IF(ISBLANK(H63)," ",IF(ISTEXT(H63)," ",IF(H63<=Нормативы!$H$60,"МСМК",IF(H63<=Нормативы!$H$61,"МС",IF(H63<=Нормативы!$H$62,"КМС",IF(H63<=Нормативы!$H$63,"I",IF(H63<=Нормативы!$H$64,"II",IF(H63<=Нормативы!$H$65,"III",IF(H63<=Нормативы!$H$66,"I юн",IF(H63<=Нормативы!$H$67,"II юн",IF(H63<=Нормативы!$H$68,"III юн","б/р"))))))))))) -> I | J63: =IF(ISBLANK(H63)," ",IF(ISTEXT(H63)," ",IF(H63<=Нормативы!$H$60,"МСМК",IF(H63<=Нормативы!$H$61,"МС",IF(H63<=Нормативы!$H$62,"КМС",IF(H63<=Нормативы!$H$63,"I",IF(H63<=Нормативы!$H$64,"II",IF(H63<=Нормативы!$H$65,"III",IF(H63<=Нормативы!$H$66,"I юн",IF(H63<=Нормативы!$H$67,"II юн",IF(H63<=Нормативы!$H$68,"III юн","б/р"))))))))))) -> I | L63: 41.8 | M63: =IF(ISBLANK(L63)," ",IF(ISTEXT(L63)," ",IF(L63<=Нормативы!$H$60,"КМС",IF(L63<=Нормативы!$H$61,"КМС",IF(L63<=Нормативы!$L$62,"КМС",IF(L63<=Нормативы!$L$63,"I",IF(L63<=Нормативы!$L$64,"II",IF(L63<=Нормативы!$L$65,"III",IF(L63<=Нормативы!$L$66,"I юн",IF(L63<=Нормативы!$L$67,"II юн",IF(L63<=Нормативы!$L$68,"III юн","б/р"))))))))))) -> I | N63: =IF(ISBLANK(L63)," ",IF(ISTEXT(L63)," ",IF(L63<=Нормативы!$H$60,"КМС",IF(L63<=Нормативы!$H$61,"КМС",IF(L63<=Нормативы!$L$62,"КМС",IF(L63<=Нормативы!$L$63,"I",IF(L63<=Нормативы!$L$64,"II",IF(L63<=Нормативы!$L$65,"III",IF(L63<=Нормативы!$L$66,"I юн",IF(L63<=Нормативы!$L$67,"II юн",IF(L63<=Нормативы!$L$68,"III юн","б/р"))))))))))) -> I | Q63: =IF(ISBLANK(P63)," ",IF(ISTEXT(P63)," ",IF(P63<=$H$60,"МСМК",IF(P63<=$H$61,"МС",IF(P63<=$H$62,"КМС",IF(P63<=$H$63,"I",IF(P63<=$H$64,"II",IF(P63<=$H$65,"III",IF(P63<=$H$66,"I юн",IF(P63<=$H$67,"II юн",IF(P63<=$H$68,"III юн","б/р"))))))))))) -> 
H64: 45.7 | I64: =IF(ISBLANK(H64)," ",IF(ISTEXT(H64)," ",IF(H64<=Нормативы!$H$60,"МСМК",IF(H64<=Нормативы!$H$61,"МС",IF(H64<=Нормативы!$H$62,"КМС",IF(H64<=Нормативы!$H$63,"I",IF(H64<=Нормативы!$H$64,"II",IF(H64<=Нормативы!$H$65,"III",IF(H64<=Нормативы!$H$66,"I юн",IF(H64<=Нормативы!$H$67,"II юн",IF(H64<=Нормативы!$H$68,"III юн","б/р"))))))))))) -> II | J64: =IF(ISBLANK(H64)," ",IF(ISTEXT(H64)," ",IF(H64<=Нормативы!$H$60,"МСМК",IF(H64<=Нормативы!$H$61,"МС",IF(H64<=Нормативы!$H$62,"КМС",IF(H64<=Нормативы!$H$63,"I",IF(H64<=Нормативы!$H$64,"II",IF(H64<=Нормативы!$H$65,"III",IF(H64<=Нормативы!$H$66,"I юн",IF(H64<=Нормативы!$H$67,"II юн",IF(H64<=Нормативы!$H$68,"III юн","б/р"))))))))))) -> II | L64: 45.5 | M64: =IF(ISBLANK(L64)," ",IF(ISTEXT(L64)," ",IF(L64<=Нормативы!$H$60,"КМС",IF(L64<=Нормативы!$H$61,"КМС",IF(L64<=Нормативы!$L$62,"КМС",IF(L64<=Нормативы!$L$63,"I",IF(L64<=Нормативы!$L$64,"II",IF(L64<=Нормативы!$L$65,"III",IF(L64<=Нормативы!$L$66,"I юн",IF(L64<=Нормативы!$L$67,"II юн",IF(L64<=Нормативы!$L$68,"III юн","б/р"))))))))))) -> II | N64: =IF(ISBLANK(L64)," ",IF(ISTEXT(L64)," ",IF(L64<=Нормативы!$H$60,"КМС",IF(L64<=Нормативы!$H$61,"КМС",IF(L64<=Нормативы!$L$62,"КМС",IF(L64<=Нормативы!$L$63,"I",IF(L64<=Нормативы!$L$64,"II",IF(L64<=Нормативы!$L$65,"III",IF(L64<=Нормативы!$L$66,"I юн",IF(L64<=Нормативы!$L$67,"II юн",IF(L64<=Нормативы!$L$68,"III юн","б/р"))))))))))) -> II | Q64: =IF(ISBLANK(P64)," ",IF(ISTEXT(P64)," ",IF(P64<=$H$60,"МСМК",IF(P64<=$H$61,"МС",IF(P64<=$H$62,"КМС",IF(P64<=$H$63,"I",IF(P64<=$H$64,"II",IF(P64<=$H$65,"III",IF(P64<=$H$66,"I юн",IF(P64<=$H$67,"II юн",IF(P64<=$H$68,"III юн","б/р"))))))))))) -> 
H65: 49.7 | I65: =IF(ISBLANK(H65)," ",IF(ISTEXT(H65)," ",IF(H65<=Нормативы!$H$60,"МСМК",IF(H65<=Нормативы!$H$61,"МС",IF(H65<=Нормативы!$H$62,"КМС",IF(H65<=Нормативы!$H$63,"I",IF(H65<=Нормативы!$H$64,"II",IF(H65<=Нормативы!$H$65,"III",IF(H65<=Нормативы!$H$66,"I юн",IF(H65<=Нормативы!$H$67,"II юн",IF(H65<=Нормативы!$H$68,"III юн","б/р"))))))))))) -> III | J65: =IF(ISBLANK(H65)," ",IF(ISTEXT(H65)," ",IF(H65<=Нормативы!$H$60,"МСМК",IF(H65<=Нормативы!$H$61,"МС",IF(H65<=Нормативы!$H$62,"КМС",IF(H65<=Нормативы!$H$63,"I",IF(H65<=Нормативы!$H$64,"II",IF(H65<=Нормативы!$H$65,"III",IF(H65<=Нормативы!$H$66,"I юн",IF(H65<=Нормативы!$H$67,"II юн",IF(H65<=Нормативы!$H$68,"III юн","б/р"))))))))))) -> III | L65: 49.5 | M65: =IF(ISBLANK(L65)," ",IF(ISTEXT(L65)," ",IF(L65<=Нормативы!$H$60,"КМС",IF(L65<=Нормативы!$H$61,"КМС",IF(L65<=Нормативы!$L$62,"КМС",IF(L65<=Нормативы!$L$63,"I",IF(L65<=Нормативы!$L$64,"II",IF(L65<=Нормативы!$L$65,"III",IF(L65<=Нормативы!$L$66,"I юн",IF(L65<=Нормативы!$L$67,"II юн",IF(L65<=Нормативы!$L$68,"III юн","б/р"))))))))))) -> III | N65: =IF(ISBLANK(L65)," ",IF(ISTEXT(L65)," ",IF(L65<=Нормативы!$H$60,"КМС",IF(L65<=Нормативы!$H$61,"КМС",IF(L65<=Нормативы!$L$62,"КМС",IF(L65<=Нормативы!$L$63,"I",IF(L65<=Нормативы!$L$64,"II",IF(L65<=Нормативы!$L$65,"III",IF(L65<=Нормативы!$L$66,"I юн",IF(L65<=Нормативы!$L$67,"II юн",IF(L65<=Нормативы!$L$68,"III юн","б/р"))))))))))) -> III | Q65: =IF(ISBLANK(P65)," ",IF(ISTEXT(P65)," ",IF(P65<=$H$60,"МСМК",IF(P65<=$H$61,"МС",IF(P65<=$H$62,"КМС",IF(P65<=$H$63,"I",IF(P65<=$H$64,"II",IF(P65<=$H$65,"III",IF(P65<=$H$66,"I юн",IF(P65<=$H$67,"II юн",IF(P65<=$H$68,"III юн","б/р"))))))))))) -> 
H66: 54.3 | I66: =IF(ISBLANK(H66)," ",IF(ISTEXT(H66)," ",IF(H66<=Нормативы!$H$60,"МСМК",IF(H66<=Нормативы!$H$61,"МС",IF(H66<=Нормативы!$H$62,"КМС",IF(H66<=Нормативы!$H$63,"I",IF(H66<=Нормативы!$H$64,"II",IF(H66<=Нормативы!$H$65,"III",IF(H66<=Нормативы!$H$66,"I юн",IF(H66<=Нормативы!$H$67,"II юн",IF(H66<=Нормативы!$H$68,"III юн","б/р"))))))))))) -> I юн | J66: =IF(ISBLANK(H66)," ",IF(ISTEXT(H66)," ",IF(H66<=Нормативы!$H$60,"МСМК",IF(H66<=Нормативы!$H$61,"МС",IF(H66<=Нормативы!$H$62,"КМС",IF(H66<=Нормативы!$H$63,"I",IF(H66<=Нормативы!$H$64,"II",IF(H66<=Нормативы!$H$65,"III",IF(H66<=Нормативы!$H$66,"I юн",IF(H66<=Нормативы!$H$67,"II юн",IF(H66<=Нормативы!$H$68,"III юн","б/р"))))))))))) -> I юн | L66: 54.1 | M66: =IF(ISBLANK(L66)," ",IF(ISTEXT(L66)," ",IF(L66<=Нормативы!$H$60,"КМС",IF(L66<=Нормативы!$H$61,"КМС",IF(L66<=Нормативы!$L$62,"КМС",IF(L66<=Нормативы!$L$63,"I",IF(L66<=Нормативы!$L$64,"II",IF(L66<=Нормативы!$L$65,"III",IF(L66<=Нормативы!$L$66,"I юн",IF(L66<=Нормативы!$L$67,"II юн",IF(L66<=Нормативы!$L$68,"III юн","б/р"))))))))))) -> I юн | N66: =IF(ISBLANK(L66)," ",IF(ISTEXT(L66)," ",IF(L66<=Нормативы!$H$60,"КМС",IF(L66<=Нормативы!$H$61,"КМС",IF(L66<=Нормативы!$L$62,"КМС",IF(L66<=Нормативы!$L$63,"I",IF(L66<=Нормативы!$L$64,"II",IF(L66<=Нормативы!$L$65,"III",IF(L66<=Нормативы!$L$66,"I юн",IF(L66<=Нормативы!$L$67,"II юн",IF(L66<=Нормативы!$L$68,"III юн","б/р"))))))))))) -> I юн | Q66: =IF(ISBLANK(P66)," ",IF(ISTEXT(P66)," ",IF(P66<=$H$60,"МСМК",IF(P66<=$H$61,"МС",IF(P66<=$H$62,"КМС",IF(P66<=$H$63,"I",IF(P66<=$H$64,"II",IF(P66<=$H$65,"III",IF(P66<=$H$66,"I юн",IF(P66<=$H$67,"II юн",IF(P66<=$H$68,"III юн","б/р"))))))))))) -> 
H67: 59.2 | I67: =IF(ISBLANK(H67)," ",IF(ISTEXT(H67)," ",IF(H67<=Нормативы!$H$60,"МСМК",IF(H67<=Нормативы!$H$61,"МС",IF(H67<=Нормативы!$H$62,"КМС",IF(H67<=Нормативы!$H$63,"I",IF(H67<=Нормативы!$H$64,"II",IF(H67<=Нормативы!$H$65,"III",IF(H67<=Нормативы!$H$66,"I юн",IF(H67<=Нормативы!$H$67,"II юн",IF(H67<=Нормативы!$H$68,"III юн","б/р"))))))))))) -> II юн | J67: =IF(ISBLANK(H67)," ",IF(ISTEXT(H67)," ",IF(H67<=Нормативы!$H$60,"МСМК",IF(H67<=Нормативы!$H$61,"МС",IF(H67<=Нормативы!$H$62,"КМС",IF(H67<=Нормативы!$H$63,"I",IF(H67<=Нормативы!$H$64,"II",IF(H67<=Нормативы!$H$65,"III",IF(H67<=Нормативы!$H$66,"I юн",IF(H67<=Нормативы!$H$67,"II юн",IF(H67<=Нормативы!$H$68,"III юн","б/р"))))))))))) -> II юн | L67: 59 | M67: =IF(ISBLANK(L67)," ",IF(ISTEXT(L67)," ",IF(L67<=Нормативы!$H$60,"КМС",IF(L67<=Нормативы!$H$61,"КМС",IF(L67<=Нормативы!$L$62,"КМС",IF(L67<=Нормативы!$L$63,"I",IF(L67<=Нормативы!$L$64,"II",IF(L67<=Нормативы!$L$65,"III",IF(L67<=Нормативы!$L$66,"I юн",IF(L67<=Нормативы!$L$67,"II юн",IF(L67<=Нормативы!$L$68,"III юн","б/р"))))))))))) -> II юн | N67: =IF(ISBLANK(L67)," ",IF(ISTEXT(L67)," ",IF(L67<=Нормативы!$H$60,"КМС",IF(L67<=Нормативы!$H$61,"КМС",IF(L67<=Нормативы!$L$62,"КМС",IF(L67<=Нормативы!$L$63,"I",IF(L67<=Нормативы!$L$64,"II",IF(L67<=Нормативы!$L$65,"III",IF(L67<=Нормативы!$L$66,"I юн",IF(L67<=Нормативы!$L$67,"II юн",IF(L67<=Нормативы!$L$68,"III юн","б/р"))))))))))) -> II юн | Q67: =IF(ISBLANK(P67)," ",IF(ISTEXT(P67)," ",IF(P67<=$H$60,"МСМК",IF(P67<=$H$61,"МС",IF(P67<=$H$62,"КМС",IF(P67<=$H$63,"I",IF(P67<=$H$64,"II",IF(P67<=$H$65,"III",IF(P67<=$H$66,"I юн",IF(P67<=$H$67,"II юн",IF(P67<=$H$68,"III юн","б/р"))))))))))) -> 
H68: 104.2 | I68: =IF(ISBLANK(H68)," ",IF(ISTEXT(H68)," ",IF(H68<=Нормативы!$H$60,"МСМК",IF(H68<=Нормативы!$H$61,"МС",IF(H68<=Нормативы!$H$62,"КМС",IF(H68<=Нормативы!$H$63,"I",IF(H68<=Нормативы!$H$64,"II",IF(H68<=Нормативы!$H$65,"III",IF(H68<=Нормативы!$H$66,"I юн",IF(H68<=Нормативы!$H$67,"II юн",IF(H68<=Нормативы!$H$68,"III юн","б/р"))))))))))) -> III юн | J68: =IF(ISBLANK(H68)," ",IF(ISTEXT(H68)," ",IF(H68<=Нормативы!$H$60,"МСМК",IF(H68<=Нормативы!$H$61,"МС",IF(H68<=Нормативы!$H$62,"КМС",IF(H68<=Нормативы!$H$63,"I",IF(H68<=Нормативы!$H$64,"II",IF(H68<=Нормативы!$H$65,"III",IF(H68<=Нормативы!$H$66,"I юн",IF(H68<=Нормативы!$H$67,"II юн",IF(H68<=Нормативы!$H$68,"III юн","б/р"))))))))))) -> III юн | L68: 104 | M68: =IF(ISBLANK(L68)," ",IF(ISTEXT(L68)," ",IF(L68<=Нормативы!$H$60,"КМС",IF(L68<=Нормативы!$H$61,"КМС",IF(L68<=Нормативы!$L$62,"КМС",IF(L68<=Нормативы!$L$63,"I",IF(L68<=Нормативы!$L$64,"II",IF(L68<=Нормативы!$L$65,"III",IF(L68<=Нормативы!$L$66,"I юн",IF(L68<=Нормативы!$L$67,"II юн",IF(L68<=Нормативы!$L$68,"III юн","б/р"))))))))))) -> III юн | N68: =IF(ISBLANK(L68)," ",IF(ISTEXT(L68)," ",IF(L68<=Нормативы!$H$60,"КМС",IF(L68<=Нормативы!$H$61,"КМС",IF(L68<=Нормативы!$L$62,"КМС",IF(L68<=Нормативы!$L$63,"I",IF(L68<=Нормативы!$L$64,"II",IF(L68<=Нормативы!$L$65,"III",IF(L68<=Нормативы!$L$66,"I юн",IF(L68<=Нормативы!$L$67,"II юн",IF(L68<=Нормативы!$L$68,"III юн","б/р"))))))))))) -> III юн | Q68: =IF(ISBLANK(P68)," ",IF(ISTEXT(P68)," ",IF(P68<=$H$60,"МСМК",IF(P68<=$H$61,"МС",IF(P68<=$H$62,"КМС",IF(P68<=$H$63,"I",IF(P68<=$H$64,"II",IF(P68<=$H$65,"III",IF(P68<=$H$66,"I юн",IF(P68<=$H$67,"II юн",IF(P68<=$H$68,"III юн","б/р"))))))))))) -> 
C70: Плавание в классических ластах- 100 м (1460251811Я), женщины
H71: 47.9 | I71: =IF(ISBLANK(H71)," ",IF(ISTEXT(H71)," ",IF(H71<=Нормативы!$H$71,"МСМК",IF(H71<=Нормативы!$H$72,"МС",IF(H71<=Нормативы!$H$73,"КМС",IF(H71<=Нормативы!$H$74,"I",IF(H71<=Нормативы!$H$75,"II",IF(H71<=Нормативы!$H$76,"III",IF(H71<=Нормативы!$H$77,"I юн",IF(H71<=Нормативы!$H$78,"II юн",IF(H71<=Нормативы!$H$79,"III юн","б/р"))))))))))) -> МСМК | J71: =IF(ISBLANK(H71)," ",IF(ISTEXT(H71)," ",IF(H71<=Нормативы!$H$71,"МСМК",IF(H71<=Нормативы!$H$72,"МС",IF(H71<=Нормативы!$H$73,"КМС",IF(H71<=Нормативы!$H$74,"I",IF(H71<=Нормативы!$H$75,"II",IF(H71<=Нормативы!$H$76,"III",IF(H71<=Нормативы!$H$77,"I юн",IF(H71<=Нормативы!$H$78,"II юн",IF(H71<=Нормативы!$H$79,"III юн","б/р"))))))))))) -> МСМК | M71: =IF(ISBLANK(L71)," ",IF(ISTEXT(L71)," ",IF(L71<=Нормативы!$H$71,"КМС",IF(L71<=Нормативы!$H$72,"КМС",IF(L71<=Нормативы!$L$73,"КМС",IF(L71<=Нормативы!$L$74,"I",IF(L71<=Нормативы!$L$75,"II",IF(L71<=Нормативы!$L$76,"III",IF(L71<=Нормативы!$L$77,"I юн",IF(L71<=Нормативы!$L$78,"II юн",IF(L71<=Нормативы!$L$79,"III юн","б/р"))))))))))) ->  | N71: =IF(ISBLANK(L71)," ",IF(ISTEXT(L71)," ",IF(L71<=48.1,"МСМК",IF(L71<=51,"МС",IF(L71<=53.3,"КМС",IF(L71<=57.3,"I",IF(L71<=101.9,"II",IF(L71<=107.8,"III",IF(L71<=113.5,"I юн",IF(L71<=119.6,"II юн",IF(L71<=126,"III юн","б/р"))))))))))) ->  | Q71: =IF(ISBLANK(P71)," ",IF(ISTEXT(P71)," ",IF(P71<=$H$71,"МСМК",IF(P71<=$H$72,"МС",IF(P71<=$H$73,"КМС",IF(P71<=$H$74,"I",IF(P71<=$H$75,"II",IF(P71<=$H$76,"III",IF(P71<=$H$77,"I юн",IF(P71<=$H$78,"II юн",IF(P71<=$H$79,"III юн","б/р"))))))))))) -> 
H72: 50 | I72: =IF(ISBLANK(H72)," ",IF(ISTEXT(H72)," ",IF(H72<=Нормативы!$H$71,"МСМК",IF(H72<=Нормативы!$H$72,"МС",IF(H72<=Нормативы!$H$73,"КМС",IF(H72<=Нормативы!$H$74,"I",IF(H72<=Нормативы!$H$75,"II",IF(H72<=Нормативы!$H$76,"III",IF(H72<=Нормативы!$H$77,"I юн",IF(H72<=Нормативы!$H$78,"II юн",IF(H72<=Нормативы!$H$79,"III юн","б/р"))))))))))) -> МС | J72: =IF(ISBLANK(H72)," ",IF(ISTEXT(H72)," ",IF(H72<=Нормативы!$H$71,"МСМК",IF(H72<=Нормативы!$H$72,"МС",IF(H72<=Нормативы!$H$73,"КМС",IF(H72<=Нормативы!$H$74,"I",IF(H72<=Нормативы!$H$75,"II",IF(H72<=Нормативы!$H$76,"III",IF(H72<=Нормативы!$H$77,"I юн",IF(H72<=Нормативы!$H$78,"II юн",IF(H72<=Нормативы!$H$79,"III юн","б/р"))))))))))) -> МС | M72: =IF(ISBLANK(L72)," ",IF(ISTEXT(L72)," ",IF(L72<=Нормативы!$H$71,"КМС",IF(L72<=Нормативы!$H$72,"КМС",IF(L72<=Нормативы!$L$73,"КМС",IF(L72<=Нормативы!$L$74,"I",IF(L72<=Нормативы!$L$75,"II",IF(L72<=Нормативы!$L$76,"III",IF(L72<=Нормативы!$L$77,"I юн",IF(L72<=Нормативы!$L$78,"II юн",IF(L72<=Нормативы!$L$79,"III юн","б/р"))))))))))) ->  | N72: =IF(ISBLANK(L72)," ",IF(ISTEXT(L72)," ",IF(L72<=48.1,"МСМК",IF(L72<=51,"МС",IF(L72<=53.3,"КМС",IF(L72<=57.3,"I",IF(L72<=101.9,"II",IF(L72<=107.8,"III",IF(L72<=113.5,"I юн",IF(L72<=119.6,"II юн",IF(L72<=126,"III юн","б/р"))))))))))) ->  | Q72: =IF(ISBLANK(P72)," ",IF(ISTEXT(P72)," ",IF(P72<=$H$71,"МСМК",IF(P72<=$H$72,"МС",IF(P72<=$H$73,"КМС",IF(P72<=$H$74,"I",IF(P72<=$H$75,"II",IF(P72<=$H$76,"III",IF(P72<=$H$77,"I юн",IF(P72<=$H$78,"II юн",IF(P72<=$H$79,"III юн","б/р"))))))))))) -> 
H73: 53.2 | I73: =IF(ISBLANK(H73)," ",IF(ISTEXT(H73)," ",IF(H73<=Нормативы!$H$71,"МСМК",IF(H73<=Нормативы!$H$72,"МС",IF(H73<=Нормативы!$H$73,"КМС",IF(H73<=Нормативы!$H$74,"I",IF(H73<=Нормативы!$H$75,"II",IF(H73<=Нормативы!$H$76,"III",IF(H73<=Нормативы!$H$77,"I юн",IF(H73<=Нормативы!$H$78,"II юн",IF(H73<=Нормативы!$H$79,"III юн","б/р"))))))))))) -> КМС | J73: =IF(ISBLANK(H73)," ",IF(ISTEXT(H73)," ",IF(H73<=Нормативы!$H$71,"МСМК",IF(H73<=Нормативы!$H$72,"МС",IF(H73<=Нормативы!$H$73,"КМС",IF(H73<=Нормативы!$H$74,"I",IF(H73<=Нормативы!$H$75,"II",IF(H73<=Нормативы!$H$76,"III",IF(H73<=Нормативы!$H$77,"I юн",IF(H73<=Нормативы!$H$78,"II юн",IF(H73<=Нормативы!$H$79,"III юн","б/р"))))))))))) -> КМС | L73: =H73-0.2 -> 53 | M73: =IF(ISBLANK(L73)," ",IF(ISTEXT(L73)," ",IF(L73<=Нормативы!$H$71,"КМС",IF(L73<=Нормативы!$H$72,"КМС",IF(L73<=Нормативы!$L$73,"КМС",IF(L73<=Нормативы!$L$74,"I",IF(L73<=Нормативы!$L$75,"II",IF(L73<=Нормативы!$L$76,"III",IF(L73<=Нормативы!$L$77,"I юн",IF(L73<=Нормативы!$L$78,"II юн",IF(L73<=Нормативы!$L$79,"III юн","б/р"))))))))))) -> КМС | N73: =IF(ISBLANK(L73)," ",IF(ISTEXT(L73)," ",IF(L73<=Нормативы!$H$71,"КМС",IF(L73<=Нормативы!$H$72,"КМС",IF(L73<=Нормативы!$L$73,"КМС",IF(L73<=Нормативы!$L$74,"I",IF(L73<=Нормативы!$L$75,"II",IF(L73<=Нормативы!$L$76,"III",IF(L73<=Нормативы!$L$77,"I юн",IF(L73<=Нормативы!$L$78,"II юн",IF(L73<=Нормативы!$L$79,"III юн","б/р"))))))))))) -> КМС | Q73: =IF(ISBLANK(P73)," ",IF(ISTEXT(P73)," ",IF(P73<=$H$71,"МСМК",IF(P73<=$H$72,"МС",IF(P73<=$H$73,"КМС",IF(P73<=$H$74,"I",IF(P73<=$H$75,"II",IF(P73<=$H$76,"III",IF(P73<=$H$77,"I юн",IF(P73<=$H$78,"II юн",IF(P73<=$H$79,"III юн","б/р"))))))))))) -> 
H74: 57 | I74: =IF(ISBLANK(H74)," ",IF(ISTEXT(H74)," ",IF(H74<=Нормативы!$H$71,"МСМК",IF(H74<=Нормативы!$H$72,"МС",IF(H74<=Нормативы!$H$73,"КМС",IF(H74<=Нормативы!$H$74,"I",IF(H74<=Нормативы!$H$75,"II",IF(H74<=Нормативы!$H$76,"III",IF(H74<=Нормативы!$H$77,"I юн",IF(H74<=Нормативы!$H$78,"II юн",IF(H74<=Нормативы!$H$79,"III юн","б/р"))))))))))) -> I | J74: =IF(ISBLANK(H74)," ",IF(ISTEXT(H74)," ",IF(H74<=Нормативы!$H$71,"МСМК",IF(H74<=Нормативы!$H$72,"МС",IF(H74<=Нормативы!$H$73,"КМС",IF(H74<=Нормативы!$H$74,"I",IF(H74<=Нормативы!$H$75,"II",IF(H74<=Нормативы!$H$76,"III",IF(H74<=Нормативы!$H$77,"I юн",IF(H74<=Нормативы!$H$78,"II юн",IF(H74<=Нормативы!$H$79,"III юн","б/р"))))))))))) -> I | L74: 56.8 | M74: =IF(ISBLANK(L74)," ",IF(ISTEXT(L74)," ",IF(L74<=Нормативы!$H$71,"КМС",IF(L74<=Нормативы!$H$72,"КМС",IF(L74<=Нормативы!$L$73,"КМС",IF(L74<=Нормативы!$L$74,"I",IF(L74<=Нормативы!$L$75,"II",IF(L74<=Нормативы!$L$76,"III",IF(L74<=Нормативы!$L$77,"I юн",IF(L74<=Нормативы!$L$78,"II юн",IF(L74<=Нормативы!$L$79,"III юн","б/р"))))))))))) -> I | N74: =IF(ISBLANK(L74)," ",IF(ISTEXT(L74)," ",IF(L74<=Нормативы!$H$71,"КМС",IF(L74<=Нормативы!$H$72,"КМС",IF(L74<=Нормативы!$L$73,"КМС",IF(L74<=Нормативы!$L$74,"I",IF(L74<=Нормативы!$L$75,"II",IF(L74<=Нормативы!$L$76,"III",IF(L74<=Нормативы!$L$77,"I юн",IF(L74<=Нормативы!$L$78,"II юн",IF(L74<=Нормативы!$L$79,"III юн","б/р"))))))))))) -> I | Q74: =IF(ISBLANK(P74)," ",IF(ISTEXT(P74)," ",IF(P74<=$H$71,"МСМК",IF(P74<=$H$72,"МС",IF(P74<=$H$73,"КМС",IF(P74<=$H$74,"I",IF(P74<=$H$75,"II",IF(P74<=$H$76,"III",IF(P74<=$H$77,"I юн",IF(P74<=$H$78,"II юн",IF(P74<=$H$79,"III юн","б/р"))))))))))) -> 
H75: 101.6 | I75: =IF(ISBLANK(H75)," ",IF(ISTEXT(H75)," ",IF(H75<=Нормативы!$H$71,"МСМК",IF(H75<=Нормативы!$H$72,"МС",IF(H75<=Нормативы!$H$73,"КМС",IF(H75<=Нормативы!$H$74,"I",IF(H75<=Нормативы!$H$75,"II",IF(H75<=Нормативы!$H$76,"III",IF(H75<=Нормативы!$H$77,"I юн",IF(H75<=Нормативы!$H$78,"II юн",IF(H75<=Нормативы!$H$79,"III юн","б/р"))))))))))) -> II | J75: =IF(ISBLANK(H75)," ",IF(ISTEXT(H75)," ",IF(H75<=Нормативы!$H$71,"МСМК",IF(H75<=Нормативы!$H$72,"МС",IF(H75<=Нормативы!$H$73,"КМС",IF(H75<=Нормативы!$H$74,"I",IF(H75<=Нормативы!$H$75,"II",IF(H75<=Нормативы!$H$76,"III",IF(H75<=Нормативы!$H$77,"I юн",IF(H75<=Нормативы!$H$78,"II юн",IF(H75<=Нормативы!$H$79,"III юн","б/р"))))))))))) -> II | L75: 101.4 | M75: =IF(ISBLANK(L75)," ",IF(ISTEXT(L75)," ",IF(L75<=Нормативы!$H$71,"КМС",IF(L75<=Нормативы!$H$72,"КМС",IF(L75<=Нормативы!$L$73,"КМС",IF(L75<=Нормативы!$L$74,"I",IF(L75<=Нормативы!$L$75,"II",IF(L75<=Нормативы!$L$76,"III",IF(L75<=Нормативы!$L$77,"I юн",IF(L75<=Нормативы!$L$78,"II юн",IF(L75<=Нормативы!$L$79,"III юн","б/р"))))))))))) -> II | N75: =IF(ISBLANK(L75)," ",IF(ISTEXT(L75)," ",IF(L75<=Нормативы!$H$71,"КМС",IF(L75<=Нормативы!$H$72,"КМС",IF(L75<=Нормативы!$L$73,"КМС",IF(L75<=Нормативы!$L$74,"I",IF(L75<=Нормативы!$L$75,"II",IF(L75<=Нормативы!$L$76,"III",IF(L75<=Нормативы!$L$77,"I юн",IF(L75<=Нормативы!$L$78,"II юн",IF(L75<=Нормативы!$L$79,"III юн","б/р"))))))))))) -> II | Q75: =IF(ISBLANK(P75)," ",IF(ISTEXT(P75)," ",IF(P75<=$H$71,"МСМК",IF(P75<=$H$72,"МС",IF(P75<=$H$73,"КМС",IF(P75<=$H$74,"I",IF(P75<=$H$75,"II",IF(P75<=$H$76,"III",IF(P75<=$H$77,"I юн",IF(P75<=$H$78,"II юн",IF(P75<=$H$79,"III юн","б/р"))))))))))) -> 
H76: 107.4 | I76: =IF(ISBLANK(H76)," ",IF(ISTEXT(H76)," ",IF(H76<=Нормативы!$H$71,"МСМК",IF(H76<=Нормативы!$H$72,"МС",IF(H76<=Нормативы!$H$73,"КМС",IF(H76<=Нормативы!$H$74,"I",IF(H76<=Нормативы!$H$75,"II",IF(H76<=Нормативы!$H$76,"III",IF(H76<=Нормативы!$H$77,"I юн",IF(H76<=Нормативы!$H$78,"II юн",IF(H76<=Нормативы!$H$79,"III юн","б/р"))))))))))) -> III | J76: =IF(ISBLANK(H76)," ",IF(ISTEXT(H76)," ",IF(H76<=Нормативы!$H$71,"МСМК",IF(H76<=Нормативы!$H$72,"МС",IF(H76<=Нормативы!$H$73,"КМС",IF(H76<=Нормативы!$H$74,"I",IF(H76<=Нормативы!$H$75,"II",IF(H76<=Нормативы!$H$76,"III",IF(H76<=Нормативы!$H$77,"I юн",IF(H76<=Нормативы!$H$78,"II юн",IF(H76<=Нормативы!$H$79,"III юн","б/р"))))))))))) -> III | L76: 107.2 | M76: =IF(ISBLANK(L76)," ",IF(ISTEXT(L76)," ",IF(L76<=Нормативы!$H$71,"КМС",IF(L76<=Нормативы!$H$72,"КМС",IF(L76<=Нормативы!$L$73,"КМС",IF(L76<=Нормативы!$L$74,"I",IF(L76<=Нормативы!$L$75,"II",IF(L76<=Нормативы!$L$76,"III",IF(L76<=Нормативы!$L$77,"I юн",IF(L76<=Нормативы!$L$78,"II юн",IF(L76<=Нормативы!$L$79,"III юн","б/р"))))))))))) -> III | N76: =IF(ISBLANK(L76)," ",IF(ISTEXT(L76)," ",IF(L76<=Нормативы!$H$71,"КМС",IF(L76<=Нормативы!$H$72,"КМС",IF(L76<=Нормативы!$L$73,"КМС",IF(L76<=Нормативы!$L$74,"I",IF(L76<=Нормативы!$L$75,"II",IF(L76<=Нормативы!$L$76,"III",IF(L76<=Нормативы!$L$77,"I юн",IF(L76<=Нормативы!$L$78,"II юн",IF(L76<=Нормативы!$L$79,"III юн","б/р"))))))))))) -> III | Q76: =IF(ISBLANK(P76)," ",IF(ISTEXT(P76)," ",IF(P76<=$H$71,"МСМК",IF(P76<=$H$72,"МС",IF(P76<=$H$73,"КМС",IF(P76<=$H$74,"I",IF(P76<=$H$75,"II",IF(P76<=$H$76,"III",IF(P76<=$H$77,"I юн",IF(P76<=$H$78,"II юн",IF(P76<=$H$79,"III юн","б/р"))))))))))) -> 
H77: 113 | I77: =IF(ISBLANK(H77)," ",IF(ISTEXT(H77)," ",IF(H77<=Нормативы!$H$71,"МСМК",IF(H77<=Нормативы!$H$72,"МС",IF(H77<=Нормативы!$H$73,"КМС",IF(H77<=Нормативы!$H$74,"I",IF(H77<=Нормативы!$H$75,"II",IF(H77<=Нормативы!$H$76,"III",IF(H77<=Нормативы!$H$77,"I юн",IF(H77<=Нормативы!$H$78,"II юн",IF(H77<=Нормативы!$H$79,"III юн","б/р"))))))))))) -> I юн | J77: =IF(ISBLANK(H77)," ",IF(ISTEXT(H77)," ",IF(H77<=Нормативы!$H$71,"МСМК",IF(H77<=Нормативы!$H$72,"МС",IF(H77<=Нормативы!$H$73,"КМС",IF(H77<=Нормативы!$H$74,"I",IF(H77<=Нормативы!$H$75,"II",IF(H77<=Нормативы!$H$76,"III",IF(H77<=Нормативы!$H$77,"I юн",IF(H77<=Нормативы!$H$78,"II юн",IF(H77<=Нормативы!$H$79,"III юн","б/р"))))))))))) -> I юн | L77: 112.8 | M77: =IF(ISBLANK(L77)," ",IF(ISTEXT(L77)," ",IF(L77<=Нормативы!$H$71,"КМС",IF(L77<=Нормативы!$H$72,"КМС",IF(L77<=Нормативы!$L$73,"КМС",IF(L77<=Нормативы!$L$74,"I",IF(L77<=Нормативы!$L$75,"II",IF(L77<=Нормативы!$L$76,"III",IF(L77<=Нормативы!$L$77,"I юн",IF(L77<=Нормативы!$L$78,"II юн",IF(L77<=Нормативы!$L$79,"III юн","б/р"))))))))))) -> I юн | N77: =IF(ISBLANK(L77)," ",IF(ISTEXT(L77)," ",IF(L77<=Нормативы!$H$71,"КМС",IF(L77<=Нормативы!$H$72,"КМС",IF(L77<=Нормативы!$L$73,"КМС",IF(L77<=Нормативы!$L$74,"I",IF(L77<=Нормативы!$L$75,"II",IF(L77<=Нормативы!$L$76,"III",IF(L77<=Нормативы!$L$77,"I юн",IF(L77<=Нормативы!$L$78,"II юн",IF(L77<=Нормативы!$L$79,"III юн","б/р"))))))))))) -> I юн | Q77: =IF(ISBLANK(P77)," ",IF(ISTEXT(P77)," ",IF(P77<=$H$71,"МСМК",IF(P77<=$H$72,"МС",IF(P77<=$H$73,"КМС",IF(P77<=$H$74,"I",IF(P77<=$H$75,"II",IF(P77<=$H$76,"III",IF(P77<=$H$77,"I юн",IF(P77<=$H$78,"II юн",IF(P77<=$H$79,"III юн","б/р"))))))))))) -> 
H78: 119 | I78: =IF(ISBLANK(H78)," ",IF(ISTEXT(H78)," ",IF(H78<=Нормативы!$H$71,"МСМК",IF(H78<=Нормативы!$H$72,"МС",IF(H78<=Нормативы!$H$73,"КМС",IF(H78<=Нормативы!$H$74,"I",IF(H78<=Нормативы!$H$75,"II",IF(H78<=Нормативы!$H$76,"III",IF(H78<=Нормативы!$H$77,"I юн",IF(H78<=Нормативы!$H$78,"II юн",IF(H78<=Нормативы!$H$79,"III юн","б/р"))))))))))) -> II юн | J78: =IF(ISBLANK(H78)," ",IF(ISTEXT(H78)," ",IF(H78<=Нормативы!$H$71,"МСМК",IF(H78<=Нормативы!$H$72,"МС",IF(H78<=Нормативы!$H$73,"КМС",IF(H78<=Нормативы!$H$74,"I",IF(H78<=Нормативы!$H$75,"II",IF(H78<=Нормативы!$H$76,"III",IF(H78<=Нормативы!$H$77,"I юн",IF(H78<=Нормативы!$H$78,"II юн",IF(H78<=Нормативы!$H$79,"III юн","б/р"))))))))))) -> II юн | L78: 118.8 | M78: =IF(ISBLANK(L78)," ",IF(ISTEXT(L78)," ",IF(L78<=Нормативы!$H$71,"КМС",IF(L78<=Нормативы!$H$72,"КМС",IF(L78<=Нормативы!$L$73,"КМС",IF(L78<=Нормативы!$L$74,"I",IF(L78<=Нормативы!$L$75,"II",IF(L78<=Нормативы!$L$76,"III",IF(L78<=Нормативы!$L$77,"I юн",IF(L78<=Нормативы!$L$78,"II юн",IF(L78<=Нормативы!$L$79,"III юн","б/р"))))))))))) -> II юн | N78: =IF(ISBLANK(L78)," ",IF(ISTEXT(L78)," ",IF(L78<=Нормативы!$H$71,"КМС",IF(L78<=Нормативы!$H$72,"КМС",IF(L78<=Нормативы!$L$73,"КМС",IF(L78<=Нормативы!$L$74,"I",IF(L78<=Нормативы!$L$75,"II",IF(L78<=Нормативы!$L$76,"III",IF(L78<=Нормативы!$L$77,"I юн",IF(L78<=Нормативы!$L$78,"II юн",IF(L78<=Нормативы!$L$79,"III юн","б/р"))))))))))) -> II юн | Q78: =IF(ISBLANK(P78)," ",IF(ISTEXT(P78)," ",IF(P78<=$H$71,"МСМК",IF(P78<=$H$72,"МС",IF(P78<=$H$73,"КМС",IF(P78<=$H$74,"I",IF(P78<=$H$75,"II",IF(P78<=$H$76,"III",IF(P78<=$H$77,"I юн",IF(P78<=$H$78,"II юн",IF(P78<=$H$79,"III юн","б/р"))))))))))) -> 
H79: 125.2 | I79: =IF(ISBLANK(H79)," ",IF(ISTEXT(H79)," ",IF(H79<=Нормативы!$H$71,"МСМК",IF(H79<=Нормативы!$H$72,"МС",IF(H79<=Нормативы!$H$73,"КМС",IF(H79<=Нормативы!$H$74,"I",IF(H79<=Нормативы!$H$75,"II",IF(H79<=Нормативы!$H$76,"III",IF(H79<=Нормативы!$H$77,"I юн",IF(H79<=Нормативы!$H$78,"II юн",IF(H79<=Нормативы!$H$79,"III юн","б/р"))))))))))) -> III юн | J79: =IF(ISBLANK(H79)," ",IF(ISTEXT(H79)," ",IF(H79<=Нормативы!$H$71,"МСМК",IF(H79<=Нормативы!$H$72,"МС",IF(H79<=Нормативы!$H$73,"КМС",IF(H79<=Нормативы!$H$74,"I",IF(H79<=Нормативы!$H$75,"II",IF(H79<=Нормативы!$H$76,"III",IF(H79<=Нормативы!$H$77,"I юн",IF(H79<=Нормативы!$H$78,"II юн",IF(H79<=Нормативы!$H$79,"III юн","б/р"))))))))))) -> III юн | L79: 125 | M79: =IF(ISBLANK(L79)," ",IF(ISTEXT(L79)," ",IF(L79<=Нормативы!$H$71,"КМС",IF(L79<=Нормативы!$H$72,"КМС",IF(L79<=Нормативы!$L$73,"КМС",IF(L79<=Нормативы!$L$74,"I",IF(L79<=Нормативы!$L$75,"II",IF(L79<=Нормативы!$L$76,"III",IF(L79<=Нормативы!$L$77,"I юн",IF(L79<=Нормативы!$L$78,"II юн",IF(L79<=Нормативы!$L$79,"III юн","б/р"))))))))))) -> III юн | N79: =IF(ISBLANK(L79)," ",IF(ISTEXT(L79)," ",IF(L79<=Нормативы!$H$71,"КМС",IF(L79<=Нормативы!$H$72,"КМС",IF(L79<=Нормативы!$L$73,"КМС",IF(L79<=Нормативы!$L$74,"I",IF(L79<=Нормативы!$L$75,"II",IF(L79<=Нормативы!$L$76,"III",IF(L79<=Нормативы!$L$77,"I юн",IF(L79<=Нормативы!$L$78,"II юн",IF(L79<=Нормативы!$L$79,"III юн","б/р"))))))))))) -> III юн | Q79: =IF(ISBLANK(P79)," ",IF(ISTEXT(P79)," ",IF(P79<=$H$71,"МСМК",IF(P79<=$H$72,"МС",IF(P79<=$H$73,"КМС",IF(P79<=$H$74,"I",IF(P79<=$H$75,"II",IF(P79<=$H$76,"III",IF(P79<=$H$77,"I юн",IF(P79<=$H$78,"II юн",IF(P79<=$H$79,"III юн","б/р"))))))))))) -> 
C81: Плавание в классических ластах- 100 м (1460251811Я), мужчины
H82: 43 | I82: =IF(ISBLANK(H82)," ",IF(ISTEXT(H82)," ",IF(H82<=Нормативы!$H$82,"МСМК",IF(H82<=Нормативы!$H$83,"МС",IF(H82<=Нормативы!$H$84,"КМС",IF(H82<=Нормативы!$H$85,"I",IF(H82<=Нормативы!$H$86,"II",IF(H82<=Нормативы!$H$87,"III",IF(H82<=Нормативы!$H$88,"I юн",IF(H82<=Нормативы!$H$89,"II юн",IF(H82<=Нормативы!$H$90,"III юн","б/р"))))))))))) -> МСМК | J82: =IF(ISBLANK(H82)," ",IF(ISTEXT(H82)," ",IF(H82<=Нормативы!$H$82,"МСМК",IF(H82<=Нормативы!$H$83,"МС",IF(H82<=Нормативы!$H$84,"КМС",IF(H82<=Нормативы!$H$85,"I",IF(H82<=Нормативы!$H$86,"II",IF(H82<=Нормативы!$H$87,"III",IF(H82<=Нормативы!$H$88,"I юн",IF(H82<=Нормативы!$H$89,"II юн",IF(H82<=Нормативы!$H$90,"III юн","б/р"))))))))))) -> МСМК | M82: =IF(ISBLANK(L82)," ",IF(ISTEXT(L82)," ",IF(L82<=Нормативы!$H$82,"КМС",IF(L82<=Нормативы!$H$83,"КМС",IF(L82<=Нормативы!$L$84,"КМС",IF(L82<=Нормативы!$L$85,"I",IF(L82<=Нормативы!$L$86,"II",IF(L82<=Нормативы!$L$87,"III",IF(L82<=Нормативы!$L$88,"I юн",IF(L82<=Нормативы!$L$89,"II юн",IF(L82<=Нормативы!$L$90,"III юн","б/р"))))))))))) ->  | N82: =IF(ISBLANK(L82)," ",IF(ISTEXT(L82)," ",IF(L82<=43.3,"МСМК",IF(L82<=45.1,"МС",IF(L82<=47.3,"КМС",IF(L82<=50.8,"I",IF(L82<=55.9,"II",IF(L82<=100.4,"III",IF(L82<=106,"I юн",IF(L82<=112,"II юн",IF(L82<=118.5,"III юн","б/р"))))))))))) ->  | Q82: =IF(ISBLANK(P82)," ",IF(ISTEXT(P82)," ",IF(P82<=$H$82,"МСМК",IF(P82<=$H$83,"МС",IF(P82<=$H$84,"КМС",IF(P82<=$H$85,"I",IF(P82<=$H$86,"II",IF(P82<=$H$87,"III",IF(P82<=$H$88,"I юн",IF(P82<=$H$89,"II юн",IF(P82<=$H$90,"III юн","б/р"))))))))))) -> 
H83: 44.4 | I83: =IF(ISBLANK(H83)," ",IF(ISTEXT(H83)," ",IF(H83<=Нормативы!$H$82,"МСМК",IF(H83<=Нормативы!$H$83,"МС",IF(H83<=Нормативы!$H$84,"КМС",IF(H83<=Нормативы!$H$85,"I",IF(H83<=Нормативы!$H$86,"II",IF(H83<=Нормативы!$H$87,"III",IF(H83<=Нормативы!$H$88,"I юн",IF(H83<=Нормативы!$H$89,"II юн",IF(H83<=Нормативы!$H$90,"III юн","б/р"))))))))))) -> МС | J83: =IF(ISBLANK(H83)," ",IF(ISTEXT(H83)," ",IF(H83<=Нормативы!$H$82,"МСМК",IF(H83<=Нормативы!$H$83,"МС",IF(H83<=Нормативы!$H$84,"КМС",IF(H83<=Нормативы!$H$85,"I",IF(H83<=Нормативы!$H$86,"II",IF(H83<=Нормативы!$H$87,"III",IF(H83<=Нормативы!$H$88,"I юн",IF(H83<=Нормативы!$H$89,"II юн",IF(H83<=Нормативы!$H$90,"III юн","б/р"))))))))))) -> МС | M83: =IF(ISBLANK(L83)," ",IF(ISTEXT(L83)," ",IF(L83<=Нормативы!$H$82,"КМС",IF(L83<=Нормативы!$H$83,"КМС",IF(L83<=Нормативы!$L$84,"КМС",IF(L83<=Нормативы!$L$85,"I",IF(L83<=Нормативы!$L$86,"II",IF(L83<=Нормативы!$L$87,"III",IF(L83<=Нормативы!$L$88,"I юн",IF(L83<=Нормативы!$L$89,"II юн",IF(L83<=Нормативы!$L$90,"III юн","б/р"))))))))))) ->  | N83: =IF(ISBLANK(L83)," ",IF(ISTEXT(L83)," ",IF(L83<=43.3,"МСМК",IF(L83<=45.1,"МС",IF(L83<=47.3,"КМС",IF(L83<=50.8,"I",IF(L83<=55.9,"II",IF(L83<=100.4,"III",IF(L83<=106,"I юн",IF(L83<=112,"II юн",IF(L83<=118.5,"III юн","б/р"))))))))))) ->  | Q83: =IF(ISBLANK(P83)," ",IF(ISTEXT(P83)," ",IF(P83<=$H$82,"МСМК",IF(P83<=$H$83,"МС",IF(P83<=$H$84,"КМС",IF(P83<=$H$85,"I",IF(P83<=$H$86,"II",IF(P83<=$H$87,"III",IF(P83<=$H$88,"I юн",IF(P83<=$H$89,"II юн",IF(P83<=$H$90,"III юн","б/р"))))))))))) -> 
H84: 47.1 | I84: =IF(ISBLANK(H84)," ",IF(ISTEXT(H84)," ",IF(H84<=Нормативы!$H$82,"МСМК",IF(H84<=Нормативы!$H$83,"МС",IF(H84<=Нормативы!$H$84,"КМС",IF(H84<=Нормативы!$H$85,"I",IF(H84<=Нормативы!$H$86,"II",IF(H84<=Нормативы!$H$87,"III",IF(H84<=Нормативы!$H$88,"I юн",IF(H84<=Нормативы!$H$89,"II юн",IF(H84<=Нормативы!$H$90,"III юн","б/р"))))))))))) -> КМС | J84: =IF(ISBLANK(H84)," ",IF(ISTEXT(H84)," ",IF(H84<=Нормативы!$H$82,"МСМК",IF(H84<=Нормативы!$H$83,"МС",IF(H84<=Нормативы!$H$84,"КМС",IF(H84<=Нормативы!$H$85,"I",IF(H84<=Нормативы!$H$86,"II",IF(H84<=Нормативы!$H$87,"III",IF(H84<=Нормативы!$H$88,"I юн",IF(H84<=Нормативы!$H$89,"II юн",IF(H84<=Нормативы!$H$90,"III юн","б/р"))))))))))) -> КМС | L84: =H84-0.2 -> 46.9 | M84: =IF(ISBLANK(L84)," ",IF(ISTEXT(L84)," ",IF(L84<=Нормативы!$H$82,"КМС",IF(L84<=Нормативы!$H$83,"КМС",IF(L84<=Нормативы!$L$84,"КМС",IF(L84<=Нормативы!$L$85,"I",IF(L84<=Нормативы!$L$86,"II",IF(L84<=Нормативы!$L$87,"III",IF(L84<=Нормативы!$L$88,"I юн",IF(L84<=Нормативы!$L$89,"II юн",IF(L84<=Нормативы!$L$90,"III юн","б/р"))))))))))) -> КМС | N84: =IF(ISBLANK(L84)," ",IF(ISTEXT(L84)," ",IF(L84<=Нормативы!$H$82,"КМС",IF(L84<=Нормативы!$H$83,"КМС",IF(L84<=Нормативы!$L$84,"КМС",IF(L84<=Нормативы!$L$85,"I",IF(L84<=Нормативы!$L$86,"II",IF(L84<=Нормативы!$L$87,"III",IF(L84<=Нормативы!$L$88,"I юн",IF(L84<=Нормативы!$L$89,"II юн",IF(L84<=Нормативы!$L$90,"III юн","б/р"))))))))))) -> КМС | Q84: =IF(ISBLANK(P84)," ",IF(ISTEXT(P84)," ",IF(P84<=$H$82,"МСМК",IF(P84<=$H$83,"МС",IF(P84<=$H$84,"КМС",IF(P84<=$H$85,"I",IF(P84<=$H$86,"II",IF(P84<=$H$87,"III",IF(P84<=$H$88,"I юн",IF(P84<=$H$89,"II юн",IF(P84<=$H$90,"III юн","б/р"))))))))))) -> 
H85: 50.7 | I85: =IF(ISBLANK(H85)," ",IF(ISTEXT(H85)," ",IF(H85<=Нормативы!$H$82,"МСМК",IF(H85<=Нормативы!$H$83,"МС",IF(H85<=Нормативы!$H$84,"КМС",IF(H85<=Нормативы!$H$85,"I",IF(H85<=Нормативы!$H$86,"II",IF(H85<=Нормативы!$H$87,"III",IF(H85<=Нормативы!$H$88,"I юн",IF(H85<=Нормативы!$H$89,"II юн",IF(H85<=Нормативы!$H$90,"III юн","б/р"))))))))))) -> I | J85: =IF(ISBLANK(H85)," ",IF(ISTEXT(H85)," ",IF(H85<=Нормативы!$H$82,"МСМК",IF(H85<=Нормативы!$H$83,"МС",IF(H85<=Нормативы!$H$84,"КМС",IF(H85<=Нормативы!$H$85,"I",IF(H85<=Нормативы!$H$86,"II",IF(H85<=Нормативы!$H$87,"III",IF(H85<=Нормативы!$H$88,"I юн",IF(H85<=Нормативы!$H$89,"II юн",IF(H85<=Нормативы!$H$90,"III юн","б/р"))))))))))) -> I | L85: 50.5 | M85: =IF(ISBLANK(L85)," ",IF(ISTEXT(L85)," ",IF(L85<=Нормативы!$H$82,"КМС",IF(L85<=Нормативы!$H$83,"КМС",IF(L85<=Нормативы!$L$84,"КМС",IF(L85<=Нормативы!$L$85,"I",IF(L85<=Нормативы!$L$86,"II",IF(L85<=Нормативы!$L$87,"III",IF(L85<=Нормативы!$L$88,"I юн",IF(L85<=Нормативы!$L$89,"II юн",IF(L85<=Нормативы!$L$90,"III юн","б/р"))))))))))) -> I | N85: =IF(ISBLANK(L85)," ",IF(ISTEXT(L85)," ",IF(L85<=Нормативы!$H$82,"КМС",IF(L85<=Нормативы!$H$83,"КМС",IF(L85<=Нормативы!$L$84,"КМС",IF(L85<=Нормативы!$L$85,"I",IF(L85<=Нормативы!$L$86,"II",IF(L85<=Нормативы!$L$87,"III",IF(L85<=Нормативы!$L$88,"I юн",IF(L85<=Нормативы!$L$89,"II юн",IF(L85<=Нормативы!$L$90,"III юн","б/р"))))))))))) -> I | Q85: =IF(ISBLANK(P85)," ",IF(ISTEXT(P85)," ",IF(P85<=$H$82,"МСМК",IF(P85<=$H$83,"МС",IF(P85<=$H$84,"КМС",IF(P85<=$H$85,"I",IF(P85<=$H$86,"II",IF(P85<=$H$87,"III",IF(P85<=$H$88,"I юн",IF(P85<=$H$89,"II юн",IF(P85<=$H$90,"III юн","б/р"))))))))))) -> 
H86: 55.7 | I86: =IF(ISBLANK(H86)," ",IF(ISTEXT(H86)," ",IF(H86<=Нормативы!$H$82,"МСМК",IF(H86<=Нормативы!$H$83,"МС",IF(H86<=Нормативы!$H$84,"КМС",IF(H86<=Нормативы!$H$85,"I",IF(H86<=Нормативы!$H$86,"II",IF(H86<=Нормативы!$H$87,"III",IF(H86<=Нормативы!$H$88,"I юн",IF(H86<=Нормативы!$H$89,"II юн",IF(H86<=Нормативы!$H$90,"III юн","б/р"))))))))))) -> II | J86: =IF(ISBLANK(H86)," ",IF(ISTEXT(H86)," ",IF(H86<=Нормативы!$H$82,"МСМК",IF(H86<=Нормативы!$H$83,"МС",IF(H86<=Нормативы!$H$84,"КМС",IF(H86<=Нормативы!$H$85,"I",IF(H86<=Нормативы!$H$86,"II",IF(H86<=Нормативы!$H$87,"III",IF(H86<=Нормативы!$H$88,"I юн",IF(H86<=Нормативы!$H$89,"II юн",IF(H86<=Нормативы!$H$90,"III юн","б/р"))))))))))) -> II | L86: 55.5 | M86: =IF(ISBLANK(L86)," ",IF(ISTEXT(L86)," ",IF(L86<=Нормативы!$H$82,"КМС",IF(L86<=Нормативы!$H$83,"КМС",IF(L86<=Нормативы!$L$84,"КМС",IF(L86<=Нормативы!$L$85,"I",IF(L86<=Нормативы!$L$86,"II",IF(L86<=Нормативы!$L$87,"III",IF(L86<=Нормативы!$L$88,"I юн",IF(L86<=Нормативы!$L$89,"II юн",IF(L86<=Нормативы!$L$90,"III юн","б/р"))))))))))) -> II | N86: =IF(ISBLANK(L86)," ",IF(ISTEXT(L86)," ",IF(L86<=Нормативы!$H$82,"КМС",IF(L86<=Нормативы!$H$83,"КМС",IF(L86<=Нормативы!$L$84,"КМС",IF(L86<=Нормативы!$L$85,"I",IF(L86<=Нормативы!$L$86,"II",IF(L86<=Нормативы!$L$87,"III",IF(L86<=Нормативы!$L$88,"I юн",IF(L86<=Нормативы!$L$89,"II юн",IF(L86<=Нормативы!$L$90,"III юн","б/р"))))))))))) -> II | Q86: =IF(ISBLANK(P86)," ",IF(ISTEXT(P86)," ",IF(P86<=$H$82,"МСМК",IF(P86<=$H$83,"МС",IF(P86<=$H$84,"КМС",IF(P86<=$H$85,"I",IF(P86<=$H$86,"II",IF(P86<=$H$87,"III",IF(P86<=$H$88,"I юн",IF(P86<=$H$89,"II юн",IF(P86<=$H$90,"III юн","б/р"))))))))))) -> 
H87: 100.2 | I87: =IF(ISBLANK(H87)," ",IF(ISTEXT(H87)," ",IF(H87<=Нормативы!$H$82,"МСМК",IF(H87<=Нормативы!$H$83,"МС",IF(H87<=Нормативы!$H$84,"КМС",IF(H87<=Нормативы!$H$85,"I",IF(H87<=Нормативы!$H$86,"II",IF(H87<=Нормативы!$H$87,"III",IF(H87<=Нормативы!$H$88,"I юн",IF(H87<=Нормативы!$H$89,"II юн",IF(H87<=Нормативы!$H$90,"III юн","б/р"))))))))))) -> III | J87: =IF(ISBLANK(H87)," ",IF(ISTEXT(H87)," ",IF(H87<=Нормативы!$H$82,"МСМК",IF(H87<=Нормативы!$H$83,"МС",IF(H87<=Нормативы!$H$84,"КМС",IF(H87<=Нормативы!$H$85,"I",IF(H87<=Нормативы!$H$86,"II",IF(H87<=Нормативы!$H$87,"III",IF(H87<=Нормативы!$H$88,"I юн",IF(H87<=Нормативы!$H$89,"II юн",IF(H87<=Нормативы!$H$90,"III юн","б/р"))))))))))) -> III | L87: 100 | M87: =IF(ISBLANK(L87)," ",IF(ISTEXT(L87)," ",IF(L87<=Нормативы!$H$82,"КМС",IF(L87<=Нормативы!$H$83,"КМС",IF(L87<=Нормативы!$L$84,"КМС",IF(L87<=Нормативы!$L$85,"I",IF(L87<=Нормативы!$L$86,"II",IF(L87<=Нормативы!$L$87,"III",IF(L87<=Нормативы!$L$88,"I юн",IF(L87<=Нормативы!$L$89,"II юн",IF(L87<=Нормативы!$L$90,"III юн","б/р"))))))))))) -> III | N87: =IF(ISBLANK(L87)," ",IF(ISTEXT(L87)," ",IF(L87<=Нормативы!$H$82,"КМС",IF(L87<=Нормативы!$H$83,"КМС",IF(L87<=Нормативы!$L$84,"КМС",IF(L87<=Нормативы!$L$85,"I",IF(L87<=Нормативы!$L$86,"II",IF(L87<=Нормативы!$L$87,"III",IF(L87<=Нормативы!$L$88,"I юн",IF(L87<=Нормативы!$L$89,"II юн",IF(L87<=Нормативы!$L$90,"III юн","б/р"))))))))))) -> III | Q87: =IF(ISBLANK(P87)," ",IF(ISTEXT(P87)," ",IF(P87<=$H$82,"МСМК",IF(P87<=$H$83,"МС",IF(P87<=$H$84,"КМС",IF(P87<=$H$85,"I",IF(P87<=$H$86,"II",IF(P87<=$H$87,"III",IF(P87<=$H$88,"I юн",IF(P87<=$H$89,"II юн",IF(P87<=$H$90,"III юн","б/р"))))))))))) -> 
H88: 105.5 | I88: =IF(ISBLANK(H88)," ",IF(ISTEXT(H88)," ",IF(H88<=Нормативы!$H$82,"МСМК",IF(H88<=Нормативы!$H$83,"МС",IF(H88<=Нормативы!$H$84,"КМС",IF(H88<=Нормативы!$H$85,"I",IF(H88<=Нормативы!$H$86,"II",IF(H88<=Нормативы!$H$87,"III",IF(H88<=Нормативы!$H$88,"I юн",IF(H88<=Нормативы!$H$89,"II юн",IF(H88<=Нормативы!$H$90,"III юн","б/р"))))))))))) -> I юн | J88: =IF(ISBLANK(H88)," ",IF(ISTEXT(H88)," ",IF(H88<=Нормативы!$H$82,"МСМК",IF(H88<=Нормативы!$H$83,"МС",IF(H88<=Нормативы!$H$84,"КМС",IF(H88<=Нормативы!$H$85,"I",IF(H88<=Нормативы!$H$86,"II",IF(H88<=Нормативы!$H$87,"III",IF(H88<=Нормативы!$H$88,"I юн",IF(H88<=Нормативы!$H$89,"II юн",IF(H88<=Нормативы!$H$90,"III юн","б/р"))))))))))) -> I юн | L88: 105.3 | M88: =IF(ISBLANK(L88)," ",IF(ISTEXT(L88)," ",IF(L88<=Нормативы!$H$82,"КМС",IF(L88<=Нормативы!$H$83,"КМС",IF(L88<=Нормативы!$L$84,"КМС",IF(L88<=Нормативы!$L$85,"I",IF(L88<=Нормативы!$L$86,"II",IF(L88<=Нормативы!$L$87,"III",IF(L88<=Нормативы!$L$88,"I юн",IF(L88<=Нормативы!$L$89,"II юн",IF(L88<=Нормативы!$L$90,"III юн","б/р"))))))))))) -> I юн | N88: =IF(ISBLANK(L88)," ",IF(ISTEXT(L88)," ",IF(L88<=Нормативы!$H$82,"КМС",IF(L88<=Нормативы!$H$83,"КМС",IF(L88<=Нормативы!$L$84,"КМС",IF(L88<=Нормативы!$L$85,"I",IF(L88<=Нормативы!$L$86,"II",IF(L88<=Нормативы!$L$87,"III",IF(L88<=Нормативы!$L$88,"I юн",IF(L88<=Нормативы!$L$89,"II юн",IF(L88<=Нормативы!$L$90,"III юн","б/р"))))))))))) -> I юн | Q88: =IF(ISBLANK(P88)," ",IF(ISTEXT(P88)," ",IF(P88<=$H$82,"МСМК",IF(P88<=$H$83,"МС",IF(P88<=$H$84,"КМС",IF(P88<=$H$85,"I",IF(P88<=$H$86,"II",IF(P88<=$H$87,"III",IF(P88<=$H$88,"I юн",IF(P88<=$H$89,"II юн",IF(P88<=$H$90,"III юн","б/р"))))))))))) -> 
H89: 111.5 | I89: =IF(ISBLANK(H89)," ",IF(ISTEXT(H89)," ",IF(H89<=Нормативы!$H$82,"МСМК",IF(H89<=Нормативы!$H$83,"МС",IF(H89<=Нормативы!$H$84,"КМС",IF(H89<=Нормативы!$H$85,"I",IF(H89<=Нормативы!$H$86,"II",IF(H89<=Нормативы!$H$87,"III",IF(H89<=Нормативы!$H$88,"I юн",IF(H89<=Нормативы!$H$89,"II юн",IF(H89<=Нормативы!$H$90,"III юн","б/р"))))))))))) -> II юн | J89: =IF(ISBLANK(H89)," ",IF(ISTEXT(H89)," ",IF(H89<=Нормативы!$H$82,"МСМК",IF(H89<=Нормативы!$H$83,"МС",IF(H89<=Нормативы!$H$84,"КМС",IF(H89<=Нормативы!$H$85,"I",IF(H89<=Нормативы!$H$86,"II",IF(H89<=Нормативы!$H$87,"III",IF(H89<=Нормативы!$H$88,"I юн",IF(H89<=Нормативы!$H$89,"II юн",IF(H89<=Нормативы!$H$90,"III юн","б/р"))))))))))) -> II юн | L89: 111.3 | M89: =IF(ISBLANK(L89)," ",IF(ISTEXT(L89)," ",IF(L89<=Нормативы!$H$82,"КМС",IF(L89<=Нормативы!$H$83,"КМС",IF(L89<=Нормативы!$L$84,"КМС",IF(L89<=Нормативы!$L$85,"I",IF(L89<=Нормативы!$L$86,"II",IF(L89<=Нормативы!$L$87,"III",IF(L89<=Нормативы!$L$88,"I юн",IF(L89<=Нормативы!$L$89,"II юн",IF(L89<=Нормативы!$L$90,"III юн","б/р"))))))))))) -> II юн | N89: =IF(ISBLANK(L89)," ",IF(ISTEXT(L89)," ",IF(L89<=Нормативы!$H$82,"КМС",IF(L89<=Нормативы!$H$83,"КМС",IF(L89<=Нормативы!$L$84,"КМС",IF(L89<=Нормативы!$L$85,"I",IF(L89<=Нормативы!$L$86,"II",IF(L89<=Нормативы!$L$87,"III",IF(L89<=Нормативы!$L$88,"I юн",IF(L89<=Нормативы!$L$89,"II юн",IF(L89<=Нормативы!$L$90,"III юн","б/р"))))))))))) -> II юн | Q89: =IF(ISBLANK(P89)," ",IF(ISTEXT(P89)," ",IF(P89<=$H$82,"МСМК",IF(P89<=$H$83,"МС",IF(P89<=$H$84,"КМС",IF(P89<=$H$85,"I",IF(P89<=$H$86,"II",IF(P89<=$H$87,"III",IF(P89<=$H$88,"I юн",IF(P89<=$H$89,"II юн",IF(P89<=$H$90,"III юн","б/р"))))))))))) -> 
H90: 118 | I90: =IF(ISBLANK(H90)," ",IF(ISTEXT(H90)," ",IF(H90<=Нормативы!$H$82,"МСМК",IF(H90<=Нормативы!$H$83,"МС",IF(H90<=Нормативы!$H$84,"КМС",IF(H90<=Нормативы!$H$85,"I",IF(H90<=Нормативы!$H$86,"II",IF(H90<=Нормативы!$H$87,"III",IF(H90<=Нормативы!$H$88,"I юн",IF(H90<=Нормативы!$H$89,"II юн",IF(H90<=Нормативы!$H$90,"III юн","б/р"))))))))))) -> III юн | J90: =IF(ISBLANK(H90)," ",IF(ISTEXT(H90)," ",IF(H90<=Нормативы!$H$82,"МСМК",IF(H90<=Нормативы!$H$83,"МС",IF(H90<=Нормативы!$H$84,"КМС",IF(H90<=Нормативы!$H$85,"I",IF(H90<=Нормативы!$H$86,"II",IF(H90<=Нормативы!$H$87,"III",IF(H90<=Нормативы!$H$88,"I юн",IF(H90<=Нормативы!$H$89,"II юн",IF(H90<=Нормативы!$H$90,"III юн","б/р"))))))))))) -> III юн | L90: 117.8 | M90: =IF(ISBLANK(L90)," ",IF(ISTEXT(L90)," ",IF(L90<=Нормативы!$H$82,"КМС",IF(L90<=Нормативы!$H$83,"КМС",IF(L90<=Нормативы!$L$84,"КМС",IF(L90<=Нормативы!$L$85,"I",IF(L90<=Нормативы!$L$86,"II",IF(L90<=Нормативы!$L$87,"III",IF(L90<=Нормативы!$L$88,"I юн",IF(L90<=Нормативы!$L$89,"II юн",IF(L90<=Нормативы!$L$90,"III юн","б/р"))))))))))) -> III юн | N90: =IF(ISBLANK(L90)," ",IF(ISTEXT(L90)," ",IF(L90<=Нормативы!$H$82,"КМС",IF(L90<=Нормативы!$H$83,"КМС",IF(L90<=Нормативы!$L$84,"КМС",IF(L90<=Нормативы!$L$85,"I",IF(L90<=Нормативы!$L$86,"II",IF(L90<=Нормативы!$L$87,"III",IF(L90<=Нормативы!$L$88,"I юн",IF(L90<=Нормативы!$L$89,"II юн",IF(L90<=Нормативы!$L$90,"III юн","б/р"))))))))))) -> III юн | Q90: =IF(ISBLANK(P90)," ",IF(ISTEXT(P90)," ",IF(P90<=$H$82,"МСМК",IF(P90<=$H$83,"МС",IF(P90<=$H$84,"КМС",IF(P90<=$H$85,"I",IF(P90<=$H$86,"II",IF(P90<=$H$87,"III",IF(P90<=$H$88,"I юн",IF(P90<=$H$89,"II юн",IF(P90<=$H$90,"III юн","б/р"))))))))))) -> 
C92: Плавание в ластах - 200 м (1460101811Я), женщины
H93: 130.7 | I93: =IF(ISBLANK(H93)," ",IF(ISTEXT(H93)," ",IF(H93<=Нормативы!$H$93,"МСМК",IF(H93<=Нормативы!$H$94,"МС",IF(H93<=Нормативы!$H$95,"КМС",IF(H93<=Нормативы!$H$96,"I",IF(H93<=Нормативы!$H$97,"II",IF(H93<=Нормативы!$H$98,"III",IF(H93<=Нормативы!$H$99,"I юн",IF(H93<=Нормативы!$H$100,"II юн",IF(H93<=Нормативы!$H$101,"III юн","б/р"))))))))))) -> МСМК | J93: =IF(ISBLANK(H93)," ",IF(ISTEXT(H93)," ",IF(H93<=Нормативы!$H$93,"МСМК",IF(H93<=Нормативы!$H$94,"МС",IF(H93<=Нормативы!$H$95,"КМС",IF(H93<=Нормативы!$H$96,"I",IF(H93<=Нормативы!$H$97,"II",IF(H93<=Нормативы!$H$98,"III",IF(H93<=Нормативы!$H$99,"I юн",IF(H93<=Нормативы!$H$100,"II юн",IF(H93<=Нормативы!$H$101,"III юн","б/р"))))))))))) -> МСМК | M93: =IF(ISBLANK(L93)," ",IF(ISTEXT(L93)," ",IF(L93<=Нормативы!$H$93,"КМС",IF(L93<=Нормативы!$H$94,"КМС",IF(L93<=Нормативы!$L$95,"КМС",IF(L93<=Нормативы!$L$96,"I",IF(L93<=Нормативы!$L$97,"II",IF(L93<=Нормативы!$L$98,"III",IF(L93<=Нормативы!$L$99,"I юн",IF(L93<=Нормативы!$L$100,"II юн",IF(L93<=Нормативы!$L$101,"III юн","б/р"))))))))))) ->  | N93: =IF(ISBLANK(L93)," ",IF(ISTEXT(L93)," ",IF(L93<=130.8,"МСМК",IF(L93<=136.2,"МС",IF(L93<=141,"КМС",IF(L93<=147.5,"I",IF(L93<=157.5,"II",IF(L93<=206.2,"III",IF(L93<=220,"I юн",IF(L93<=231.2,"II юн",IF(L93<=242.2,"III юн","б/р"))))))))))) ->  | Q93: =IF(ISBLANK(P93)," ",IF(ISTEXT(P93)," ",IF(P93<=$H$93,"МСМК",IF(P93<=$H$94,"МС",IF(P93<=$H$95,"КМС",IF(P93<=$H$96,"I",IF(P93<=$H$97,"II",IF(P93<=$H$98,"III",IF(P93<=$H$99,"I юн",IF(P93<=$H$100,"II юн",IF(P93<=$H$101,"III юн","б/р"))))))))))) -> 
H94: 133 | I94: =IF(ISBLANK(H94)," ",IF(ISTEXT(H94)," ",IF(H94<=Нормативы!$H$93,"МСМК",IF(H94<=Нормативы!$H$94,"МС",IF(H94<=Нормативы!$H$95,"КМС",IF(H94<=Нормативы!$H$96,"I",IF(H94<=Нормативы!$H$97,"II",IF(H94<=Нормативы!$H$98,"III",IF(H94<=Нормативы!$H$99,"I юн",IF(H94<=Нормативы!$H$100,"II юн",IF(H94<=Нормативы!$H$101,"III юн","б/р"))))))))))) -> МС | J94: =IF(ISBLANK(H94)," ",IF(ISTEXT(H94)," ",IF(H94<=Нормативы!$H$93,"МСМК",IF(H94<=Нормативы!$H$94,"МС",IF(H94<=Нормативы!$H$95,"КМС",IF(H94<=Нормативы!$H$96,"I",IF(H94<=Нормативы!$H$97,"II",IF(H94<=Нормативы!$H$98,"III",IF(H94<=Нормативы!$H$99,"I юн",IF(H94<=Нормативы!$H$100,"II юн",IF(H94<=Нормативы!$H$101,"III юн","б/р"))))))))))) -> МС | M94: =IF(ISBLANK(L94)," ",IF(ISTEXT(L94)," ",IF(L94<=Нормативы!$H$93,"КМС",IF(L94<=Нормативы!$H$94,"КМС",IF(L94<=Нормативы!$L$95,"КМС",IF(L94<=Нормативы!$L$96,"I",IF(L94<=Нормативы!$L$97,"II",IF(L94<=Нормативы!$L$98,"III",IF(L94<=Нормативы!$L$99,"I юн",IF(L94<=Нормативы!$L$100,"II юн",IF(L94<=Нормативы!$L$101,"III юн","б/р"))))))))))) ->  | N94: =IF(ISBLANK(L94)," ",IF(ISTEXT(L94)," ",IF(L94<=130.8,"МСМК",IF(L94<=136.2,"МС",IF(L94<=141,"КМС",IF(L94<=147.5,"I",IF(L94<=157.5,"II",IF(L94<=206.2,"III",IF(L94<=220,"I юн",IF(L94<=231.2,"II юн",IF(L94<=242.2,"III юн","б/р"))))))))))) ->  | Q94: =IF(ISBLANK(P94)," ",IF(ISTEXT(P94)," ",IF(P94<=$H$93,"МСМК",IF(P94<=$H$94,"МС",IF(P94<=$H$95,"КМС",IF(P94<=$H$96,"I",IF(P94<=$H$97,"II",IF(P94<=$H$98,"III",IF(P94<=$H$99,"I юн",IF(P94<=$H$100,"II юн",IF(P94<=$H$101,"III юн","б/р"))))))))))) -> 
H95: 140.5 | I95: =IF(ISBLANK(H95)," ",IF(ISTEXT(H95)," ",IF(H95<=Нормативы!$H$93,"МСМК",IF(H95<=Нормативы!$H$94,"МС",IF(H95<=Нормативы!$H$95,"КМС",IF(H95<=Нормативы!$H$96,"I",IF(H95<=Нормативы!$H$97,"II",IF(H95<=Нормативы!$H$98,"III",IF(H95<=Нормативы!$H$99,"I юн",IF(H95<=Нормативы!$H$100,"II юн",IF(H95<=Нормативы!$H$101,"III юн","б/р"))))))))))) -> КМС | J95: =IF(ISBLANK(H95)," ",IF(ISTEXT(H95)," ",IF(H95<=Нормативы!$H$93,"МСМК",IF(H95<=Нормативы!$H$94,"МС",IF(H95<=Нормативы!$H$95,"КМС",IF(H95<=Нормативы!$H$96,"I",IF(H95<=Нормативы!$H$97,"II",IF(H95<=Нормативы!$H$98,"III",IF(H95<=Нормативы!$H$99,"I юн",IF(H95<=Нормативы!$H$100,"II юн",IF(H95<=Нормативы!$H$101,"III юн","б/р"))))))))))) -> КМС | L95: =H95-0.2 -> 140.3 | M95: =IF(ISBLANK(L95)," ",IF(ISTEXT(L95)," ",IF(L95<=Нормативы!$H$93,"КМС",IF(L95<=Нормативы!$H$94,"КМС",IF(L95<=Нормативы!$L$95,"КМС",IF(L95<=Нормативы!$L$96,"I",IF(L95<=Нормативы!$L$97,"II",IF(L95<=Нормативы!$L$98,"III",IF(L95<=Нормативы!$L$99,"I юн",IF(L95<=Нормативы!$L$100,"II юн",IF(L95<=Нормативы!$L$101,"III юн","б/р"))))))))))) -> КМС | N95: =IF(ISBLANK(L95)," ",IF(ISTEXT(L95)," ",IF(L95<=Нормативы!$H$93,"КМС",IF(L95<=Нормативы!$H$94,"КМС",IF(L95<=Нормативы!$L$95,"КМС",IF(L95<=Нормативы!$L$96,"I",IF(L95<=Нормативы!$L$97,"II",IF(L95<=Нормативы!$L$98,"III",IF(L95<=Нормативы!$L$99,"I юн",IF(L95<=Нормативы!$L$100,"II юн",IF(L95<=Нормативы!$L$101,"III юн","б/р"))))))))))) -> КМС | Q95: =IF(ISBLANK(P95)," ",IF(ISTEXT(P95)," ",IF(P95<=$H$93,"МСМК",IF(P95<=$H$94,"МС",IF(P95<=$H$95,"КМС",IF(P95<=$H$96,"I",IF(P95<=$H$97,"II",IF(P95<=$H$98,"III",IF(P95<=$H$99,"I юн",IF(P95<=$H$100,"II юн",IF(P95<=$H$101,"III юн","б/р"))))))))))) -> 
H96: 146.7 | I96: =IF(ISBLANK(H96)," ",IF(ISTEXT(H96)," ",IF(H96<=Нормативы!$H$93,"МСМК",IF(H96<=Нормативы!$H$94,"МС",IF(H96<=Нормативы!$H$95,"КМС",IF(H96<=Нормативы!$H$96,"I",IF(H96<=Нормативы!$H$97,"II",IF(H96<=Нормативы!$H$98,"III",IF(H96<=Нормативы!$H$99,"I юн",IF(H96<=Нормативы!$H$100,"II юн",IF(H96<=Нормативы!$H$101,"III юн","б/р"))))))))))) -> I | J96: =IF(ISBLANK(H96)," ",IF(ISTEXT(H96)," ",IF(H96<=Нормативы!$H$93,"МСМК",IF(H96<=Нормативы!$H$94,"МС",IF(H96<=Нормативы!$H$95,"КМС",IF(H96<=Нормативы!$H$96,"I",IF(H96<=Нормативы!$H$97,"II",IF(H96<=Нормативы!$H$98,"III",IF(H96<=Нормативы!$H$99,"I юн",IF(H96<=Нормативы!$H$100,"II юн",IF(H96<=Нормативы!$H$101,"III юн","б/р"))))))))))) -> I | L96: 146.5 | M96: =IF(ISBLANK(L96)," ",IF(ISTEXT(L96)," ",IF(L96<=Нормативы!$H$93,"КМС",IF(L96<=Нормативы!$H$94,"КМС",IF(L96<=Нормативы!$L$95,"КМС",IF(L96<=Нормативы!$L$96,"I",IF(L96<=Нормативы!$L$97,"II",IF(L96<=Нормативы!$L$98,"III",IF(L96<=Нормативы!$L$99,"I юн",IF(L96<=Нормативы!$L$100,"II юн",IF(L96<=Нормативы!$L$101,"III юн","б/р"))))))))))) -> I | N96: =IF(ISBLANK(L96)," ",IF(ISTEXT(L96)," ",IF(L96<=Нормативы!$H$93,"КМС",IF(L96<=Нормативы!$H$94,"КМС",IF(L96<=Нормативы!$L$95,"КМС",IF(L96<=Нормативы!$L$96,"I",IF(L96<=Нормативы!$L$97,"II",IF(L96<=Нормативы!$L$98,"III",IF(L96<=Нормативы!$L$99,"I юн",IF(L96<=Нормативы!$L$100,"II юн",IF(L96<=Нормативы!$L$101,"III юн","б/р"))))))))))) -> I | Q96: =IF(ISBLANK(P96)," ",IF(ISTEXT(P96)," ",IF(P96<=$H$93,"МСМК",IF(P96<=$H$94,"МС",IF(P96<=$H$95,"КМС",IF(P96<=$H$96,"I",IF(P96<=$H$97,"II",IF(P96<=$H$98,"III",IF(P96<=$H$99,"I юн",IF(P96<=$H$100,"II юн",IF(P96<=$H$101,"III юн","б/р"))))))))))) -> 
H97: 155.2 | I97: =IF(ISBLANK(H97)," ",IF(ISTEXT(H97)," ",IF(H97<=Нормативы!$H$93,"МСМК",IF(H97<=Нормативы!$H$94,"МС",IF(H97<=Нормативы!$H$95,"КМС",IF(H97<=Нормативы!$H$96,"I",IF(H97<=Нормативы!$H$97,"II",IF(H97<=Нормативы!$H$98,"III",IF(H97<=Нормативы!$H$99,"I юн",IF(H97<=Нормативы!$H$100,"II юн",IF(H97<=Нормативы!$H$101,"III юн","б/р"))))))))))) -> II | J97: =IF(ISBLANK(H97)," ",IF(ISTEXT(H97)," ",IF(H97<=Нормативы!$H$93,"МСМК",IF(H97<=Нормативы!$H$94,"МС",IF(H97<=Нормативы!$H$95,"КМС",IF(H97<=Нормативы!$H$96,"I",IF(H97<=Нормативы!$H$97,"II",IF(H97<=Нормативы!$H$98,"III",IF(H97<=Нормативы!$H$99,"I юн",IF(H97<=Нормативы!$H$100,"II юн",IF(H97<=Нормативы!$H$101,"III юн","б/р"))))))))))) -> II | L97: 155 | M97: =IF(ISBLANK(L97)," ",IF(ISTEXT(L97)," ",IF(L97<=Нормативы!$H$93,"КМС",IF(L97<=Нормативы!$H$94,"КМС",IF(L97<=Нормативы!$L$95,"КМС",IF(L97<=Нормативы!$L$96,"I",IF(L97<=Нормативы!$L$97,"II",IF(L97<=Нормативы!$L$98,"III",IF(L97<=Нормативы!$L$99,"I юн",IF(L97<=Нормативы!$L$100,"II юн",IF(L97<=Нормативы!$L$101,"III юн","б/р"))))))))))) -> II | N97: =IF(ISBLANK(L97)," ",IF(ISTEXT(L97)," ",IF(L97<=Нормативы!$H$93,"КМС",IF(L97<=Нормативы!$H$94,"КМС",IF(L97<=Нормативы!$L$95,"КМС",IF(L97<=Нормативы!$L$96,"I",IF(L97<=Нормативы!$L$97,"II",IF(L97<=Нормативы!$L$98,"III",IF(L97<=Нормативы!$L$99,"I юн",IF(L97<=Нормативы!$L$100,"II юн",IF(L97<=Нормативы!$L$101,"III юн","б/р"))))))))))) -> II | Q97: =IF(ISBLANK(P97)," ",IF(ISTEXT(P97)," ",IF(P97<=$H$93,"МСМК",IF(P97<=$H$94,"МС",IF(P97<=$H$95,"КМС",IF(P97<=$H$96,"I",IF(P97<=$H$97,"II",IF(P97<=$H$98,"III",IF(P97<=$H$99,"I юн",IF(P97<=$H$100,"II юн",IF(P97<=$H$101,"III юн","б/р"))))))))))) -> 
H98: 205.2 | I98: =IF(ISBLANK(H98)," ",IF(ISTEXT(H98)," ",IF(H98<=Нормативы!$H$93,"МСМК",IF(H98<=Нормативы!$H$94,"МС",IF(H98<=Нормативы!$H$95,"КМС",IF(H98<=Нормативы!$H$96,"I",IF(H98<=Нормативы!$H$97,"II",IF(H98<=Нормативы!$H$98,"III",IF(H98<=Нормативы!$H$99,"I юн",IF(H98<=Нормативы!$H$100,"II юн",IF(H98<=Нормативы!$H$101,"III юн","б/р"))))))))))) -> III | J98: =IF(ISBLANK(H98)," ",IF(ISTEXT(H98)," ",IF(H98<=Нормативы!$H$93,"МСМК",IF(H98<=Нормативы!$H$94,"МС",IF(H98<=Нормативы!$H$95,"КМС",IF(H98<=Нормативы!$H$96,"I",IF(H98<=Нормативы!$H$97,"II",IF(H98<=Нормативы!$H$98,"III",IF(H98<=Нормативы!$H$99,"I юн",IF(H98<=Нормативы!$H$100,"II юн",IF(H98<=Нормативы!$H$101,"III юн","б/р"))))))))))) -> III | L98: 205 | M98: =IF(ISBLANK(L98)," ",IF(ISTEXT(L98)," ",IF(L98<=Нормативы!$H$93,"КМС",IF(L98<=Нормативы!$H$94,"КМС",IF(L98<=Нормативы!$L$95,"КМС",IF(L98<=Нормативы!$L$96,"I",IF(L98<=Нормативы!$L$97,"II",IF(L98<=Нормативы!$L$98,"III",IF(L98<=Нормативы!$L$99,"I юн",IF(L98<=Нормативы!$L$100,"II юн",IF(L98<=Нормативы!$L$101,"III юн","б/р"))))))))))) -> III | N98: =IF(ISBLANK(L98)," ",IF(ISTEXT(L98)," ",IF(L98<=Нормативы!$H$93,"КМС",IF(L98<=Нормативы!$H$94,"КМС",IF(L98<=Нормативы!$L$95,"КМС",IF(L98<=Нормативы!$L$96,"I",IF(L98<=Нормативы!$L$97,"II",IF(L98<=Нормативы!$L$98,"III",IF(L98<=Нормативы!$L$99,"I юн",IF(L98<=Нормативы!$L$100,"II юн",IF(L98<=Нормативы!$L$101,"III юн","б/р"))))))))))) -> III | Q98: =IF(ISBLANK(P98)," ",IF(ISTEXT(P98)," ",IF(P98<=$H$93,"МСМК",IF(P98<=$H$94,"МС",IF(P98<=$H$95,"КМС",IF(P98<=$H$96,"I",IF(P98<=$H$97,"II",IF(P98<=$H$98,"III",IF(P98<=$H$99,"I юн",IF(P98<=$H$100,"II юн",IF(P98<=$H$101,"III юн","б/р"))))))))))) -> 
H99: 219 | I99: =IF(ISBLANK(H99)," ",IF(ISTEXT(H99)," ",IF(H99<=Нормативы!$H$93,"МСМК",IF(H99<=Нормативы!$H$94,"МС",IF(H99<=Нормативы!$H$95,"КМС",IF(H99<=Нормативы!$H$96,"I",IF(H99<=Нормативы!$H$97,"II",IF(H99<=Нормативы!$H$98,"III",IF(H99<=Нормативы!$H$99,"I юн",IF(H99<=Нормативы!$H$100,"II юн",IF(H99<=Нормативы!$H$101,"III юн","б/р"))))))))))) -> I юн | J99: =IF(ISBLANK(H99)," ",IF(ISTEXT(H99)," ",IF(H99<=Нормативы!$H$93,"МСМК",IF(H99<=Нормативы!$H$94,"МС",IF(H99<=Нормативы!$H$95,"КМС",IF(H99<=Нормативы!$H$96,"I",IF(H99<=Нормативы!$H$97,"II",IF(H99<=Нормативы!$H$98,"III",IF(H99<=Нормативы!$H$99,"I юн",IF(H99<=Нормативы!$H$100,"II юн",IF(H99<=Нормативы!$H$101,"III юн","б/р"))))))))))) -> I юн | L99: 218.8 | M99: =IF(ISBLANK(L99)," ",IF(ISTEXT(L99)," ",IF(L99<=Нормативы!$H$93,"КМС",IF(L99<=Нормативы!$H$94,"КМС",IF(L99<=Нормативы!$L$95,"КМС",IF(L99<=Нормативы!$L$96,"I",IF(L99<=Нормативы!$L$97,"II",IF(L99<=Нормативы!$L$98,"III",IF(L99<=Нормативы!$L$99,"I юн",IF(L99<=Нормативы!$L$100,"II юн",IF(L99<=Нормативы!$L$101,"III юн","б/р"))))))))))) -> I юн | N99: =IF(ISBLANK(L99)," ",IF(ISTEXT(L99)," ",IF(L99<=Нормативы!$H$93,"КМС",IF(L99<=Нормативы!$H$94,"КМС",IF(L99<=Нормативы!$L$95,"КМС",IF(L99<=Нормативы!$L$96,"I",IF(L99<=Нормативы!$L$97,"II",IF(L99<=Нормативы!$L$98,"III",IF(L99<=Нормативы!$L$99,"I юн",IF(L99<=Нормативы!$L$100,"II юн",IF(L99<=Нормативы!$L$101,"III юн","б/р"))))))))))) -> I юн | Q99: =IF(ISBLANK(P99)," ",IF(ISTEXT(P99)," ",IF(P99<=$H$93,"МСМК",IF(P99<=$H$94,"МС",IF(P99<=$H$95,"КМС",IF(P99<=$H$96,"I",IF(P99<=$H$97,"II",IF(P99<=$H$98,"III",IF(P99<=$H$99,"I юн",IF(P99<=$H$100,"II юн",IF(P99<=$H$101,"III юн","б/р"))))))))))) -> 
H100: 230 | I100: =IF(ISBLANK(H100)," ",IF(ISTEXT(H100)," ",IF(H100<=Нормативы!$H$93,"МСМК",IF(H100<=Нормативы!$H$94,"МС",IF(H100<=Нормативы!$H$95,"КМС",IF(H100<=Нормативы!$H$96,"I",IF(H100<=Нормативы!$H$97,"II",IF(H100<=Нормативы!$H$98,"III",IF(H100<=Нормативы!$H$99,"I юн",IF(H100<=Нормативы!$H$100,"II юн",IF(H100<=Нормативы!$H$101,"III юн","б/р"))))))))))) -> II юн | J100: =IF(ISBLANK(H100)," ",IF(ISTEXT(H100)," ",IF(H100<=Нормативы!$H$93,"МСМК",IF(H100<=Нормативы!$H$94,"МС",IF(H100<=Нормативы!$H$95,"КМС",IF(H100<=Нормативы!$H$96,"I",IF(H100<=Нормативы!$H$97,"II",IF(H100<=Нормативы!$H$98,"III",IF(H100<=Нормативы!$H$99,"I юн",IF(H100<=Нормативы!$H$100,"II юн",IF(H100<=Нормативы!$H$101,"III юн","б/р"))))))))))) -> II юн | L100: 229.8 | M100: =IF(ISBLANK(L100)," ",IF(ISTEXT(L100)," ",IF(L100<=Нормативы!$H$93,"КМС",IF(L100<=Нормативы!$H$94,"КМС",IF(L100<=Нормативы!$L$95,"КМС",IF(L100<=Нормативы!$L$96,"I",IF(L100<=Нормативы!$L$97,"II",IF(L100<=Нормативы!$L$98,"III",IF(L100<=Нормативы!$L$99,"I юн",IF(L100<=Нормативы!$L$100,"II юн",IF(L100<=Нормативы!$L$101,"III юн","б/р"))))))))))) -> II юн | N100: =IF(ISBLANK(L100)," ",IF(ISTEXT(L100)," ",IF(L100<=Нормативы!$H$93,"КМС",IF(L100<=Нормативы!$H$94,"КМС",IF(L100<=Нормативы!$L$95,"КМС",IF(L100<=Нормативы!$L$96,"I",IF(L100<=Нормативы!$L$97,"II",IF(L100<=Нормативы!$L$98,"III",IF(L100<=Нормативы!$L$99,"I юн",IF(L100<=Нормативы!$L$100,"II юн",IF(L100<=Нормативы!$L$101,"III юн","б/р"))))))))))) -> II юн | Q100: =IF(ISBLANK(P100)," ",IF(ISTEXT(P100)," ",IF(P100<=$H$93,"МСМК",IF(P100<=$H$94,"МС",IF(P100<=$H$95,"КМС",IF(P100<=$H$96,"I",IF(P100<=$H$97,"II",IF(P100<=$H$98,"III",IF(P100<=$H$99,"I юн",IF(P100<=$H$100,"II юн",IF(P100<=$H$101,"III юн","б/р"))))))))))) -> 
H101: 240.2 | I101: =IF(ISBLANK(H101)," ",IF(ISTEXT(H101)," ",IF(H101<=Нормативы!$H$93,"МСМК",IF(H101<=Нормативы!$H$94,"МС",IF(H101<=Нормативы!$H$95,"КМС",IF(H101<=Нормативы!$H$96,"I",IF(H101<=Нормативы!$H$97,"II",IF(H101<=Нормативы!$H$98,"III",IF(H101<=Нормативы!$H$99,"I юн",IF(H101<=Нормативы!$H$100,"II юн",IF(H101<=Нормативы!$H$101,"III юн","б/р"))))))))))) -> III юн | J101: =IF(ISBLANK(H101)," ",IF(ISTEXT(H101)," ",IF(H101<=Нормативы!$H$93,"МСМК",IF(H101<=Нормативы!$H$94,"МС",IF(H101<=Нормативы!$H$95,"КМС",IF(H101<=Нормативы!$H$96,"I",IF(H101<=Нормативы!$H$97,"II",IF(H101<=Нормативы!$H$98,"III",IF(H101<=Нормативы!$H$99,"I юн",IF(H101<=Нормативы!$H$100,"II юн",IF(H101<=Нормативы!$H$101,"III юн","б/р"))))))))))) -> III юн | L101: =H101-0.4 -> 239.8 | M101: =IF(ISBLANK(L101)," ",IF(ISTEXT(L101)," ",IF(L101<=Нормативы!$H$93,"КМС",IF(L101<=Нормативы!$H$94,"КМС",IF(L101<=Нормативы!$L$95,"КМС",IF(L101<=Нормативы!$L$96,"I",IF(L101<=Нормативы!$L$97,"II",IF(L101<=Нормативы!$L$98,"III",IF(L101<=Нормативы!$L$99,"I юн",IF(L101<=Нормативы!$L$100,"II юн",IF(L101<=Нормативы!$L$101,"III юн","б/р"))))))))))) -> III юн | N101: =IF(ISBLANK(L101)," ",IF(ISTEXT(L101)," ",IF(L101<=Нормативы!$H$93,"КМС",IF(L101<=Нормативы!$H$94,"КМС",IF(L101<=Нормативы!$L$95,"КМС",IF(L101<=Нормативы!$L$96,"I",IF(L101<=Нормативы!$L$97,"II",IF(L101<=Нормативы!$L$98,"III",IF(L101<=Нормативы!$L$99,"I юн",IF(L101<=Нормативы!$L$100,"II юн",IF(L101<=Нормативы!$L$101,"III юн","б/р"))))))))))) -> III юн | Q101: =IF(ISBLANK(P101)," ",IF(ISTEXT(P101)," ",IF(P101<=$H$93,"МСМК",IF(P101<=$H$94,"МС",IF(P101<=$H$95,"КМС",IF(P101<=$H$96,"I",IF(P101<=$H$97,"II",IF(P101<=$H$98,"III",IF(P101<=$H$99,"I юн",IF(P101<=$H$100,"II юн",IF(P101<=$H$101,"III юн","б/р"))))))))))) -> 
I102: =IF(ISBLANK(H102)," ",IF(ISTEXT(H102)," ",IF(H102<=132.9,"МСМК",IF(H102<=137.5,"МС",IF(H102<=142.2,"КМС",IF(H102<=149.6,"I",IF(H102<=158.9,"II",IF(H102<=209.1,"III",IF(H102<=221.2,"I юн",IF(H102<=234.2,"II юн",IF(H102<=247.2,"III юн","б/р"))))))))))) ->  | J102: =IF(ISBLANK(H102)," ",IF(ISTEXT(H102)," ",IF(H102<=132.9,"МСМК",IF(H102<=137.5,"МС",IF(H102<=142.2,"КМС",IF(H102<=149.6,"I",IF(H102<=158.9,"II",IF(H102<=209.1,"III",IF(H102<=221.2,"I юн",IF(H102<=234.2,"II юн",IF(H102<=247.2,"III юн","б/р"))))))))))) ->  | M102: =IF(ISBLANK(L102)," ",IF(ISTEXT(L102)," ",IF(L102<=132.9,"МСМК",IF(L102<=137.5,"МС",IF(L102<=142.2,"КМС",IF(L102<=149.6,"I",IF(L102<=158.9,"II",IF(L102<=209.1,"III",IF(L102<=221.2,"I юн",IF(L102<=234.2,"II юн",IF(L102<=247.2,"III юн","б/р"))))))))))) ->  | N102: =IF(ISBLANK(L102)," ",IF(ISTEXT(L102)," ",IF(L102<=132.9,"МСМК",IF(L102<=137.5,"МС",IF(L102<=142.2,"КМС",IF(L102<=149.6,"I",IF(L102<=158.9,"II",IF(L102<=209.1,"III",IF(L102<=221.2,"I юн",IF(L102<=234.2,"II юн",IF(L102<=247.2,"III юн","б/р"))))))))))) ->  | Q102: =IF(ISBLANK(P102)," ",IF(ISTEXT(P102)," ",IF(P102<=132.9,"МСМК",IF(P102<=137.5,"МС",IF(P102<=142.2,"КМС",IF(P102<=149.6,"I",IF(P102<=158.9,"II",IF(P102<=209.1,"III",IF(P102<=221.2,"I юн",IF(P102<=234.2,"II юн",IF(P102<=247.2,"III юн","б/р"))))))))))) -> 
C103: Плавание в ластах - 200 м (1460101811Я), мужчины
H104: 122.5 | I104: =IF(ISBLANK(H104)," ",IF(ISTEXT(H104)," ",IF(H104<=Нормативы!$H$104,"МСМК",IF(H104<=Нормативы!$H$105,"МС",IF(H104<=Нормативы!$H$106,"КМС",IF(H104<=Нормативы!$H$107,"I",IF(H104<=Нормативы!$H$108,"II",IF(H104<=Нормативы!$H$109,"III",IF(H104<=Нормативы!$H$110,"I юн",IF(H104<=Нормативы!$H$111,"II юн",IF(H104<=Нормативы!$H$112,"III юн","б/р"))))))))))) -> МСМК | J104: =IF(ISBLANK(H104)," ",IF(ISTEXT(H104)," ",IF(H104<=Нормативы!$H$104,"МСМК",IF(H104<=Нормативы!$H$105,"МС",IF(H104<=Нормативы!$H$106,"КМС",IF(H104<=Нормативы!$H$107,"I",IF(H104<=Нормативы!$H$108,"II",IF(H104<=Нормативы!$H$109,"III",IF(H104<=Нормативы!$H$110,"I юн",IF(H104<=Нормативы!$H$111,"II юн",IF(H104<=Нормативы!$H$112,"III юн","б/р"))))))))))) -> МСМК | M104: =IF(ISBLANK(L104)," ",IF(ISTEXT(L104)," ",IF(L104<=Нормативы!$H$104,"КМС",IF(L104<=Нормативы!$H$105,"КМС",IF(L104<=Нормативы!$L$106,"КМС",IF(L104<=Нормативы!$L$107,"I",IF(L104<=Нормативы!$L$108,"II",IF(L104<=Нормативы!$L$109,"III",IF(L104<=Нормативы!$L$110,"I юн",IF(L104<=Нормативы!$L$111,"II юн",IF(L104<=Нормативы!$L$112,"III юн","б/р"))))))))))) ->  | N104: =IF(ISBLANK(L104)," ",IF(ISTEXT(L104)," ",IF(L104<=123.2,"МСМК",IF(L104<=127.4,"МС",IF(L104<=131.5,"КМС",IF(L104<=138,"I",IF(L104<=147,"II",IF(L104<=155.5,"III",IF(L104<=207.5,"I юн",IF(L104<=219.3,"II юн",IF(L104<=231,"III юн","б/р"))))))))))) ->  | Q104: =IF(ISBLANK(P104)," ",IF(ISTEXT(P104)," ",IF(P104<=$H$104,"МСМК",IF(P104<=$H$105,"МС",IF(P104<=$H$106,"КМС",IF(P104<=$H$107,"I",IF(P104<=$H$108,"II",IF(P104<=$H$109,"III",IF(P104<=$H$110,"I юн",IF(P104<=$H$111,"II юн",IF(P104<=$H$112,"III юн","б/р"))))))))))) -> 
H105: 126 | I105: =IF(ISBLANK(H105)," ",IF(ISTEXT(H105)," ",IF(H105<=Нормативы!$H$104,"МСМК",IF(H105<=Нормативы!$H$105,"МС",IF(H105<=Нормативы!$H$106,"КМС",IF(H105<=Нормативы!$H$107,"I",IF(H105<=Нормативы!$H$108,"II",IF(H105<=Нормативы!$H$109,"III",IF(H105<=Нормативы!$H$110,"I юн",IF(H105<=Нормативы!$H$111,"II юн",IF(H105<=Нормативы!$H$112,"III юн","б/р"))))))))))) -> МС | J105: =IF(ISBLANK(H105)," ",IF(ISTEXT(H105)," ",IF(H105<=Нормативы!$H$104,"МСМК",IF(H105<=Нормативы!$H$105,"МС",IF(H105<=Нормативы!$H$106,"КМС",IF(H105<=Нормативы!$H$107,"I",IF(H105<=Нормативы!$H$108,"II",IF(H105<=Нормативы!$H$109,"III",IF(H105<=Нормативы!$H$110,"I юн",IF(H105<=Нормативы!$H$111,"II юн",IF(H105<=Нормативы!$H$112,"III юн","б/р"))))))))))) -> МС | M105: =IF(ISBLANK(L105)," ",IF(ISTEXT(L105)," ",IF(L105<=Нормативы!$H$104,"КМС",IF(L105<=Нормативы!$H$105,"КМС",IF(L105<=Нормативы!$L$106,"КМС",IF(L105<=Нормативы!$L$107,"I",IF(L105<=Нормативы!$L$108,"II",IF(L105<=Нормативы!$L$109,"III",IF(L105<=Нормативы!$L$110,"I юн",IF(L105<=Нормативы!$L$111,"II юн",IF(L105<=Нормативы!$L$112,"III юн","б/р"))))))))))) ->  | N105: =IF(ISBLANK(L105)," ",IF(ISTEXT(L105)," ",IF(L105<=123.2,"МСМК",IF(L105<=127.4,"МС",IF(L105<=131.5,"КМС",IF(L105<=138,"I",IF(L105<=147,"II",IF(L105<=155.5,"III",IF(L105<=207.5,"I юн",IF(L105<=219.3,"II юн",IF(L105<=231,"III юн","б/р"))))))))))) ->  | Q105: =IF(ISBLANK(P105)," ",IF(ISTEXT(P105)," ",IF(P105<=$H$104,"МСМК",IF(P105<=$H$105,"МС",IF(P105<=$H$106,"КМС",IF(P105<=$H$107,"I",IF(P105<=$H$108,"II",IF(P105<=$H$109,"III",IF(P105<=$H$110,"I юн",IF(P105<=$H$111,"II юн",IF(P105<=$H$112,"III юн","б/р"))))))))))) -> 
H106: 130.7 | I106: =IF(ISBLANK(H106)," ",IF(ISTEXT(H106)," ",IF(H106<=Нормативы!$H$104,"МСМК",IF(H106<=Нормативы!$H$105,"МС",IF(H106<=Нормативы!$H$106,"КМС",IF(H106<=Нормативы!$H$107,"I",IF(H106<=Нормативы!$H$108,"II",IF(H106<=Нормативы!$H$109,"III",IF(H106<=Нормативы!$H$110,"I юн",IF(H106<=Нормативы!$H$111,"II юн",IF(H106<=Нормативы!$H$112,"III юн","б/р"))))))))))) -> КМС | J106: =IF(ISBLANK(H106)," ",IF(ISTEXT(H106)," ",IF(H106<=Нормативы!$H$104,"МСМК",IF(H106<=Нормативы!$H$105,"МС",IF(H106<=Нормативы!$H$106,"КМС",IF(H106<=Нормативы!$H$107,"I",IF(H106<=Нормативы!$H$108,"II",IF(H106<=Нормативы!$H$109,"III",IF(H106<=Нормативы!$H$110,"I юн",IF(H106<=Нормативы!$H$111,"II юн",IF(H106<=Нормативы!$H$112,"III юн","б/р"))))))))))) -> КМС | L106: =H106-0.2 -> 130.5 | M106: =IF(ISBLANK(L106)," ",IF(ISTEXT(L106)," ",IF(L106<=Нормативы!$H$104,"КМС",IF(L106<=Нормативы!$H$105,"КМС",IF(L106<=Нормативы!$L$106,"КМС",IF(L106<=Нормативы!$L$107,"I",IF(L106<=Нормативы!$L$108,"II",IF(L106<=Нормативы!$L$109,"III",IF(L106<=Нормативы!$L$110,"I юн",IF(L106<=Нормативы!$L$111,"II юн",IF(L106<=Нормативы!$L$112,"III юн","б/р"))))))))))) -> КМС | N106: =IF(ISBLANK(L106)," ",IF(ISTEXT(L106)," ",IF(L106<=Нормативы!$H$104,"КМС",IF(L106<=Нормативы!$H$105,"КМС",IF(L106<=Нормативы!$L$106,"КМС",IF(L106<=Нормативы!$L$107,"I",IF(L106<=Нормативы!$L$108,"II",IF(L106<=Нормативы!$L$109,"III",IF(L106<=Нормативы!$L$110,"I юн",IF(L106<=Нормативы!$L$111,"II юн",IF(L106<=Нормативы!$L$112,"III юн","б/р"))))))))))) -> КМС | Q106: =IF(ISBLANK(P106)," ",IF(ISTEXT(P106)," ",IF(P106<=$H$104,"МСМК",IF(P106<=$H$105,"МС",IF(P106<=$H$106,"КМС",IF(P106<=$H$107,"I",IF(P106<=$H$108,"II",IF(P106<=$H$109,"III",IF(P106<=$H$110,"I юн",IF(P106<=$H$111,"II юн",IF(P106<=$H$112,"III юн","б/р"))))))))))) -> 
H107: 137.2 | I107: =IF(ISBLANK(H107)," ",IF(ISTEXT(H107)," ",IF(H107<=Нормативы!$H$104,"МСМК",IF(H107<=Нормативы!$H$105,"МС",IF(H107<=Нормативы!$H$106,"КМС",IF(H107<=Нормативы!$H$107,"I",IF(H107<=Нормативы!$H$108,"II",IF(H107<=Нормативы!$H$109,"III",IF(H107<=Нормативы!$H$110,"I юн",IF(H107<=Нормативы!$H$111,"II юн",IF(H107<=Нормативы!$H$112,"III юн","б/р"))))))))))) -> I | J107: =IF(ISBLANK(H107)," ",IF(ISTEXT(H107)," ",IF(H107<=Нормативы!$H$104,"МСМК",IF(H107<=Нормативы!$H$105,"МС",IF(H107<=Нормативы!$H$106,"КМС",IF(H107<=Нормативы!$H$107,"I",IF(H107<=Нормативы!$H$108,"II",IF(H107<=Нормативы!$H$109,"III",IF(H107<=Нормативы!$H$110,"I юн",IF(H107<=Нормативы!$H$111,"II юн",IF(H107<=Нормативы!$H$112,"III юн","б/р"))))))))))) -> I | L107: 137 | M107: =IF(ISBLANK(L107)," ",IF(ISTEXT(L107)," ",IF(L107<=Нормативы!$H$104,"КМС",IF(L107<=Нормативы!$H$105,"КМС",IF(L107<=Нормативы!$L$106,"КМС",IF(L107<=Нормативы!$L$107,"I",IF(L107<=Нормативы!$L$108,"II",IF(L107<=Нормативы!$L$109,"III",IF(L107<=Нормативы!$L$110,"I юн",IF(L107<=Нормативы!$L$111,"II юн",IF(L107<=Нормативы!$L$112,"III юн","б/р"))))))))))) -> I | N107: =IF(ISBLANK(L107)," ",IF(ISTEXT(L107)," ",IF(L107<=Нормативы!$H$104,"КМС",IF(L107<=Нормативы!$H$105,"КМС",IF(L107<=Нормативы!$L$106,"КМС",IF(L107<=Нормативы!$L$107,"I",IF(L107<=Нормативы!$L$108,"II",IF(L107<=Нормативы!$L$109,"III",IF(L107<=Нормативы!$L$110,"I юн",IF(L107<=Нормативы!$L$111,"II юн",IF(L107<=Нормативы!$L$112,"III юн","б/р"))))))))))) -> I | Q107: =IF(ISBLANK(P107)," ",IF(ISTEXT(P107)," ",IF(P107<=$H$104,"МСМК",IF(P107<=$H$105,"МС",IF(P107<=$H$106,"КМС",IF(P107<=$H$107,"I",IF(P107<=$H$108,"II",IF(P107<=$H$109,"III",IF(P107<=$H$110,"I юн",IF(P107<=$H$111,"II юн",IF(P107<=$H$112,"III юн","б/р"))))))))))) -> 
H108: 146.2 | I108: =IF(ISBLANK(H108)," ",IF(ISTEXT(H108)," ",IF(H108<=Нормативы!$H$104,"МСМК",IF(H108<=Нормативы!$H$105,"МС",IF(H108<=Нормативы!$H$106,"КМС",IF(H108<=Нормативы!$H$107,"I",IF(H108<=Нормативы!$H$108,"II",IF(H108<=Нормативы!$H$109,"III",IF(H108<=Нормативы!$H$110,"I юн",IF(H108<=Нормативы!$H$111,"II юн",IF(H108<=Нормативы!$H$112,"III юн","б/р"))))))))))) -> II | J108: =IF(ISBLANK(H108)," ",IF(ISTEXT(H108)," ",IF(H108<=Нормативы!$H$104,"МСМК",IF(H108<=Нормативы!$H$105,"МС",IF(H108<=Нормативы!$H$106,"КМС",IF(H108<=Нормативы!$H$107,"I",IF(H108<=Нормативы!$H$108,"II",IF(H108<=Нормативы!$H$109,"III",IF(H108<=Нормативы!$H$110,"I юн",IF(H108<=Нормативы!$H$111,"II юн",IF(H108<=Нормативы!$H$112,"III юн","б/р"))))))))))) -> II | L108: 146 | M108: =IF(ISBLANK(L108)," ",IF(ISTEXT(L108)," ",IF(L108<=Нормативы!$H$104,"КМС",IF(L108<=Нормативы!$H$105,"КМС",IF(L108<=Нормативы!$L$106,"КМС",IF(L108<=Нормативы!$L$107,"I",IF(L108<=Нормативы!$L$108,"II",IF(L108<=Нормативы!$L$109,"III",IF(L108<=Нормативы!$L$110,"I юн",IF(L108<=Нормативы!$L$111,"II юн",IF(L108<=Нормативы!$L$112,"III юн","б/р"))))))))))) -> II | N108: =IF(ISBLANK(L108)," ",IF(ISTEXT(L108)," ",IF(L108<=Нормативы!$H$104,"КМС",IF(L108<=Нормативы!$H$105,"КМС",IF(L108<=Нормативы!$L$106,"КМС",IF(L108<=Нормативы!$L$107,"I",IF(L108<=Нормативы!$L$108,"II",IF(L108<=Нормативы!$L$109,"III",IF(L108<=Нормативы!$L$110,"I юн",IF(L108<=Нормативы!$L$111,"II юн",IF(L108<=Нормативы!$L$112,"III юн","б/р"))))))))))) -> II | Q108: =IF(ISBLANK(P108)," ",IF(ISTEXT(P108)," ",IF(P108<=$H$104,"МСМК",IF(P108<=$H$105,"МС",IF(P108<=$H$106,"КМС",IF(P108<=$H$107,"I",IF(P108<=$H$108,"II",IF(P108<=$H$109,"III",IF(P108<=$H$110,"I юн",IF(P108<=$H$111,"II юн",IF(P108<=$H$112,"III юн","б/р"))))))))))) -> 
H109: 154.8 | I109: =IF(ISBLANK(H109)," ",IF(ISTEXT(H109)," ",IF(H109<=Нормативы!$H$104,"МСМК",IF(H109<=Нормативы!$H$105,"МС",IF(H109<=Нормативы!$H$106,"КМС",IF(H109<=Нормативы!$H$107,"I",IF(H109<=Нормативы!$H$108,"II",IF(H109<=Нормативы!$H$109,"III",IF(H109<=Нормативы!$H$110,"I юн",IF(H109<=Нормативы!$H$111,"II юн",IF(H109<=Нормативы!$H$112,"III юн","б/р"))))))))))) -> III | J109: =IF(ISBLANK(H109)," ",IF(ISTEXT(H109)," ",IF(H109<=Нормативы!$H$104,"МСМК",IF(H109<=Нормативы!$H$105,"МС",IF(H109<=Нормативы!$H$106,"КМС",IF(H109<=Нормативы!$H$107,"I",IF(H109<=Нормативы!$H$108,"II",IF(H109<=Нормативы!$H$109,"III",IF(H109<=Нормативы!$H$110,"I юн",IF(H109<=Нормативы!$H$111,"II юн",IF(H109<=Нормативы!$H$112,"III юн","б/р"))))))))))) -> III | L109: 154.6 | M109: =IF(ISBLANK(L109)," ",IF(ISTEXT(L109)," ",IF(L109<=Нормативы!$H$104,"КМС",IF(L109<=Нормативы!$H$105,"КМС",IF(L109<=Нормативы!$L$106,"КМС",IF(L109<=Нормативы!$L$107,"I",IF(L109<=Нормативы!$L$108,"II",IF(L109<=Нормативы!$L$109,"III",IF(L109<=Нормативы!$L$110,"I юн",IF(L109<=Нормативы!$L$111,"II юн",IF(L109<=Нормативы!$L$112,"III юн","б/р"))))))))))) -> III | N109: =IF(ISBLANK(L109)," ",IF(ISTEXT(L109)," ",IF(L109<=Нормативы!$H$104,"КМС",IF(L109<=Нормативы!$H$105,"КМС",IF(L109<=Нормативы!$L$106,"КМС",IF(L109<=Нормативы!$L$107,"I",IF(L109<=Нормативы!$L$108,"II",IF(L109<=Нормативы!$L$109,"III",IF(L109<=Нормативы!$L$110,"I юн",IF(L109<=Нормативы!$L$111,"II юн",IF(L109<=Нормативы!$L$112,"III юн","б/р"))))))))))) -> III | Q109: =IF(ISBLANK(P109)," ",IF(ISTEXT(P109)," ",IF(P109<=$H$104,"МСМК",IF(P109<=$H$105,"МС",IF(P109<=$H$106,"КМС",IF(P109<=$H$107,"I",IF(P109<=$H$108,"II",IF(P109<=$H$109,"III",IF(P109<=$H$110,"I юн",IF(P109<=$H$111,"II юн",IF(P109<=$H$112,"III юн","б/р"))))))))))) -> 
H110: 206.7 | I110: =IF(ISBLANK(H110)," ",IF(ISTEXT(H110)," ",IF(H110<=Нормативы!$H$104,"МСМК",IF(H110<=Нормативы!$H$105,"МС",IF(H110<=Нормативы!$H$106,"КМС",IF(H110<=Нормативы!$H$107,"I",IF(H110<=Нормативы!$H$108,"II",IF(H110<=Нормативы!$H$109,"III",IF(H110<=Нормативы!$H$110,"I юн",IF(H110<=Нормативы!$H$111,"II юн",IF(H110<=Нормативы!$H$112,"III юн","б/р"))))))))))) -> I юн | J110: =IF(ISBLANK(H110)," ",IF(ISTEXT(H110)," ",IF(H110<=Нормативы!$H$104,"МСМК",IF(H110<=Нормативы!$H$105,"МС",IF(H110<=Нормативы!$H$106,"КМС",IF(H110<=Нормативы!$H$107,"I",IF(H110<=Нормативы!$H$108,"II",IF(H110<=Нормативы!$H$109,"III",IF(H110<=Нормативы!$H$110,"I юн",IF(H110<=Нормативы!$H$111,"II юн",IF(H110<=Нормативы!$H$112,"III юн","б/р"))))))))))) -> I юн | L110: 206.5 | M110: =IF(ISBLANK(L110)," ",IF(ISTEXT(L110)," ",IF(L110<=Нормативы!$H$104,"КМС",IF(L110<=Нормативы!$H$105,"КМС",IF(L110<=Нормативы!$L$106,"КМС",IF(L110<=Нормативы!$L$107,"I",IF(L110<=Нормативы!$L$108,"II",IF(L110<=Нормативы!$L$109,"III",IF(L110<=Нормативы!$L$110,"I юн",IF(L110<=Нормативы!$L$111,"II юн",IF(L110<=Нормативы!$L$112,"III юн","б/р"))))))))))) -> I юн | N110: =IF(ISBLANK(L110)," ",IF(ISTEXT(L110)," ",IF(L110<=Нормативы!$H$104,"КМС",IF(L110<=Нормативы!$H$105,"КМС",IF(L110<=Нормативы!$L$106,"КМС",IF(L110<=Нормативы!$L$107,"I",IF(L110<=Нормативы!$L$108,"II",IF(L110<=Нормативы!$L$109,"III",IF(L110<=Нормативы!$L$110,"I юн",IF(L110<=Нормативы!$L$111,"II юн",IF(L110<=Нормативы!$L$112,"III юн","б/р"))))))))))) -> I юн | Q110: =IF(ISBLANK(P110)," ",IF(ISTEXT(P110)," ",IF(P110<=$H$104,"МСМК",IF(P110<=$H$105,"МС",IF(P110<=$H$106,"КМС",IF(P110<=$H$107,"I",IF(P110<=$H$108,"II",IF(P110<=$H$109,"III",IF(P110<=$H$110,"I юн",IF(P110<=$H$111,"II юн",IF(P110<=$H$112,"III юн","б/р"))))))))))) -> 
H111: 218.5 | I111: =IF(ISBLANK(H111)," ",IF(ISTEXT(H111)," ",IF(H111<=Нормативы!$H$104,"МСМК",IF(H111<=Нормативы!$H$105,"МС",IF(H111<=Нормативы!$H$106,"КМС",IF(H111<=Нормативы!$H$107,"I",IF(H111<=Нормативы!$H$108,"II",IF(H111<=Нормативы!$H$109,"III",IF(H111<=Нормативы!$H$110,"I юн",IF(H111<=Нормативы!$H$111,"II юн",IF(H111<=Нормативы!$H$112,"III юн","б/р"))))))))))) -> II юн | J111: =IF(ISBLANK(H111)," ",IF(ISTEXT(H111)," ",IF(H111<=Нормативы!$H$104,"МСМК",IF(H111<=Нормативы!$H$105,"МС",IF(H111<=Нормативы!$H$106,"КМС",IF(H111<=Нормативы!$H$107,"I",IF(H111<=Нормативы!$H$108,"II",IF(H111<=Нормативы!$H$109,"III",IF(H111<=Нормативы!$H$110,"I юн",IF(H111<=Нормативы!$H$111,"II юн",IF(H111<=Нормативы!$H$112,"III юн","б/р"))))))))))) -> II юн | L111: 218.3 | M111: =IF(ISBLANK(L111)," ",IF(ISTEXT(L111)," ",IF(L111<=Нормативы!$H$104,"КМС",IF(L111<=Нормативы!$H$105,"КМС",IF(L111<=Нормативы!$L$106,"КМС",IF(L111<=Нормативы!$L$107,"I",IF(L111<=Нормативы!$L$108,"II",IF(L111<=Нормативы!$L$109,"III",IF(L111<=Нормативы!$L$110,"I юн",IF(L111<=Нормативы!$L$111,"II юн",IF(L111<=Нормативы!$L$112,"III юн","б/р"))))))))))) -> II юн | N111: =IF(ISBLANK(L111)," ",IF(ISTEXT(L111)," ",IF(L111<=Нормативы!$H$104,"КМС",IF(L111<=Нормативы!$H$105,"КМС",IF(L111<=Нормативы!$L$106,"КМС",IF(L111<=Нормативы!$L$107,"I",IF(L111<=Нормативы!$L$108,"II",IF(L111<=Нормативы!$L$109,"III",IF(L111<=Нормативы!$L$110,"I юн",IF(L111<=Нормативы!$L$111,"II юн",IF(L111<=Нормативы!$L$112,"III юн","б/р"))))))))))) -> II юн | Q111: =IF(ISBLANK(P111)," ",IF(ISTEXT(P111)," ",IF(P111<=$H$104,"МСМК",IF(P111<=$H$105,"МС",IF(P111<=$H$106,"КМС",IF(P111<=$H$107,"I",IF(P111<=$H$108,"II",IF(P111<=$H$109,"III",IF(P111<=$H$110,"I юн",IF(P111<=$H$111,"II юн",IF(P111<=$H$112,"III юн","б/р"))))))))))) -> 
H112: 229.2 | I112: =IF(ISBLANK(H112)," ",IF(ISTEXT(H112)," ",IF(H112<=Нормативы!$H$104,"МСМК",IF(H112<=Нормативы!$H$105,"МС",IF(H112<=Нормативы!$H$106,"КМС",IF(H112<=Нормативы!$H$107,"I",IF(H112<=Нормативы!$H$108,"II",IF(H112<=Нормативы!$H$109,"III",IF(H112<=Нормативы!$H$110,"I юн",IF(H112<=Нормативы!$H$111,"II юн",IF(H112<=Нормативы!$H$112,"III юн","б/р"))))))))))) -> III юн | J112: =IF(ISBLANK(H112)," ",IF(ISTEXT(H112)," ",IF(H112<=Нормативы!$H$104,"МСМК",IF(H112<=Нормативы!$H$105,"МС",IF(H112<=Нормативы!$H$106,"КМС",IF(H112<=Нормативы!$H$107,"I",IF(H112<=Нормативы!$H$108,"II",IF(H112<=Нормативы!$H$109,"III",IF(H112<=Нормативы!$H$110,"I юн",IF(H112<=Нормативы!$H$111,"II юн",IF(H112<=Нормативы!$H$112,"III юн","б/р"))))))))))) -> III юн | L112: 229 | M112: =IF(ISBLANK(L112)," ",IF(ISTEXT(L112)," ",IF(L112<=Нормативы!$H$104,"КМС",IF(L112<=Нормативы!$H$105,"КМС",IF(L112<=Нормативы!$L$106,"КМС",IF(L112<=Нормативы!$L$107,"I",IF(L112<=Нормативы!$L$108,"II",IF(L112<=Нормативы!$L$109,"III",IF(L112<=Нормативы!$L$110,"I юн",IF(L112<=Нормативы!$L$111,"II юн",IF(L112<=Нормативы!$L$112,"III юн","б/р"))))))))))) -> III юн | N112: =IF(ISBLANK(L112)," ",IF(ISTEXT(L112)," ",IF(L112<=Нормативы!$H$104,"КМС",IF(L112<=Нормативы!$H$105,"КМС",IF(L112<=Нормативы!$L$106,"КМС",IF(L112<=Нормативы!$L$107,"I",IF(L112<=Нормативы!$L$108,"II",IF(L112<=Нормативы!$L$109,"III",IF(L112<=Нормативы!$L$110,"I юн",IF(L112<=Нормативы!$L$111,"II юн",IF(L112<=Нормативы!$L$112,"III юн","б/р"))))))))))) -> III юн | Q112: =IF(ISBLANK(P112)," ",IF(ISTEXT(P112)," ",IF(P112<=$H$104,"МСМК",IF(P112<=$H$105,"МС",IF(P112<=$H$106,"КМС",IF(P112<=$H$107,"I",IF(P112<=$H$108,"II",IF(P112<=$H$109,"III",IF(P112<=$H$110,"I юн",IF(P112<=$H$111,"II юн",IF(P112<=$H$112,"III юн","б/р"))))))))))) -> 
C114: Плавание в классических ластах- 200 м (1460261811Я), женщины
H115: 147 | I115: =IF(ISBLANK(H115)," ",IF(ISTEXT(H115)," ",IF(H115<=Нормативы!$H$115,"МСМК",IF(H115<=Нормативы!$H$116,"МС",IF(H115<=Нормативы!$H$117,"КМС",IF(H115<=Нормативы!$H$118,"I",IF(H115<=Нормативы!$H$119,"II",IF(H115<=Нормативы!$H$120,"III",IF(H115<=Нормативы!$H$121,"I юн",IF(H115<=Нормативы!$H$122,"II юн",IF(H115<=Нормативы!$H$123,"III юн","б/р"))))))))))) -> МСМК | J115: =IF(ISBLANK(H115)," ",IF(ISTEXT(H115)," ",IF(H115<=Нормативы!$H$115,"МСМК",IF(H115<=Нормативы!$H$116,"МС",IF(H115<=Нормативы!$H$117,"КМС",IF(H115<=Нормативы!$H$118,"I",IF(H115<=Нормативы!$H$119,"II",IF(H115<=Нормативы!$H$120,"III",IF(H115<=Нормативы!$H$121,"I юн",IF(H115<=Нормативы!$H$122,"II юн",IF(H115<=Нормативы!$H$123,"III юн","б/р"))))))))))) -> МСМК | M115: =IF(ISBLANK(L115)," ",IF(ISTEXT(L115)," ",IF(L115<=Нормативы!$H$115,"КМС",IF(L115<=Нормативы!$H$116,"КМС",IF(L115<=Нормативы!$L$117,"КМС",IF(L115<=Нормативы!$L$118,"I",IF(L115<=Нормативы!$L$119,"II",IF(L115<=Нормативы!$L$120,"III",IF(L115<=Нормативы!$L$121,"I юн",IF(L115<=Нормативы!$L$122,"II юн",IF(L115<=Нормативы!$L$123,"III юн","б/р"))))))))))) ->  | N115: =IF(ISBLANK(L115)," ",IF(ISTEXT(L115)," ",IF(L115<=147.5,"МСМК",IF(L115<=152.6,"МС",IF(L115<=157.6,"КМС",IF(L115<=207.3,"I",IF(L115<=216.3,"II",IF(L115<=228,"III",IF(L115<=244,"I юн",IF(L115<=258.5,"II юн",IF(L115<=312,"III юн","б/р"))))))))))) ->  | Q115: =IF(ISBLANK(P115)," ",IF(ISTEXT(P115)," ",IF(P115<=$H$115,"МСМК",IF(P115<=$H$116,"МС",IF(P115<=$H$117,"КМС",IF(P115<=$H$118,"I",IF(P115<=$H$119,"II",IF(P115<=$H$120,"III",IF(P115<=$H$121,"I юн",IF(P115<=$H$122,"II юн",IF(P115<=$H$123,"III юн","б/р"))))))))))) -> 
H116: 151 | I116: =IF(ISBLANK(H116)," ",IF(ISTEXT(H116)," ",IF(H116<=Нормативы!$H$115,"МСМК",IF(H116<=Нормативы!$H$116,"МС",IF(H116<=Нормативы!$H$117,"КМС",IF(H116<=Нормативы!$H$118,"I",IF(H116<=Нормативы!$H$119,"II",IF(H116<=Нормативы!$H$120,"III",IF(H116<=Нормативы!$H$121,"I юн",IF(H116<=Нормативы!$H$122,"II юн",IF(H116<=Нормативы!$H$123,"III юн","б/р"))))))))))) -> МС | J116: =IF(ISBLANK(H116)," ",IF(ISTEXT(H116)," ",IF(H116<=Нормативы!$H$115,"МСМК",IF(H116<=Нормативы!$H$116,"МС",IF(H116<=Нормативы!$H$117,"КМС",IF(H116<=Нормативы!$H$118,"I",IF(H116<=Нормативы!$H$119,"II",IF(H116<=Нормативы!$H$120,"III",IF(H116<=Нормативы!$H$121,"I юн",IF(H116<=Нормативы!$H$122,"II юн",IF(H116<=Нормативы!$H$123,"III юн","б/р"))))))))))) -> МС | M116: =IF(ISBLANK(L116)," ",IF(ISTEXT(L116)," ",IF(L116<=Нормативы!$H$115,"КМС",IF(L116<=Нормативы!$H$116,"КМС",IF(L116<=Нормативы!$L$117,"КМС",IF(L116<=Нормативы!$L$118,"I",IF(L116<=Нормативы!$L$119,"II",IF(L116<=Нормативы!$L$120,"III",IF(L116<=Нормативы!$L$121,"I юн",IF(L116<=Нормативы!$L$122,"II юн",IF(L116<=Нормативы!$L$123,"III юн","б/р"))))))))))) ->  | N116: =IF(ISBLANK(L116)," ",IF(ISTEXT(L116)," ",IF(L116<=147.5,"МСМК",IF(L116<=152.6,"МС",IF(L116<=157.6,"КМС",IF(L116<=207.3,"I",IF(L116<=216.3,"II",IF(L116<=228,"III",IF(L116<=244,"I юн",IF(L116<=258.5,"II юн",IF(L116<=312,"III юн","б/р"))))))))))) ->  | Q116: =IF(ISBLANK(P116)," ",IF(ISTEXT(P116)," ",IF(P116<=$H$115,"МСМК",IF(P116<=$H$116,"МС",IF(P116<=$H$117,"КМС",IF(P116<=$H$118,"I",IF(P116<=$H$119,"II",IF(P116<=$H$120,"III",IF(P116<=$H$121,"I юн",IF(P116<=$H$122,"II юн",IF(P116<=$H$123,"III юн","б/р"))))))))))) -> 
H117: 157.2 | I117: =IF(ISBLANK(H117)," ",IF(ISTEXT(H117)," ",IF(H117<=Нормативы!$H$115,"МСМК",IF(H117<=Нормативы!$H$116,"МС",IF(H117<=Нормативы!$H$117,"КМС",IF(H117<=Нормативы!$H$118,"I",IF(H117<=Нормативы!$H$119,"II",IF(H117<=Нормативы!$H$120,"III",IF(H117<=Нормативы!$H$121,"I юн",IF(H117<=Нормативы!$H$122,"II юн",IF(H117<=Нормативы!$H$123,"III юн","б/р"))))))))))) -> КМС | J117: =IF(ISBLANK(H117)," ",IF(ISTEXT(H117)," ",IF(H117<=Нормативы!$H$115,"МСМК",IF(H117<=Нормативы!$H$116,"МС",IF(H117<=Нормативы!$H$117,"КМС",IF(H117<=Нормативы!$H$118,"I",IF(H117<=Нормативы!$H$119,"II",IF(H117<=Нормативы!$H$120,"III",IF(H117<=Нормативы!$H$121,"I юн",IF(H117<=Нормативы!$H$122,"II юн",IF(H117<=Нормативы!$H$123,"III юн","б/р"))))))))))) -> КМС | L117: =H117-0.2 -> 157 | M117: =IF(ISBLANK(L117)," ",IF(ISTEXT(L117)," ",IF(L117<=Нормативы!$H$115,"КМС",IF(L117<=Нормативы!$H$116,"КМС",IF(L117<=Нормативы!$L$117,"КМС",IF(L117<=Нормативы!$L$118,"I",IF(L117<=Нормативы!$L$119,"II",IF(L117<=Нормативы!$L$120,"III",IF(L117<=Нормативы!$L$121,"I юн",IF(L117<=Нормативы!$L$122,"II юн",IF(L117<=Нормативы!$L$123,"III юн","б/р"))))))))))) -> КМС | N117: =IF(ISBLANK(L117)," ",IF(ISTEXT(L117)," ",IF(L117<=Нормативы!$H$115,"КМС",IF(L117<=Нормативы!$H$116,"КМС",IF(L117<=Нормативы!$L$117,"КМС",IF(L117<=Нормативы!$L$118,"I",IF(L117<=Нормативы!$L$119,"II",IF(L117<=Нормативы!$L$120,"III",IF(L117<=Нормативы!$L$121,"I юн",IF(L117<=Нормативы!$L$122,"II юн",IF(L117<=Нормативы!$L$123,"III юн","б/р"))))))))))) -> КМС | Q117: =IF(ISBLANK(P117)," ",IF(ISTEXT(P117)," ",IF(P117<=$H$115,"МСМК",IF(P117<=$H$116,"МС",IF(P117<=$H$117,"КМС",IF(P117<=$H$118,"I",IF(P117<=$H$119,"II",IF(P117<=$H$120,"III",IF(P117<=$H$121,"I юн",IF(P117<=$H$122,"II юн",IF(P117<=$H$123,"III юн","б/р"))))))))))) -> 
H118: 206.7 | I118: =IF(ISBLANK(H118)," ",IF(ISTEXT(H118)," ",IF(H118<=Нормативы!$H$115,"МСМК",IF(H118<=Нормативы!$H$116,"МС",IF(H118<=Нормативы!$H$117,"КМС",IF(H118<=Нормативы!$H$118,"I",IF(H118<=Нормативы!$H$119,"II",IF(H118<=Нормативы!$H$120,"III",IF(H118<=Нормативы!$H$121,"I юн",IF(H118<=Нормативы!$H$122,"II юн",IF(H118<=Нормативы!$H$123,"III юн","б/р"))))))))))) -> I | J118: =IF(ISBLANK(H118)," ",IF(ISTEXT(H118)," ",IF(H118<=Нормативы!$H$115,"МСМК",IF(H118<=Нормативы!$H$116,"МС",IF(H118<=Нормативы!$H$117,"КМС",IF(H118<=Нормативы!$H$118,"I",IF(H118<=Нормативы!$H$119,"II",IF(H118<=Нормативы!$H$120,"III",IF(H118<=Нормативы!$H$121,"I юн",IF(H118<=Нормативы!$H$122,"II юн",IF(H118<=Нормативы!$H$123,"III юн","б/р"))))))))))) -> I | L118: 206.5 | M118: =IF(ISBLANK(L118)," ",IF(ISTEXT(L118)," ",IF(L118<=Нормативы!$H$115,"КМС",IF(L118<=Нормативы!$H$116,"КМС",IF(L118<=Нормативы!$L$117,"КМС",IF(L118<=Нормативы!$L$118,"I",IF(L118<=Нормативы!$L$119,"II",IF(L118<=Нормативы!$L$120,"III",IF(L118<=Нормативы!$L$121,"I юн",IF(L118<=Нормативы!$L$122,"II юн",IF(L118<=Нормативы!$L$123,"III юн","б/р"))))))))))) -> I | N118: =IF(ISBLANK(L118)," ",IF(ISTEXT(L118)," ",IF(L118<=Нормативы!$H$115,"КМС",IF(L118<=Нормативы!$H$116,"КМС",IF(L118<=Нормативы!$L$117,"КМС",IF(L118<=Нормативы!$L$118,"I",IF(L118<=Нормативы!$L$119,"II",IF(L118<=Нормативы!$L$120,"III",IF(L118<=Нормативы!$L$121,"I юн",IF(L118<=Нормативы!$L$122,"II юн",IF(L118<=Нормативы!$L$123,"III юн","б/р"))))))))))) -> I | Q118: =IF(ISBLANK(P118)," ",IF(ISTEXT(P118)," ",IF(P118<=$H$115,"МСМК",IF(P118<=$H$116,"МС",IF(P118<=$H$117,"КМС",IF(P118<=$H$118,"I",IF(P118<=$H$119,"II",IF(P118<=$H$120,"III",IF(P118<=$H$121,"I юн",IF(P118<=$H$122,"II юн",IF(P118<=$H$123,"III юн","б/р"))))))))))) -> 
H119: 215.7 | I119: =IF(ISBLANK(H119)," ",IF(ISTEXT(H119)," ",IF(H119<=Нормативы!$H$115,"МСМК",IF(H119<=Нормативы!$H$116,"МС",IF(H119<=Нормативы!$H$117,"КМС",IF(H119<=Нормативы!$H$118,"I",IF(H119<=Нормативы!$H$119,"II",IF(H119<=Нормативы!$H$120,"III",IF(H119<=Нормативы!$H$121,"I юн",IF(H119<=Нормативы!$H$122,"II юн",IF(H119<=Нормативы!$H$123,"III юн","б/р"))))))))))) -> II | J119: =IF(ISBLANK(H119)," ",IF(ISTEXT(H119)," ",IF(H119<=Нормативы!$H$115,"МСМК",IF(H119<=Нормативы!$H$116,"МС",IF(H119<=Нормативы!$H$117,"КМС",IF(H119<=Нормативы!$H$118,"I",IF(H119<=Нормативы!$H$119,"II",IF(H119<=Нормативы!$H$120,"III",IF(H119<=Нормативы!$H$121,"I юн",IF(H119<=Нормативы!$H$122,"II юн",IF(H119<=Нормативы!$H$123,"III юн","б/р"))))))))))) -> II | L119: 215.5 | M119: =IF(ISBLANK(L119)," ",IF(ISTEXT(L119)," ",IF(L119<=Нормативы!$H$115,"КМС",IF(L119<=Нормативы!$H$116,"КМС",IF(L119<=Нормативы!$L$117,"КМС",IF(L119<=Нормативы!$L$118,"I",IF(L119<=Нормативы!$L$119,"II",IF(L119<=Нормативы!$L$120,"III",IF(L119<=Нормативы!$L$121,"I юн",IF(L119<=Нормативы!$L$122,"II юн",IF(L119<=Нормативы!$L$123,"III юн","б/р"))))))))))) -> II | N119: =IF(ISBLANK(L119)," ",IF(ISTEXT(L119)," ",IF(L119<=Нормативы!$H$115,"КМС",IF(L119<=Нормативы!$H$116,"КМС",IF(L119<=Нормативы!$L$117,"КМС",IF(L119<=Нормативы!$L$118,"I",IF(L119<=Нормативы!$L$119,"II",IF(L119<=Нормативы!$L$120,"III",IF(L119<=Нормативы!$L$121,"I юн",IF(L119<=Нормативы!$L$122,"II юн",IF(L119<=Нормативы!$L$123,"III юн","б/р"))))))))))) -> II | Q119: =IF(ISBLANK(P119)," ",IF(ISTEXT(P119)," ",IF(P119<=$H$115,"МСМК",IF(P119<=$H$116,"МС",IF(P119<=$H$117,"КМС",IF(P119<=$H$118,"I",IF(P119<=$H$119,"II",IF(P119<=$H$120,"III",IF(P119<=$H$121,"I юн",IF(P119<=$H$122,"II юн",IF(P119<=$H$123,"III юн","б/р"))))))))))) -> 
H120: 227 | I120: =IF(ISBLANK(H120)," ",IF(ISTEXT(H120)," ",IF(H120<=Нормативы!$H$115,"МСМК",IF(H120<=Нормативы!$H$116,"МС",IF(H120<=Нормативы!$H$117,"КМС",IF(H120<=Нормативы!$H$118,"I",IF(H120<=Нормативы!$H$119,"II",IF(H120<=Нормативы!$H$120,"III",IF(H120<=Нормативы!$H$121,"I юн",IF(H120<=Нормативы!$H$122,"II юн",IF(H120<=Нормативы!$H$123,"III юн","б/р"))))))))))) -> III | J120: =IF(ISBLANK(H120)," ",IF(ISTEXT(H120)," ",IF(H120<=Нормативы!$H$115,"МСМК",IF(H120<=Нормативы!$H$116,"МС",IF(H120<=Нормативы!$H$117,"КМС",IF(H120<=Нормативы!$H$118,"I",IF(H120<=Нормативы!$H$119,"II",IF(H120<=Нормативы!$H$120,"III",IF(H120<=Нормативы!$H$121,"I юн",IF(H120<=Нормативы!$H$122,"II юн",IF(H120<=Нормативы!$H$123,"III юн","б/р"))))))))))) -> III | L120: 226.8 | M120: =IF(ISBLANK(L120)," ",IF(ISTEXT(L120)," ",IF(L120<=Нормативы!$H$115,"КМС",IF(L120<=Нормативы!$H$116,"КМС",IF(L120<=Нормативы!$L$117,"КМС",IF(L120<=Нормативы!$L$118,"I",IF(L120<=Нормативы!$L$119,"II",IF(L120<=Нормативы!$L$120,"III",IF(L120<=Нормативы!$L$121,"I юн",IF(L120<=Нормативы!$L$122,"II юн",IF(L120<=Нормативы!$L$123,"III юн","б/р"))))))))))) -> III | N120: =IF(ISBLANK(L120)," ",IF(ISTEXT(L120)," ",IF(L120<=Нормативы!$H$115,"КМС",IF(L120<=Нормативы!$H$116,"КМС",IF(L120<=Нормативы!$L$117,"КМС",IF(L120<=Нормативы!$L$118,"I",IF(L120<=Нормативы!$L$119,"II",IF(L120<=Нормативы!$L$120,"III",IF(L120<=Нормативы!$L$121,"I юн",IF(L120<=Нормативы!$L$122,"II юн",IF(L120<=Нормативы!$L$123,"III юн","б/р"))))))))))) -> III | Q120: =IF(ISBLANK(P120)," ",IF(ISTEXT(P120)," ",IF(P120<=$H$115,"МСМК",IF(P120<=$H$116,"МС",IF(P120<=$H$117,"КМС",IF(P120<=$H$118,"I",IF(P120<=$H$119,"II",IF(P120<=$H$120,"III",IF(P120<=$H$121,"I юн",IF(P120<=$H$122,"II юн",IF(P120<=$H$123,"III юн","б/р"))))))))))) -> 
H121: 242.2 | I121: =IF(ISBLANK(H121)," ",IF(ISTEXT(H121)," ",IF(H121<=Нормативы!$H$115,"МСМК",IF(H121<=Нормативы!$H$116,"МС",IF(H121<=Нормативы!$H$117,"КМС",IF(H121<=Нормативы!$H$118,"I",IF(H121<=Нормативы!$H$119,"II",IF(H121<=Нормативы!$H$120,"III",IF(H121<=Нормативы!$H$121,"I юн",IF(H121<=Нормативы!$H$122,"II юн",IF(H121<=Нормативы!$H$123,"III юн","б/р"))))))))))) -> I юн | J121: =IF(ISBLANK(H121)," ",IF(ISTEXT(H121)," ",IF(H121<=Нормативы!$H$115,"МСМК",IF(H121<=Нормативы!$H$116,"МС",IF(H121<=Нормативы!$H$117,"КМС",IF(H121<=Нормативы!$H$118,"I",IF(H121<=Нормативы!$H$119,"II",IF(H121<=Нормативы!$H$120,"III",IF(H121<=Нормативы!$H$121,"I юн",IF(H121<=Нормативы!$H$122,"II юн",IF(H121<=Нормативы!$H$123,"III юн","б/р"))))))))))) -> I юн | L121: 242 | M121: =IF(ISBLANK(L121)," ",IF(ISTEXT(L121)," ",IF(L121<=Нормативы!$H$115,"КМС",IF(L121<=Нормативы!$H$116,"КМС",IF(L121<=Нормативы!$L$117,"КМС",IF(L121<=Нормативы!$L$118,"I",IF(L121<=Нормативы!$L$119,"II",IF(L121<=Нормативы!$L$120,"III",IF(L121<=Нормативы!$L$121,"I юн",IF(L121<=Нормативы!$L$122,"II юн",IF(L121<=Нормативы!$L$123,"III юн","б/р"))))))))))) -> I юн | N121: =IF(ISBLANK(L121)," ",IF(ISTEXT(L121)," ",IF(L121<=Нормативы!$H$115,"КМС",IF(L121<=Нормативы!$H$116,"КМС",IF(L121<=Нормативы!$L$117,"КМС",IF(L121<=Нормативы!$L$118,"I",IF(L121<=Нормативы!$L$119,"II",IF(L121<=Нормативы!$L$120,"III",IF(L121<=Нормативы!$L$121,"I юн",IF(L121<=Нормативы!$L$122,"II юн",IF(L121<=Нормативы!$L$123,"III юн","б/р"))))))))))) -> I юн | Q121: =IF(ISBLANK(P121)," ",IF(ISTEXT(P121)," ",IF(P121<=$H$115,"МСМК",IF(P121<=$H$116,"МС",IF(P121<=$H$117,"КМС",IF(P121<=$H$118,"I",IF(P121<=$H$119,"II",IF(P121<=$H$120,"III",IF(P121<=$H$121,"I юн",IF(P121<=$H$122,"II юн",IF(P121<=$H$123,"III юн","б/р"))))))))))) -> 
H122: 256.2 | I122: =IF(ISBLANK(H122)," ",IF(ISTEXT(H122)," ",IF(H122<=Нормативы!$H$115,"МСМК",IF(H122<=Нормативы!$H$116,"МС",IF(H122<=Нормативы!$H$117,"КМС",IF(H122<=Нормативы!$H$118,"I",IF(H122<=Нормативы!$H$119,"II",IF(H122<=Нормативы!$H$120,"III",IF(H122<=Нормативы!$H$121,"I юн",IF(H122<=Нормативы!$H$122,"II юн",IF(H122<=Нормативы!$H$123,"III юн","б/р"))))))))))) -> II юн | J122: =IF(ISBLANK(H122)," ",IF(ISTEXT(H122)," ",IF(H122<=Нормативы!$H$115,"МСМК",IF(H122<=Нормативы!$H$116,"МС",IF(H122<=Нормативы!$H$117,"КМС",IF(H122<=Нормативы!$H$118,"I",IF(H122<=Нормативы!$H$119,"II",IF(H122<=Нормативы!$H$120,"III",IF(H122<=Нормативы!$H$121,"I юн",IF(H122<=Нормативы!$H$122,"II юн",IF(H122<=Нормативы!$H$123,"III юн","б/р"))))))))))) -> II юн | L122: 256 | M122: =IF(ISBLANK(L122)," ",IF(ISTEXT(L122)," ",IF(L122<=Нормативы!$H$115,"КМС",IF(L122<=Нормативы!$H$116,"КМС",IF(L122<=Нормативы!$L$117,"КМС",IF(L122<=Нормативы!$L$118,"I",IF(L122<=Нормативы!$L$119,"II",IF(L122<=Нормативы!$L$120,"III",IF(L122<=Нормативы!$L$121,"I юн",IF(L122<=Нормативы!$L$122,"II юн",IF(L122<=Нормативы!$L$123,"III юн","б/р"))))))))))) -> II юн | N122: =IF(ISBLANK(L122)," ",IF(ISTEXT(L122)," ",IF(L122<=Нормативы!$H$115,"КМС",IF(L122<=Нормативы!$H$116,"КМС",IF(L122<=Нормативы!$L$117,"КМС",IF(L122<=Нормативы!$L$118,"I",IF(L122<=Нормативы!$L$119,"II",IF(L122<=Нормативы!$L$120,"III",IF(L122<=Нормативы!$L$121,"I юн",IF(L122<=Нормативы!$L$122,"II юн",IF(L122<=Нормативы!$L$123,"III юн","б/р"))))))))))) -> II юн | Q122: =IF(ISBLANK(P122)," ",IF(ISTEXT(P122)," ",IF(P122<=$H$115,"МСМК",IF(P122<=$H$116,"МС",IF(P122<=$H$117,"КМС",IF(P122<=$H$118,"I",IF(P122<=$H$119,"II",IF(P122<=$H$120,"III",IF(P122<=$H$121,"I юн",IF(P122<=$H$122,"II юн",IF(P122<=$H$123,"III юн","б/р"))))))))))) -> 
H123: 310.2 | I123: =IF(ISBLANK(H123)," ",IF(ISTEXT(H123)," ",IF(H123<=Нормативы!$H$115,"МСМК",IF(H123<=Нормативы!$H$116,"МС",IF(H123<=Нормативы!$H$117,"КМС",IF(H123<=Нормативы!$H$118,"I",IF(H123<=Нормативы!$H$119,"II",IF(H123<=Нормативы!$H$120,"III",IF(H123<=Нормативы!$H$121,"I юн",IF(H123<=Нормативы!$H$122,"II юн",IF(H123<=Нормативы!$H$123,"III юн","б/р"))))))))))) -> III юн | J123: =IF(ISBLANK(H123)," ",IF(ISTEXT(H123)," ",IF(H123<=Нормативы!$H$115,"МСМК",IF(H123<=Нормативы!$H$116,"МС",IF(H123<=Нормативы!$H$117,"КМС",IF(H123<=Нормативы!$H$118,"I",IF(H123<=Нормативы!$H$119,"II",IF(H123<=Нормативы!$H$120,"III",IF(H123<=Нормативы!$H$121,"I юн",IF(H123<=Нормативы!$H$122,"II юн",IF(H123<=Нормативы!$H$123,"III юн","б/р"))))))))))) -> III юн | L123: 310 | M123: =IF(ISBLANK(L123)," ",IF(ISTEXT(L123)," ",IF(L123<=Нормативы!$H$115,"КМС",IF(L123<=Нормативы!$H$116,"КМС",IF(L123<=Нормативы!$L$117,"КМС",IF(L123<=Нормативы!$L$118,"I",IF(L123<=Нормативы!$L$119,"II",IF(L123<=Нормативы!$L$120,"III",IF(L123<=Нормативы!$L$121,"I юн",IF(L123<=Нормативы!$L$122,"II юн",IF(L123<=Нормативы!$L$123,"III юн","б/р"))))))))))) -> III юн | N123: =IF(ISBLANK(L123)," ",IF(ISTEXT(L123)," ",IF(L123<=Нормативы!$H$115,"КМС",IF(L123<=Нормативы!$H$116,"КМС",IF(L123<=Нормативы!$L$117,"КМС",IF(L123<=Нормативы!$L$118,"I",IF(L123<=Нормативы!$L$119,"II",IF(L123<=Нормативы!$L$120,"III",IF(L123<=Нормативы!$L$121,"I юн",IF(L123<=Нормативы!$L$122,"II юн",IF(L123<=Нормативы!$L$123,"III юн","б/р"))))))))))) -> III юн | Q123: =IF(ISBLANK(P123)," ",IF(ISTEXT(P123)," ",IF(P123<=$H$115,"МСМК",IF(P123<=$H$116,"МС",IF(P123<=$H$117,"КМС",IF(P123<=$H$118,"I",IF(P123<=$H$119,"II",IF(P123<=$H$120,"III",IF(P123<=$H$121,"I юн",IF(P123<=$H$122,"II юн",IF(P123<=$H$123,"III юн","б/р"))))))))))) -> 
C125: Плавание в классических ластах- 200 м (1460261811Я), мужчины
H126: 136.4 | I126: =IF(ISBLANK(H126)," ",IF(ISTEXT(H126)," ",IF(H126<=Нормативы!$H$126,"МСМК",IF(H126<=Нормативы!$H$127,"МС",IF(H126<=Нормативы!$H$128,"КМС",IF(H126<=Нормативы!$H$129,"I",IF(H126<=Нормативы!$H$130,"II",IF(H126<=Нормативы!$H$131,"III",IF(H126<=Нормативы!$H$132,"I юн",IF(H126<=Нормативы!$H$133,"II юн",IF(H126<=Нормативы!$H$134,"III юн","б/р"))))))))))) -> МСМК | J126: =IF(ISBLANK(H126)," ",IF(ISTEXT(H126)," ",IF(H126<=Нормативы!$H$126,"МСМК",IF(H126<=Нормативы!$H$127,"МС",IF(H126<=Нормативы!$H$128,"КМС",IF(H126<=Нормативы!$H$129,"I",IF(H126<=Нормативы!$H$130,"II",IF(H126<=Нормативы!$H$131,"III",IF(H126<=Нормативы!$H$132,"I юн",IF(H126<=Нормативы!$H$133,"II юн",IF(H126<=Нормативы!$H$134,"III юн","б/р"))))))))))) -> МСМК | M126: =IF(ISBLANK(L126)," ",IF(ISTEXT(L126)," ",IF(L126<=Нормативы!$H$126,"КМС",IF(L126<=Нормативы!$H$127,"КМС",IF(L126<=Нормативы!$L$128,"КМС",IF(L126<=Нормативы!$L$129,"I",IF(L126<=Нормативы!$L$130,"II",IF(L126<=Нормативы!$L$131,"III",IF(L126<=Нормативы!$L$132,"I юн",IF(L126<=Нормативы!$L$133,"II юн",IF(L126<=Нормативы!$L$134,"III юн","б/р"))))))))))) ->  | N126: =IF(ISBLANK(L126)," ",IF(ISTEXT(L126)," ",IF(L126<=136.5,"МСМК",IF(L126<=141.4,"МС",IF(L126<=145.8,"КМС",IF(L126<=154.6,"I",IF(L126<=203.8,"II",IF(L126<=214.6,"III",IF(L126<=228.5,"I юн",IF(L126<=242,"II юн",IF(L126<=255,"III юн","б/р"))))))))))) ->  | Q126: =IF(ISBLANK(P126)," ",IF(ISTEXT(P126)," ",IF(P126<=$H$126,"МСМК",IF(P126<=$H$127,"МС",IF(P126<=$H$128,"КМС",IF(P126<=$H$129,"I",IF(P126<=$H$130,"II",IF(P126<=$H$131,"III",IF(P126<=$H$132,"I юн",IF(P126<=$H$133,"II юн",IF(P126<=$H$134,"III юн","б/р"))))))))))) -> 
H127: 140.5 | I127: =IF(ISBLANK(H127)," ",IF(ISTEXT(H127)," ",IF(H127<=Нормативы!$H$126,"МСМК",IF(H127<=Нормативы!$H$127,"МС",IF(H127<=Нормативы!$H$128,"КМС",IF(H127<=Нормативы!$H$129,"I",IF(H127<=Нормативы!$H$130,"II",IF(H127<=Нормативы!$H$131,"III",IF(H127<=Нормативы!$H$132,"I юн",IF(H127<=Нормативы!$H$133,"II юн",IF(H127<=Нормативы!$H$134,"III юн","б/р"))))))))))) -> МС | J127: =IF(ISBLANK(H127)," ",IF(ISTEXT(H127)," ",IF(H127<=Нормативы!$H$126,"МСМК",IF(H127<=Нормативы!$H$127,"МС",IF(H127<=Нормативы!$H$128,"КМС",IF(H127<=Нормативы!$H$129,"I",IF(H127<=Нормативы!$H$130,"II",IF(H127<=Нормативы!$H$131,"III",IF(H127<=Нормативы!$H$132,"I юн",IF(H127<=Нормативы!$H$133,"II юн",IF(H127<=Нормативы!$H$134,"III юн","б/р"))))))))))) -> МС | M127: =IF(ISBLANK(L127)," ",IF(ISTEXT(L127)," ",IF(L127<=Нормативы!$H$126,"КМС",IF(L127<=Нормативы!$H$127,"КМС",IF(L127<=Нормативы!$L$128,"КМС",IF(L127<=Нормативы!$L$129,"I",IF(L127<=Нормативы!$L$130,"II",IF(L127<=Нормативы!$L$131,"III",IF(L127<=Нормативы!$L$132,"I юн",IF(L127<=Нормативы!$L$133,"II юн",IF(L127<=Нормативы!$L$134,"III юн","б/р"))))))))))) ->  | N127: =IF(ISBLANK(L127)," ",IF(ISTEXT(L127)," ",IF(L127<=136.5,"МСМК",IF(L127<=141.4,"МС",IF(L127<=145.8,"КМС",IF(L127<=154.6,"I",IF(L127<=203.8,"II",IF(L127<=214.6,"III",IF(L127<=228.5,"I юн",IF(L127<=242,"II юн",IF(L127<=255,"III юн","б/р"))))))))))) ->  | Q127: =IF(ISBLANK(P127)," ",IF(ISTEXT(P127)," ",IF(P127<=$H$126,"МСМК",IF(P127<=$H$127,"МС",IF(P127<=$H$128,"КМС",IF(P127<=$H$129,"I",IF(P127<=$H$130,"II",IF(P127<=$H$131,"III",IF(P127<=$H$132,"I юн",IF(P127<=$H$133,"II юн",IF(P127<=$H$134,"III юн","б/р"))))))))))) -> 
H128: 145 | I128: =IF(ISBLANK(H128)," ",IF(ISTEXT(H128)," ",IF(H128<=Нормативы!$H$126,"МСМК",IF(H128<=Нормативы!$H$127,"МС",IF(H128<=Нормативы!$H$128,"КМС",IF(H128<=Нормативы!$H$129,"I",IF(H128<=Нормативы!$H$130,"II",IF(H128<=Нормативы!$H$131,"III",IF(H128<=Нормативы!$H$132,"I юн",IF(H128<=Нормативы!$H$133,"II юн",IF(H128<=Нормативы!$H$134,"III юн","б/р"))))))))))) -> КМС | J128: =IF(ISBLANK(H128)," ",IF(ISTEXT(H128)," ",IF(H128<=Нормативы!$H$126,"МСМК",IF(H128<=Нормативы!$H$127,"МС",IF(H128<=Нормативы!$H$128,"КМС",IF(H128<=Нормативы!$H$129,"I",IF(H128<=Нормативы!$H$130,"II",IF(H128<=Нормативы!$H$131,"III",IF(H128<=Нормативы!$H$132,"I юн",IF(H128<=Нормативы!$H$133,"II юн",IF(H128<=Нормативы!$H$134,"III юн","б/р"))))))))))) -> КМС | L128: =H128-0.2 -> 144.8 | M128: =IF(ISBLANK(L128)," ",IF(ISTEXT(L128)," ",IF(L128<=Нормативы!$H$126,"КМС",IF(L128<=Нормативы!$H$127,"КМС",IF(L128<=Нормативы!$L$128,"КМС",IF(L128<=Нормативы!$L$129,"I",IF(L128<=Нормативы!$L$130,"II",IF(L128<=Нормативы!$L$131,"III",IF(L128<=Нормативы!$L$132,"I юн",IF(L128<=Нормативы!$L$133,"II юн",IF(L128<=Нормативы!$L$134,"III юн","б/р"))))))))))) -> КМС | N128: =IF(ISBLANK(L128)," ",IF(ISTEXT(L128)," ",IF(L128<=Нормативы!$H$126,"КМС",IF(L128<=Нормативы!$H$127,"КМС",IF(L128<=Нормативы!$L$128,"КМС",IF(L128<=Нормативы!$L$129,"I",IF(L128<=Нормативы!$L$130,"II",IF(L128<=Нормативы!$L$131,"III",IF(L128<=Нормативы!$L$132,"I юн",IF(L128<=Нормативы!$L$133,"II юн",IF(L128<=Нормативы!$L$134,"III юн","б/р"))))))))))) -> КМС | Q128: =IF(ISBLANK(P128)," ",IF(ISTEXT(P128)," ",IF(P128<=$H$126,"МСМК",IF(P128<=$H$127,"МС",IF(P128<=$H$128,"КМС",IF(P128<=$H$129,"I",IF(P128<=$H$130,"II",IF(P128<=$H$131,"III",IF(P128<=$H$132,"I юн",IF(P128<=$H$133,"II юн",IF(P128<=$H$134,"III юн","б/р"))))))))))) -> 
H129: 153.7 | I129: =IF(ISBLANK(H129)," ",IF(ISTEXT(H129)," ",IF(H129<=Нормативы!$H$126,"МСМК",IF(H129<=Нормативы!$H$127,"МС",IF(H129<=Нормативы!$H$128,"КМС",IF(H129<=Нормативы!$H$129,"I",IF(H129<=Нормативы!$H$130,"II",IF(H129<=Нормативы!$H$131,"III",IF(H129<=Нормативы!$H$132,"I юн",IF(H129<=Нормативы!$H$133,"II юн",IF(H129<=Нормативы!$H$134,"III юн","б/р"))))))))))) -> I | J129: =IF(ISBLANK(H129)," ",IF(ISTEXT(H129)," ",IF(H129<=Нормативы!$H$126,"МСМК",IF(H129<=Нормативы!$H$127,"МС",IF(H129<=Нормативы!$H$128,"КМС",IF(H129<=Нормативы!$H$129,"I",IF(H129<=Нормативы!$H$130,"II",IF(H129<=Нормативы!$H$131,"III",IF(H129<=Нормативы!$H$132,"I юн",IF(H129<=Нормативы!$H$133,"II юн",IF(H129<=Нормативы!$H$134,"III юн","б/р"))))))))))) -> I | L129: 153.5 | M129: =IF(ISBLANK(L129)," ",IF(ISTEXT(L129)," ",IF(L129<=Нормативы!$H$126,"КМС",IF(L129<=Нормативы!$H$127,"КМС",IF(L129<=Нормативы!$L$128,"КМС",IF(L129<=Нормативы!$L$129,"I",IF(L129<=Нормативы!$L$130,"II",IF(L129<=Нормативы!$L$131,"III",IF(L129<=Нормативы!$L$132,"I юн",IF(L129<=Нормативы!$L$133,"II юн",IF(L129<=Нормативы!$L$134,"III юн","б/р"))))))))))) -> I | N129: =IF(ISBLANK(L129)," ",IF(ISTEXT(L129)," ",IF(L129<=Нормативы!$H$126,"КМС",IF(L129<=Нормативы!$H$127,"КМС",IF(L129<=Нормативы!$L$128,"КМС",IF(L129<=Нормативы!$L$129,"I",IF(L129<=Нормативы!$L$130,"II",IF(L129<=Нормативы!$L$131,"III",IF(L129<=Нормативы!$L$132,"I юн",IF(L129<=Нормативы!$L$133,"II юн",IF(L129<=Нормативы!$L$134,"III юн","б/р"))))))))))) -> I | Q129: =IF(ISBLANK(P129)," ",IF(ISTEXT(P129)," ",IF(P129<=$H$126,"МСМК",IF(P129<=$H$127,"МС",IF(P129<=$H$128,"КМС",IF(P129<=$H$129,"I",IF(P129<=$H$130,"II",IF(P129<=$H$131,"III",IF(P129<=$H$132,"I юн",IF(P129<=$H$133,"II юн",IF(P129<=$H$134,"III юн","б/р"))))))))))) -> 
H130: 202.7 | I130: =IF(ISBLANK(H130)," ",IF(ISTEXT(H130)," ",IF(H130<=Нормативы!$H$126,"МСМК",IF(H130<=Нормативы!$H$127,"МС",IF(H130<=Нормативы!$H$128,"КМС",IF(H130<=Нормативы!$H$129,"I",IF(H130<=Нормативы!$H$130,"II",IF(H130<=Нормативы!$H$131,"III",IF(H130<=Нормативы!$H$132,"I юн",IF(H130<=Нормативы!$H$133,"II юн",IF(H130<=Нормативы!$H$134,"III юн","б/р"))))))))))) -> II | J130: =IF(ISBLANK(H130)," ",IF(ISTEXT(H130)," ",IF(H130<=Нормативы!$H$126,"МСМК",IF(H130<=Нормативы!$H$127,"МС",IF(H130<=Нормативы!$H$128,"КМС",IF(H130<=Нормативы!$H$129,"I",IF(H130<=Нормативы!$H$130,"II",IF(H130<=Нормативы!$H$131,"III",IF(H130<=Нормативы!$H$132,"I юн",IF(H130<=Нормативы!$H$133,"II юн",IF(H130<=Нормативы!$H$134,"III юн","б/р"))))))))))) -> II | L130: 202.5 | M130: =IF(ISBLANK(L130)," ",IF(ISTEXT(L130)," ",IF(L130<=Нормативы!$H$126,"КМС",IF(L130<=Нормативы!$H$127,"КМС",IF(L130<=Нормативы!$L$128,"КМС",IF(L130<=Нормативы!$L$129,"I",IF(L130<=Нормативы!$L$130,"II",IF(L130<=Нормативы!$L$131,"III",IF(L130<=Нормативы!$L$132,"I юн",IF(L130<=Нормативы!$L$133,"II юн",IF(L130<=Нормативы!$L$134,"III юн","б/р"))))))))))) -> II | N130: =IF(ISBLANK(L130)," ",IF(ISTEXT(L130)," ",IF(L130<=Нормативы!$H$126,"КМС",IF(L130<=Нормативы!$H$127,"КМС",IF(L130<=Нормативы!$L$128,"КМС",IF(L130<=Нормативы!$L$129,"I",IF(L130<=Нормативы!$L$130,"II",IF(L130<=Нормативы!$L$131,"III",IF(L130<=Нормативы!$L$132,"I юн",IF(L130<=Нормативы!$L$133,"II юн",IF(L130<=Нормативы!$L$134,"III юн","б/р"))))))))))) -> II | Q130: =IF(ISBLANK(P130)," ",IF(ISTEXT(P130)," ",IF(P130<=$H$126,"МСМК",IF(P130<=$H$127,"МС",IF(P130<=$H$128,"КМС",IF(P130<=$H$129,"I",IF(P130<=$H$130,"II",IF(P130<=$H$131,"III",IF(P130<=$H$132,"I юн",IF(P130<=$H$133,"II юн",IF(P130<=$H$134,"III юн","б/р"))))))))))) -> 
H131: 212.8 | I131: =IF(ISBLANK(H131)," ",IF(ISTEXT(H131)," ",IF(H131<=Нормативы!$H$126,"МСМК",IF(H131<=Нормативы!$H$127,"МС",IF(H131<=Нормативы!$H$128,"КМС",IF(H131<=Нормативы!$H$129,"I",IF(H131<=Нормативы!$H$130,"II",IF(H131<=Нормативы!$H$131,"III",IF(H131<=Нормативы!$H$132,"I юн",IF(H131<=Нормативы!$H$133,"II юн",IF(H131<=Нормативы!$H$134,"III юн","б/р"))))))))))) -> III | J131: =IF(ISBLANK(H131)," ",IF(ISTEXT(H131)," ",IF(H131<=Нормативы!$H$126,"МСМК",IF(H131<=Нормативы!$H$127,"МС",IF(H131<=Нормативы!$H$128,"КМС",IF(H131<=Нормативы!$H$129,"I",IF(H131<=Нормативы!$H$130,"II",IF(H131<=Нормативы!$H$131,"III",IF(H131<=Нормативы!$H$132,"I юн",IF(H131<=Нормативы!$H$133,"II юн",IF(H131<=Нормативы!$H$134,"III юн","б/р"))))))))))) -> III | L131: 212.6 | M131: =IF(ISBLANK(L131)," ",IF(ISTEXT(L131)," ",IF(L131<=Нормативы!$H$126,"КМС",IF(L131<=Нормативы!$H$127,"КМС",IF(L131<=Нормативы!$L$128,"КМС",IF(L131<=Нормативы!$L$129,"I",IF(L131<=Нормативы!$L$130,"II",IF(L131<=Нормативы!$L$131,"III",IF(L131<=Нормативы!$L$132,"I юн",IF(L131<=Нормативы!$L$133,"II юн",IF(L131<=Нормативы!$L$134,"III юн","б/р"))))))))))) -> III | N131: =IF(ISBLANK(L131)," ",IF(ISTEXT(L131)," ",IF(L131<=Нормативы!$H$126,"КМС",IF(L131<=Нормативы!$H$127,"КМС",IF(L131<=Нормативы!$L$128,"КМС",IF(L131<=Нормативы!$L$129,"I",IF(L131<=Нормативы!$L$130,"II",IF(L131<=Нормативы!$L$131,"III",IF(L131<=Нормативы!$L$132,"I юн",IF(L131<=Нормативы!$L$133,"II юн",IF(L131<=Нормативы!$L$134,"III юн","б/р"))))))))))) -> III | Q131: =IF(ISBLANK(P131)," ",IF(ISTEXT(P131)," ",IF(P131<=$H$126,"МСМК",IF(P131<=$H$127,"МС",IF(P131<=$H$128,"КМС",IF(P131<=$H$129,"I",IF(P131<=$H$130,"II",IF(P131<=$H$131,"III",IF(P131<=$H$132,"I юн",IF(P131<=$H$133,"II юн",IF(P131<=$H$134,"III юн","б/р"))))))))))) -> 
H132: 225.7 | I132: =IF(ISBLANK(H132)," ",IF(ISTEXT(H132)," ",IF(H132<=Нормативы!$H$126,"МСМК",IF(H132<=Нормативы!$H$127,"МС",IF(H132<=Нормативы!$H$128,"КМС",IF(H132<=Нормативы!$H$129,"I",IF(H132<=Нормативы!$H$130,"II",IF(H132<=Нормативы!$H$131,"III",IF(H132<=Нормативы!$H$132,"I юн",IF(H132<=Нормативы!$H$133,"II юн",IF(H132<=Нормативы!$H$134,"III юн","б/р"))))))))))) -> I юн | J132: =IF(ISBLANK(H132)," ",IF(ISTEXT(H132)," ",IF(H132<=Нормативы!$H$126,"МСМК",IF(H132<=Нормативы!$H$127,"МС",IF(H132<=Нормативы!$H$128,"КМС",IF(H132<=Нормативы!$H$129,"I",IF(H132<=Нормативы!$H$130,"II",IF(H132<=Нормативы!$H$131,"III",IF(H132<=Нормативы!$H$132,"I юн",IF(H132<=Нормативы!$H$133,"II юн",IF(H132<=Нормативы!$H$134,"III юн","б/р"))))))))))) -> I юн | L132: 225.5 | M132: =IF(ISBLANK(L132)," ",IF(ISTEXT(L132)," ",IF(L132<=Нормативы!$H$126,"КМС",IF(L132<=Нормативы!$H$127,"КМС",IF(L132<=Нормативы!$L$128,"КМС",IF(L132<=Нормативы!$L$129,"I",IF(L132<=Нормативы!$L$130,"II",IF(L132<=Нормативы!$L$131,"III",IF(L132<=Нормативы!$L$132,"I юн",IF(L132<=Нормативы!$L$133,"II юн",IF(L132<=Нормативы!$L$134,"III юн","б/р"))))))))))) -> I юн | N132: =IF(ISBLANK(L132)," ",IF(ISTEXT(L132)," ",IF(L132<=Нормативы!$H$126,"КМС",IF(L132<=Нормативы!$H$127,"КМС",IF(L132<=Нормативы!$L$128,"КМС",IF(L132<=Нормативы!$L$129,"I",IF(L132<=Нормативы!$L$130,"II",IF(L132<=Нормативы!$L$131,"III",IF(L132<=Нормативы!$L$132,"I юн",IF(L132<=Нормативы!$L$133,"II юн",IF(L132<=Нормативы!$L$134,"III юн","б/р"))))))))))) -> I юн | Q132: =IF(ISBLANK(P132)," ",IF(ISTEXT(P132)," ",IF(P132<=$H$126,"МСМК",IF(P132<=$H$127,"МС",IF(P132<=$H$128,"КМС",IF(P132<=$H$129,"I",IF(P132<=$H$130,"II",IF(P132<=$H$131,"III",IF(P132<=$H$132,"I юн",IF(P132<=$H$133,"II юн",IF(P132<=$H$134,"III юн","б/р"))))))))))) -> 
H133: 240.2 | I133: =IF(ISBLANK(H133)," ",IF(ISTEXT(H133)," ",IF(H133<=Нормативы!$H$126,"МСМК",IF(H133<=Нормативы!$H$127,"МС",IF(H133<=Нормативы!$H$128,"КМС",IF(H133<=Нормативы!$H$129,"I",IF(H133<=Нормативы!$H$130,"II",IF(H133<=Нормативы!$H$131,"III",IF(H133<=Нормативы!$H$132,"I юн",IF(H133<=Нормативы!$H$133,"II юн",IF(H133<=Нормативы!$H$134,"III юн","б/р"))))))))))) -> II юн | J133: =IF(ISBLANK(H133)," ",IF(ISTEXT(H133)," ",IF(H133<=Нормативы!$H$126,"МСМК",IF(H133<=Нормативы!$H$127,"МС",IF(H133<=Нормативы!$H$128,"КМС",IF(H133<=Нормативы!$H$129,"I",IF(H133<=Нормативы!$H$130,"II",IF(H133<=Нормативы!$H$131,"III",IF(H133<=Нормативы!$H$132,"I юн",IF(H133<=Нормативы!$H$133,"II юн",IF(H133<=Нормативы!$H$134,"III юн","б/р"))))))))))) -> II юн | L133: 240 | M133: =IF(ISBLANK(L133)," ",IF(ISTEXT(L133)," ",IF(L133<=Нормативы!$H$126,"КМС",IF(L133<=Нормативы!$H$127,"КМС",IF(L133<=Нормативы!$L$128,"КМС",IF(L133<=Нормативы!$L$129,"I",IF(L133<=Нормативы!$L$130,"II",IF(L133<=Нормативы!$L$131,"III",IF(L133<=Нормативы!$L$132,"I юн",IF(L133<=Нормативы!$L$133,"II юн",IF(L133<=Нормативы!$L$134,"III юн","б/р"))))))))))) -> II юн | N133: =IF(ISBLANK(L133)," ",IF(ISTEXT(L133)," ",IF(L133<=Нормативы!$H$126,"КМС",IF(L133<=Нормативы!$H$127,"КМС",IF(L133<=Нормативы!$L$128,"КМС",IF(L133<=Нормативы!$L$129,"I",IF(L133<=Нормативы!$L$130,"II",IF(L133<=Нормативы!$L$131,"III",IF(L133<=Нормативы!$L$132,"I юн",IF(L133<=Нормативы!$L$133,"II юн",IF(L133<=Нормативы!$L$134,"III юн","б/р"))))))))))) -> II юн | Q133: =IF(ISBLANK(P133)," ",IF(ISTEXT(P133)," ",IF(P133<=$H$126,"МСМК",IF(P133<=$H$127,"МС",IF(P133<=$H$128,"КМС",IF(P133<=$H$129,"I",IF(P133<=$H$130,"II",IF(P133<=$H$131,"III",IF(P133<=$H$132,"I юн",IF(P133<=$H$133,"II юн",IF(P133<=$H$134,"III юн","б/р"))))))))))) -> 
